Workbook

Sheet Introduction
B1: HMEA model - Introduction
B3: =" Version: v" & Version -> Version: v1.04
B4: Background and supporting documents
B6: The aim of the Highways Maintenance Economic Assessment model (HMEA) is to assess the benefits of a road network to society and the economy of the area served by that road network. Where the value of the benefits can be quantified the model will enable investigation of how those benefits change with the level of carriageway maintenance spend. The model comprises three parts: • Forecast of future road condition and maintenance need o This can be by using the HMEP Lifecycle Planning Toolkit (as part of HMEA) or by an external network analysis tool • Estimation of the impacts on the road user and society caused by the expected future condition o This uses the Highway Maintenance Assessment Toolkit (HMAT) as part of HMEA • Assessment of the effects on the economy caused by the road network. o These are calculated in HMEA The results from different HMEA analyses can be compared using the HMEA Collator. The HMEA User Guide describes how to undertake an HMEA analysis.
B18: Tabs
B20: The following tabs will always be visible in the model:
C22: White Tabs: sheets providing supporting information
C23: Purple Tabs: sheets requiring user inputs for the tool
C24: Green Tabs: sheet for selecting HMAT files for use in the tool
C25: Red Tabs: contains advanced settings
B27: The following tabs will only be visible once HMAT data has been imported:
C29: Yellow Tabs: contain supporting information extracted from the HMAT files
C30: Orange Tabs: contains the output from this model
B33: Buttons
C35: Help Button: Used to provide the user with page specific help and guidance
C37: Purple Button: Used to perform a specific calculation or function
C39: Blue Button: Used to select input files
C41: Green Button: Used to run import and model processing
C43: Red Button: Used to clear out imported and processed data
B46: Cells
C48: Cream cells: Require user inputs
C49: White cells: Cells containing read-only values, note once HMAT data is loaded in some cells will change from Cream to White cells.
C50: Grey Cells: Header text for tables
C51: Red Cells: Identifies a cell which contains an invalid result. This could be a cell that needs populating or a cell which sums the values of user inputs
B54: Liability
B55: No Liability for loss or damage that may be suffered by any person or organisation as a result of the use of this model, or as the result of any errors or omissions in the information contained herein, is accepted by the developers of the toolkit.
B59: Version history
B61: Version | C61: Date | D61: Description
B62: 1.00 | C62: 2019-11-08 | D62: Version for client review
B63: 1.02 | C63: 2019-11-27 | D63: Update to allow selection of cells on Future Projections for copying, and minor bug fixes.
B64: 1.03 | C64: 2019-12-06 | D64: Help button on Summary (life analysis) sheet, other minor changes to layout
B65: 1.04 | C65: 2020-06-10 | D65: Fix issue with calcuation of journey time in network benefits

Sheet Economic Data
B1: HMEA model - Economic Data
B3: =" Version: v" & Version -> Version: v1.04
B4: VAT and NIC data
E6: Total (£ Million) | G6: Population (count) | I6: Base year
C7: National Insurance (NIC) | E7: 2732 | G7: 1883179 | I7: 2018
C8: Value Added Tax (VAT) | E8: 3146 | G8: 1883179 | I8: 2018
B12: Network name, tax data and growth rates
B14: Network | C14: Case Study - Example
E16: Base year data | I16: Basic Growth rates (% per year)
E17: Year | G17: 2019
C18: Name | E18: Population | G18: Tax receipts from Income (£ millon) | I18: aGVA | K18: Tax receipts from Income | M18: VAT | O18: NIC | Q18: Employment
B20: Sub-network 1 | C20: R1 | E20: 419021 | G20: 679 | I20: 0.014 | K20: 0.014 | M20: 0.014 | O20: 0.014 | Q20: 0.009
B21: Sub-network 2 | C21: R2 | E21: 544460 | G21: 800 | I21: 0.014 | K21: 0.014 | M21: 0.014 | O21: 0.014 | Q21: 0.009
B22: Sub-network 3
B23: Sub-network 4
B24: Sub-network 5
B25: Sub-network 6
B26: Sub-network 7
B27: Sub-network 8
B28: Sub-network 9
B29: Sub-network 10
B30: ="Total for " & Net_Name -> Total for Case Study - Example | E30: =SUM(E20:E29) -> 963481 | G30: =SUM(G20:G29) -> 1479
B33: Discount rates
C35: % | D35: Rate applies to
B36: Discount rate 1 | C36: 0.035 | D36: The first | E36: 30 | F36: years of the analysis
B37: Discount rate 2 | C37: 0.03 | D37: The remainder of the analysis
B40: Industry sectors
D42: Industry sectors for analysis
D43: Sector 1 | F43: Sector 2 | H43: Sector 3 | J43: Sector 4 | L43: Sector 5 | N43: Sector 6
C44: Name | D44: Manufacturing | F44: Construction | H44: Human health and social work activities | J44: Agriculture, forestry and fishing | L44: Public administration | N44: Other service activities
B49: aGVA data
D51: aGVA % Split by SIC codes
C52: SIC code | D52: =IF(D44="",D43,D44) -> Manufacturing | F52: =IF(F44="",F43,F44) -> Construction | H52: =IF(H44="",H43,H44) -> Human health and social work activities | J52: =IF(J44="",J43,J44) -> Agriculture, forestry and fishing | L52: =IF(L44="",L43,L44) -> Public administration | N52: =IF(N44="",N43,N44) -> Other service activities | P52: Total %
C55: C | D55: 0.7 | P55: =SUM(D55:N55) -> 0.7
C56: Q | H56: 0.8 | P56: 0.8
C57: O | L57: 0.25 | P57: 0.25
C58: A | J58: 0.7 | P58: 0.7
C59: C | F59: 0.7 | P59: 0.7
C60: Other | N60: 0.4 | P60: 0.4
P61: 0
P62: 0
P63: 0
P64: 0
P65: 0
P66: 0
P67: 0
P68: =SUM(D68:N68) -> 0
P69: 0
P70: 0
P71: 0
C73: aGVA base year | E73: 2018
D75: aGVA data (£ million)
C76: SIC code | D76: =IF(D1_Name="",".",D1_Name) -> R1 | E76: =IF(D2_Name="",".",D2_Name) -> R2 | F76: =IF(D3_Name="",".",D3_Name) -> . | G76: =IF(D4_Name="",".",D4_Name) -> . | H76: =IF(D5_Name="",".",D5_Name) -> . | I76: =IF(D6_Name="",".",D6_Name) -> . | J76: =IF(D7_Name="",".",D7_Name) -> . | K76: =IF(D8_Name="",".",D8_Name) -> . | L76: =IF(D9_Name="",".",D9_Name) -> . | M76: =IF(D10_Name="",".",D10_Name) -> . | N76: =B183 -> Total for Case Study - Example
C82: =IF(C55="",".",C55) -> C | D82: 1122.272727 | E82: 1323.636364 | N82: =SUM(D82:M82) -> 2445.909091
C83: Q | D83: 785 | E83: 925.9090909 | N83: 1710.909091
C84: O | D84: 671.3636364 | E84: 791.3636364 | N84: 1462.727273
C85: A | D85: 637.2727273 | E85: 751.3636364 | N85: 1388.636364
C86: C | D86: 485.9090909 | E86: 573.1818182 | N86: 1059.090909
C87: Other | D87: 450 | E87: 530.9090909 | N87: 980.9090909
C88: . | N88: 0
C89: . | N89: 0
C90: . | N90: 0
C91: . | N91: 0
C92: . | N92: 0
C93: . | N93: 0
C94: . | N94: 0
C95: =IF(C68="",".",C68) -> . | N95: =SUM(D95:M95) -> 0
C96: . | N96: 0
C97: . | N97: 0
C98: =IF(C71="",".",C71) -> . | N98: 0
C99: Total aGVA for all sectors | D99: 4152 | E99: 4897 | N99: 9049
B102: Employment data
D104: Employment data % Split by SIC codes
C105: SIC code | D105: =D52 -> Manufacturing | F105: =F52 -> Construction | H105: =H52 -> Human health and social work activities | J105: =J52 -> Agriculture, forestry and fishing | L105: =L52 -> Public administration | N105: =N52 -> Other service activities | P105: Total %
C108: C | D108: 0.6 | P108: =SUM(D108:N108) -> 0.6
C109: Q | H109: 0.3 | P109: 0.3
C110: O | L110: 0.7 | P110: 0.7
C111: A | J111: 0.65 | P111: 0.65
C112: F | F112: 0.3 | P112: 0.3
C113: Other | N113: 0.7 | P113: 0.7
P114: 0
P115: 0
P116: 0
P117: 0
P118: 0
P119: 0
P120: 0
P121: =SUM(D121:N121) -> 0
P122: 0
P123: 0
P124: 0
C126: Employment base year | E126: 2019
D128: Employment data (Count)
C129: SIC code | D129: =D76 -> R1 | E129: R2 | F129: . | G129: . | H129: . | I129: . | J129: . | K129: . | L129: =L76 -> . | M129: . | N129: =N76 -> Total for Case Study - Example
C135: =IF(C108="",".",C108) -> C | D135: 17280 | E135: 13240 | N135: =SUM(D135:M135) -> 30520
C136: Q | D136: 1560 | E136: 1960 | N136: 3520
C137: O | D137: 19720 | E137: 24120 | N137: 43840
C138: A | D138: 15920 | E138: 19600 | N138: 35520
C139: F | D139: 7720 | E139: 11200 | N139: 18920
C140: Other | D140: 9960 | E140: 13320 | N140: 23280
C141: . | N141: 0
C142: . | N142: 0
C143: . | N143: 0
C144: . | N144: 0
C145: . | N145: 0
C146: . | N146: 0
C147: . | N147: 0
C148: =IF(C121="",".",C121) -> . | N148: =SUM(D148:M148) -> 0
C149: . | N149: 0
C150: . | N150: 0
C151: =IF(C124="",".",C124) -> . | N151: 0
C152: Total Employment for all sectors | D152: 72160 | E152: 83440 | N152: 155600
B155: Adjusted data for named sectors
B158: aGVA base year | D158: =aGVA_BaseYear -> 2018
D160: aGVA data (£ million)
D161: =D52 -> Manufacturing | F161: =F52 -> Construction | H161: =H52 -> Human health and social work activities | J161: =J52 -> Agriculture, forestry and fishing | L161: =L52 -> Public administration | N161: =N52 -> Other service activities | P161: Total for Named sectors
B164: =B30 -> Total for Case Study - Example | D164: =SUM(D165:D174) -> 1712.136364 | F164: =SUM(F165:F174) -> 741.3636364 | H164: =SUM(H165:H174) -> 1368.727273 | J164: =SUM(J165:J174) -> 972.0454545 | L164: =SUM(L165:L174) -> 365.6818182 | N164: =SUM(N165:N174) -> 392.3636364 | P164: =SUM(P165:P174) -> 5552.318182
B165: =IF(D1_Name="","",D1_Name) -> R1 | D165: =IF(SUMPRODUCT(D$55:D$71,$D$82:$D$98)=0,"",SUMPRODUCT(D$55:D$71,$D$82:$D$98)) -> 785.5909091 | F165: =IF(SUMPRODUCT(F$55:F$71,$D$82:$D$98)=0,"",SUMPRODUCT(F$55:F$71,$D$82:$D$98)) -> 340.1363636 | H165: =IF(SUMPRODUCT(H$55:H$71,$D$82:$D$98)=0,"",SUMPRODUCT(H$55:H$71,$D$82:$D$98)) -> 628 | J165: =IF(SUMPRODUCT(J$55:J$71,$D$82:$D$98)=0,"",SUMPRODUCT(J$55:J$71,$D$82:$D$98)) -> 446.0909091 | L165: =IF(SUMPRODUCT(L$55:L$71,$D$82:$D$98)=0,"",SUMPRODUCT(L$55:L$71,$D$82:$D$98)) -> 167.8409091 | N165: =IF(SUMPRODUCT(N$55:N$71,$D$82:$D$98)=0,"",SUMPRODUCT(N$55:N$71,$D$82:$D$98)) -> 180 | P165: =IF(SUM(D165:N165)=0,"",SUM(D165:N165)) -> 2547.659091
B166: =IF(D2_Name="","",D2_Name) -> R2 | D166: =IF(SUMPRODUCT(D$55:D$71,$E$82:$E$98)=0,"",SUMPRODUCT(D$55:D$71,$E$82:$E$98)) -> 926.5454545 | F166: =IF(SUMPRODUCT(F$55:F$71,$E$82:$E$98)=0,"",SUMPRODUCT(F$55:F$71,$E$82:$E$98)) -> 401.2272727 | H166: =IF(SUMPRODUCT(H$55:H$71,$E$82:$E$98)=0,"",SUMPRODUCT(H$55:H$71,$E$82:$E$98)) -> 740.7272727 | J166: =IF(SUMPRODUCT(J$55:J$71,$E$82:$E$98)=0,"",SUMPRODUCT(J$55:J$71,$E$82:$E$98)) -> 525.9545455 | L166: =IF(SUMPRODUCT(L$55:L$71,$E$82:$E$98)=0,"",SUMPRODUCT(L$55:L$71,$E$82:$E$98)) -> 197.8409091 | N166: =IF(SUMPRODUCT(N$55:N$71,$E$82:$E$98)=0,"",SUMPRODUCT(N$55:N$71,$E$82:$E$98)) -> 212.3636364 | P166: 3004.659091
B167: =IF(D3_Name="","",D3_Name) ->  | D167: =IF(SUMPRODUCT(D$55:D$71,$F$82:$F$98)=0,"",SUMPRODUCT(D$55:D$71,$F$82:$F$98)) ->  | F167: =IF(SUMPRODUCT(F$55:F$71,$F$82:$F$98)=0,"",SUMPRODUCT(F$55:F$71,$F$82:$F$98)) ->  | H167: =IF(SUMPRODUCT(H$55:H$71,$F$82:$F$98)=0,"",SUMPRODUCT(H$55:H$71,$F$82:$F$98)) ->  | J167: =IF(SUMPRODUCT(J$55:J$71,$F$82:$F$98)=0,"",SUMPRODUCT(J$55:J$71,$F$82:$F$98)) ->  | L167: =IF(SUMPRODUCT(L$55:L$71,$F$82:$F$98)=0,"",SUMPRODUCT(L$55:L$71,$F$82:$F$98)) ->  | N167: =IF(SUMPRODUCT(N$55:N$71,$F$82:$F$98)=0,"",SUMPRODUCT(N$55:N$71,$F$82:$F$98)) -> 
B168: =IF(D4_Name="","",D4_Name) ->  | D168: =IF(SUMPRODUCT(D$55:D$71,$G$82:$G$98)=0,"",SUMPRODUCT(D$55:D$71,$G$82:$G$98)) ->  | F168: =IF(SUMPRODUCT(F$55:F$71,$G$82:$G$98)=0,"",SUMPRODUCT(F$55:F$71,$G$82:$G$98)) ->  | H168: =IF(SUMPRODUCT(H$55:H$71,$G$82:$G$98)=0,"",SUMPRODUCT(H$55:H$71,$G$82:$G$98)) ->  | J168: =IF(SUMPRODUCT(J$55:J$71,$G$82:$G$98)=0,"",SUMPRODUCT(J$55:J$71,$G$82:$G$98)) ->  | L168: =IF(SUMPRODUCT(L$55:L$71,$G$82:$G$98)=0,"",SUMPRODUCT(L$55:L$71,$G$82:$G$98)) ->  | N168: =IF(SUMPRODUCT(N$55:N$71,$G$82:$G$98)=0,"",SUMPRODUCT(N$55:N$71,$G$82:$G$98)) -> 
B169: =IF(D5_Name="","",D5_Name) ->  | D169: =IF(SUMPRODUCT(D$55:D$71,$H$82:$H$98)=0,"",SUMPRODUCT(D$55:D$71,$H$82:$H$98)) ->  | F169: =IF(SUMPRODUCT(F$55:F$71,$H$82:$H$98)=0,"",SUMPRODUCT(F$55:F$71,$H$82:$H$98)) ->  | H169: =IF(SUMPRODUCT(H$55:H$71,$H$82:$H$98)=0,"",SUMPRODUCT(H$55:H$71,$H$82:$H$98)) ->  | J169: =IF(SUMPRODUCT(J$55:J$71,$H$82:$H$98)=0,"",SUMPRODUCT(J$55:J$71,$H$82:$H$98)) ->  | L169: =IF(SUMPRODUCT(L$55:L$71,$H$82:$H$98)=0,"",SUMPRODUCT(L$55:L$71,$H$82:$H$98)) ->  | N169: =IF(SUMPRODUCT(N$55:N$71,$H$82:$H$98)=0,"",SUMPRODUCT(N$55:N$71,$H$82:$H$98)) -> 
B170: =IF(D6_Name="","",D6_Name) ->  | D170: =IF(SUMPRODUCT(D$55:D$71,$I$82:$I$98)=0,"",SUMPRODUCT(D$55:D$71,$I$82:$I$98)) ->  | F170: =IF(SUMPRODUCT(F$55:F$71,$I$82:$I$98)=0,"",SUMPRODUCT(F$55:F$71,$I$82:$I$98)) ->  | H170: =IF(SUMPRODUCT(H$55:H$71,$I$82:$I$98)=0,"",SUMPRODUCT(H$55:H$71,$I$82:$I$98)) ->  | J170: =IF(SUMPRODUCT(J$55:J$71,$I$82:$I$98)=0,"",SUMPRODUCT(J$55:J$71,$I$82:$I$98)) ->  | L170: =IF(SUMPRODUCT(L$55:L$71,$I$82:$I$98)=0,"",SUMPRODUCT(L$55:L$71,$I$82:$I$98)) ->  | N170: =IF(SUMPRODUCT(N$55:N$71,$I$82:$I$98)=0,"",SUMPRODUCT(N$55:N$71,$I$82:$I$98)) -> 
B171: =IF(D7_Name="","",D7_Name) ->  | D171: =IF(SUMPRODUCT(D$55:D$71,$J$82:$J$98)=0,"",SUMPRODUCT(D$55:D$71,$J$82:$J$98)) ->  | F171: =IF(SUMPRODUCT(F$55:F$71,$J$82:$J$98)=0,"",SUMPRODUCT(F$55:F$71,$J$82:$J$98)) ->  | H171: =IF(SUMPRODUCT(H$55:H$71,$J$82:$J$98)=0,"",SUMPRODUCT(H$55:H$71,$J$82:$J$98)) ->  | J171: =IF(SUMPRODUCT(J$55:J$71,$J$82:$J$98)=0,"",SUMPRODUCT(J$55:J$71,$J$82:$J$98)) ->  | L171: =IF(SUMPRODUCT(L$55:L$71,$J$82:$J$98)=0,"",SUMPRODUCT(L$55:L$71,$J$82:$J$98)) ->  | N171: =IF(SUMPRODUCT(N$55:N$71,$J$82:$J$98)=0,"",SUMPRODUCT(N$55:N$71,$J$82:$J$98)) -> 
B172: =IF(D8_Name="","",D8_Name) ->  | D172: =IF(SUMPRODUCT(D$55:D$71,$K$82:$K$98)=0,"",SUMPRODUCT(D$55:D$71,$K$82:$K$98)) ->  | F172: =IF(SUMPRODUCT(F$55:F$71,$K$82:$K$98)=0,"",SUMPRODUCT(F$55:F$71,$K$82:$K$98)) ->  | H172: =IF(SUMPRODUCT(H$55:H$71,$K$82:$K$98)=0,"",SUMPRODUCT(H$55:H$71,$K$82:$K$98)) ->  | J172: =IF(SUMPRODUCT(J$55:J$71,$K$82:$K$98)=0,"",SUMPRODUCT(J$55:J$71,$K$82:$K$98)) ->  | L172: =IF(SUMPRODUCT(L$55:L$71,$K$82:$K$98)=0,"",SUMPRODUCT(L$55:L$71,$K$82:$K$98)) ->  | N172: =IF(SUMPRODUCT(N$55:N$71,$K$82:$K$98)=0,"",SUMPRODUCT(N$55:N$71,$K$82:$K$98)) -> 
B173: =IF(D9_Name="","",D9_Name) ->  | D173: =IF(SUMPRODUCT(D$55:D$71,$L$82:$L$98)=0,"",SUMPRODUCT(D$55:D$71,$L$82:$L$98)) ->  | F173: =IF(SUMPRODUCT(F$55:F$71,$L$82:$L$98)=0,"",SUMPRODUCT(F$55:F$71,$L$82:$L$98)) ->  | H173: =IF(SUMPRODUCT(H$55:H$71,$L$82:$L$98)=0,"",SUMPRODUCT(H$55:H$71,$L$82:$L$98)) ->  | J173: =IF(SUMPRODUCT(J$55:J$71,$L$82:$L$98)=0,"",SUMPRODUCT(J$55:J$71,$L$82:$L$98)) ->  | L173: =IF(SUMPRODUCT(L$55:L$71,$L$82:$L$98)=0,"",SUMPRODUCT(L$55:L$71,$L$82:$L$98)) ->  | N173: =IF(SUMPRODUCT(N$55:N$71,$L$82:$L$98)=0,"",SUMPRODUCT(N$55:N$71,$L$82:$L$98)) -> 
B174: =IF(D10_Name="","",D10_Name) ->  | D174: =IF(SUMPRODUCT(D$55:D$71,$M$82:$M$98)=0,"",SUMPRODUCT(D$55:D$71,$M$82:$M$98)) ->  | F174: =IF(SUMPRODUCT(F$55:F$71,$M$82:$M$98)=0,"",SUMPRODUCT(F$55:F$71,$M$82:$M$98)) ->  | H174: =IF(SUMPRODUCT(H$55:H$71,$M$82:$M$98)=0,"",SUMPRODUCT(H$55:H$71,$M$82:$M$98)) ->  | J174: =IF(SUMPRODUCT(J$55:J$71,$M$82:$M$98)=0,"",SUMPRODUCT(J$55:J$71,$M$82:$M$98)) ->  | L174: =IF(SUMPRODUCT(L$55:L$71,$M$82:$M$98)=0,"",SUMPRODUCT(L$55:L$71,$M$82:$M$98)) ->  | N174: =IF(SUMPRODUCT(N$55:N$71,$M$82:$M$98)=0,"",SUMPRODUCT(N$55:N$71,$M$82:$M$98)) -> 
B177: Employment base year | D177: =Employ_BaseYear -> 2019
D179: Employment data (Count)
D180: =D161 -> Manufacturing | F180: =F161 -> Construction | H180: =H161 -> Human health and social work activities | J180: =J161 -> Agriculture, forestry and fishing | L180: =L161 -> Public administration | N180: =N161 -> Other service activities | P180: Total for Named sectors
B183: =B164 -> Total for Case Study - Example | D183: =SUM(D184:D193) -> 18312 | F183: =SUM(F184:F193) -> 5676 | H183: =SUM(H184:H193) -> 1056 | J183: =SUM(J184:J193) -> 23088 | L183: =SUM(L184:L193) -> 30688 | N183: =SUM(N184:N193) -> 16296 | P183: =SUM(P184:P193) -> 95116
B184: R1 | D184: =IF(SUMPRODUCT(D$108:D$124,$D$135:$D$151)=0,"",SUMPRODUCT(D$108:D$124,$D$135:$D$151)) -> 10368 | F184: =IF(SUMPRODUCT(F$108:F$124,$D$135:$D$151)=0,"",SUMPRODUCT(F$108:F$124,$D$135:$D$151)) -> 2316 | H184: =IF(SUMPRODUCT(H$108:H$124,$D$135:$D$151)=0,"",SUMPRODUCT(H$108:H$124,$D$135:$D$151)) -> 468 | J184: =IF(SUMPRODUCT(J$108:J$124,$D$135:$D$151)=0,"",SUMPRODUCT(J$108:J$124,$D$135:$D$151)) -> 10348 | L184: =IF(SUMPRODUCT(L$108:L$124,$D$135:$D$151)=0,"",SUMPRODUCT(L$108:L$124,$D$135:$D$151)) -> 13804 | N184: =IF(SUMPRODUCT(N$108:N$124,$D$135:$D$151)=0,"",SUMPRODUCT(N$108:N$124,$D$135:$D$151)) -> 6972 | P184: =IF(SUM(D184:N184)=0,"",SUM(D184:N184)) -> 44276
B185: R2 | D185: =IF(SUMPRODUCT(D$108:D$124,$E$135:$E$151)=0,"",SUMPRODUCT(D$108:D$124,$E$135:$E$151)) -> 7944 | F185: =IF(SUMPRODUCT(F$108:F$124,$E$135:$E$151)=0,"",SUMPRODUCT(F$108:F$124,$E$135:$E$151)) -> 3360 | H185: =IF(SUMPRODUCT(H$108:H$124,$E$135:$E$151)=0,"",SUMPRODUCT(H$108:H$124,$E$135:$E$151)) -> 588 | J185: =IF(SUMPRODUCT(J$108:J$124,$E$135:$E$151)=0,"",SUMPRODUCT(J$108:J$124,$E$135:$E$151)) -> 12740 | L185: =IF(SUMPRODUCT(L$108:L$124,$E$135:$E$151)=0,"",SUMPRODUCT(L$108:L$124,$E$135:$E$151)) -> 16884 | N185: =IF(SUMPRODUCT(N$108:N$124,$E$135:$E$151)=0,"",SUMPRODUCT(N$108:N$124,$E$135:$E$151)) -> 9324 | P185: 50840
D186: =IF(SUMPRODUCT(D$108:D$124,$F$135:$F$151)=0,"",SUMPRODUCT(D$108:D$124,$F$135:$F$151)) ->  | F186: =IF(SUMPRODUCT(F$108:F$124,$F$135:$F$151)=0,"",SUMPRODUCT(F$108:F$124,$F$135:$F$151)) ->  | H186: =IF(SUMPRODUCT(H$108:H$124,$F$135:$F$151)=0,"",SUMPRODUCT(H$108:H$124,$F$135:$F$151)) ->  | J186: =IF(SUMPRODUCT(J$108:J$124,$F$135:$F$151)=0,"",SUMPRODUCT(J$108:J$124,$F$135:$F$151)) ->  | L186: =IF(SUMPRODUCT(L$108:L$124,$F$135:$F$151)=0,"",SUMPRODUCT(L$108:L$124,$F$135:$F$151)) ->  | N186: =IF(SUMPRODUCT(N$108:N$124,$F$135:$F$151)=0,"",SUMPRODUCT(N$108:N$124,$F$135:$F$151)) -> 
D187: =IF(SUMPRODUCT(D$108:D$124,$G$135:$G$151)=0,"",SUMPRODUCT(D$108:D$124,$G$135:$G$151)) ->  | F187: =IF(SUMPRODUCT(F$108:F$124,$G$135:$G$151)=0,"",SUMPRODUCT(F$108:F$124,$G$135:$G$151)) ->  | H187: =IF(SUMPRODUCT(H$108:H$124,$G$135:$G$151)=0,"",SUMPRODUCT(H$108:H$124,$G$135:$G$151)) ->  | J187: =IF(SUMPRODUCT(J$108:J$124,$G$135:$G$151)=0,"",SUMPRODUCT(J$108:J$124,$G$135:$G$151)) ->  | L187: =IF(SUMPRODUCT(L$108:L$124,$G$135:$G$151)=0,"",SUMPRODUCT(L$108:L$124,$G$135:$G$151)) ->  | N187: =IF(SUMPRODUCT(N$108:N$124,$G$135:$G$151)=0,"",SUMPRODUCT(N$108:N$124,$G$135:$G$151)) -> 
D188: =IF(SUMPRODUCT(D$108:D$124,$H$135:$H$151)=0,"",SUMPRODUCT(D$108:D$124,$H$135:$H$151)) ->  | F188: =IF(SUMPRODUCT(F$108:F$124,$H$135:$H$151)=0,"",SUMPRODUCT(F$108:F$124,$H$135:$H$151)) ->  | H188: =IF(SUMPRODUCT(H$108:H$124,$H$135:$H$151)=0,"",SUMPRODUCT(H$108:H$124,$H$135:$H$151)) ->  | J188: =IF(SUMPRODUCT(J$108:J$124,$H$135:$H$151)=0,"",SUMPRODUCT(J$108:J$124,$H$135:$H$151)) ->  | L188: =IF(SUMPRODUCT(L$108:L$124,$H$135:$H$151)=0,"",SUMPRODUCT(L$108:L$124,$H$135:$H$151)) ->  | N188: =IF(SUMPRODUCT(N$108:N$124,$H$135:$H$151)=0,"",SUMPRODUCT(N$108:N$124,$H$135:$H$151)) -> 
D189: =IF(SUMPRODUCT(D$108:D$124,$I$135:$I$151)=0,"",SUMPRODUCT(D$108:D$124,$I$135:$I$151)) ->  | F189: =IF(SUMPRODUCT(F$108:F$124,$I$135:$I$151)=0,"",SUMPRODUCT(F$108:F$124,$I$135:$I$151)) ->  | H189: =IF(SUMPRODUCT(H$108:H$124,$I$135:$I$151)=0,"",SUMPRODUCT(H$108:H$124,$I$135:$I$151)) ->  | J189: =IF(SUMPRODUCT(J$108:J$124,$I$135:$I$151)=0,"",SUMPRODUCT(J$108:J$124,$I$135:$I$151)) ->  | L189: =IF(SUMPRODUCT(L$108:L$124,$I$135:$I$151)=0,"",SUMPRODUCT(L$108:L$124,$I$135:$I$151)) ->  | N189: =IF(SUMPRODUCT(N$108:N$124,$I$135:$I$151)=0,"",SUMPRODUCT(N$108:N$124,$I$135:$I$151)) -> 
D190: =IF(SUMPRODUCT(D$108:D$124,$J$135:$J$151)=0,"",SUMPRODUCT(D$108:D$124,$J$135:$J$151)) ->  | F190: =IF(SUMPRODUCT(F$108:F$124,$J$135:$J$151)=0,"",SUMPRODUCT(F$108:F$124,$J$135:$J$151)) ->  | H190: =IF(SUMPRODUCT(H$108:H$124,$J$135:$J$151)=0,"",SUMPRODUCT(H$108:H$124,$J$135:$J$151)) ->  | J190: =IF(SUMPRODUCT(J$108:J$124,$J$135:$J$151)=0,"",SUMPRODUCT(J$108:J$124,$J$135:$J$151)) ->  | L190: =IF(SUMPRODUCT(L$108:L$124,$J$135:$J$151)=0,"",SUMPRODUCT(L$108:L$124,$J$135:$J$151)) ->  | N190: =IF(SUMPRODUCT(N$108:N$124,$J$135:$J$151)=0,"",SUMPRODUCT(N$108:N$124,$J$135:$J$151)) -> 
D191: =IF(SUMPRODUCT(D$108:D$124,$K$135:$K$151)=0,"",SUMPRODUCT(D$108:D$124,$K$135:$K$151)) ->  | F191: =IF(SUMPRODUCT(F$108:F$124,$K$135:$K$151)=0,"",SUMPRODUCT(F$108:F$124,$K$135:$K$151)) ->  | H191: =IF(SUMPRODUCT(H$108:H$124,$K$135:$K$151)=0,"",SUMPRODUCT(H$108:H$124,$K$135:$K$151)) ->  | J191: =IF(SUMPRODUCT(J$108:J$124,$K$135:$K$151)=0,"",SUMPRODUCT(J$108:J$124,$K$135:$K$151)) ->  | L191: =IF(SUMPRODUCT(L$108:L$124,$K$135:$K$151)=0,"",SUMPRODUCT(L$108:L$124,$K$135:$K$151)) ->  | N191: =IF(SUMPRODUCT(N$108:N$124,$K$135:$K$151)=0,"",SUMPRODUCT(N$108:N$124,$K$135:$K$151)) -> 
D192: =IF(SUMPRODUCT(D$108:D$124,$L$135:$L$151)=0,"",SUMPRODUCT(D$108:D$124,$L$135:$L$151)) ->  | F192: =IF(SUMPRODUCT(F$108:F$124,$L$135:$L$151)=0,"",SUMPRODUCT(F$108:F$124,$L$135:$L$151)) ->  | H192: =IF(SUMPRODUCT(H$108:H$124,$L$135:$L$151)=0,"",SUMPRODUCT(H$108:H$124,$L$135:$L$151)) ->  | J192: =IF(SUMPRODUCT(J$108:J$124,$L$135:$L$151)=0,"",SUMPRODUCT(J$108:J$124,$L$135:$L$151)) ->  | L192: =IF(SUMPRODUCT(L$108:L$124,$L$135:$L$151)=0,"",SUMPRODUCT(L$108:L$124,$L$135:$L$151)) ->  | N192: =IF(SUMPRODUCT(N$108:N$124,$L$135:$L$151)=0,"",SUMPRODUCT(N$108:N$124,$L$135:$L$151)) ->  | P192: =IF(SUM(D192:N192)=0,"",SUM(D192:N192)) -> 
D193: =IF(SUMPRODUCT(D$108:D$124,$M$135:$M$151)=0,"",SUMPRODUCT(D$108:D$124,$M$135:$M$151)) ->  | F193: =IF(SUMPRODUCT(F$108:F$124,$M$135:$M$151)=0,"",SUMPRODUCT(F$108:F$124,$M$135:$M$151)) ->  | H193: =IF(SUMPRODUCT(H$108:H$124,$M$135:$M$151)=0,"",SUMPRODUCT(H$108:H$124,$M$135:$M$151)) ->  | J193: =IF(SUMPRODUCT(J$108:J$124,$M$135:$M$151)=0,"",SUMPRODUCT(J$108:J$124,$M$135:$M$151)) ->  | L193: =IF(SUMPRODUCT(L$108:L$124,$M$135:$M$151)=0,"",SUMPRODUCT(L$108:L$124,$M$135:$M$151)) ->  | N193: =IF(SUMPRODUCT(N$108:N$124,$M$135:$M$151)=0,"",SUMPRODUCT(N$108:N$124,$M$135:$M$151)) -> 
D196: Per Capita aGVA (employment based) | R196: Per Capita aGVA (Population based)
D197: =D180 -> Manufacturing | F197: =F180 -> Construction | H197: =H180 -> Human health and social work activities | J197: =J180 -> Agriculture, forestry and fishing | L197: =L180 -> Public administration | N197: =N180 -> Other service activities | P197: Total for Named sectors
B200: =B183 -> Total for Case Study - Example | D200: =IFERROR((D164*1000000)/D183, "") -> 93498.05393 | F200: =IFERROR((F164*1000000)/F183, "") -> 130613.7485 | H200: =IFERROR((H164*1000000)/H183, "") -> 1296143.251 | J200: =IFERROR((J164*1000000)/J183, "") -> 42101.76085 | L200: =IFERROR((L164*1000000)/L183, "") -> 11916.11764 | N200: =IFERROR((N164*1000000)/N183, "") -> 24077.29727 | P200: =IFERROR((P164*1000000)/P183, "") -> 58374.1766 | R200: =IFERROR(((N99)*1000000)/E30, "") -> 9391.985934
B201: R1 | D201: =IFERROR((D165*1000000)/D184, "") -> 75770.72811 | F201: =IFERROR((F165*1000000)/F184, "") -> 146863.7149 | H201: =IFERROR((H165*1000000)/H184, "") -> 1341880.342 | J201: =IFERROR((J165*1000000)/J184, "") -> 43108.90115 | L201: =IFERROR((L165*1000000)/L184, "") -> 12158.86041 | N201: =IFERROR((N165*1000000)/N184, "") -> 25817.55594 | P201: =IFERROR((P165*1000000)/P184, "") -> 57540.40769 | R201: =IFERROR((D1_aGVA_Sum*1000000)/D1_Pop, "") -> 9908.811253
B202: R2 | D202: =IFERROR((D166*1000000)/D185, "") -> 116634.6242 | F202: =IFERROR((F166*1000000)/F185, "") -> 119412.8788 | H202: =IFERROR((H166*1000000)/H185, "") -> 1259740.26 | J202: =IFERROR((J166*1000000)/J185, "") -> 41283.71628 | L202: =IFERROR((L166*1000000)/L185, "") -> 11717.65631 | N202: =IFERROR((N166*1000000)/N185, "") -> 22776.02278 | P202: =IFERROR((P166*1000000)/P185, "") -> 59100.29683 | R202: =IFERROR((D2_aGVA_Sum*1000000)/D2_Pop, "") -> 8994.232818
D203: =IFERROR((D167*1000000)/D186, "") ->  | F203: =IFERROR((F167*1000000)/F186, "") ->  | H203: =IFERROR((H167*1000000)/H186, "") ->  | J203: =IFERROR((J167*1000000)/J186, "") ->  | L203: =IFERROR((L167*1000000)/L186, "") ->  | N203: =IFERROR((N167*1000000)/N186, "") ->  | P203: =IFERROR((P167*1000000)/P186, "") ->  | R203: =IFERROR((D3_aGVA_Sum*1000000)/D3_Pop, "") -> 
D204: =IFERROR((D168*1000000)/D187, "") ->  | F204: =IFERROR((F168*1000000)/F187, "") ->  | H204: =IFERROR((H168*1000000)/H187, "") ->  | J204: =IFERROR((J168*1000000)/J187, "") ->  | L204: =IFERROR((L168*1000000)/L187, "") ->  | N204: =IFERROR((N168*1000000)/N187, "") ->  | P204: =IFERROR((P168*1000000)/P187, "") ->  | R204: =IFERROR((D4_aGVA_Sum*1000000)/D4_Pop, "") -> 
P205: =IFERROR((P169*1000000)/P188, "") ->  | R205: =IFERROR((D5_aGVA_Sum*1000000)/D5_Pop, "") -> 
R206: =IFERROR((D6_aGVA_Sum*1000000)/D6_Pop, "") -> 
D207: =IFERROR((D171*1000000)/D190, "") ->  | F207: =IFERROR((F171*1000000)/F190, "") ->  | H207: =IFERROR((H171*1000000)/H190, "") ->  | J207: =IFERROR((J171*1000000)/J190, "") ->  | L207: =IFERROR((L171*1000000)/L190, "") ->  | N207: =IFERROR((N171*1000000)/N190, "") ->  | R207: =IFERROR((D7_aGVA_Sum*1000000)/D7_Pop, "") -> 
D208: =IFERROR((D172*1000000)/D191, "") ->  | R208: =IFERROR((D8_aGVA_Sum*1000000)/D8_Pop, "") -> 
D209: =IFERROR((D173*1000000)/D192, "") ->  | P209: =IFERROR((P173*1000000)/P192, "") ->  | R209: =IFERROR((D9_aGVA_Sum*1000000)/D9_Pop, "") -> 
D210: =IFERROR((D174*1000000)/D193, "") ->  | F210: =IFERROR((F174*1000000)/F193, "") ->  | H210: =IFERROR((H174*1000000)/H193, "") ->  | J210: =IFERROR((J174*1000000)/J193, "") ->  | L210: =IFERROR((L174*1000000)/L193, "") ->  | N210: =IFERROR((N174*1000000)/N193, "") ->  | P210: =IFERROR((P174*1000000)/P193, "") ->  | R210: =IFERROR((D10_aGVA_Sum*1000000)/D10_Pop, "") -> 
B213: Tax recipts base year | D213: =TaxReceip_BaseYear -> 2019
D215: Total tax recipts from Income (£k)
D216: =D197 -> Manufacturing | F216: =F197 -> Construction | H216: =H197 -> Human health and social work activities | J216: =J197 -> Agriculture, forestry and fishing | L216: =L197 -> Public administration | N216: =N197 -> Other service activities | P216: Total for Named sectors
B219: =B200 -> Total for Case Study - Example | D219: =SUM(D220:D229) -> 173724.1107 | F219: =SUM(F220:F229) -> 54007.50346 | H219: =SUM(H220:H229) -> 10041.29786 | J219: =SUM(J220:J229) -> 219518.6599 | L219: =SUM(L220:L229) -> 291769.9374 | N219: =SUM(N220:N229) -> 155000.0197 | P219: =SUM(P220:P229) -> 904061.529
B220: R1 | D220: =IFERROR(D1_TaxReceip*1000*D184/D1_Employ_Sum,"") -> 97559.20177 | F220: =IFERROR(D1_TaxReceip*1000*F184/D1_Employ_Sum,"") -> 21792.73836 | H220: =IFERROR(D1_TaxReceip*1000*H184/D1_Employ_Sum,"") -> 4403.713969 | J220: =IFERROR(D1_TaxReceip*1000*J184/D1_Employ_Sum,"") -> 97371.00887 | L220: =IFERROR(D1_TaxReceip*1000*L184/D1_Employ_Sum,"") -> 129890.7428 | N220: =IFERROR(D1_TaxReceip*1000*N184/D1_Employ_Sum,"") -> 65604.04656 | P220: =IFERROR(D1_TaxReceip*1000*P184/D1_Employ_Sum,"") -> 416621.4523
B221: R2 | D221: =IFERROR(D2_TaxReceip*1000*D185/D2_Employ_Sum,"") -> 76164.90892 | F221: =IFERROR(D2_TaxReceip*1000*F185/D2_Employ_Sum,"") -> 32214.7651 | H221: =IFERROR(D2_TaxReceip*1000*H185/D2_Employ_Sum,"") -> 5637.583893 | J221: =IFERROR(D2_TaxReceip*1000*J185/D2_Employ_Sum,"") -> 122147.651 | L221: =IFERROR(D2_TaxReceip*1000*L185/D2_Employ_Sum,"") -> 161879.1946 | N221: =IFERROR(D2_TaxReceip*1000*N185/D2_Employ_Sum,"") -> 89395.97315 | P221: =IFERROR(D2_TaxReceip*1000*P185/D2_Employ_Sum,"") -> 487440.0767
D222: =IFERROR(D3_TaxReceip*1000*D186/D3_Employ_Sum,"") ->  | F222: =IFERROR(D3_TaxReceip*1000*F186/D3_Employ_Sum,"") ->  | H222: =IFERROR(D3_TaxReceip*1000*H186/D3_Employ_Sum,"") ->  | J222: =IFERROR(D3_TaxReceip*1000*J186/D3_Employ_Sum,"") ->  | L222: =IFERROR(D3_TaxReceip*1000*L186/D3_Employ_Sum,"") ->  | N222: =IFERROR(D3_TaxReceip*1000*N186/D3_Employ_Sum,"") ->  | P222: =IFERROR(D3_TaxReceip*1000*P186/D3_Employ_Sum,"") -> 
D223: =IFERROR(D4_TaxReceip*1000*D187/D4_Employ_Sum,"") ->  | F223: =IFERROR(D4_TaxReceip*1000*F187/D4_Employ_Sum,"") ->  | H223: =IFERROR(D4_TaxReceip*1000*H187/D4_Employ_Sum,"") ->  | J223: =IFERROR(D4_TaxReceip*1000*J187/D4_Employ_Sum,"") ->  | L223: =IFERROR(D4_TaxReceip*1000*L187/D4_Employ_Sum,"") ->  | N223: =IFERROR(D4_TaxReceip*1000*N187/D4_Employ_Sum,"") ->  | P223: =IFERROR(D4_TaxReceip*1000*P187/D4_Employ_Sum,"") -> 
D224: =IFERROR(D5_TaxReceip*1000*D188/D5_Employ_Sum,"") ->  | F224: =IFERROR(D5_TaxReceip*1000*F188/D5_Employ_Sum,"") ->  | H224: =IFERROR(D5_TaxReceip*1000*H188/D5_Employ_Sum,"") ->  | J224: =IFERROR(D5_TaxReceip*1000*J188/D5_Employ_Sum,"") ->  | L224: =IFERROR(D5_TaxReceip*1000*L188/D5_Employ_Sum,"") ->  | N224: =IFERROR(D5_TaxReceip*1000*N188/D5_Employ_Sum,"") ->  | P224: =IFERROR(D5_TaxReceip*1000*P188/D5_Employ_Sum,"") -> 
D225: =IFERROR(D6_TaxReceip*1000*D189/D6_Employ_Sum,"") ->  | F225: =IFERROR(D6_TaxReceip*1000*F189/D6_Employ_Sum,"") ->  | H225: =IFERROR(D6_TaxReceip*1000*H189/D6_Employ_Sum,"") ->  | J225: =IFERROR(D6_TaxReceip*1000*J189/D6_Employ_Sum,"") ->  | L225: =IFERROR(D6_TaxReceip*1000*L189/D6_Employ_Sum,"") ->  | N225: =IFERROR(D6_TaxReceip*1000*N189/D6_Employ_Sum,"") ->  | P225: =IFERROR(D6_TaxReceip*1000*P189/D6_Employ_Sum,"") -> 
D226: =IFERROR(D7_TaxReceip*1000*D190/D7_Employ_Sum,"") ->  | F226: =IFERROR(D7_TaxReceip*1000*F190/D7_Employ_Sum,"") ->  | H226: =IFERROR(D7_TaxReceip*1000*H190/D7_Employ_Sum,"") ->  | J226: =IFERROR(D7_TaxReceip*1000*J190/D7_Employ_Sum,"") ->  | L226: =IFERROR(D7_TaxReceip*1000*L190/D7_Employ_Sum,"") ->  | N226: =IFERROR(D7_TaxReceip*1000*N190/D7_Employ_Sum,"") ->  | P226: =IFERROR(D7_TaxReceip*1000*P190/D7_Employ_Sum,"") -> 
D227: =IFERROR(D8_TaxReceip*1000*D191/D8_Employ_Sum,"") ->  | F227: =IFERROR(D8_TaxReceip*1000*F191/D8_Employ_Sum,"") ->  | H227: =IFERROR(D8_TaxReceip*1000*H191/D8_Employ_Sum,"") ->  | J227: =IFERROR(D8_TaxReceip*1000*J191/D8_Employ_Sum,"") ->  | L227: =IFERROR(D8_TaxReceip*1000*L191/D8_Employ_Sum,"") ->  | N227: =IFERROR(D8_TaxReceip*1000*N191/D8_Employ_Sum,"") ->  | P227: =IFERROR(D8_TaxReceip*1000*P191/D8_Employ_Sum,"") -> 
D228: =IFERROR(D9_TaxReceip*1000*D192/D9_Employ_Sum,"") ->  | F228: =IFERROR(D9_TaxReceip*1000*F192/D9_Employ_Sum,"") ->  | H228: =IFERROR(D9_TaxReceip*1000*H192/D9_Employ_Sum,"") ->  | J228: =IFERROR(D9_TaxReceip*1000*J192/D9_Employ_Sum,"") ->  | L228: =IFERROR(D9_TaxReceip*1000*L192/D9_Employ_Sum,"") ->  | N228: =IFERROR(D9_TaxReceip*1000*N192/D9_Employ_Sum,"") ->  | P228: =IFERROR(D9_TaxReceip*1000*P192/D9_Employ_Sum,"") -> 
D229: =IFERROR(D10_TaxReceip*1000*D193/D10_Employ_Sum,"") ->  | F229: =IFERROR(D10_TaxReceip*1000*F193/D10_Employ_Sum,"") ->  | H229: =IFERROR(D10_TaxReceip*1000*H193/D10_Employ_Sum,"") ->  | J229: =IFERROR(D10_TaxReceip*1000*J193/D10_Employ_Sum,"") ->  | L229: =IFERROR(D10_TaxReceip*1000*L193/D10_Employ_Sum,"") ->  | N229: =IFERROR(D10_TaxReceip*1000*N193/D10_Employ_Sum,"") ->  | P229: =IFERROR(D10_TaxReceip*1000*P193/D10_Employ_Sum,"") -> 
B232: VAT base year | D232: =VAT_BaseYear -> 2018
D234: Total VAT (£k)
D235: =D216 -> Manufacturing | F235: =F216 -> Construction | H235: =H216 -> Human health and social work activities | J235: =J216 -> Agriculture, forestry and fishing | L235: =L216 -> Public administration | N235: =N216 -> Other service activities | P235: Total for Named sectors
B238: =B219 -> Total for Case Study - Example | D238: =SUM(D239:D248) -> 30591.64955 | F238: =SUM(F239:F248) -> 9482.208542 | H238: =SUM(H239:H248) -> 1764.131822 | J238: =SUM(J239:J248) -> 38570.33665 | L238: =SUM(L239:L248) -> 51266.73991 | N238: =SUM(N239:N248) -> 27223.76152 | P238: =SUM(P239:P248) -> 158898.828
B239: R1 | D239: =IFERROR(UK_VAT*D184*1000/VAT_POP,"") -> 17320.56698 | F239: =IFERROR(UK_VAT*F184*1000/VAT_POP,"") -> 3869.061836 | H239: =IFERROR(UK_VAT*H184*1000/VAT_POP,"") -> 781.8311483 | J239: =IFERROR(UK_VAT*J184*1000/VAT_POP,"") -> 17287.15539 | L239: =IFERROR(UK_VAT*L184*1000/VAT_POP,"") -> 23060.67772 | N239: =IFERROR(UK_VAT*N184*1000/VAT_POP,"") -> 11647.27941 | P239: =IFERROR(UK_VAT*P184*1000/VAT_POP,"") -> 73966.57248
B240: R2 | D240: 13271.08257 | F240: 5613.146706 | H240: 982.3006735 | J240: 21283.18126 | L240: 28206.0622 | N240: 15576.48211 | P240: 84932.25551
B251: NIC base year | D251: =NIC_BaseYear -> 2018
D253: Total NIC (£k)
D254: =D235 -> Manufacturing | F254: =F235 -> Construction | H254: =H235 -> Human health and social work activities | J254: =J235 -> Agriculture, forestry and fishing | L254: =L235 -> Public administration | N254: =N235 -> Other service activities | P254: Total for Named sectors
B257: =B238 -> Total for Case Study - Example | D257: =SUM(D258:D267) -> 26565.92071 | F257: =SUM(F258:F267) -> 8234.390889 | H257: =SUM(H258:H267) -> 1531.9797 | J257: =SUM(J258:J267) -> 33494.64708 | L257: =SUM(L258:L267) -> 44520.25856 | N257: =SUM(N258:N267) -> 23641.23219 | P257: =SUM(P258:P267) -> 137988.4291
B258: R1 | D258: =IFERROR(UK_NIC*D184*1000/NIC_POP,"") -> 15041.25524 | F258: =IFERROR(UK_NIC*F184*1000/NIC_POP,"") -> 3359.910024 | H258: =IFERROR(UK_NIC*H184*1000/NIC_POP,"") -> 678.945549 | J258: =IFERROR(UK_NIC*J184*1000/NIC_POP,"") -> 15012.24047 | L258: =IFERROR(UK_NIC*L184*1000/NIC_POP,"") -> 20025.99222 | N258: =IFERROR(UK_NIC*N184*1000/NIC_POP,"") -> 10114.54779 | P258: =IFERROR(UK_NIC*P184*1000/NIC_POP,"") -> 64232.8913
B259: R2 | D259: 11524.66547 | F259: 4874.480865 | H259: 853.0341513 | J259: 18482.40661 | L259: 24494.26634 | N259: 13526.6844 | P259: 73755.53784

Sheet Network benefits
B1: HMEA model - Network benefits
B3: =" Version: v" & Version -> Version: v1.04
B11: Accident costs
B13: Base year | D13: 2019 | F13: Growth rate (%) | G13: 0.018
B15: Cost of fatal accidents | D15: 1745879
B16: Cost of serious accidents | D16: 199614
B18: Alternative network: road traffic and accidents
B20: Traffic base year | D20: 2018 | F20: Traffic Data entry format | H20: DfT
B22: Road Type | C22: Unit | E22: Analysis
E24: =IF(H20="DfT","Cars and taxis", "Cars") -> Cars and taxis | F24: =IF(H20="DfT","Motorbikes", "LGV") -> Motorbikes | G24: =IF(H20="DfT","Light vans", "OGV1") -> Light vans | H24: =IF(H20="DfT","Goods vehicles", "OGV2") -> Goods vehicles | I24: =IF(H20="DfT","Buses and coaches", "PSV") -> Buses and coaches | J24: All motor vehicles
B25: A roads - Urban | C25: Million vehicle km | E25: 1136 | F25: 52 | G25: 178 | H25: 263 | I25: 10 | J25: =SUM(E25:I25) -> 1639
B26: A roads - Rural | C26: Million vehicle km | E26: 2489 | F26: 210 | G26: 447 | H26: 94 | I26: 21 | J26: =SUM(E26:I26) -> 3261
B27: B roads - Urban | C27: Million vehicle km | E27: 384 | F27: 105 | G27: 94 | H27: 5 | I27: 5 | J27: 593
B28: B roads - Rural | C28: Million vehicle km | E28: 942 | F28: 210 | G28: 226 | H28: 15 | I28: 10 | J28: 1403
B29: C roads - Urban | C29: Million vehicle km | J29: =SUM(E29:I29) -> 0
B30: C roads - Rural | C30: Million vehicle km | J30: 0
B31: U roads - Urban | C31: Million vehicle km | J31: 0
B32: U roads - Rural | C32: Million vehicle km | J32: 0
B34: No. of fatal accidents | D34: 28
B35: No. of serious accidents | D35: 322
D38: =E24 -> Cars and taxis | E38: =F24 -> Motorbikes | F38: =G24 -> Light vans | G38: =H24 -> Goods vehicles | H38: =I24 -> Buses and coaches
B39: Annual Growth rates (%) | D39: 0.012 | E39: 0.012 | F39: 0.019 | G39: 0.001 | H39: 0.003
B42: Redistribution of road traffic
B44: Base Network | C44: Unit | D44: Alternative network
D45: A roads - Urban | E45: A roads - Rural | F45: B roads - Urban | G45: B roads - Rural | H45: C roads - Urban | I45: C roads - Rural | J45: U roads - Urban | K45: U roads - Rural | L45: Total
B47: Motorway Urban | C47: % | D47: 0.7 | F47: 0.3 | L47: =SUM(D47:K47) -> 1
B48: Motorway Rural | C48: % | E48: 0.7 | G48: 0.3 | L48: =SUM(D48:K48) -> 1
B49: A roads - Urban | C49: % | D49: 0.3 | F49: 0.4 | H49: 0.3 | L49: 1
B50: A roads - Rural | C50: % | E50: 0.3 | G50: 0.5 | I50: 0.2 | L50: 1
B51: B roads - Urban | C51: % | L51: 0
B52: B roads - Rural | C52: % | L52: 0
B53: C roads - Urban | C53: % | L53: 0
B54: C roads - Rural | C54: % | L54: 0
B55: U roads - Urban | C55: % | L55: 0
B56: U roads - Rural | C56: % | L56: 0
B59: Vehicle speeds for alternative network
D61: Vehicle speeds for alternative network (km/h)
B62: Alternative network | C62: Unit | D62: Cars | E62: LGV | F62: OGV1 | G62: OGV2 | H62: PSV
B63: A roads - Urban | C63: km/h | D63: 48 | E63: 48 | F63: 40 | G63: 40 | H63: 40
B64: A roads - Rural | C64: km/h | D64: 80 | E64: 48 | F64: 48 | G64: 48 | H64: 48
B65: B roads - Urban | C65: km/h | D65: 48 | E65: 48 | F65: 48 | G65: 48 | H65: 32
B66: B roads - Rural | C66: km/h | D66: 64 | E66: 64 | F66: 48 | G66: 48 | H66: 48
B67: C roads - Urban | C67: km/h | D67: 48 | E67: 48 | F67: 32 | G67: 32 | H67: 32
B68: C roads - Rural | C68: km/h | D68: 48 | E68: 48 | F68: 48 | G68: 48 | H68: 32
B69: U roads - Urban | C69: km/h | D69: 48 | E69: 48 | F69: 32 | G69: 32 | H69: 32
B70: U roads - Rural | C70: km/h | D70: 48 | E70: 48 | F70: 48 | G70: 48 | H70: 32
B73: Ratio of CO2 emissions between alternative network and base network
B75: Ratio of emissions between alternative network and base network - Urban | G75: 2
B76: Ratio of emissions between alternative network and base network - Rural | G76: 2

Sheet Public Income
B1: HMEA model - Public Income
B3: =" Version: v" & Version -> Version: v1.04
C11: Traffic Data entry format | F11: DfT
B13: Congestion charge
B15: Base year | C15: 2017 | F15: Days per week congestion charge applies | J15: 5
D17: Unit | E17: =IF(D1_Name="",".",D1_Name) -> R1 | F17: =IF(D2_Name="",".",D2_Name) -> R2 | G17: =IF(D3_Name="",".",D3_Name) -> . | H17: =IF(D4_Name="",".",D4_Name) -> . | I17: =IF(D5_Name="",".",D5_Name) -> . | J17: =IF(D6_Name="",".",D6_Name) -> . | K17: =IF(D7_Name="",".",D7_Name) -> . | L17: =IF(D8_Name="",".",D8_Name) -> . | M17: =IF(D9_Name="",".",D9_Name) -> . | N17: =IF(D10_Name="",".",D10_Name) -> .
B23: =IF(F11="DfT","Cars and bikes", "Cars") -> Cars and bikes | C23: Count | D23: No/Day | E23: 12000 | F23: 15000
C24: Count Growth rate (%) | D24: % | E24: 0.01 | F24: 0.01
B25: =IF(F11="DfT","Motorbikes", "LGV") -> Motorbikes | C25: Count | D25: No/Day | E25: 4500 | F25: 5000
C26: Count Growth rate (%) | D26: % | E26: 0.01 | F26: 0.01
B27: =IF(F11="DfT","Light vans", "OGV1") -> Light vans | C27: Count | D27: No/Day | E27: 2000 | F27: 2200
C28: Count Growth rate (%) | D28: % | E28: 0.01 | F28: 0.01
B29: =IF(F11="DfT","Goods vehicles", "OGV2") -> Goods vehicles | C29: Count | D29: No/Day | E29: 750 | F29: 780
C30: Count Growth rate (%) | D30: % | E30: 0.01 | F30: 0.01
B31: =IF(F11="DfT","Buses and coaches", "PSV") -> Buses and coaches | C31: Count | D31: No/Day | E31: 1 | F31: 1
C32: Count Growth rate (%) | D32: % | E32: 0.01 | F32: 0.01
D35: Unit | E35: =B23 -> Cars and bikes | F35: =B25 -> Motorbikes | G35: =B27 -> Light vans | H35: =B29 -> Goods vehicles | I35: =B31 -> Buses and coaches
C36: Charge per vehicle | D36: £ | E36: 11.5 | F36: 11.5 | G36: 11.5 | H36: 11.5 | I36: 11.5
C37: Growth rate | D37: % | E37: 0.02 | F37: 0.02 | G37: 0.02 | H37: 0.02 | I37: 0.02
B40: Tolls
B42: Base year | C42: 2017
D44: Unit | E44: =IF(D1_Name="",".",D1_Name) -> R1 | F44: =IF(D2_Name="",".",D2_Name) -> R2 | G44: =IF(D3_Name="",".",D3_Name) -> . | H44: =IF(D4_Name="",".",D4_Name) -> . | I44: =IF(D5_Name="",".",D5_Name) -> . | J44: =IF(D6_Name="",".",D6_Name) -> . | K44: =IF(D7_Name="",".",D7_Name) -> . | L44: =IF(D8_Name="",".",D8_Name) -> . | M44: =IF(D9_Name="",".",D9_Name) -> . | N44: =IF(D10_Name="",".",D10_Name) -> .
B50: =B23 -> Cars and bikes | C50: Count | D50: No/Day | E50: 8793.07 | F50: 3216
C51: Count Growth rate (%) | D51: % | E51: 0.017 | F51: 0.017
C52: Charge per vehicle | D52: £ | E52: 1.5 | F52: 1.5
C53: Charge Growth rate (%) | D53: % | E53: 0.015 | F53: 0.015
B54: =B25 -> Motorbikes | C54: Count | D54: No/Day | E54: 355.47 | F54: 427
C55: Count Growth rate (%) | D55: % | E55: 0.017 | F55: 0.017
C56: Charge per vehicle | D56: £ | E56: 1.5 | F56: 1.5
C57: Charge Growth rate (%) | D57: % | E57: 0.015 | F57: 0.015
B58: =B27 -> Light vans | C58: Count | D58: No/Day | E58: 1777.35 | F58: 2011
C59: Count Growth rate (%) | D59: % | E59: 0.027 | F59: 0.027
C60: Charge per vehicle | D60: £ | E60: 4 | F60: 4
C61: Charge Growth rate (%) | D61: % | E61: 0.015 | F61: 0.015
B62: =B29 -> Goods vehicles | C62: Count | D62: No/Day | E62: 1244.145 | F62: 1389
C63: Count Growth rate (%) | D63: % | E63: 0.011 | F63: 0.011
C64: Charge per vehicle | D64: £ | E64: 12 | F64: 12
C65: Charge Growth rate (%) | D65: % | E65: 0.015 | F65: 0.015
B66: =B31 -> Buses and coaches | C66: Count | D66: No/Day | E66: 122 | F66: 235
C67: Count Growth rate (%) | D67: % | E67: 0.01 | F67: 0.01
C68: Charge per vehicle | D68: £ | E68: 20 | F68: 20
C69: Charge Growth rate (%) | D69: % | E69: 0.015 | F69: 0.015

Sheet Name and Filepaths
B1: HMEA model - Treatment & condition impact
B3: =" Version: v" & Version -> Version: v1.04
B6: Analysis name
B7: No Backlog - 6 sectors, 30 years, with traffic effect
A9: Highways Maintenance Appraisal Tool (HMAT) files
B14: File path | E14: Sub-Network
A15: 1 | B15: C:\Data\projects\Wales Benefits of maintenance\Wales analyses\Example\No Backlog\HMAT - Backlog - R1.xlsm | E15: R1
A16: 2 | B16: C:\Data\projects\Wales Benefits of maintenance\Wales analyses\Example\No Backlog\HMAT - Backlog - R2.xlsm | E16: R2
A17: 3
A18: 4
A19: 5
A20: 6
A21: 7
A22: 8
A23: 9
A24: 10
B39: Use condition to modify traffic and therefore costs

Sheet Advanced Settings
B1: HMEA model - Advanced Settings
B3: =" Version: v" & Version -> Version: v1.04
B4: Use of condition data to modify traffic and therefore costs
B6: HMEA contains base growth rates for traffic and economic aspects of the model. Traffic growth rates are also used in HMAT and therefore affect the results from HMAT that feed into an HMEA analysis. The base traffic growth rates, by default, assume the current road condition is preserved but in analyses that reflect the impacts of changing network condition, it is reasonable to include the impact of changes in condition on traffic growth. The major effect of road condition will be seen mainly from changes in the level of poor condition of the network. Reducing the percentage of poor condition is also likely to result in an increase of the percentage of the network in good condition so the benefits of improvements in network condition are also included.
B15: HMAT can include up to 10 condition bands to represent the condition of the network. The definition of poor condition is therefore a function of the number of condition bands: • 3 condition bands, poor condition is the percentage in the bottom condition band • 4 condition bands, poor condition is the percentage in the bottom condition band • 5 condition bands, poor condition is the percentage in the bottom two condition bands • 6 condition bands, poor condition is the percentage in the bottom two condition bands • 7 condition bands, poor condition is the percentage in the bottom two condition bands • 8 condition bands, poor condition is the percentage in the bottom three condition bands • 9 condition bands, poor condition is the percentage in the bottom three condition bands • 10 condition bands, poor condition is the percentage in the bottom three condition bands
B26: For HMAT the condition is considered for each road type but for the economic impacts in HMEA, the condition is a weighted average of the condition on all road types. There are two parameters that define the effect on traffic growth and economic growth (the same two are used for all changes to the growth rate): • The maximum level of change (A%) in the growth rate (the maximum effect is the same as an increase or decrease in the growth rate • The change in poor condition (B%) where the maximum change is reached There is a linear relationship between the size of the change and the change in condition between the two points. The relationship is illustrated in Figure 1.
D47: Figure 1. Modifying base growth rates
B49: The change in condition (maximum B%) is an absolute change [i.e. if in a year, Cy% is not in poor condition, this represents a change of (Cy – Co) from the condition in the base year (Co%)]. If the base data growth rate for traffic or an economic parameter in a year is Gy% then that rate is modified to [Gy x (100 + Ay)/100].
B53: The recommended setttings and the settings used (if enabled on the Name and Filepath sheet) are provided in the table below. Note: the settings cannot be altered with HMAT data loaded. To change the settings, first clear out the HMAT data (on the Name and Filepaths worksheet).
D56: Recommended value | F56: Values used (if enabled)
B58: Maximum base rate change (A) | D58: 0.1 | F58: 0.1
B59: Change in condition which triggers the maximum base rate change (B) | D59: 0.1 | F59: 0.1

Sheet Network Size
B4: =Net_Name -> Case Study - Example | C4: Total | D4: Total
B5: Length | D5: =D11+D16+D21+D26+D31+D36+D41+D46+D51+D56 -> 761850
B6: Area | D6: =D13+D18+D23+D28+D33+D38+D43+D48+D53+D58 -> 6704685
B10: =D1_Name -> R1 | C10: Total | D10: Total | E10: MR | F10: MU | G10: DR | H10: DU | I10: SR | J10: SU
B11: Length | D11: =SUM(E11:CZ11) -> 497300 | E11: 34920 | F11: 3880 | G11: 80388 | H11: 812 | I11: 320705 | J11: 56595
B12: Width | D12: n/a | E12: 14.1 | F12: 14.1 | G12: 8.3 | H12: 8.3 | I12: 7.3 | J12: 7.3
B13: Area | D13: =SUM(E13:CZ13) -> 3975330 | E13: =E11*E12 -> 492372 | F13: 54708 | G13: 667220.4 | H13: 6739.6 | I13: 2341146.5 | J13: 413143.5
B15: =D2_Name -> R2 | C15: Total | D15: Total | E15: MR | F15: MU | G15: DR | H15: DU | I15: SR | J15: SU
B16: Length | D16: =SUM(E16:CZ16) -> 264550 | E16: 90270 | F16: 10030 | G16: 114939 | H16: 1161 | I16: 40927.5 | J16: 7222.5
B17: Width | D17: n/a | E17: 14.1 | F17: 14.1 | G17: 8.3 | H17: 8.3 | I17: 7.3 | J17: 7.3
B18: Area | D18: =SUM(E18:CZ18) -> 2729355 | E18: =E16*E17 -> 1272807 | F18: 141423 | G18: 953993.7 | H18: 9636.3 | I18: 298770.75 | J18: 52724.25
B20: =D3_Name ->  | C20: Total | D20: Total
B21: Length | D21: =SUM(E21:CZ21) -> 0
B22: Width | D22: n/a
B23: Area | D23: =SUM(E23:CZ23) -> 0
B25: =D4_Name ->  | C25: Total | D25: Total
B26: Length | D26: =SUM(E26:CZ26) -> 0
B27: Width | D27: n/a
B28: Area | D28: =SUM(E28:CZ28) -> 0
B30: =D5_Name ->  | C30: Total | D30: Total
B31: Length | D31: =SUM(E31:CZ31) -> 0
B32: Width | D32: n/a
B33: Area | D33: =SUM(E33:CZ33) -> 0
B35: =D6_Name ->  | C35: Total | D35: Total
B36: Length | D36: =SUM(E36:CZ36) -> 0
B37: Width | D37: n/a
B38: Area | D38: =SUM(E38:CZ38) -> 0
B40: =D7_Name ->  | C40: Total | D40: Total
B41: Length | D41: =SUM(E41:CZ41) -> 0
B42: Width | D42: n/a
B43: Area | D43: =SUM(E43:CZ43) -> 0
B45: =D8_Name ->  | C45: Total | D45: Total
B46: Length | D46: =SUM(E46:CZ46) -> 0
B47: Width | D47: n/a
B48: Area | D48: =SUM(E48:CZ48) -> 0
B50: =D9_Name ->  | C50: Total | D50: Total
B51: Length | D51: =SUM(E51:CZ51) -> 0
B52: Width | D52: n/a
B53: Area | D53: =SUM(E53:CZ53) -> 0
B55: =D10_Name ->  | C55: Total | D55: Total
B56: Length | D56: =SUM(E56:CZ56) -> 0
B57: Width | D57: n/a
B58: Area | D58: =SUM(E58:CZ58) -> 0

Sheet Condition&MaintData
B1: HMEA model - Condition and Maintenance data
B3: =" Version: v" & Version -> Version: v1.04
B6: Analysis period | H6: Condition Bands | L6: Treatment Types
H7: Number of condition bands | M7: Number of treatment types
B8: Start Year | C8: 2020 | J8: 3 | N8: 2
B9: End Year | C9: =IF(OR(start_year="",analysis_period=""),"",start_year+analysis_period-1) -> 2049
B10: Analysis Period (yrs) | C10: 30 | H10: No. | I10: Name | J10: Code | L10: No. | M10: Name | N10: Code | O10: Kg CO2/m2
H11: 1 | I11: Green | J11: G | L11: 1 | M11: Treatment 1 | N11: T1 | O11: 3.6
H12: 2 | I12: Amber | J12: A | L12: 2 | M12: Treatment 2 | N12: T2 | O12: 6.3
H13: 3 | I13: Red | J13: R
D16: Bar
D17: Area

Sheet Future Projections
A1: HMEA model - Projections | F1: Analysis year | H1: 1 | I1: =IF(H1="","",IF(H1+1>analysis_period,"",H1+1)) -> 2 | J1: 3 | K1: 4 | L1: 5 | M1: 6 | N1: 7 | O1: 8 | P1: 9 | Q1: 10 | R1: 11 | S1: 12 | T1: 13 | U1: 14 | V1: 15 | W1: 16 | X1: 17 | Y1: 18 | Z1: 19 | AA1: 20 | AB1: 21 | AC1: 22 | AD1: 23 | AE1: 24 | AF1: 25 | AG1: 26 | AH1: 27 | AI1: 28 | AJ1: 29 | AK1: =IF(AJ1="","",IF(AJ1+1>analysis_period,"",AJ1+1)) -> 30 | AL1: =IF(AK1="","",IF(AK1+1>analysis_period,"",AK1+1)) ->  | AM1: =IF(AL1="","",IF(AL1+1>analysis_period,"",AL1+1)) ->  | AN1: =IF(AM1="","",IF(AM1+1>analysis_period,"",AM1+1)) ->  | AO1: =IF(AN1="","",IF(AN1+1>analysis_period,"",AN1+1)) ->  | AP1: =IF(AO1="","",IF(AO1+1>analysis_period,"",AO1+1)) ->  | AQ1: =IF(AP1="","",IF(AP1+1>analysis_period,"",AP1+1)) ->  | AR1: =IF(AQ1="","",IF(AQ1+1>analysis_period,"",AQ1+1)) ->  | AS1: =IF(AR1="","",IF(AR1+1>analysis_period,"",AR1+1)) ->  | AT1: =IF(AS1="","",IF(AS1+1>analysis_period,"",AS1+1)) ->  | AU1: =IF(AT1="","",IF(AT1+1>analysis_period,"",AT1+1)) ->  | AV1: =IF(AU1="","",IF(AU1+1>analysis_period,"",AU1+1)) ->  | AW1: =IF(AV1="","",IF(AV1+1>analysis_period,"",AV1+1)) ->  | AX1: =IF(AW1="","",IF(AW1+1>analysis_period,"",AW1+1)) ->  | AY1: =IF(AX1="","",IF(AX1+1>analysis_period,"",AX1+1)) ->  | AZ1: =IF(AY1="","",IF(AY1+1>analysis_period,"",AY1+1)) ->  | BA1: =IF(AZ1="","",IF(AZ1+1>analysis_period,"",AZ1+1)) ->  | BB1: =IF(BA1="","",IF(BA1+1>analysis_period,"",BA1+1)) ->  | BC1: =IF(BB1="","",IF(BB1+1>analysis_period,"",BB1+1)) ->  | BD1: =IF(BC1="","",IF(BC1+1>analysis_period,"",BC1+1)) ->  | BE1: =IF(BD1="","",IF(BD1+1>analysis_period,"",BD1+1)) ->  | BF1: =IF(BE1="","",IF(BE1+1>analysis_period,"",BE1+1)) ->  | BG1: =IF(BF1="","",IF(BF1+1>analysis_period,"",BF1+1)) ->  | BH1: =IF(BG1="","",IF(BG1+1>analysis_period,"",BG1+1)) ->  | BI1: =IF(BH1="","",IF(BH1+1>analysis_period,"",BH1+1)) ->  | BJ1: =IF(BI1="","",IF(BI1+1>analysis_period,"",BI1+1)) ->  | BK1: =IF(BJ1="","",IF(BJ1+1>analysis_period,"",BJ1+1)) ->  | BL1: =IF(BK1="","",IF(BK1+1>analysis_period,"",BK1+1)) ->  | BM1: =IF(BL1="","",IF(BL1+1>analysis_period,"",BL1+1)) ->  | BN1: =IF(BM1="","",IF(BM1+1>analysis_period,"",BM1+1)) ->  | BO1: =IF(BN1="","",IF(BN1+1>analysis_period,"",BN1+1)) -> 
A2: =" Version: v" & Version -> Version: v1.04 | D2: Analysis name: | E2: ='Name and Filepaths'!B7 -> No Backlog - 6 sectors, 30 years, with traffic effect
A4: ="Undiscounted costs for " & IF('Economic Data'!C14="", "network",'Economic Data'!C14) -> Undiscounted costs for Case Study - Example | F4: Analysis period total | H4: =start_year -> 2020 | I4: =IF(I1="","",H4+1) -> 2021 | J4: 2022 | K4: 2023 | L4: 2024 | M4: 2025 | N4: 2026 | O4: 2027 | P4: 2028 | Q4: 2029 | R4: 2030 | S4: 2031 | T4: 2032 | U4: 2033 | V4: 2034 | W4: 2035 | X4: 2036 | Y4: 2037 | Z4: 2038 | AA4: 2039 | AB4: 2040 | AC4: 2041 | AD4: 2042 | AE4: 2043 | AF4: 2044 | AG4: 2045 | AH4: 2046 | AI4: 2047 | AJ4: 2048 | AK4: =IF(AK1="","",AJ4+1) -> 2049 | AL4: =IF(AL1="","",AK4+1) ->  | AM4: =IF(AM1="","",AL4+1) ->  | AN4: =IF(AN1="","",AM4+1) ->  | AO4: =IF(AO1="","",AN4+1) ->  | AP4: =IF(AP1="","",AO4+1) ->  | AQ4: =IF(AQ1="","",AP4+1) ->  | AR4: =IF(AR1="","",AQ4+1) ->  | AS4: =IF(AS1="","",AR4+1) ->  | AT4: =IF(AT1="","",AS4+1) ->  | AU4: =IF(AU1="","",AT4+1) ->  | AV4: =IF(AV1="","",AU4+1) ->  | AW4: =IF(AW1="","",AV4+1) ->  | AX4: =IF(AX1="","",AW4+1) ->  | AY4: =IF(AY1="","",AX4+1) ->  | AZ4: =IF(AZ1="","",AY4+1) ->  | BA4: =IF(BA1="","",AZ4+1) ->  | BB4: =IF(BB1="","",BA4+1) ->  | BC4: =IF(BC1="","",BB4+1) ->  | BD4: =IF(BD1="","",BC4+1) ->  | BE4: =IF(BE1="","",BD4+1) ->  | BF4: =IF(BF1="","",BE4+1) ->  | BG4: =IF(BG1="","",BF4+1) ->  | BH4: =IF(BH1="","",BG4+1) ->  | BI4: =IF(BI1="","",BH4+1) ->  | BJ4: =IF(BJ1="","",BI4+1) ->  | BK4: =IF(BK1="","",BJ4+1) ->  | BL4: =IF(BL1="","",BK4+1) ->  | BM4: =IF(BM1="","",BL4+1) ->  | BN4: =IF(BN1="","",BM4+1) -> 
D6: Parameter | E6: Unit
D7: Expenditure by Treatment | E7: £ k | F7: =SUM(H7:BO7) -> 540624.7793 | H7: =IF(H$1="","",H78+H149+H220+H291+H362+H433+H504+H575+H646+H717) -> 29708.80123 | I7: 32846.562 | J7: 29411.30798 | K7: 13378.45966 | L7: 14776.53478 | M7: 15626.41365 | N7: 16143.89364 | O7: 16459.47945 | P7: 16652.23469 | Q7: 16770.14112 | R7: 16842.36642 | S7: 16886.67013 | T7: 16913.88267 | U7: 16930.61882 | V7: 16940.92457 | W7: 16947.27822 | X7: 16951.19984 | Y7: 16953.62306 | Z7: 16955.122 | AA7: 16956.05016 | AB7: 16956.62547 | AC7: 16956.98241 | AD7: 16957.20407 | AE7: 16957.34185 | AF7: 16957.42756 | AG7: 16957.48093 | AH7: 16957.51419 | AI7: 16957.53493 | AJ7: 16957.54787 | AK7: 16957.55596 | AN7: =IF(AN$1="","",AN78+AN149+AN220+AN291+AN362+AN433+AN504+AN575+AN646+AN717) -> 
D8: Percentage in poor condition | E8: % | H8: =IF(H1="","",(D1_Length*H79+D2_Length*H150+D3_Length*H221+D4_Length*H292+D5_Length*H363+D6_Length*H434+D7_Length*H505+D8_Length*H576+D9_Length*H647+D10_Length*H718)/County_Length) -> 0.1913472403 | I8: =IF(I1="","",(D1_Length*I79+D2_Length*I150+D3_Length*I221+D4_Length*I292+D5_Length*I363+D6_Length*I434+D7_Length*I505+D8_Length*I576+D9_Length*I647+D10_Length*I718)/County_Length) -> 0.09565834482 | J8: 0 | K8: 0 | L8: 0 | M8: 0 | N8: 0 | O8: 0 | P8: 0 | Q8: 0 | R8: 0 | S8: 0 | T8: 0 | U8: 0 | V8: 0 | W8: 0 | X8: 0 | Y8: 0 | Z8: 0 | AA8: 0 | AB8: 0 | AC8: 0 | AD8: 0 | AE8: 0 | AF8: 0 | AG8: 0 | AH8: 0 | AI8: 0 | AJ8: 0 | AK8: 0 | AN8: =IF(AN1="","",(D1_Length*AN79+D2_Length*AN150+D3_Length*AN221+D4_Length*AN292+D5_Length*AN363+D6_Length*AN434+D7_Length*AN505+D8_Length*AN576+D9_Length*AN647+D10_Length*AN718)/County_Length) -> 
C10: Treatment and Condition Impacts | D10: Vehicle operating costs | E10: £ k | F10: =SUM(H10:BO10) -> 131066542.5 | H10: =IF(H$1="","",H81+H152+H223+H294+H365+H436+H507+H578+H649+H720) -> 1968782.741 | I10: 2007026.492 | J10: 2056380.788 | K10: 2149222.87 | L10: 2256729.113 | M10: 2397305.422 | N10: 2563258.473 | O10: 2738976.353 | P10: 2907361.748 | Q10: 3102392.214 | R10: 3337673.819 | S10: 3548447.738 | T10: 3764913.127 | U10: 3980785.301 | V10: 4197472.841 | W10: 4412680.943 | X10: 4625087.572 | Y10: 4831112.364 | Z10: 5050038.441 | AA10: 5264722.038 | AB10: 5475949.507 | AC10: 5696749.592 | AD10: 5906003.293 | AE10: 6109828.382 | AF10: 6312766.295 | AG10: 6507415.19 | AH10: 6698343.149 | AI10: 6883143.4 | AJ10: 7067826.077 | AK10: 7248147.23 | AN10: =IF(AN$1="","",AN81+AN152+AN223+AN294+AN365+AN436+AN507+AN578+AN649+AN720) -> 
D11: Travel time | E11: £ k | F11: 29051905.6 | H11: =IF(H$1="","",H82+H153+H224+H295+H366+H437+H508+H579+H650+H721) -> 656767.3815 | I11: 657759.3452 | J11: 657245.3377 | K11: 673046.8392 | L11: 689816.3767 | M11: 707702.4963 | N11: 726722.9792 | O11: 746906.8468 | P11: 768350.4026 | Q11: 790691.472 | R11: 814415.8335 | S11: 838722.653 | T11: 865096.2567 | U11: 892049.5873 | V11: 919851.5682 | W11: 948731.0974 | X11: 979060.26 | Y11: 1009397.716 | Z11: 1040623.946 | AA11: 1072561.37 | AB11: 1105121.252 | AC11: 1138651.094 | AD11: 1171717.367 | AE11: 1205514.65 | AF11: 1239936.14 | AG11: 1275139.079 | AH11: 1311193.753 | AI11: 1346578.155 | AJ11: 1382712.744 | AK11: 1419821.596 | AN11: =IF(AN$1="","",AN82+AN153+AN224+AN295+AN366+AN437+AN508+AN579+AN650+AN721) -> 
D12: Carbon (vehicle fuel) | E12: £ k | F12: 4863223.103 | H12: =IF(H$1="","",H83+H154+H225+H296+H367+H438+H509+H580+H651+H722) -> 69714.40624 | I12: 71664.25553 | J12: 74357.26721 | K12: 75193.85115 | L12: 76178.19777 | M12: 77206.24741 | N12: 78597.94443 | O12: 80204.48243 | P12: 82978.06512 | Q12: 84935.46876 | R12: 87090.35772 | S12: 96366.55056 | T12: 107588.2891 | U12: 118025.513 | V12: 129948.8732 | W12: 141226.9371 | X12: 154227.0822 | Y12: 165932.8708 | Z12: 179622.1389 | AA12: 192272.9064 | AB12: 206395.3835 | AC12: 219817.9477 | AD12: 234816.6175 | AE12: 248267.0903 | AF12: 263913.7155 | AG12: 278260.1725 | AH12: 294096.5312 | AI12: 308770.2174 | AJ12: 325376.3996 | AK12: 340177.3225 | AN12: =IF(AN$1="","",AN83+AN154+AN225+AN296+AN367+AN438+AN509+AN580+AN651+AN722) -> 
D13: Roadworks Accidents | E13: £ k | F13: 6372.452687 | H13: =IF(H$1="","",H84+H155+H226+H297+H368+H439+H510+H581+H652+H723) -> 353.8038263 | I13: 780.3289911 | J13: 271.494201 | K13: 152.7794404 | L13: 161.2059791 | M13: 166.8884092 | N13: 170.9647417 | O13: 174.0409477 | P13: 176.5564425 | Q13: 173.9282771 | R13: 176.3499023 | S13: 178.1706843 | T13: 180.2103631 | U13: 182.2127536 | V13: 184.1935789 | W13: 186.1622393 | X13: 184.6222647 | Y13: 186.3287836 | Z13: 188.0338107 | AA13: 189.7133726 | AB13: 191.4181839 | AC13: 193.1237501 | AD13: 194.5892568 | AE13: 192.3219616 | AF13: 193.7611441 | AG13: 195.2012207 | AH13: 196.6422169 | AI13: 197.8883005 | AJ13: 199.135081 | AK13: 200.3825615 | AN13: =IF(AN$1="","",AN84+AN155+AN226+AN297+AN368+AN439+AN510+AN581+AN652+AN723) -> 
D14: Carbon (vehicles in roadworks) | E14: £ k | F14: 260.4965701 | H14: =IF(H$1="","",H85+H156+H227+H298+H369+H440+H511+H582+H653+H724) -> 8.451244604 | I14: 23.23328419 | J14: 9.232307154 | K14: 4.506784093 | L14: 5.288341474 | M14: 5.753938749 | N14: 6.039514604 | O14: 6.222684826 | P14: 6.350744205 | Q14: 7.443353414 | R14: 7.405311818 | S14: 7.48800937 | T14: 7.576560287 | U14: 7.662314996 | V14: 7.746639875 | W14: 7.830264455 | X14: 8.420321261 | Y14: 8.498400133 | Z14: 8.576435346 | AA14: 9.515300519 | AB14: 9.601017111 | AC14: 9.686781087 | AD14: 9.764153492 | AE14: 9.536632065 | AF14: 9.608172322 | AG14: 9.679760701 | AH14: 9.751397376 | AI14: 9.813491467 | AJ14: 9.875621583 | AK14: 9.937787496 | AN14: =IF(AN$1="","",AN85+AN156+AN227+AN298+AN369+AN440+AN511+AN582+AN653+AN724) -> 
D15: Roadworks time delays | E15: £ k | F15: 132287.7288 | H15: =IF(H$1="","",H86+H157+H228+H299+H370+H441+H512+H583+H654+H725) -> 5448.308083 | I15: 7824.555261 | J15: 6391.736195 | K15: 2577.714568 | L15: 3124.363975 | M15: 3456.50256 | N15: 3663.558235 | O15: 3797.307923 | P15: 3889.941346 | Q15: 4290.255541 | R15: 4338.125654 | S15: 4390.30226 | T15: 4444.635077 | U15: 4496.387033 | V15: 4546.690295 | W15: 4596.188744 | X15: 3909.064199 | Y15: 3945.401776 | Z15: 3981.636281 | AA15: 4157.232144 | AB15: 4194.629409 | AC15: 4232.029611 | AD15: 4264.62157 | AE15: 4520.328861 | AF15: 4554.181497 | AG15: 4588.053821 | AH15: 4621.947037 | AI15: 4651.300979 | AJ15: 4680.671141 | AK15: 4710.057699 | AN15: =IF(AN$1="","",AN86+AN157+AN228+AN299+AN370+AN441+AN512+AN583+AN654+AN725) -> 
D16: Accidents | E16: £ k | F16: 4115478.078 | H16: =IF(H$1="","",H87+H158+H229+H300+H371+H442+H513+H584+H655+H726) -> 137182.6026 | I16: 137182.6026 | J16: 137182.6026 | K16: 137182.6026 | L16: 137182.6026 | M16: 137182.6026 | N16: 137182.6026 | O16: 137182.6026 | P16: 137182.6026 | Q16: 137182.6026 | R16: 137182.6026 | S16: 137182.6026 | T16: 137182.6026 | U16: 137182.6026 | V16: 137182.6026 | W16: 137182.6026 | X16: 137182.6026 | Y16: 137182.6026 | Z16: 137182.6026 | AA16: 137182.6026 | AB16: 137182.6026 | AC16: 137182.6026 | AD16: 137182.6026 | AE16: 137182.6026 | AF16: 137182.6026 | AG16: 137182.6026 | AH16: 137182.6026 | AI16: 137182.6026 | AJ16: 137182.6026 | AK16: 137182.6026 | AN16: =IF(AN$1="","",AN87+AN158+AN229+AN300+AN371+AN442+AN513+AN584+AN655+AN726) -> 
D17: Carbon (Embodied in materials) | E17: £ k | F17: 14056.55077 | H17: =IF(H$1="","",H88+H159+H230+H301+H372+H443+H514+H585+H656+H727) -> 433.8473843 | I17: 493.6261727 | J17: 448.1770358 | K17: 206.6958409 | L17: 231.4233013 | M17: 248.0409262 | N17: 259.6717139 | O17: 268.231381 | P17: 278.42125 | Q17: 283.94189 | R17: 288.7293246 | S17: 314.5063776 | T17: 343.650762 | U17: 369.0734642 | V17: 397.9814703 | W17: 423.2380756 | X17: 452.0367602 | Y17: 477.2181233 | Z17: 505.9677035 | AA17: 531.1157405 | AB17: 559.8436939 | AC17: 584.9771989 | AD17: 613.6957584 | AE17: 638.8229975 | AF17: 667.5375176 | AG17: 692.6620772 | AH17: 721.3748734 | AI17: 746.4982944 | AJ17: 775.210359 | AK17: 800.3332985 | AN17: =IF(AN$1="","",AN88+AN159+AN230+AN301+AN372+AN443+AN514+AN585+AN656+AN727) -> 
D18: Total HMAT costs | E18: £ k | F18: 169250126.5 | H18: =IF(H4="","",SUM(H10:H17)) -> 2838691.541 | I18: =IF(I4="","",SUM(I10:I17)) -> 2882754.439 | J18: 2932286.636 | K18: 3037587.859 | L18: 3163428.571 | M18: 3323273.954 | N18: 3509862.234 | O18: 3707516.088 | P18: 3900224.088 | Q18: 4119957.326 | R18: 4381173.223 | S18: 4625610.012 | T18: 4879756.348 | U18: 5133098.34 | V18: 5389592.497 | W18: 5645035 | X18: 5900111.66 | Y18: 6148243.001 | Z18: 6412151.342 | AA18: 6671626.494 | AB18: 6929604.238 | AC18: 7197421.054 | AD18: 7454802.551 | AE18: 7706153.736 | AF18: 7959223.842 | AG18: 8203482.641 | AH18: 8446365.751 | AI18: 8681279.876 | AJ18: 8918762.715 | AK18: 9151049.462
C20: Network Benefits | D20: Change in accident costs | E20: £ k | F20: =SUM(H20:BO20) -> -1177096.737 | H20: =IF(H$1="","",H91+H162+H233+H304+H375+H446+H517+H588+H659+H730) -> -41983.30182 | I20: -41576.40313 | J20: -41572.35139 | K20: -41553.89139 | L20: -41520.499 | M20: -41471.63577 | N20: -41406.74856 | O20: -41351.25311 | P20: -41279.59642 | Q20: -41191.20745 | R20: -41085.49974 | S20: -40961.87098 | T20: -40668.73942 | U20: -40350.70852 | V20: -40006.96788 | W20: -39636.68578 | X20: -39239.00871 | Y20: -38940.86608 | Z20: -38618.37326 | AA20: -38270.74172 | AB20: -37897.1623 | AC20: -37496.80466 | AD20: -37223.97171 | AE20: -36928.47289 | AF20: -36609.57292 | AG20: -36266.51729 | AH20: -35898.53175 | AI20: -35645.13587 | AJ20: -35370.44626 | AK20: -35073.7717 | AN20: =IF(AN$1="","",AN91+AN162+AN233+AN304+AN375+AN446+AN517+AN588+AN659+AN730) -> 
D21: Change in travel time costs | E21: £ k | F21: =SUM(H21:BO21) -> 12609560.44 | H21: =IF(H$1="","",H92+H163+H234+H305+H376+H447+H518+H589+H660+H731) -> 282988.0325 | I21: 289943.5896 | J21: 295627.688 | K21: 301468.3256 | L21: 307913.0816 | M21: 314934.9953 | N21: 322486.4201 | O21: 330674.1794 | P21: 339389.0016 | Q21: 348470.4677 | R21: 358103.9657 | S21: 367961.518 | T21: 378803.852 | U21: 389867.4657 | V21: 401257.574 | W21: 413063.1463 | X21: 425429.4735 | Y21: 437827.0486 | Z21: 450562.6282 | AA21: 463565.0469 | AB21: 476798.6436 | AC21: 490399.3074 | AD21: 503734.6632 | AE21: 517340.3471 | AF21: 531173.9184 | AG21: 545296.1624 | AH21: 559733.6195 | AI21: 573795.4147 | AJ21: 588129.3938 | AK21: 602821.4721 | AN21: =IF(AN$1="","",AN92+AN163+AN234+AN305+AN376+AN447+AN518+AN589+AN660+AN731) -> 
D22: Change in cost of CO2 emissions | E22: £ k | F22: =SUM(H22:BO22) -> 3747937.866 | H22: =IF(H$1="","",H93+H164+H235+H306+H377+H448+H519+H590+H661+H732) -> 53746.09418 | I22: 55274.32843 | J22: 57371.45499 | K22: 58013.10318 | L22: 58768.84267 | M22: 59558.20672 | N22: 60627.51776 | O22: 61862.37028 | P22: 63997.15492 | Q22: 65501.7659 | R22: 67158.10316 | S22: 74305.43683 | T22: 82951.65854 | U22: 90991.76537 | V22: 100176.5621 | W22: 108862.4706 | X22: 118874.6554 | Y22: 127889.0601 | Z22: 138430.962 | AA22: 148171.5633 | AB22: 159045.6446 | AC22: 169378.8115 | AD22: 180926.5504 | AE22: 191280.9187 | AF22: 203326.2059 | AG22: 214369.1829 | AH22: 226559.5095 | AI22: 237853.9542 | AJ22: 250636.2907 | AK22: 262027.721 | AN22: =IF(AN$1="","",AN93+AN164+AN235+AN306+AN377+AN448+AN519+AN590+AN661+AN732) -> 
D23: Total Network Benefits costs | E23: £ k | F23: =SUM(H23:BO23) -> 15180401.57 | H23: =IF(H4="","",SUM(H20:H22)) -> 294750.8248 | I23: =IF(I4="","",SUM(I20:I22)) -> 303641.5149 | J23: 311426.7916 | K23: 317927.5373 | L23: 325161.4253 | M23: 333021.5663 | N23: 341707.1893 | O23: 351185.2965 | P23: 362106.5601 | Q23: 372781.0262 | R23: 384176.5691 | S23: 401305.0839 | T23: 421086.7711 | U23: 440508.5225 | V23: 461427.1683 | W23: 482288.9311 | X23: 505065.1202 | Y23: 526775.2426 | Z23: 550375.217 | AA23: 573465.8685 | AB23: 597947.1259 | AC23: 622281.3142 | AD23: 647437.2419 | AE23: 671692.7929 | AF23: 697890.5514 | AG23: 723398.828 | AH23: 750394.5972 | AI23: 776004.233 | AJ23: 803395.2382 | AK23: 829775.4213
C25: Public Income | D25: Congestion charge | E25: £ k | F25: =SUM(H25:BO25) -> 41960697.54 | H25: =IF(H$1="","",H96+H167+H238+H309+H380+H451+H522+H593+H664+H735) -> 138442.3475 | I25: 155199.5556 | J25: 175716.9368 | K25: 198946.7159 | L25: 225247.4717 | M25: 255025.1874 | N25: 288739.5172 | O25: 326910.8814 | P25: 370128.4999 | Q25: 419059.4876 | R25: 474459.1519 | S25: 537182.6518 | T25: 608198.1983 | U25: 688602.0001 | V25: 779635.1845 | W25: 882702.9559 | X25: 999396.2867 | Y25: 1131516.476 | Z25: 1281102.954 | AA25: 1450464.764 | AB25: 1642216.206 | AC25: 1859317.189 | AD25: 2105118.921 | AE25: 2383415.642 | AF25: 2698503.19 | AG25: 3055245.312 | AH25: 3459148.742 | AI25: 3916448.206 | AJ25: 4434202.659 | AK25: 5020404.251 | AN25: =IF(AN$1="","",AN96+AN167+AN238+AN309+AN380+AN451+AN522+AN593+AN664+AN735) -> 
D26: Tolls | E26: £ k | F26: =SUM(H26:BO26) -> 9004748.034 | H26: =IF(H$1="","",H97+H168+H239+H310+H381+H452+H523+H594+H665+H736) -> 29238.09998 | I26: 32743.96463 | J26: 37088.62529 | K26: 42011.12883 | L26: 47588.5174 | M26: 53908.13094 | N26: 61068.9872 | O26: 69183.34722 | P26: 78378.49113 | Q26: 88798.73285 | R26: 100607.7056 | S26: 113990.9552 | T26: 129158.8818 | U26: 146350.0782 | V26: 165835.1179 | W26: 187920.8526 | X26: 212955.2893 | Y26: 241333.1254 | Z26: 273502.0291 | AA26: 309969.7679 | AB26: 351312.2982 | AC26: 398182.9474 | AD26: 451322.8355 | AE26: 511572.7043 | AF26: 579886.3451 | AG26: 657345.8407 | AH26: 745178.8683 | AI26: 844778.3431 | AJ26: 957724.7185 | AK26: 1085811.305 | AN26: =IF(AN$1="","",AN97+AN168+AN239+AN310+AN381+AN452+AN523+AN594+AN665+AN736) -> 
D27: Total Public Income | E27: £ k | F27: =SUM(H27:BO27) -> 50965445.58 | H27: =IF(H4="","",SUM(H25:H26)) -> 167680.4475 | I27: =IF(I4="","",SUM(I25:I26)) -> 187943.5202 | J27: 212805.5621 | K27: 240957.8447 | L27: 272835.9891 | M27: 308933.3184 | N27: 349808.5044 | O27: 396094.2286 | P27: 448506.9911 | Q27: 507858.2205 | R27: 575066.8575 | S27: 651173.6069 | T27: 737357.0801 | U27: 834952.0784 | V27: 945470.3025 | W27: 1070623.809 | X27: 1212351.576 | Y27: 1372849.601 | Z27: 1554604.983 | AA27: 1760434.532 | AB27: 1993528.504 | AC27: 2257500.136 | AD27: 2556441.757 | AE27: 2894988.347 | AF27: 3278389.536 | AG27: 3712591.153 | AH27: 4204327.611 | AI27: 4761226.549 | AJ27: 5391927.378 | AK27: 6106215.555
C29: Economic Impacts | D29: aGVA | E29: £ k | F29: =SUM(H29:BO29) -> 215595154.3 | H29: =IF(H$1="","",H100+H171+H242+H313+H384+H455+H526+H597+H668+H739) -> 5708871.345 | I29: 5795907.814 | J29: 5885164.795 | K29: 5975796.333 | L29: 6067823.596 | M29: 6161268.079 | N29: 6256151.608 | O29: 6352496.343 | P29: 6450324.786 | Q29: 6549659.788 | R29: 6650524.549 | S29: 6752942.627 | T29: 6856937.943 | U29: 6962534.788 | V29: 7069757.823 | W29: 7178632.094 | X29: 7289183.028 | Y29: 7401436.447 | Z29: 7515418.568 | AA29: 7631156.014 | AB29: 7748675.817 | AC29: 7868005.424 | AD29: 7989172.708 | AE29: 8112205.967 | AF29: 8237133.939 | AG29: 8363985.802 | AH29: 8492791.183 | AI29: 8623580.167 | AJ29: 8756383.302 | AK29: 8891231.605 | AN29: =IF(AN$1="","",AN100+AN171+AN242+AN313+AN384+AN455+AN526+AN597+AN668+AN739) -> 
D30: Per Capita aGVA | E30: £ | H30: =IFERROR((H29*1000)/H35,"") -> 59484.7323 | I30: =IF(I$1="","",IFERROR((I29*1000)/I35,"")) -> 59805.56445 | J30: =IF(J$1="","",IFERROR((J29*1000)/J35,"")) -> 60131.27057 | K30: 60458.7505 | L30: 60788.01392 | M30: 61119.07054 | N30: 61451.93012 | O30: 61786.60248 | P30: 62123.09749 | Q30: 62461.42508 | R30: 62801.59524 | S30: 63143.61798 | T30: 63487.50342 | U30: 63833.26168 | V30: 64180.90297 | W30: 64530.43754 | X30: 64881.87571 | Y30: 65235.22784 | Z30: 65590.50436 | AA30: 65947.71574 | AB30: 66306.87252 | AC30: 66667.98531 | AD30: 67031.06474 | AE30: 67396.12153 | AF30: 67763.16646 | AG30: 68132.21034 | AH30: 68503.26406 | AI30: 68876.33858 | AJ30: 69251.44489 | AK30: 69628.59406
D31: Tax Receipts from income | E31: £ k | F31: =SUM(H31:BO31) -> 34619788.1 | H31: =IF(H$1="","",H102+H173+H244+H315+H386+H457+H528+H599+H670+H741) -> 916718.3904 | I31: 930693.9091 | J31: 945026.5953 | K31: 959580.0048 | L31: 974357.5369 | M31: 989362.643 | N31: 1004598.828 | O31: 1020069.65 | P31: 1035778.722 | Q31: 1051729.715 | R31: 1067926.352 | S31: 1084372.418 | T31: 1101071.753 | U31: 1118028.258 | V31: 1135245.893 | W31: 1152728.68 | X31: 1170480.702 | Y31: 1188506.105 | Z31: 1206809.099 | AA31: 1225393.959 | AB31: 1244265.026 | AC31: 1263426.707 | AD31: 1282883.478 | AE31: 1302639.884 | AF31: 1322700.538 | AG31: 1343070.126 | AH31: 1363753.406 | AI31: 1384755.209 | AJ31: 1406080.439 | AK31: 1427734.078 | AN31: =IF(AN$1="","",AN102+AN173+AN244+AN315+AN386+AN457+AN528+AN599+AN670+AN741) -> 
D32: VAT | E32: £ k | F32: =IFERROR(SUM(H32:BO32),0) -> 6169989.332 | H32: =IF(H$1="","",H103+H174+H245+H316+H387+H458+H529+H600+H671+H742) -> 163379.1393 | I32: 165869.6246 | J32: 168424.0168 | K32: 171017.7467 | L32: 173651.42 | M32: 176325.6518 | N32: 179041.0669 | O32: 181798.2993 | P32: 184597.9931 | Q32: 187440.8022 | R32: 190327.3905 | S32: 193258.4324 | T32: 196234.6122 | U32: 199256.6252 | V32: 202325.1773 | W32: 205440.985 | X32: 208604.7762 | Y32: 211817.2897 | Z32: 215079.276 | AA32: 218391.4968 | AB32: 221754.7259 | AC32: 225169.7487 | AD32: 228637.3628 | AE32: 232158.3782 | AF32: 235733.6172 | AG32: 239363.9149 | AH32: 243050.1192 | AI32: 246793.091 | AJ32: 250593.7046 | AK32: 254452.8477 | AN32: =IF(AN$1="","",AN103+AN174+AN245+AN316+AN387+AN458+AN529+AN600+AN671+AN742) -> 
D33: NIC | E33: £ k | F33: =SUM(H33:BO33) -> 5358045.409 | H33: =IF(H$1="","",H104+H175+H246+H317+H388+H459+H530+H601+H672+H743) -> 141879.1509 | I33: 144041.899 | J33: 146260.1443 | K33: 148512.5505 | L33: 150799.6438 | M33: 153121.9583 | N33: 155480.0364 | O33: 157874.429 | P33: 160305.6952 | Q33: 162774.4029 | R33: 165281.1287 | S33: 167826.4581 | T33: 170410.9856 | U33: 173035.3147 | V33: 175700.0586 | W33: 178405.8395 | X33: 181153.2894 | Y33: 183943.0501 | Z33: 186775.773 | AA33: 189652.1199 | AB33: 192572.7626 | AC33: 195538.3831 | AD33: 198549.6742 | AE33: 201607.3392 | AF33: 204712.0922 | AG33: 207864.6585 | AH33: 211065.7742 | AI33: 214316.1871 | AJ33: 217616.6564 | AK33: 220967.9529 | AN33: =IF(AN$1="","",AN104+AN175+AN246+AN317+AN388+AN459+AN530+AN601+AN672+AN743) -> 
D34: Total tax receipts | E34: £ k | F34: =IFERROR(SUM(H34:BO34),0) -> 46147822.84 | H34: =IF(H$1="","",H105+H176+H247+H318+H389+H460+H531+H602+H673+H744) -> 1221976.681 | I34: 1240605.433 | J34: 1259710.756 | K34: 1279110.302 | L34: 1298808.601 | M34: 1318810.253 | N34: 1339119.931 | O34: 1359742.378 | P34: 1380682.411 | Q34: 1401944.92 | R34: 1423534.871 | S34: 1445457.308 | T34: 1467717.351 | U34: 1490320.198 | V34: 1513271.129 | W34: 1536575.505 | X34: 1560238.767 | Y34: 1584266.444 | Z34: 1608664.148 | AA34: 1633437.576 | AB34: 1658592.514 | AC34: 1684134.839 | AD34: 1710070.515 | AE34: 1736405.601 | AF34: 1763146.248 | AG34: 1790298.7 | AH34: 1817869.3 | AI34: 1845864.487 | AJ34: 1874290.8 | AK34: 1903154.878 | AN34: =IF(AN$1="","",AN105+AN176+AN247+AN318+AN389+AN460+AN531+AN602+AN673+AN744) -> 
D35: Employment | E35: No. | H35: =IF(H$1="","",H106+H177+H248+H319+H390+H461+H532+H603+H674+H745) -> 95972.044 | I35: 96912.51755 | J35: 97871.95147 | K35: 98840.88379 | L35: 99819.40854 | M35: 100807.6207 | N35: 101805.6161 | O35: 102813.4917 | P35: 103831.3453 | Q35: 104859.2756 | R35: 105897.3824 | S35: 106945.7665 | T35: 108004.5296 | U35: 109073.7745 | V35: 110153.6048 | W35: 111244.1255 | X35: 112345.4424 | Y35: 113457.6622 | Z35: 114580.8931 | AA35: 115715.2439 | AB35: 116860.8249 | AC35: 118017.747 | AD35: 119186.1227 | AE35: 120366.0653 | AF35: 121557.6894 | AG35: 122761.1105 | AH35: 123976.4455 | AI35: 125203.8123 | AJ35: 126443.33 | AK35: 127695.119 | AN35: =IF(AN$1="","",AN106+AN177+AN248+AN319+AN390+AN461+AN532+AN603+AN674+AN745) -> 
D36: Total Economic Impacts | E36: £ k | F36: =SUM(H36:BO36) -> 261742977.1 | H36: =IF(H4="","",SUM(H29,H31:H33)) -> 6930848.026 | I36: =IF(I4="","",SUM(I29,I31:I33)) -> 7036513.247 | J36: 7144875.551 | K36: 7254906.635 | L36: 7366632.197 | M36: 7480078.333 | N36: 7595271.539 | O36: 7712238.721 | P36: 7831007.197 | Q36: 7951604.708 | R36: 8074059.42 | S36: 8198399.935 | T36: 8324655.294 | U36: 8452854.986 | V36: 8583028.953 | W36: 8715207.598 | X36: 8849421.795 | Y36: 8985702.891 | Z36: 9124082.716 | AA36: 9264593.589 | AB36: 9407268.331 | AC36: 9552140.263 | AD36: 9699243.223 | AE36: 9848611.569 | AF36: 10000280.19 | AG36: 10154284.5 | AH36: 10310660.48 | AI36: 10469444.65 | AJ36: 10630674.1 | AK36: 10794386.48
A39: ="Discounted costs for " & IF('Economic Data'!C14="", "network",'Economic Data'!C14) -> Discounted costs for Case Study - Example | F39: Analysis period total | H39: =H4 -> 2020 | I39: 2021 | J39: 2022 | K39: 2023 | L39: 2024 | M39: 2025 | N39: 2026 | O39: 2027 | P39: 2028 | Q39: 2029 | R39: 2030 | S39: 2031 | T39: 2032 | U39: 2033 | V39: 2034 | W39: 2035 | X39: 2036 | Y39: 2037 | Z39: 2038 | AA39: 2039 | AB39: 2040 | AC39: 2041 | AD39: 2042 | AE39: 2043 | AF39: 2044 | AG39: 2045 | AH39: 2046 | AI39: 2047 | AJ39: 2048 | AK39: 2049 | AN39: =AN4 -> 
D41: Parameter | E41: Unit
D42: Expenditure by Treatment | E42: £ k | F42: =SUM(H42:BO42) -> 354654.5784 | H42: =IF(H$1="","",H113+H184+H255+H326+H397+H468+H539+H610+H681+H752) -> 29708.80123 | I42: 31735.80869 | J42: 27455.77071 | K42: 12066.6041 | L42: 12876.89639 | M42: 13157.02099 | N42: 13133.06788 | O42: 12937.00206 | P42: 12645.89946 | Q42: 12304.77195 | R42: 11939.87042 | S42: 11566.45233 | T42: 11193.32506 | U42: 10825.50798 | V42: 10465.79471 | W42: 10115.67138 | X42: 9775.85716 | Y42: 9446.622844 | Z42: 9127.9788 | AA42: 8819.785979 | AB42: 8521.821476 | AC42: 8233.817257 | AD42: 7955.482986 | AE42: 7686.519444 | AF42: 7426.626374 | AG42: 7175.507002 | AH42: 6932.870603 | AI42: 6698.433896 | AJ42: 6471.921748 | AK42: 6253.067472 | AN42: =IF(AN$1="","",AN113+AN184+AN255+AN326+AN397+AN468+AN539+AN610+AN681+AN752) -> 
D43: Percentage in poor condition | E43: % | H43: =H8 -> 0.1913472403 | I43: =I8 -> 0.09565834482 | J43: 0 | K43: 0 | L43: 0 | M43: 0 | N43: 0 | O43: 0 | P43: 0 | Q43: 0 | R43: 0 | S43: 0 | T43: 0 | U43: 0 | V43: 0 | W43: 0 | X43: 0 | Y43: 0 | Z43: 0 | AA43: 0 | AB43: 0 | AC43: 0 | AD43: 0 | AE43: 0 | AF43: 0 | AG43: 0 | AH43: 0 | AI43: 0 | AJ43: 0 | AK43: 0
C45: Treatment and Condition Impacts | D45: Vehicle operating costs | E45: £ k | F45: =SUM(H45:BO45) -> 73754839.07 | H45: =IF(H$1="","",H116+H187+H258+H329+H400+H471+H542+H613+H684+H755) -> 1968782.741 | I45: 1939156.031 | J45: 1919653.47 | K45: 1938475.89 | L45: 1966609.045 | M45: 2018466.838 | N45: 2085212.42 | O45: 2152810.655 | P45: 2207884.11 | Q45: 2276321.255 | R45: 2366139.764 | S45: 2430494.069 | T45: 2491556.627 | U45: 2545330.654 | V45: 2593122.286 | W45: 2633887.858 | X45: 2667315.345 | Y45: 2691914.068 | Z45: 2718744.45 | AA45: 2738475.127 | AB45: 2752025.407 | AC45: 2766175.843 | AD45: 2770805.17 | AE45: 2769497.429 | AF45: 2764721.033 | AG45: 2753593.146 | AH45: 2738535.011 | AI45: 2718925.908 | AJ45: 2697466.499 | AK45: 2672740.918 | AN45: =IF(AN$1="","",AN116+AN187+AN258+AN329+AN400+AN471+AN542+AN613+AN684+AN755) -> 
D46: Travel time | E46: £ k | F46: 17132570.33 | H46: =IF(H$1="","",H117+H188+H259+H330+H401+H472+H543+H614+H685+H756) -> 656767.3815 | I46: 635516.2755 | J46: 613545.5555 | K46: 607049.6872 | L46: 601135.12 | M46: 595866.512 | N46: 591189.6118 | O46: 587062.03 | P46: 583494.1749 | Q46: 580154.8224 | R46: 577354.7065 | S46: 574479.4862 | T46: 572506.2541 | U46: 570380.2108 | V46: 568267.5486 | W46: 566288.6917 | X46: 564629.8399 | Y46: 562440.2225 | Z46: 560231.4934 | AA46: 557898.9 | AB46: 555396.2394 | AC46: 552895.8396 | AD46: 549711.942 | AE46: 546442.4721 | AF46: 543038.8781 | AG46: 539571.2621 | AH46: 536065.3998 | AI46: 531914.8566 | AJ46: 527718.3202 | AK46: 523556.5939 | AN46: =IF(AN$1="","",AN117+AN188+AN259+AN330+AN401+AN472+AN543+AN614+AN685+AN756) -> 
D47: Carbon (vehicle fuel) | E47: £ k | F47: 2635317.345 | H47: =IF(H$1="","",H118+H189+H260+H331+H402+H473+H544+H615+H686+H757) -> 69714.40624 | I47: 69240.8266 | J47: 69413.30459 | K47: 67820.54555 | L47: 66384.89837 | M47: 65005.58863 | N47: 63939.47843 | O47: 63039.9982 | P47: 63014.50157 | Q47: 62319.78407 | R47: 61739.99308 | S47: 66005.85575 | T47: 71200.13282 | U47: 75466.00317 | V47: 80280.0475 | W47: 84297.03386 | X47: 88943.67004 | Y47: 92458.42272 | Z47: 96701.57936 | AA47: 100011.8464 | AB47: 103727.2784 | AC47: 106737.1993 | AD47: 110164.3642 | AE47: 112535.9053 | AF47: 115582.8944 | AG47: 117744.9542 | AH47: 120237.7408 | AI47: 121968.0159 | AJ47: 124181.3152 | AK47: 125439.76 | AN47: =IF(AN$1="","",AN118+AN189+AN260+AN331+AN402+AN473+AN544+AN615+AN686+AN757) -> 
D48: Roadworks Accidents | E48: £ k | F48: 4279.84885 | H48: =IF(H$1="","",H119+H190+H261+H332+H403+H474+H545+H616+H687+H758) -> 353.8038263 | I48: 753.9410542 | J48: 253.4427418 | K48: 137.7983018 | L48: 140.4816975 | M48: 140.5155624 | N48: 139.0799275 | O48: 136.7946117 | P48: 134.0790028 | Q48: 127.6165638 | R48: 125.0177635 | S48: 122.0372465 | T48: 119.2602085 | U48: 116.5075913 | V48: 113.7914389 | W48: 111.1184942 | X48: 106.4727515 | Y48: 103.8231024 | Z48: 101.2300966 | AA48: 98.68049031 | AB48: 96.20024889 | AC48: 93.77527372 | AD48: 91.29167258 | AE48: 87.17678219 | AF48: 84.85907534 | AG48: 82.59880886 | AH48: 80.39474593 | AI48: 78.16830132 | AJ48: 76.000768 | AK48: 73.89069985 | AN48: =IF(AN$1="","",AN119+AN190+AN261+AN332+AN403+AN474+AN545+AN616+AN687+AN758) -> 
D49: Carbon (vehicles in roadworks) | E49: £ k | F49: 164.0664621 | H49: =IF(H$1="","",H120+H191+H262+H333+H404+H475+H546+H617+H688+H759) -> 8.451244604 | I49: 22.44761758 | J49: 8.618457518 | K49: 4.064861039 | L49: 4.608484075 | M49: 4.84466203 | N49: 4.913149022 | O49: 4.890974025 | P49: 4.822828539 | Q49: 5.461418937 | R49: 5.249764869 | S49: 5.128879922 | T49: 5.014041057 | U49: 4.89931603 | V49: 4.78573305 | W49: 4.673811395 | X49: 4.85604905 | Y49: 4.735340673 | Z49: 4.617219506 | AA49: 4.949437711 | AB49: 4.825143656 | AC49: 4.703619038 | AD49: 4.58085877 | AE49: 4.322818308 | AF49: 4.207967612 | AG49: 4.095961597 | AH49: 3.98673859 | AI49: 3.876449269 | AJ49: 3.769073841 | AK49: 3.664540804 | AN49: =IF(AN$1="","",AN120+AN191+AN262+AN333+AN404+AN475+AN546+AN617+AN688+AN759) -> 
D50: Roadworks time delays | E50: £ k | F50: 84608.69264 | H50: =IF(H$1="","",H121+H192+H263+H334+H405+H476+H547+H618+H689+H760) -> 5448.308083 | I50: 7559.956774 | J50: 5966.754132 | K50: 2324.950852 | L50: 2722.702702 | M50: 2910.282407 | N50: 2980.306984 | O50: 2984.649703 | P50: 2954.066411 | Q50: 3147.893369 | R50: 3075.378893 | S50: 3007.118715 | T50: 2941.385261 | U50: 2875.008542 | V50: 2808.86247 | W50: 2743.421942 | X50: 2254.380433 | Y50: 2198.392781 | Z50: 2143.558245 | AA50: 2162.407956 | AB50: 2108.077639 | AC50: 2054.950439 | AD50: 2000.7499 | AE50: 2049.000132 | AF50: 1994.536276 | AG50: 1941.421161 | AH50: 1889.626061 | AI50: 1837.320829 | AJ50: 1786.398457 | AK50: 1736.825086 | AN50: =IF(AN$1="","",AN121+AN192+AN263+AN334+AN405+AN476+AN547+AN618+AN689+AN760) -> 
D51: Accidents | E51: £ k | F51: 2611376.06 | H51: =IF(H$1="","",H122+H193+H264+H335+H406+H477+H548+H619+H690+H761) -> 137182.6026 | I51: 132543.5774 | J51: 128061.4274 | K51: 123730.8478 | L51: 119546.7128 | M51: 115504.0703 | N51: 111598.1356 | O51: 107824.2856 | P51: 104178.0537 | Q51: 100655.1244 | R51: 97251.3279 | S51: 93962.63565 | T51: 90785.15522 | U51: 87715.12581 | V51: 84748.91383 | W51: 81883.00853 | X51: 79114.0179 | Y51: 76438.66464 | Z51: 73853.78226 | AA51: 71356.31136 | AB51: 68943.296 | AC51: 66611.8802 | AD51: 64359.30454 | AE51: 62182.90294 | AF51: 60080.09945 | AG51: 58048.40527 | AH51: 56085.41572 | AI51: 54188.80746 | AJ51: 52356.33571 | AK51: 50585.8316 | AN51: =IF(AN$1="","",AN122+AN193+AN264+AN335+AN406+AN477+AN548+AN619+AN690+AN761) -> 
D52: Carbon (Embodied in materials) | E52: £ k | F52: 8134.337069 | H52: =IF(H$1="","",H123+H194+H265+H336+H407+H478+H549+H620+H691+H762) -> 433.8473843 | I52: 476.9335002 | J52: 418.3780585 | K52: 186.427806 | L52: 201.6720373 | M52: 208.8438042 | N52: 211.2431066 | O52: 210.8274409 | P52: 211.4363148 | Q52: 208.336959 | R52: 204.6856502 | S52: 215.4197953 | T52: 227.4223347 | U52: 235.9871058 | V52: 245.8657052 | W52: 252.6268368 | X52: 260.6922719 | Y52: 265.9077419 | Z52: 272.3933495 | AA52: 276.2628747 | AB52: 281.3583412 | AC52: 284.0479066 | AD52: 287.9157522 | AE52: 289.5692872 | AF52: 292.352818 | AG52: 293.0978726 | AH52: 294.925223 | AI52: 294.8759652 | AJ52: 295.8623982 | AK52: 295.1214272 | AN52: =IF(AN$1="","",AN123+AN194+AN265+AN336+AN407+AN478+AN549+AN620+AN691+AN762) -> 
D53: Total HMAT costs | E53: £ k | F53: 96231289.75 | H53: =IF(H39="","",SUM(H45:H52)) -> 2838691.541 | I53: =IF(I39="","",SUM(I45:I52)) -> 2785269.989 | J53: 2737320.951 | K53: 2739730.213 | L53: 2756745.241 | M53: 2798107.496 | N53: 2855275.189 | O53: 2914074.132 | P53: 2961875.244 | Q53: 3022940.294 | R53: 3105896.124 | S53: 3168291.751 | T53: 3229341.251 | U53: 3282124.396 | V53: 3329592.102 | W53: 3369468.433 | X53: 3402629.274 | Y53: 3425824.237 | Z53: 3452053.104 | AA53: 3470284.485 | AB53: 3482582.682 | AC53: 3494858.239 | AD53: 3497425.319 | AE53: 3493088.779 | AF53: 3485798.862 | AG53: 3471278.981 | AH53: 3453192.5 | AI53: 3429211.83 | AJ53: 3403884.501 | AK53: 3374432.605 | AL53: =IF(AL39="","",SUM(AL45:AL52)) ->  | AM53: =IF(AM39="","",SUM(AM45:AM52)) ->  | AN53: =IF(AN39="","",SUM(AN45:AN52)) ->  | AO53: =IF(AO39="","",SUM(AO45:AO52)) ->  | AP53: =IF(AP39="","",SUM(AP45:AP52)) ->  | AQ53: =IF(AQ39="","",SUM(AQ45:AQ52)) ->  | AR53: =IF(AR39="","",SUM(AR45:AR52)) ->  | AS53: =IF(AS39="","",SUM(AS45:AS52)) ->  | AT53: =IF(AT39="","",SUM(AT45:AT52)) ->  | AU53: =IF(AU39="","",SUM(AU45:AU52)) ->  | AV53: =IF(AV39="","",SUM(AV45:AV52)) ->  | AW53: =IF(AW39="","",SUM(AW45:AW52)) ->  | AX53: =IF(AX39="","",SUM(AX45:AX52)) ->  | AY53: =IF(AY39="","",SUM(AY45:AY52)) ->  | AZ53: =IF(AZ39="","",SUM(AZ45:AZ52)) ->  | BA53: =IF(BA39="","",SUM(BA45:BA52)) ->  | BB53: =IF(BB39="","",SUM(BB45:BB52)) ->  | BC53: =IF(BC39="","",SUM(BC45:BC52)) ->  | BD53: =IF(BD39="","",SUM(BD45:BD52)) ->  | BE53: =IF(BE39="","",SUM(BE45:BE52)) ->  | BF53: =IF(BF39="","",SUM(BF45:BF52)) ->  | BG53: =IF(BG39="","",SUM(BG45:BG52)) ->  | BH53: =IF(BH39="","",SUM(BH45:BH52)) ->  | BI53: =IF(BI39="","",SUM(BI45:BI52)) ->  | BJ53: =IF(BJ39="","",SUM(BJ45:BJ52)) ->  | BK53: =IF(BK39="","",SUM(BK45:BK52)) ->  | BL53: =IF(BL39="","",SUM(BL45:BL52)) ->  | BM53: =IF(BM39="","",SUM(BM45:BM52)) ->  | BN53: =IF(BN39="","",SUM(BN45:BN52)) ->  | BO53: =IF(BO39="","",SUM(BO45:BO52)) -> 
C55: Network Benefits | D55: Change in accident costs | E55: £ k | F55: =SUM(H55:BO55) -> -758620.9235 | H55: =IF(H$1="","",H126+H197+H268+H339+H410+H481+H552+H623+H694+H765) -> -41983.30182 | I55: -40170.4378 | J55: -38808.23487 | K55: -37479.22923 | L55: -36182.71615 | M55: -34918.00451 | N55: -33684.41663 | O55: -32501.71116 | P55: -31348.20256 | Q55: -30223.26469 | R55: -29126.28373 | S55: -28056.65795 | T55: -26913.89251 | U55: -25800.4106 | V55: -24715.57624 | W55: -23658.7659 | X55: -22629.36829 | Y55: -21697.99775 | Z55: -20790.63143 | AA55: -19906.74408 | AB55: -19045.82089 | AC55: -18207.35729 | AD55: -17463.64981 | AE55: -16739.14623 | AF55: -16033.42363 | AG55: -15346.0676 | AH55: -14676.6721 | AI55: -14080.26505 | AJ55: -13499.28434 | AK55: -12933.3886 | AN55: =IF(AN$1="","",AN126+AN197+AN268+AN339+AN410+AN481+AN552+AN623+AN694+AN765) -> 
D56: Change in travel time costs | E56: £ k | F56: =SUM(H56:BO56) -> 7467676.938 | H56: =IF(H$1="","",H127+H198+H269+H340+H411+H482+H553+H624+H695+H766) -> 282988.0325 | I56: 280138.734 | J56: 275971.61 | K56: 271907.1572 | L56: 268328.4618 | M56: 265166.8154 | N56: 262342.9106 | O56: 259906.9159 | P56: 257735.9298 | Q56: 255683.575 | R56: 253866.6385 | S56: 252033.6646 | T56: 250686.0626 | U56: 249282.8766 | V56: 247889.6224 | W56: 246553.5169 | X56: 245347.6924 | Y56: 243958.8862 | Z56: 242565.41 | AA56: 241125.997 | AB56: 239622.732 | AC56: 238123.6344 | AD56: 236327.435 | AE56: 234502.947 | AF56: 232631.4069 | AG56: 230740.4294 | AH56: 228840.1892 | AI56: 226656.2134 | AJ56: 224462.1359 | AK56: 222289.3056 | AN56: =IF(AN$1="","",AN127+AN198+AN269+AN340+AN411+AN482+AN553+AN624+AN695+AN766) -> 
D57: Change in cost of CO2 emissions | E57: £ k | F57: =SUM(H57:BO57) -> 2031239.862 | H57: =IF(H$1="","",H128+H199+H270+H341+H412+H483+H554+H625+H696+H767) -> 53746.09418 | I57: 53405.14824 | J57: 53556.86713 | K57: 52324.49524 | L57: 51213.65118 | M57: 50146.41193 | N57: 49320.52476 | O57: 48623.26384 | P57: 48600.17901 | Q57: 48060.67437 | R57: 47609.64282 | S57: 50895.19046 | T57: 54896.02218 | U57: 58180.51266 | V57: 61887.25589 | W57: 64978.98741 | X57: 68555.71652 | Y57: 71260.26766 | Z57: 74525.85046 | AA57: 77072.28179 | AB57: 79930.91506 | AC57: 82245.42242 | AD57: 84881.80525 | AE57: 86704.89243 | AF57: 89048.16239 | AG57: 90709.67433 | AH57: 92626.06215 | AI57: 93955.22377 | AJ57: 95656.42819 | AK57: 96622.23865 | AN57: =IF(AN$1="","",AN128+AN199+AN270+AN341+AN412+AN483+AN554+AN625+AN696+AN767) -> 
D58: Total Network Benefits costs | E58: £ k | F58: =SUM(H58:BO58) -> 8740295.877 | H58: =IF(H39="","",SUM(H55:H57)) -> 294750.8248 | I58: =IF(I39="","",SUM(I55:I57)) -> 293373.4444 | J58: 290720.2423 | K58: 286752.4232 | L58: 283359.3968 | M58: 280395.2228 | N58: 277979.0187 | O58: 276028.4686 | P58: 274987.9063 | Q58: 273520.9847 | R58: 272349.9976 | S58: 274872.1971 | T58: 278668.1922 | U58: 281662.9787 | V58: 285061.3021 | W58: 287873.7384 | X58: 291274.0406 | Y58: 293521.1561 | Z58: 296300.629 | AA58: 298291.5347 | AB58: 300507.8262 | AC58: 302161.6996 | AD58: 303745.5904 | AE58: 304468.6932 | AF58: 305646.1457 | AG58: 306104.0361 | AH58: 306789.5793 | AI58: 306531.1721 | AJ58: 306619.2797 | AK58: 305978.1556
C60: Public Income | D60: Congestion charge | E60: £ k | F60: =SUM(H60:BO60) -> 20105545.81 | H60: =IF(H$1="","",H131+H202+H273+H344+H415+H486+H557+H628+H699+H770) -> 138442.3475 | I60: 149951.2614 | J60: 164033.6407 | K60: 179438.5392 | L60: 196290.1585 | M60: 214724.3647 | N60: 234889.7833 | O60: 256948.9977 | P60: 281079.8601 | Q60: 307476.9253 | R60: 336353.0191 | S60: 367940.9548 | T60: 402495.4097 | U60: 440294.9786 | V60: 481644.4201 | W60: 526877.1134 | X60: 576357.7467 | Y60: 630485.2568 | Z60: 689696.0462 | AA60: 754467.5009 | AB60: 825321.8401 | AC60: 902830.326 | AD60: 987617.8697 | AE60: 1080368.07 | AF60: 1181828.723 | AG60: 1292817.855 | AH60: 1414230.315 | AI60: 1547044.988 | AJ60: 1692332.691 | AK60: 1851264.805 | AN60: =IF(AN$1="","",AN131+AN202+AN273+AN344+AN415+AN486+AN557+AN628+AN699+AN770) -> 
D61: Tolls | E61: £ k | F61: =SUM(H61:BO61) -> 4307727.655 | H61: =IF(H$1="","",H132+H203+H274+H345+H416+H487+H558+H629+H700+H771) -> 29238.09998 | I61: 31636.6808 | J61: 34622.62857 | K61: 37891.63121 | L61: 41470.64362 | M61: 45389.19973 | N61: 49679.66044 | O61: 54377.48554 | P61: 59521.53192 | Q61: 65154.38058 | R61: 71322.69533 | S61: 78077.61616 | T61: 85475.19077 | U61: 93576.8478 | V61: 102449.9161 | W61: 112168.1939 | X61: 122812.5743 | Y61: 134471.7296 | Z61: 147242.8641 | AA61: 161232.5386 | AB61: 176557.5758 | AC61: 193346.0532 | AD61: 211738.3929 | AE61: 231888.5574 | AF61: 253965.3617 | AG61: 278153.9134 | AH61: 304657.1928 | AI61: 333697.7876 | AJ61: 365519.7957 | AK61: 400390.9153 | AN61: =IF(AN$1="","",AN132+AN203+AN274+AN345+AN416+AN487+AN558+AN629+AN700+AN771) -> 
D62: Total Public Income | E62: £ k | F62: =SUM(H62:BO62) -> 24413273.46 | H62: =IF(H39="","",SUM(H60:H61)) -> 167680.4475 | I62: =IF(I39="","",SUM(I60:I61)) -> 181587.9422 | J62: 198656.2693 | K62: 217330.1704 | L62: 237760.8021 | M62: 260113.5644 | N62: 284569.4437 | O62: 311326.4833 | P62: 340601.392 | Q62: 372631.3058 | R62: 407675.7144 | S62: 446018.571 | T62: 487970.6005 | U62: 533871.8264 | V62: 584094.3361 | W62: 639045.3074 | X62: 699170.321 | Y62: 764956.9864 | Z62: 836938.9102 | AA62: 915700.0395 | AB62: 1001879.416 | AC62: 1096176.379 | AD62: 1199356.263 | AE62: 1312256.627 | AF62: 1435794.085 | AG62: 1570971.769 | AH62: 1718887.508 | AI62: 1880742.775 | AJ62: 2057852.487 | AK62: 2251655.72
C64: Economic Impacts | D64: aGVA | E64: £ k | F64: =SUM(H64:BO64) -> 131565592.6 | H64: =IF(H$1="","",H135+H206+H277+H348+H419+H490+H561+H632+H703+H774) -> 5708871.345 | I64: 5599910.932 | J64: 5493864.309 | K64: 5389825.913 | L64: 5287757.712 | M64: 5187622.397 | N64: 5089383.364 | O64: 4993004.703 | P64: 4898451.184 | Q64: 4805688.244 | R64: 4714681.974 | S64: 4625399.107 | T64: 4537807.008 | U64: 4451873.658 | V64: 4367567.645 | W64: 4284858.151 | X64: 4203714.944 | Y64: 4124108.361 | Z64: 4046009.304 | AA64: 3969389.225 | AB64: 3894220.115 | AC64: 3820474.497 | AD64: 3748125.415 | AE64: 3677146.422 | AF64: 3607511.572 | AG64: 3539195.41 | AH64: 3472172.966 | AI64: 3406419.739 | AJ64: 3341911.693 | AK64: 3278625.25 | AN64: =IF(AN$1="","",AN135+AN206+AN277+AN348+AN419+AN490+AN561+AN632+AN703+AN774) -> 
D65: Per Capita aGVA | E65: £ | H65: =IFERROR((H64*1000)/H70,"") -> 59484.7323 | I65: =IFERROR((I64*1000)/I70,"") -> 57783.15406 | J65: 56133.1845 | K65: 54530.32901 | L65: 52973.24227 | M65: 51460.61738 | N65: 49991.18474 | O65: 48563.71104 | P65: 47176.99814 | Q65: 45829.88215 | R65: 44521.23239 | S65: 43249.95049 | T65: 42014.96941 | U65: 40815.25261 | V65: 39649.79314 | W65: 38517.61279 | X65: 37417.76129 | Y65: 36349.31551 | Z65: 35311.37867 | AA65: 34303.07961 | AB65: 33323.57203 | AC65: 32372.03382 | AD65: 31447.6663 | AE65: 30549.69365 | AF65: 29677.36217 | AG65: 28829.93968 | AH65: 28006.71492 | AI65: 27206.99694 | AJ65: 26430.11452 | AK65: 25675.41559
D66: Tax Receipts from income | E66: £ k | F66: =SUM(H66:BO66) -> 21126509.09 | H66: =IF(H$1="","",H137+H208+H279+H350+H421+H492+H563+H634+H705+H776) -> 916718.3904 | I66: 899221.1682 | J66: 882192.4388 | K66: 865486.1859 | L66: 849096.3025 | M66: 833016.7977 | N66: 817241.7936 | O66: 801765.5239 | P66: 786582.3313 | Q66: 771686.6659 | R66: 757073.0827 | S66: 742736.2398 | T66: 728670.8965 | U66: 714871.9114 | V66: 701334.2404 | W66: 688052.935 | X66: 675023.1403 | Y66: 662240.0934 | Z66: 649699.1216 | AA66: 637395.6406 | AB66: 625325.1531 | AC66: 613483.2468 | AD66: 601865.5931 | AE66: 590467.9451 | AF66: 579286.1367 | AG66: 568316.0804 | AH66: 557553.7662 | AI66: 546995.2601 | AJ66: 536636.7025 | AK66: 526474.307 | AN66: =IF(AN$1="","",AN137+AN208+AN279+AN350+AN421+AN492+AN563+AN634+AN705+AN776) -> 
D67: VAT | E67: £ k | F67: =IFERROR(SUM(H67:BO67),0) -> 3765197.485 | H67: =IF(H$1="","",H138+H209+H280+H351+H422+H493+H564+H635+H706+H777) -> 163379.1393 | I67: 160260.5068 | J67: 157225.6219 | K67: 154248.2091 | L67: 151327.1802 | M67: 148461.4675 | N67: 145650.0232 | O67: 142891.8199 | P67: 140185.8492 | Q67: 137531.122 | R67: 134926.6679 | S67: 132371.5349 | T67: 129864.7889 | U67: 127405.5137 | V67: 124992.8102 | W67: 122625.7966 | X67: 120303.6076 | Y67: 118025.3944 | Z67: 115790.3241 | AA67: 113597.5798 | AB67: 111446.3599 | AC67: 109335.8782 | AD67: 107265.363 | AE67: 105234.0575 | AF67: 103241.2194 | AG67: 101286.1199 | AH67: 99368.04462 | AI67: 97486.29228 | AJ67: 95640.17505 | AK67: 93829.01811 | AN67: =IF(AN$1="","",AN138+AN209+AN280+AN351+AN422+AN493+AN564+AN635+AN706+AN777) -> 
D68: NIC | E68: £ k | F68: =SUM(H68:BO68) -> 3269713.773 | H68: =IF(H$1="","",H139+H210+H281+H352+H423+H494+H565+H636+H707+H778) -> 141879.1509 | I68: 139170.9169 | J68: 136535.4097 | K68: 133949.8116 | L68: 131413.1775 | M68: 128924.5801 | N68: 126483.1098 | O68: 124087.8741 | P68: 121737.9975 | Q68: 119432.6209 | R68: 117170.9017 | S68: 114952.0131 | T68: 112775.1441 | U68: 110639.4988 | V68: 108544.2967 | W68: 106488.7719 | X68: 104472.1729 | Y68: 102493.7627 | Z68: 100552.818 | AA68: 98648.62938 | AB68: 96780.50075 | AC68: 94947.74924 | AD68: 93149.70491 | AE68: 91385.71049 | AF68: 89655.12119 | AG68: 87957.30441 | AH68: 86291.63951 | AI68: 84657.51764 | AJ68: 83054.34146 | AK68: 81481.52495 | AN68: =IF(AN$1="","",AN139+AN210+AN281+AN352+AN423+AN494+AN565+AN636+AN707+AN778) -> 
D69: Total tax receipts | E69: £ k | F69: =IFERROR(SUM(H69:BO69),0) -> 28161420.35 | H69: =IF(H$1="","",H140+H211+H282+H353+H424+H495+H566+H637+H708+H779) -> 1221976.681 | I69: 1198652.592 | J69: 1175953.47 | K69: 1153684.207 | L69: 1131836.66 | M69: 1110402.845 | N69: 1089374.927 | O69: 1068745.218 | P69: 1048506.178 | Q69: 1028650.409 | R69: 1009170.652 | S69: 990059.7878 | T69: 971310.8295 | U69: 952916.9239 | V69: 934871.3474 | W69: 917167.5035 | X69: 899798.9208 | Y69: 882759.2505 | Z69: 866042.2637 | AA69: 849641.8498 | AB69: 833552.0138 | AC69: 817766.8742 | AD69: 802280.661 | AE69: 787087.7132 | AF69: 772182.4772 | AG69: 757559.5047 | AH69: 743213.4503 | AI69: 729139.07 | AJ69: 715331.219 | AK69: 701784.8501 | AN69: =IF(AN$1="","",AN140+AN211+AN282+AN353+AN424+AN495+AN566+AN637+AN708+AN779) -> 
D70: Employment | E70: No. | H70: =IF(H$1="","",H141+H212+H283+H354+H425+H496+H567+H638+H709+H780) -> 95972.044 | I70: 96912.51755 | J70: 97871.95147 | K70: 98840.88379 | L70: 99819.40854 | M70: 100807.6207 | N70: 101805.6161 | O70: 102813.4917 | P70: 103831.3453 | Q70: 104859.2756 | R70: 105897.3824 | S70: 106945.7665 | T70: 108004.5296 | U70: 109073.7745 | V70: 110153.6048 | W70: 111244.1255 | X70: 112345.4424 | Y70: 113457.6622 | Z70: 114580.8931 | AA70: 115715.2439 | AB70: 116860.8249 | AC70: 118017.747 | AD70: 119186.1227 | AE70: 120366.0653 | AF70: 121557.6894 | AG70: 122761.1105 | AH70: 123976.4455 | AI70: 125203.8123 | AJ70: 126443.33 | AK70: 127695.119 | AN70: =IF(AN$1="","",AN141+AN212+AN283+AN354+AN425+AN496+AN567+AN638+AN709+AN780) -> 
D71: Total Economic Impacts | E71: £ k | F71: =SUM(H71:BO71) -> 159727012.9 | H71: =IF(H39="","",SUM(H64,H66:H68)) -> 6930848.026 | I71: =IF(I39="","",SUM(I64,I66:I68)) -> 6798563.524 | J71: 6669817.78 | K71: 6543510.119 | L71: 6419594.372 | M71: 6298025.242 | N71: 6178758.291 | O71: 6061749.921 | P71: 5946957.362 | Q71: 5834338.653 | R71: 5723852.626 | S71: 5615458.895 | T71: 5509117.838 | U71: 5404790.582 | V71: 5302438.992 | W71: 5202025.655 | X71: 5103513.865 | Y71: 5006867.612 | Z71: 4912051.568 | AA71: 4819031.075 | AB71: 4727772.129 | AC71: 4638241.371 | AD71: 4550406.076 | AE71: 4464234.135 | AF71: 4379694.049 | AG71: 4296754.915 | AH71: 4215386.416 | AI71: 4135558.809 | AJ71: 4057242.912 | AK71: 3980410.1
A75: ="Undiscounted costs for " & D1_Name -> Undiscounted costs for R1 | F75: Analysis period total | H75: =H39 -> 2020 | I75: 2021 | J75: 2022 | K75: 2023 | L75: 2024 | M75: 2025 | N75: 2026 | O75: 2027 | P75: 2028 | Q75: 2029 | R75: 2030 | S75: 2031 | T75: 2032 | U75: 2033 | V75: 2034 | W75: 2035 | X75: 2036 | Y75: 2037 | Z75: 2038 | AA75: 2039 | AB75: 2040 | AC75: 2041 | AD75: 2042 | AE75: 2043 | AF75: 2044 | AG75: 2045 | AH75: 2046 | AI75: 2047 | AJ75: 2048 | AK75: 2049 | AN75: =AN39 -> 
D77: Parameter | E77: Unit
D78: Expenditure by Treatment | E78: £ k | F78: =SUM(H78:BO78) -> 319563.2816 | H78: 15707.23618 | I78: 15713.67686 | J78: 16030.27284 | K78: 8684.198262 | L78: 9296.463882 | M78: 9664.003537 | N78: 9885.009162 | O78: 10018.12295 | P78: 10098.42905 | Q78: 10146.95397 | R78: 10176.32074 | S78: 10194.12021 | T78: 10204.92465 | U78: 10211.49254 | V78: 10215.49071 | W78: 10217.92793 | X78: 10219.41562 | Y78: 10220.32489 | Z78: 10220.88134 | AA78: 10221.2223 | AB78: 10221.43148 | AC78: 10221.55995 | AD78: 10221.63895 | AE78: 10221.68758 | AF78: 10221.71755 | AG78: 10221.73604 | AH78: 10221.74746 | AI78: 10221.75452 | AJ78: 10221.75889 | AK78: 10221.76159
D79: Percentage in poor condition | E79: % | H79: 0.1519 | I79: 0.0759 | J79: 0 | K79: 0 | L79: 0 | M79: 0 | N79: 0 | O79: 0 | P79: 0 | Q79: 0 | R79: 0 | S79: 0 | T79: 0 | U79: 0 | V79: 0 | W79: 0 | X79: 0 | Y79: 0 | Z79: 0 | AA79: 0 | AB79: 0 | AC79: 0 | AD79: 0 | AE79: 0 | AF79: 0 | AG79: 0 | AH79: 0 | AI79: 0 | AJ79: 0 | AK79: 0
C81: Treatment and Condition Impacts | D81: Vehicle operating costs | E81: £ k | F81: =SUM(H81:BO81) -> 57261013.65 | H81: 850450.2512 | I81: 872467.2143 | J81: 897804.3331 | K81: 937963.4666 | L81: 984742.8022 | M81: 1046120.152 | N81: 1118586.463 | O81: 1195409.016 | P81: 1269060.266 | Q81: 1354330.318 | R81: 1457264.986 | S81: 1549547.488 | T81: 1644317.635 | U81: 1738835.423 | V81: 1833722.599 | W81: 1927964.947 | X81: 2020981.969 | Y81: 2111203.389 | Z81: 2207064.966 | AA81: 2301075.879 | AB81: 2393582.108 | AC81: 2490273.171 | AD81: 2581909.3 | AE81: 2671184.247 | AF81: 2760072.746 | AG81: 2845346.313 | AH81: 2929003.533 | AI81: 3009965.132 | AJ81: 3090876.019 | AK81: 3169887.517
D82: Travel time | E82: £ k | F82: 12984299.06 | H82: 287859.0644 | I82: 291861.3099 | J82: 294496.6503 | K82: 301366.4374 | L82: 308734.6892 | M82: 316642.9961 | N82: 325083.8015 | O82: 334071.2995 | P82: 343631.9798 | Q82: 353600.0461 | R82: 364190.3316 | S82: 375043.1783 | T82: 386829.8208 | U82: 398876.5907 | V82: 411303.3533 | W82: 424212.2095 | X82: 437769.3673 | Y82: 451337.2226 | Z82: 465302.7399 | AA82: 479586.4808 | AB82: 494148.7448 | AC82: 509144.9021 | AD82: 523932.5628 | AE82: 539047.2011 | AF82: 554441.0577 | AG82: 570184.4429 | AH82: 586308.7861 | AI82: 602129.4075 | AJ82: 618285.4071 | AK82: 634876.9796
D83: Carbon (vehicle fuel) | E83: £ k | F83: 2039483.764 | H83: 29324.5398 | I83: 29907.86497 | J83: 30845.51877 | K83: 31206.76108 | L83: 31628.48692 | M83: 32068.99723 | N83: 32665.18947 | O83: 33353.10645 | P83: 34527.58731 | Q83: 35367.62315 | R83: 36294.20341 | S83: 40190.53519 | T83: 44905.83998 | U83: 49300.63073 | V83: 54321.43557 | W83: 59080.94682 | X83: 64566.95738 | Y83: 69513.01703 | Z83: 75297.19419 | AA83: 80650.86251 | AB83: 86624.3097 | AC83: 92314.0437 | AD83: 98667.94443 | AE83: 104372.8512 | AF83: 111008.0799 | AG83: 117099.131 | AH83: 123818.4926 | AI83: 130053.684 | AJ83: 137107.2082 | AK83: 143400.7209
D84: Roadworks Accidents | E84: £ k | F84: 6384.428729 | H84: 284.1595368 | I84: 284.0022562 | J84: 289.7642273 | K84: 158.5688178 | L84: 169.8432915 | M84: 177.3833655 | N84: 182.6675682 | O84: 186.5374845 | P84: 189.5906929 | Q84: 192.1539937 | R84: 194.423744 | S84: 196.5178448 | T84: 198.8195269 | U84: 201.0597032 | V84: 203.2636829 | W84: 205.446685 | X84: 207.6178602 | Y84: 209.5401428 | Z84: 211.4589601 | AA84: 213.3763113 | AB84: 215.2933947 | AC84: 217.2109267 | AD84: 218.8585101 | AE84: 220.5068203 | AF84: 222.1560098 | AG84: 223.8061679 | AH84: 225.4573455 | AI84: 226.8854571 | AJ84: 228.3143546 | AK84: 229.7440466
D85: Carbon (vehicles in roadworks) | E85: £ k | F85: 53.20314297 | H85: 2.526326588 | I85: 2.457427757 | J85: 2.427426372 | K85: 1.39238364 | L85: 1.45480233 | M85: 1.497057857 | N85: 1.527772168 | O85: 1.551439627 | P85: 1.57135772 | Q85: 1.589156702 | R85: 1.605766931 | S85: 1.621717218 | T85: 1.639896661 | U85: 1.657888899 | V85: 1.675787143 | W85: 1.693643002 | X85: 1.71148471 | Y85: 1.727322026 | Z85: 1.743164841 | AA85: 1.759017291 | AB85: 1.774881389 | AC85: 1.790758038 | AD85: 1.804396871 | AE85: 1.818045316 | AF85: 1.831703336 | AG85: 1.845370845 | AH85: 1.859047744 | AI85: 1.870869276 | AJ85: 1.882697704 | AK85: 1.894532963
D86: Roadworks time delays | E86: £ k | F86: 8772.733527 | H86: 370.5065754 | I86: 383.7217612 | J86: 397.5319696 | K86: 213.7999937 | L86: 231.3857958 | M86: 243.1234718 | N86: 251.2705004 | O86: 257.1593483 | P86: 261.7106706 | Q86: 265.4484749 | R86: 268.6919581 | S86: 271.6353726 | T86: 274.8304737 | U86: 277.9169262 | V86: 280.9381374 | W86: 283.920571 | X86: 286.8803647 | Y86: 289.5038128 | Z86: 292.1198704 | AA86: 294.732223 | AB86: 297.3431148 | AC86: 299.953911 | AD86: 302.1965967 | AE86: 304.4399768 | AF86: 306.6843596 | AG86: 308.9299298 | AH86: 311.1767972 | AI86: 313.1178074 | AJ86: 315.0598415 | AK86: 317.0029213
D87: Accidents | E87: £ k | F87: 2273714.247 | H87: 75790.4749 | I87: 75790.4749 | J87: 75790.4749 | K87: 75790.4749 | L87: 75790.4749 | M87: 75790.4749 | N87: 75790.4749 | O87: 75790.4749 | P87: 75790.4749 | Q87: 75790.4749 | R87: 75790.4749 | S87: 75790.4749 | T87: 75790.4749 | U87: 75790.4749 | V87: 75790.4749 | W87: 75790.4749 | X87: 75790.4749 | Y87: 75790.4749 | Z87: 75790.4749 | AA87: 75790.4749 | AB87: 75790.4749 | AC87: 75790.4749 | AD87: 75790.4749 | AE87: 75790.4749 | AF87: 75790.4749 | AG87: 75790.4749 | AH87: 75790.4749 | AI87: 75790.4749 | AJ87: 75790.4749 | AK87: 75790.4749
D88: Carbon (Embodied in materials) | E88: £ k | F88: 8376.850664 | H88: 229.37793 | I88: 232.7976664 | J88: 244.2733988 | K88: 134.1699799 | L88: 145.5969477 | M88: 153.3984983 | N88: 158.9986486 | O88: 163.2600206 | P88: 168.8432389 | Q88: 171.8020896 | R88: 174.4530513 | S88: 189.8607479 | T88: 207.340337 | U88: 222.6020777 | V88: 239.9854858 | W88: 255.1805723 | X88: 272.520622 | Y88: 287.6862512 | Z88: 305.0072929 | AA88: 320.1601788 | AB88: 337.4730405 | AC88: 352.6204936 | AD88: 369.92988 | AE88: 385.0750405 | AF88: 402.3829637 | AG88: 417.5271638 | AH88: 434.834475 | AI88: 449.9782749 | AJ88: 467.2853313 | AK88: 482.4289651
D89: Total HMAT costs | E89: £ k | F89: 74582097.94 | H89: =IF(H75="","",SUM(H81:H88)) -> 1244310.901 | I89: =IF(I75="","",SUM(I81:I88)) -> 1270929.843 | J89: 1299870.974 | K89: 1346835.071 | L89: 1401444.734 | M89: 1471198.023 | N89: 1552720.394 | O89: 1639232.405 | P89: 1723632.024 | Q89: 1819719.455 | R89: 1934179.171 | S89: 2041231.312 | T89: 2152526.401 | U89: 2263506.355 | V89: 2375863.726 | W89: 2487794.819 | X89: 2599877.499 | Y89: 2708632.561 | Z89: 2824265.704 | AA89: 2937933.725 | AB89: 3050997.522 | AC89: 3168394.167 | AD89: 3281193.071 | AE89: 3391306.614 | AF89: 3502245.414 | AG89: 3609372.47 | AH89: 3715894.614 | AI89: 3818930.55 | AJ89: 3923071.652 | AK89: 4024986.763
C91: Network Benefits | D91: Change in accident costs | E91: £ k | F91: =SUM(H91:BO91) -> -1140116.914 | H91: ='D1 Traffic'!F131 -> -34257.67568 | I91: ='D1 Traffic'!G131 -> -34372.96965 | J91: ='D1 Traffic'!H131 -> -34662.79291 | K91: ='D1 Traffic'!I131 -> -34951.56725 | L91: ='D1 Traffic'!J131 -> -35239.15807 | M91: ='D1 Traffic'!K131 -> -35525.4262 | N91: ='D1 Traffic'!L131 -> -35810.22777 | O91: ='D1 Traffic'!M131 -> -36104.50527 | P91: ='D1 Traffic'!N131 -> -36397.44707 | Q91: ='D1 Traffic'!O131 -> -36688.90658 | R91: ='D1 Traffic'!P131 -> -36978.73232 | S91: ='D1 Traffic'!Q131 -> -37266.76777 | T91: ='D1 Traffic'!R131 -> -37486.73529 | U91: ='D1 Traffic'!S131 -> -37702.07591 | V91: ='D1 Traffic'!T131 -> -37912.54786 | W91: ='D1 Traffic'!U131 -> -38117.90207 | X91: ='D1 Traffic'!V131 -> -38317.882 | Y91: ='D1 Traffic'!W131 -> -38568.01041 | Z91: ='D1 Traffic'!X131 -> -38814.33181 | AA91: ='D1 Traffic'!Y131 -> -39056.62437 | AB91: ='D1 Traffic'!Z131 -> -39294.65946 | AC91: ='D1 Traffic'!AA131 -> -39528.20142 | AD91: ='D1 Traffic'!AB131 -> -39825.02279 | AE91: ='D1 Traffic'!AC131 -> -40119.41771 | AF91: ='D1 Traffic'!AD131 -> -40411.19928 | AG91: ='D1 Traffic'!AE131 -> -40700.17461 | AH91: ='D1 Traffic'!AF131 -> -40986.14465 | AI91: ='D1 Traffic'!AG131 -> -41330.47959 | AJ91: ='D1 Traffic'!AH131 -> -41673.69428 | AK91: ='D1 Traffic'!AI131 -> -42015.63385 | AL91: ='D1 Traffic'!AJ131 ->  | AM91: ='D1 Traffic'!AK131 ->  | AN91: ='D1 Traffic'!AL131 ->  | AO91: ='D1 Traffic'!AM131 ->  | AP91: ='D1 Traffic'!AN131 ->  | AQ91: ='D1 Traffic'!AO131 ->  | AR91: ='D1 Traffic'!AP131 ->  | AS91: ='D1 Traffic'!AQ131 ->  | AT91: ='D1 Traffic'!AR131 ->  | AU91: ='D1 Traffic'!AS131 ->  | AV91: ='D1 Traffic'!AT131 ->  | AW91: ='D1 Traffic'!AU131 ->  | AX91: ='D1 Traffic'!AV131 ->  | AY91: ='D1 Traffic'!AW131 ->  | AZ91: ='D1 Traffic'!AX131 ->  | BA91: ='D1 Traffic'!AY131 ->  | BB91: ='D1 Traffic'!AZ131 ->  | BC91: ='D1 Traffic'!BA131 ->  | BD91: ='D1 Traffic'!BB131 ->  | BE91: ='D1 Traffic'!BC131 ->  | BF91: ='D1 Traffic'!BD131 ->  | BG91: ='D1 Traffic'!BE131 ->  | BH91: ='D1 Traffic'!BF131 ->  | BI91: ='D1 Traffic'!BG131 ->  | BJ91: ='D1 Traffic'!BH131 ->  | BK91: ='D1 Traffic'!BI131 ->  | BL91: ='D1 Traffic'!BJ131 ->  | BM91: ='D1 Traffic'!BK131 ->  | BN91: ='D1 Traffic'!BL131 ->  | BO91: ='D1 Traffic'!BM131 -> 
D92: Change in travel time costs | E92: £ k | F92: =SUM(H92:BO92) -> 5251955.594 | H92: ='D1 Traffic'!F276 -> 117698.9937 | I92: ='D1 Traffic'!G276 -> 120584.1748 | J92: ='D1 Traffic'!H276 -> 122982.0647 | K92: ='D1 Traffic'!I276 -> 125445.852 | L92: ='D1 Traffic'!J276 -> 128161.8655 | M92: ='D1 Traffic'!K276 -> 131119.0605 | N92: ='D1 Traffic'!L276 -> 134297.7605 | O92: ='D1 Traffic'!M276 -> 137724.547 | P92: ='D1 Traffic'!N276 -> 141371.4414 | Q92: ='D1 Traffic'!O276 -> 145171.6792 | R92: ='D1 Traffic'!P276 -> 149202.5408 | S92: ='D1 Traffic'!Q276 -> 153327.4251 | T92: ='D1 Traffic'!R276 -> 157845.8022 | U92: ='D1 Traffic'!S276 -> 162456.3894 | V92: ='D1 Traffic'!T276 -> 167203.0294 | W92: ='D1 Traffic'!U276 -> 172122.7958 | X92: ='D1 Traffic'!V276 -> 177276.2317 | Y92: ='D1 Traffic'!W276 -> 182431.2893 | Z92: ='D1 Traffic'!X276 -> 187726.7262 | AA92: ='D1 Traffic'!Y276 -> 193132.8786 | AB92: ='D1 Traffic'!Z276 -> 198634.8813 | AC92: ='D1 Traffic'!AA276 -> 204289.3365 | AD92: ='D1 Traffic'!AB276 -> 209834.3086 | AE92: ='D1 Traffic'!AC276 -> 215491.4756 | AF92: ='D1 Traffic'!AD276 -> 221243.1521 | AG92: ='D1 Traffic'!AE276 -> 227114.6494 | AH92: ='D1 Traffic'!AF276 -> 233117.0123 | AI92: ='D1 Traffic'!AG276 -> 238968.4726 | AJ92: ='D1 Traffic'!AH276 -> 244933.0969 | AK92: ='D1 Traffic'!AI276 -> 251046.6609 | AL92: ='D1 Traffic'!AJ276 ->  | AM92: ='D1 Traffic'!AK276 ->  | AN92: ='D1 Traffic'!AL276 ->  | AO92: ='D1 Traffic'!AM276 ->  | AP92: ='D1 Traffic'!AN276 ->  | AQ92: ='D1 Traffic'!AO276 ->  | AR92: ='D1 Traffic'!AP276 ->  | AS92: ='D1 Traffic'!AQ276 ->  | AT92: ='D1 Traffic'!AR276 ->  | AU92: ='D1 Traffic'!AS276 ->  | AV92: ='D1 Traffic'!AT276 ->  | AW92: ='D1 Traffic'!AU276 ->  | AX92: ='D1 Traffic'!AV276 ->  | AY92: ='D1 Traffic'!AW276 ->  | AZ92: ='D1 Traffic'!AX276 ->  | BA92: ='D1 Traffic'!AY276 ->  | BB92: ='D1 Traffic'!AZ276 ->  | BC92: ='D1 Traffic'!BA276 ->  | BD92: ='D1 Traffic'!BB276 ->  | BE92: ='D1 Traffic'!BC276 ->  | BF92: ='D1 Traffic'!BD276 ->  | BG92: ='D1 Traffic'!BE276 ->  | BH92: ='D1 Traffic'!BF276 ->  | BI92: ='D1 Traffic'!BG276 ->  | BJ92: ='D1 Traffic'!BH276 ->  | BK92: ='D1 Traffic'!BI276 ->  | BL92: ='D1 Traffic'!BJ276 ->  | BM92: ='D1 Traffic'!BK276 ->  | BN92: ='D1 Traffic'!BL276 ->  | BO92: ='D1 Traffic'!BM276 -> 
D93: Change in cost of CO2 emissions | E93: £ k | F93: =SUM(H93:BO93) -> 1430934.5 | H93: =IF(H1="","",IF(H83=0,0,H83*'D1 Traffic'!F133*CO2RatioNon2Urb+H83*'D1 Traffic'!F134*CO2RatioNon2Rur-H83)) -> 20584.33148 | I93: =IF(I1="","",IF(I83=0,0,I83*'D1 Traffic'!G133*CO2RatioNon2Urb+I83*'D1 Traffic'!G134*CO2RatioNon2Rur-I83)) -> 20992.68213 | J93: =IF(J1="","",IF(J83=0,0,J83*'D1 Traffic'!H133*CO2RatioNon2Urb+J83*'D1 Traffic'!H134*CO2RatioNon2Rur-J83)) -> 21650.1922 | K93: =IF(K1="","",IF(K83=0,0,K83*'D1 Traffic'!I133*CO2RatioNon2Urb+K83*'D1 Traffic'!I134*CO2RatioNon2Rur-K83)) -> 21903.10993 | L93: =IF(L1="","",IF(L83=0,0,L83*'D1 Traffic'!J133*CO2RatioNon2Urb+L83*'D1 Traffic'!J134*CO2RatioNon2Rur-L83)) -> 22198.47579 | M93: =IF(M1="","",IF(M83=0,0,M83*'D1 Traffic'!K133*CO2RatioNon2Urb+M83*'D1 Traffic'!K134*CO2RatioNon2Rur-M83)) -> 22507.02062 | N93: =IF(N1="","",IF(N83=0,0,N83*'D1 Traffic'!L133*CO2RatioNon2Urb+N83*'D1 Traffic'!L134*CO2RatioNon2Rur-N83)) -> 22924.81973 | O93: =IF(O1="","",IF(O83=0,0,O83*'D1 Traffic'!M133*CO2RatioNon2Urb+O83*'D1 Traffic'!M134*CO2RatioNon2Rur-O83)) -> 23406.98801 | P93: =IF(P1="","",IF(P83=0,0,P83*'D1 Traffic'!N133*CO2RatioNon2Urb+P83*'D1 Traffic'!N134*CO2RatioNon2Rur-P83)) -> 24230.60045 | Q93: =IF(Q1="","",IF(Q83=0,0,Q83*'D1 Traffic'!O133*CO2RatioNon2Urb+Q83*'D1 Traffic'!O134*CO2RatioNon2Rur-Q83)) -> 24819.48239 | R93: =IF(R1="","",IF(R83=0,0,R83*'D1 Traffic'!P133*CO2RatioNon2Urb+R83*'D1 Traffic'!P134*CO2RatioNon2Rur-R83)) -> 25469.07729 | S93: =IF(S1="","",IF(S83=0,0,S83*'D1 Traffic'!Q133*CO2RatioNon2Urb+S83*'D1 Traffic'!Q134*CO2RatioNon2Rur-S83)) -> 28202.59162 | T93: =IF(T1="","",IF(T83=0,0,T83*'D1 Traffic'!R133*CO2RatioNon2Urb+T83*'D1 Traffic'!R134*CO2RatioNon2Rur-T83)) -> 31510.63793 | U93: =IF(U1="","",IF(U83=0,0,U83*'D1 Traffic'!S133*CO2RatioNon2Urb+U83*'D1 Traffic'!S134*CO2RatioNon2Rur-U83)) -> 34593.63524 | V93: =IF(V1="","",IF(V83=0,0,V83*'D1 Traffic'!T133*CO2RatioNon2Urb+V83*'D1 Traffic'!T134*CO2RatioNon2Rur-V83)) -> 38115.75508 | W93: =IF(W1="","",IF(W83=0,0,W83*'D1 Traffic'!U133*CO2RatioNon2Urb+W83*'D1 Traffic'!U134*CO2RatioNon2Rur-W83)) -> 41454.3872 | X93: =IF(X1="","",IF(X83=0,0,X83*'D1 Traffic'!V133*CO2RatioNon2Urb+X83*'D1 Traffic'!V134*CO2RatioNon2Rur-X83)) -> 45302.62152 | Y93: =IF(Y1="","",IF(Y83=0,0,Y83*'D1 Traffic'!W133*CO2RatioNon2Urb+Y83*'D1 Traffic'!W134*CO2RatioNon2Rur-Y83)) -> 48772.00115 | Z93: =IF(Z1="","",IF(Z83=0,0,Z83*'D1 Traffic'!X133*CO2RatioNon2Urb+Z83*'D1 Traffic'!X134*CO2RatioNon2Rur-Z83)) -> 52829.2927 | AA93: =IF(AA1="","",IF(AA83=0,0,AA83*'D1 Traffic'!Y133*CO2RatioNon2Urb+AA83*'D1 Traffic'!Y134*CO2RatioNon2Rur-AA83)) -> 56584.40101 | AB93: =IF(AB1="","",IF(AB83=0,0,AB83*'D1 Traffic'!Z133*CO2RatioNon2Urb+AB83*'D1 Traffic'!Z134*CO2RatioNon2Rur-AB83)) -> 60774.21135 | AC93: =IF(AC1="","",IF(AC83=0,0,AC83*'D1 Traffic'!AA133*CO2RatioNon2Urb+AC83*'D1 Traffic'!AA134*CO2RatioNon2Rur-AC83)) -> 64764.83895 | AD93: =IF(AD1="","",IF(AD83=0,0,AD83*'D1 Traffic'!AB133*CO2RatioNon2Urb+AD83*'D1 Traffic'!AB134*CO2RatioNon2Rur-AD83)) -> 69221.56125 | AE93: =IF(AE1="","",IF(AE83=0,0,AE83*'D1 Traffic'!AC133*CO2RatioNon2Urb+AE83*'D1 Traffic'!AC134*CO2RatioNon2Rur-AE83)) -> 73222.86821 | AF93: =IF(AF1="","",IF(AF83=0,0,AF83*'D1 Traffic'!AD133*CO2RatioNon2Urb+AF83*'D1 Traffic'!AD134*CO2RatioNon2Rur-AF83)) -> 77876.73629 | AG93: =IF(AG1="","",IF(AG83=0,0,AG83*'D1 Traffic'!AE133*CO2RatioNon2Urb+AG83*'D1 Traffic'!AE134*CO2RatioNon2Rur-AG83)) -> 82148.73257 | AH93: =IF(AH1="","",IF(AH83=0,0,AH83*'D1 Traffic'!AF133*CO2RatioNon2Urb+AH83*'D1 Traffic'!AF134*CO2RatioNon2Rur-AH83)) -> 86861.4012 | AI93: =IF(AI1="","",IF(AI83=0,0,AI83*'D1 Traffic'!AG133*CO2RatioNon2Urb+AI83*'D1 Traffic'!AG134*CO2RatioNon2Rur-AI83)) -> 91234.5873 | AJ93: =IF(AJ1="","",IF(AJ83=0,0,AJ83*'D1 Traffic'!AH133*CO2RatioNon2Urb+AJ83*'D1 Traffic'!AH134*CO2RatioNon2Rur-AJ83)) -> 96181.76153 | AK93: =IF(AK1="","",IF(AK83=0,0,AK83*'D1 Traffic'!AI133*CO2RatioNon2Urb+AK83*'D1 Traffic'!AI134*CO2RatioNon2Rur-AK83)) -> 100595.6983 | AL93: =IF(AL1="","",IF(AL83=0,0,AL83*'D1 Traffic'!AJ133*CO2RatioNon2Urb+AL83*'D1 Traffic'!AJ134*CO2RatioNon2Rur-AL83)) ->  | AM93: =IF(AM1="","",IF(AM83=0,0,AM83*'D1 Traffic'!AK133*CO2RatioNon2Urb+AM83*'D1 Traffic'!AK134*CO2RatioNon2Rur-AM83)) ->  | AN93: =IF(AN1="","",IF(AN83=0,0,AN83*'D1 Traffic'!AL133*CO2RatioNon2Urb+AN83*'D1 Traffic'!AL134*CO2RatioNon2Rur-AN83)) ->  | AO93: =IF(AO1="","",IF(AO83=0,0,AO83*'D1 Traffic'!AM133*CO2RatioNon2Urb+AO83*'D1 Traffic'!AM134*CO2RatioNon2Rur-AO83)) ->  | AP93: =IF(AP1="","",IF(AP83=0,0,AP83*'D1 Traffic'!AN133*CO2RatioNon2Urb+AP83*'D1 Traffic'!AN134*CO2RatioNon2Rur-AP83)) ->  | AQ93: =IF(AQ1="","",IF(AQ83=0,0,AQ83*'D1 Traffic'!AO133*CO2RatioNon2Urb+AQ83*'D1 Traffic'!AO134*CO2RatioNon2Rur-AQ83)) ->  | AR93: =IF(AR1="","",IF(AR83=0,0,AR83*'D1 Traffic'!AP133*CO2RatioNon2Urb+AR83*'D1 Traffic'!AP134*CO2RatioNon2Rur-AR83)) ->  | AS93: =IF(AS1="","",IF(AS83=0,0,AS83*'D1 Traffic'!AQ133*CO2RatioNon2Urb+AS83*'D1 Traffic'!AQ134*CO2RatioNon2Rur-AS83)) ->  | AT93: =IF(AT1="","",IF(AT83=0,0,AT83*'D1 Traffic'!AR133*CO2RatioNon2Urb+AT83*'D1 Traffic'!AR134*CO2RatioNon2Rur-AT83)) ->  | AU93: =IF(AU1="","",IF(AU83=0,0,AU83*'D1 Traffic'!AS133*CO2RatioNon2Urb+AU83*'D1 Traffic'!AS134*CO2RatioNon2Rur-AU83)) ->  | AV93: =IF(AV1="","",IF(AV83=0,0,AV83*'D1 Traffic'!AT133*CO2RatioNon2Urb+AV83*'D1 Traffic'!AT134*CO2RatioNon2Rur-AV83)) ->  | AW93: =IF(AW1="","",IF(AW83=0,0,AW83*'D1 Traffic'!AU133*CO2RatioNon2Urb+AW83*'D1 Traffic'!AU134*CO2RatioNon2Rur-AW83)) ->  | AX93: =IF(AX1="","",IF(AX83=0,0,AX83*'D1 Traffic'!AV133*CO2RatioNon2Urb+AX83*'D1 Traffic'!AV134*CO2RatioNon2Rur-AX83)) ->  | AY93: =IF(AY1="","",IF(AY83=0,0,AY83*'D1 Traffic'!AW133*CO2RatioNon2Urb+AY83*'D1 Traffic'!AW134*CO2RatioNon2Rur-AY83)) ->  | AZ93: =IF(AZ1="","",IF(AZ83=0,0,AZ83*'D1 Traffic'!AX133*CO2RatioNon2Urb+AZ83*'D1 Traffic'!AX134*CO2RatioNon2Rur-AZ83)) ->  | BA93: =IF(BA1="","",IF(BA83=0,0,BA83*'D1 Traffic'!AY133*CO2RatioNon2Urb+BA83*'D1 Traffic'!AY134*CO2RatioNon2Rur-BA83)) ->  | BB93: =IF(BB1="","",IF(BB83=0,0,BB83*'D1 Traffic'!AZ133*CO2RatioNon2Urb+BB83*'D1 Traffic'!AZ134*CO2RatioNon2Rur-BB83)) ->  | BC93: =IF(BC1="","",IF(BC83=0,0,BC83*'D1 Traffic'!BA133*CO2RatioNon2Urb+BC83*'D1 Traffic'!BA134*CO2RatioNon2Rur-BC83)) ->  | BD93: =IF(BD1="","",IF(BD83=0,0,BD83*'D1 Traffic'!BB133*CO2RatioNon2Urb+BD83*'D1 Traffic'!BB134*CO2RatioNon2Rur-BD83)) ->  | BE93: =IF(BE1="","",IF(BE83=0,0,BE83*'D1 Traffic'!BC133*CO2RatioNon2Urb+BE83*'D1 Traffic'!BC134*CO2RatioNon2Rur-BE83)) ->  | BF93: =IF(BF1="","",IF(BF83=0,0,BF83*'D1 Traffic'!BD133*CO2RatioNon2Urb+BF83*'D1 Traffic'!BD134*CO2RatioNon2Rur-BF83)) ->  | BG93: =IF(BG1="","",IF(BG83=0,0,BG83*'D1 Traffic'!BE133*CO2RatioNon2Urb+BG83*'D1 Traffic'!BE134*CO2RatioNon2Rur-BG83)) ->  | BH93: =IF(BH1="","",IF(BH83=0,0,BH83*'D1 Traffic'!BF133*CO2RatioNon2Urb+BH83*'D1 Traffic'!BF134*CO2RatioNon2Rur-BH83)) ->  | BI93: =IF(BI1="","",IF(BI83=0,0,BI83*'D1 Traffic'!BG133*CO2RatioNon2Urb+BI83*'D1 Traffic'!BG134*CO2RatioNon2Rur-BI83)) ->  | BJ93: =IF(BJ1="","",IF(BJ83=0,0,BJ83*'D1 Traffic'!BH133*CO2RatioNon2Urb+BJ83*'D1 Traffic'!BH134*CO2RatioNon2Rur-BJ83)) ->  | BK93: =IF(BK1="","",IF(BK83=0,0,BK83*'D1 Traffic'!BI133*CO2RatioNon2Urb+BK83*'D1 Traffic'!BI134*CO2RatioNon2Rur-BK83)) ->  | BL93: =IF(BL1="","",IF(BL83=0,0,BL83*'D1 Traffic'!BJ133*CO2RatioNon2Urb+BL83*'D1 Traffic'!BJ134*CO2RatioNon2Rur-BL83)) ->  | BM93: =IF(BM1="","",IF(BM83=0,0,BM83*'D1 Traffic'!BK133*CO2RatioNon2Urb+BM83*'D1 Traffic'!BK134*CO2RatioNon2Rur-BM83)) ->  | BN93: =IF(BN1="","",IF(BN83=0,0,BN83*'D1 Traffic'!BL133*CO2RatioNon2Urb+BN83*'D1 Traffic'!BL134*CO2RatioNon2Rur-BN83)) ->  | BO93: =IF(BO1="","",IF(BO83=0,0,BO83*'D1 Traffic'!BM133*CO2RatioNon2Urb+BO83*'D1 Traffic'!BM134*CO2RatioNon2Rur-BO83)) -> 
D94: Total Network Benefits costs | E94: £ k | F94: =SUM(H94:BO94) -> 5542773.181 | H94: =IF(H75="","",SUM(H91:H93)) -> 104025.6495 | I94: =IF(I75="","",SUM(I91:I93)) -> 107203.8872 | J94: 109969.464 | K94: 112397.3946 | L94: 115121.1832 | M94: 118100.6549 | N94: 121412.3525 | O94: 125027.0297 | P94: 129204.5948 | Q94: 133302.255 | R94: 137692.8858 | S94: 144263.249 | T94: 151869.7048 | U94: 159347.9487 | V94: 167406.2367 | W94: 175459.2809 | X94: 184260.9712 | Y94: 192635.28 | Z94: 201741.6871 | AA94: 210660.6552 | AB94: 220114.4331 | AC94: 229525.9741 | AD94: 239230.8471 | AE94: 248594.9261 | AF94: 258708.6891 | AG94: 268563.2074 | AH94: 278992.2688 | AI94: 288872.5803 | AJ94: 299441.1642 | AK94: 309626.7254
C96: Public Income | D96: Congestion charge | E96: £ k | F96: =SUM(H96:BO96) -> 18900794.22 | H96: =IF(H1="","",'D1 Traffic'!F303) -> 63107.44534 | I96: =IF(I1="","",'D1 Traffic'!G303) -> 69905.37935 | J96: =IF(J1="","",'D1 Traffic'!H303) -> 79146.8705 | K96: =IF(K1="","",'D1 Traffic'!I303) -> 89610.08678 | L96: =IF(L1="","",'D1 Traffic'!J303) -> 101456.5402 | M96: =IF(M1="","",'D1 Traffic'!K303) -> 114869.0949 | N96: =IF(N1="","",'D1 Traffic'!L303) -> 130054.7892 | O96: =IF(O1="","",'D1 Traffic'!M303) -> 147248.0323 | P96: =IF(P1="","",'D1 Traffic'!N303) -> 166714.2222 | Q96: =IF(Q1="","",'D1 Traffic'!O303) -> 188753.8424 | R96: =IF(R1="","",'D1 Traffic'!P303) -> 213707.1004 | S96: =IF(S1="","",'D1 Traffic'!Q303) -> 241959.179 | T96: =IF(T1="","",'D1 Traffic'!R303) -> 273946.1825 | U96: =IF(U1="","",'D1 Traffic'!S303) -> 310161.8678 | V96: =IF(V1="","",'D1 Traffic'!T303) -> 351165.2668 | W96: =IF(W1="","",'D1 Traffic'!U303) -> 397589.315 | X96: =IF(X1="","",'D1 Traffic'!V303) -> 450150.6225 | Y96: =IF(Y1="","",'D1 Traffic'!W303) -> 509660.5348 | Z96: =IF(Z1="","",'D1 Traffic'!X303) -> 577037.6574 | AA96: =IF(AA1="","",'D1 Traffic'!Y303) -> 653322.0358 | AB96: =IF(AB1="","",'D1 Traffic'!Z303) -> 739691.2089 | AC96: =IF(AC1="","",'D1 Traffic'!AA303) -> 837478.3867 | AD96: =IF(AD1="","",'D1 Traffic'!AB303) -> 948193.0294 | AE96: =IF(AE1="","",'D1 Traffic'!AC303) -> 1073544.148 | AF96: =IF(AF1="","",'D1 Traffic'!AD303) -> 1215466.684 | AG96: =IF(AG1="","",'D1 Traffic'!AE303) -> 1376151.38 | AH96: =IF(AH1="","",'D1 Traffic'!AF303) -> 1558078.592 | AI96: =IF(AI1="","",'D1 Traffic'!AG303) -> 1764056.582 | AJ96: =IF(AJ1="","",'D1 Traffic'!AH303) -> 1997264.862 | AK96: =IF(AK1="","",'D1 Traffic'!AI303) -> 2261303.277 | AL96: =IF(AL1="","",'D1 Traffic'!AJ303) ->  | AM96: =IF(AM1="","",'D1 Traffic'!AK303) ->  | AN96: =IF(AN1="","",'D1 Traffic'!AL303) ->  | AO96: =IF(AO1="","",'D1 Traffic'!AM303) ->  | AP96: =IF(AP1="","",'D1 Traffic'!AN303) ->  | AQ96: =IF(AQ1="","",'D1 Traffic'!AO303) ->  | AR96: =IF(AR1="","",'D1 Traffic'!AP303) ->  | AS96: =IF(AS1="","",'D1 Traffic'!AQ303) ->  | AT96: =IF(AT1="","",'D1 Traffic'!AR303) ->  | AU96: =IF(AU1="","",'D1 Traffic'!AS303) ->  | AV96: =IF(AV1="","",'D1 Traffic'!AT303) ->  | AW96: =IF(AW1="","",'D1 Traffic'!AU303) ->  | AX96: =IF(AX1="","",'D1 Traffic'!AV303) ->  | AY96: =IF(AY1="","",'D1 Traffic'!AW303) ->  | AZ96: =IF(AZ1="","",'D1 Traffic'!AX303) ->  | BA96: =IF(BA1="","",'D1 Traffic'!AY303) ->  | BB96: =IF(BB1="","",'D1 Traffic'!AZ303) ->  | BC96: =IF(BC1="","",'D1 Traffic'!BA303) ->  | BD96: =IF(BD1="","",'D1 Traffic'!BB303) ->  | BE96: =IF(BE1="","",'D1 Traffic'!BC303) ->  | BF96: =IF(BF1="","",'D1 Traffic'!BD303) ->  | BG96: =IF(BG1="","",'D1 Traffic'!BE303) ->  | BH96: =IF(BH1="","",'D1 Traffic'!BF303) ->  | BI96: =IF(BI1="","",'D1 Traffic'!BG303) ->  | BJ96: =IF(BJ1="","",'D1 Traffic'!BH303) ->  | BK96: =IF(BK1="","",'D1 Traffic'!BI303) ->  | BL96: =IF(BL1="","",'D1 Traffic'!BJ303) ->  | BM96: =IF(BM1="","",'D1 Traffic'!BK303) ->  | BN96: =IF(BN1="","",'D1 Traffic'!BL303) ->  | BO96: =IF(BO1="","",'D1 Traffic'!BM303) -> 
D97: Tolls | E97: £ k | F97: =SUM(H97:BO97) -> 4681758.735 | H97: =IF(H1="","",'D1 Traffic'!F331) -> 15296.43933 | I97: =IF(I1="","",'D1 Traffic'!G331) -> 16956.94906 | J97: =IF(J1="","",'D1 Traffic'!H331) -> 19211.34607 | K97: =IF(K1="","",'D1 Traffic'!I331) -> 21766.08356 | L97: =IF(L1="","",'D1 Traffic'!J331) -> 24661.25988 | M97: =IF(M1="","",'D1 Traffic'!K331) -> 27942.33863 | N97: =IF(N1="","",'D1 Traffic'!L331) -> 31660.86826 | O97: =IF(O1="","",'D1 Traffic'!M331) -> 35875.29825 | P97: =IF(P1="","",'D1 Traffic'!N331) -> 40651.90507 | Q97: =IF(Q1="","",'D1 Traffic'!O331) -> 46065.84274 | R97: =IF(R1="","",'D1 Traffic'!P331) -> 52202.3346 | S97: =IF(S1="","",'D1 Traffic'!Q331) -> 59158.02556 | T97: =IF(T1="","",'D1 Traffic'!R331) -> 67042.51628 | U97: =IF(U1="","",'D1 Traffic'!S331) -> 75980.10398 | V97: =IF(V1="","",'D1 Traffic'!T331) -> 86111.75766 | W97: =IF(W1="","",'D1 Traffic'!U331) -> 97597.3594 | X97: =IF(X1="","",'D1 Traffic'!V331) -> 110618.2477 | Y97: =IF(Y1="","",'D1 Traffic'!W331) -> 125380.1039 | Z97: =IF(Z1="","",'D1 Traffic'!X331) -> 142116.2269 | AA97: =IF(AA1="","",'D1 Traffic'!Y331) -> 161091.251 | AB97: =IF(AB1="","",'D1 Traffic'!Z331) -> 182605.3638 | AC97: =IF(AC1="","",'D1 Traffic'!AA331) -> 206999.0943 | AD97: =IF(AD1="","",'D1 Traffic'!AB331) -> 234658.747 | AE97: =IF(AE1="","",'D1 Traffic'!AC331) -> 266022.5694 | AF97: =IF(AF1="","",'D1 Traffic'!AD331) -> 301587.7532 | AG97: =IF(AG1="","",'D1 Traffic'!AE331) -> 341918.3808 | AH97: =IF(AH1="","",'D1 Traffic'!AF331) -> 387654.4457 | AI97: =IF(AI1="","",'D1 Traffic'!AG331) -> 439522.0927 | AJ97: =IF(AJ1="","",'D1 Traffic'!AH331) -> 498345.2425 | AK97: =IF(AK1="","",'D1 Traffic'!AI331) -> 565058.7881 | AL97: =IF(AL1="","",'D1 Traffic'!AJ331) ->  | AM97: =IF(AM1="","",'D1 Traffic'!AK331) ->  | AN97: =IF(AN1="","",'D1 Traffic'!AL331) ->  | AO97: =IF(AO1="","",'D1 Traffic'!AM331) ->  | AP97: =IF(AP1="","",'D1 Traffic'!AN331) ->  | AQ97: =IF(AQ1="","",'D1 Traffic'!AO331) ->  | AR97: =IF(AR1="","",'D1 Traffic'!AP331) ->  | AS97: =IF(AS1="","",'D1 Traffic'!AQ331) ->  | AT97: =IF(AT1="","",'D1 Traffic'!AR331) ->  | AU97: =IF(AU1="","",'D1 Traffic'!AS331) ->  | AV97: =IF(AV1="","",'D1 Traffic'!AT331) ->  | AW97: =IF(AW1="","",'D1 Traffic'!AU331) ->  | AX97: =IF(AX1="","",'D1 Traffic'!AV331) ->  | AY97: =IF(AY1="","",'D1 Traffic'!AW331) ->  | AZ97: =IF(AZ1="","",'D1 Traffic'!AX331) ->  | BA97: =IF(BA1="","",'D1 Traffic'!AY331) ->  | BB97: =IF(BB1="","",'D1 Traffic'!AZ331) ->  | BC97: =IF(BC1="","",'D1 Traffic'!BA331) ->  | BD97: =IF(BD1="","",'D1 Traffic'!BB331) ->  | BE97: =IF(BE1="","",'D1 Traffic'!BC331) ->  | BF97: =IF(BF1="","",'D1 Traffic'!BD331) ->  | BG97: =IF(BG1="","",'D1 Traffic'!BE331) ->  | BH97: =IF(BH1="","",'D1 Traffic'!BF331) ->  | BI97: =IF(BI1="","",'D1 Traffic'!BG331) ->  | BJ97: =IF(BJ1="","",'D1 Traffic'!BH331) ->  | BK97: =IF(BK1="","",'D1 Traffic'!BI331) ->  | BL97: =IF(BL1="","",'D1 Traffic'!BJ331) ->  | BM97: =IF(BM1="","",'D1 Traffic'!BK331) ->  | BN97: =IF(BN1="","",'D1 Traffic'!BL331) ->  | BO97: =IF(BO1="","",'D1 Traffic'!BM331) -> 
D98: Total Public Income | E98: £ k | F98: =SUM(H98:BO98) -> 23582552.95 | H98: =IF(H75="","",SUM(H96:H97)) -> 78403.88467 | I98: =IF(I75="","",SUM(I96:I97)) -> 86862.32841 | J98: 98358.21657 | K98: 111376.1703 | L98: 126117.8001 | M98: 142811.4335 | N98: 161715.6575 | O98: 183123.3306 | P98: 207366.1273 | Q98: 234819.6851 | R98: 265909.435 | S98: 301117.2046 | T98: 340988.6988 | U98: 386141.9718 | V98: 437277.0244 | W98: 495186.6744 | X98: 560768.8702 | Y98: 635040.6386 | Z98: 719153.8844 | AA98: 814413.2868 | AB98: 922296.5727 | AC98: 1044477.481 | AD98: 1182851.776 | AE98: 1339566.717 | AF98: 1517054.437 | AG98: 1718069.761 | AH98: 1945733.038 | AI98: 2203578.675 | AJ98: 2495610.105 | AK98: 2826362.065
C100: Economic Impacts | D100: aGVA | E100: £ k | F100: =SUM(H100:BO100) -> 98907730.09 | H100: =D1_aGVA_Base*1000 -> 2619492.887 | I100: =IF(I$1="","",H100*(1+GR!I88)) -> 2658952.927 | J100: =IF(J$1="","",I100*(1+GR!J88)) -> 2699900.803 | K100: =IF(K$1="","",J100*(1+GR!K88)) -> 2741479.275 | L100: =IF(L$1="","",K100*(1+GR!L88)) -> 2783698.056 | M100: =IF(M$1="","",L100*(1+GR!M88)) -> 2826567.006 | N100: =IF(N$1="","",M100*(1+GR!N88)) -> 2870096.138 | O100: =IF(O$1="","",N100*(1+GR!O88)) -> 2914295.618 | P100: =IF(P$1="","",O100*(1+GR!P88)) -> 2959175.771 | Q100: =IF(Q$1="","",P100*(1+GR!Q88)) -> 3004747.078 | R100: =IF(R$1="","",Q100*(1+GR!R88)) -> 3051020.183 | S100: =IF(S$1="","",R100*(1+GR!S88)) -> 3098005.893 | T100: =IF(T$1="","",S100*(1+GR!T88)) -> 3145715.184 | U100: =IF(U$1="","",T100*(1+GR!U88)) -> 3194159.198 | V100: =IF(V$1="","",U100*(1+GR!V88)) -> 3243349.25 | W100: =IF(W$1="","",V100*(1+GR!W88)) -> 3293296.828 | X100: =IF(X$1="","",W100*(1+GR!X88)) -> 3344013.599 | Y100: =IF(Y$1="","",X100*(1+GR!Y88)) -> 3395511.409 | Z100: =IF(Z$1="","",Y100*(1+GR!Z88)) -> 3447802.284 | AA100: =IF(AA$1="","",Z100*(1+GR!AA88)) -> 3500898.44 | AB100: =IF(AB$1="","",AA100*(1+GR!AB88)) -> 3554812.276 | AC100: =IF(AC$1="","",AB100*(1+GR!AC88)) -> 3609556.385 | AD100: =IF(AD$1="","",AC100*(1+GR!AD88)) -> 3665143.553 | AE100: =IF(AE$1="","",AD100*(1+GR!AE88)) -> 3721586.764 | AF100: =IF(AF$1="","",AE100*(1+GR!AF88)) -> 3778899.2 | AG100: =IF(AG$1="","",AF100*(1+GR!AG88)) -> 3837094.247 | AH100: =IF(AH$1="","",AG100*(1+GR!AH88)) -> 3896185.499 | AI100: =IF(AI$1="","",AH100*(1+GR!AI88)) -> 3956186.756 | AJ100: =IF(AJ$1="","",AI100*(1+GR!AJ88)) -> 4017112.032 | AK100: =IF(AK$1="","",AJ100*(1+GR!AK88)) -> 4078975.557 | AL100: =IF(AL$1="","",AK100*(1+GR!AL88)) ->  | AM100: =IF(AM$1="","",AL100*(1+GR!AM88)) ->  | AN100: =IF(AN$1="","",AM100*(1+GR!AN88)) ->  | AO100: =IF(AO$1="","",AN100*(1+GR!AO88)) ->  | AP100: =IF(AP$1="","",AO100*(1+GR!AP88)) ->  | AQ100: =IF(AQ$1="","",AP100*(1+GR!AQ88)) ->  | AR100: =IF(AR$1="","",AQ100*(1+GR!AR88)) ->  | AS100: =IF(AS$1="","",AR100*(1+GR!AS88)) ->  | AT100: =IF(AT$1="","",AS100*(1+GR!AT88)) ->  | AU100: =IF(AU$1="","",AT100*(1+GR!AU88)) ->  | AV100: =IF(AV$1="","",AU100*(1+GR!AV88)) ->  | AW100: =IF(AW$1="","",AV100*(1+GR!AW88)) ->  | AX100: =IF(AX$1="","",AW100*(1+GR!AX88)) ->  | AY100: =IF(AY$1="","",AX100*(1+GR!AY88)) ->  | AZ100: =IF(AZ$1="","",AY100*(1+GR!AZ88)) ->  | BA100: =IF(BA$1="","",AZ100*(1+GR!BA88)) ->  | BB100: =IF(BB$1="","",BA100*(1+GR!BB88)) ->  | BC100: =IF(BC$1="","",BB100*(1+GR!BC88)) ->  | BD100: =IF(BD$1="","",BC100*(1+GR!BD88)) ->  | BE100: =IF(BE$1="","",BD100*(1+GR!BE88)) ->  | BF100: =IF(BF$1="","",BE100*(1+GR!BF88)) ->  | BG100: =IF(BG$1="","",BF100*(1+GR!BG88)) ->  | BH100: =IF(BH$1="","",BG100*(1+GR!BH88)) ->  | BI100: =IF(BI$1="","",BH100*(1+GR!BI88)) ->  | BJ100: =IF(BJ$1="","",BI100*(1+GR!BJ88)) ->  | BK100: =IF(BK$1="","",BJ100*(1+GR!BK88)) ->  | BL100: =IF(BL$1="","",BK100*(1+GR!BL88)) ->  | BM100: =IF(BM$1="","",BL100*(1+GR!BM88)) ->  | BN100: =IF(BN$1="","",BM100*(1+GR!BN88)) ->  | BO100: =IF(BO$1="","",BN100*(1+GR!BO88)) -> 
D101: Per Capita aGVA | E101: £ | H101: =IFERROR((H100*1000)/H106,"") -> 58635.10112 | I101: =IF(I$1="","",IFERROR((I100*1000)/I106,"")) -> 58947.53238 | J101: =IF(J$1="","",IFERROR((J100*1000)/J106,"")) -> 59268.56557 | K101: 59591.34715 | L101: 59915.88662 | M101: 60242.19355 | N101: 60570.27759 | O101: 60900.14839 | P101: 61231.8157 | Q101: 61565.2893 | R101: 61900.57902 | S101: 62237.69476 | T101: 62576.64646 | U101: 62917.44412 | V101: 63260.09779 | W101: 63604.61758 | X101: 63951.01366 | Y101: 64299.29624 | Z101: 64649.47559 | AA101: 65001.56205 | AB101: 65355.566 | AC101: 65711.49789 | AD101: 66069.36821 | AE101: 66429.18753 | AF101: 66790.96645 | AG101: 67154.71564 | AH101: 67520.44585 | AI101: 67888.16786 | AJ101: 68257.8925 | AK101: 68629.63071
D102: Tax Receipts from income | E102: £ k | F102: =SUM(H102:BO102) -> 15951171.89 | H102: =D1_TaxReceip_Base -> 422454.1527 | I102: =IF(I$1="","",H102*(1+GR!I90)) -> 428818.002 | J102: =IF(J$1="","",I102*(1+GR!J90)) -> 435421.7992 | K102: =IF(K$1="","",J102*(1+GR!K90)) -> 442127.295 | L102: =IF(L$1="","",K102*(1+GR!L90)) -> 448936.0553 | M102: =IF(M$1="","",L102*(1+GR!M90)) -> 455849.6705 | N102: =IF(N$1="","",M102*(1+GR!N90)) -> 462869.7555 | O102: =IF(O$1="","",N102*(1+GR!O90)) -> 469997.9497 | P102: =IF(P$1="","",O102*(1+GR!P90)) -> 477235.9181 | Q102: =IF(Q$1="","",P102*(1+GR!Q90)) -> 484585.3513 | R102: =IF(R$1="","",Q102*(1+GR!R90)) -> 492047.9657 | S102: =IF(S$1="","",R102*(1+GR!S90)) -> 499625.5044 | T102: =IF(T$1="","",S102*(1+GR!T90)) -> 507319.7371 | U102: =IF(U$1="","",T102*(1+GR!U90)) -> 515132.4611 | V102: =IF(V$1="","",U102*(1+GR!V90)) -> 523065.501 | W102: =IF(W$1="","",V102*(1+GR!W90)) -> 531120.7097 | X102: =IF(X$1="","",W102*(1+GR!X90)) -> 539299.9686 | Y102: =IF(Y$1="","",X102*(1+GR!Y90)) -> 547605.1881 | Z102: =IF(Z$1="","",Y102*(1+GR!Z90)) -> 556038.308 | AA102: =IF(AA$1="","",Z102*(1+GR!AA90)) -> 564601.298 | AB102: =IF(AB$1="","",AA102*(1+GR!AB90)) -> 573296.158 | AC102: =IF(AC$1="","",AB102*(1+GR!AC90)) -> 582124.9188 | AD102: =IF(AD$1="","",AC102*(1+GR!AD90)) -> 591089.6425 | AE102: =IF(AE$1="","",AD102*(1+GR!AE90)) -> 600192.423 | AF102: =IF(AF$1="","",AE102*(1+GR!AF90)) -> 609435.3864 | AG102: =IF(AG$1="","",AF102*(1+GR!AG90)) -> 618820.6913 | AH102: =IF(AH$1="","",AG102*(1+GR!AH90)) -> 628350.53 | AI102: =IF(AI$1="","",AH102*(1+GR!AI90)) -> 638027.1281 | AJ102: =IF(AJ$1="","",AI102*(1+GR!AJ90)) -> 647852.7459 | AK102: =IF(AK$1="","",AJ102*(1+GR!AK90)) -> 657829.6782 | AL102: =IF(AL$1="","",AK102*(1+GR!AL90)) ->  | AM102: =IF(AM$1="","",AL102*(1+GR!AM90)) ->  | AN102: =IF(AN$1="","",AM102*(1+GR!AN90)) ->  | AO102: =IF(AO$1="","",AN102*(1+GR!AO90)) ->  | AP102: =IF(AP$1="","",AO102*(1+GR!AP90)) ->  | AQ102: =IF(AQ$1="","",AP102*(1+GR!AQ90)) ->  | AR102: =IF(AR$1="","",AQ102*(1+GR!AR90)) ->  | AS102: =IF(AS$1="","",AR102*(1+GR!AS90)) ->  | AT102: =IF(AT$1="","",AS102*(1+GR!AT90)) ->  | AU102: =IF(AU$1="","",AT102*(1+GR!AU90)) ->  | AV102: =IF(AV$1="","",AU102*(1+GR!AV90)) ->  | AW102: =IF(AW$1="","",AV102*(1+GR!AW90)) ->  | AX102: =IF(AX$1="","",AW102*(1+GR!AX90)) ->  | AY102: =IF(AY$1="","",AX102*(1+GR!AY90)) ->  | AZ102: =IF(AZ$1="","",AY102*(1+GR!AZ90)) ->  | BA102: =IF(BA$1="","",AZ102*(1+GR!BA90)) ->  | BB102: =IF(BB$1="","",BA102*(1+GR!BB90)) ->  | BC102: =IF(BC$1="","",BB102*(1+GR!BC90)) ->  | BD102: =IF(BD$1="","",BC102*(1+GR!BD90)) ->  | BE102: =IF(BE$1="","",BD102*(1+GR!BE90)) ->  | BF102: =IF(BF$1="","",BE102*(1+GR!BF90)) ->  | BG102: =IF(BG$1="","",BF102*(1+GR!BG90)) ->  | BH102: =IF(BH$1="","",BG102*(1+GR!BH90)) ->  | BI102: =IF(BI$1="","",BH102*(1+GR!BI90)) ->  | BJ102: =IF(BJ$1="","",BI102*(1+GR!BJ90)) ->  | BK102: =IF(BK$1="","",BJ102*(1+GR!BK90)) ->  | BL102: =IF(BL$1="","",BK102*(1+GR!BL90)) ->  | BM102: =IF(BM$1="","",BL102*(1+GR!BM90)) ->  | BN102: =IF(BN$1="","",BM102*(1+GR!BN90)) ->  | BO102: =IF(BO$1="","",BN102*(1+GR!BO90)) -> 
D103: VAT | E103: £ k | F103: =IFERROR(SUM(H103:BO103),0) -> 2871603.117 | H103: =D1_VAT_Base -> 76052.13396 | I103: =IF(I$1="","",H103*(1+GR!I91)) -> 77197.78331 | J103: =IF(J$1="","",I103*(1+GR!J91)) -> 78386.62917 | K103: =IF(K$1="","",J103*(1+GR!K91)) -> 79593.78326 | L103: =IF(L$1="","",K103*(1+GR!L91)) -> 80819.52752 | M103: =IF(M$1="","",L103*(1+GR!M91)) -> 82064.14824 | N103: =IF(N$1="","",M103*(1+GR!N91)) -> 83327.93613 | O103: =IF(O$1="","",N103*(1+GR!O91)) -> 84611.18634 | P103: =IF(P$1="","",O103*(1+GR!P91)) -> 85914.19861 | Q103: =IF(Q$1="","",P103*(1+GR!Q91)) -> 87237.27727 | R103: =IF(R$1="","",Q103*(1+GR!R91)) -> 88580.73134 | S103: =IF(S$1="","",R103*(1+GR!S91)) -> 89944.8746 | T103: =IF(T$1="","",S103*(1+GR!T91)) -> 91330.02567 | U103: =IF(U$1="","",T103*(1+GR!U91)) -> 92736.50807 | V103: =IF(V$1="","",U103*(1+GR!V91)) -> 94164.65029 | W103: =IF(W$1="","",V103*(1+GR!W91)) -> 95614.78591 | X103: =IF(X$1="","",W103*(1+GR!X91)) -> 97087.25361 | Y103: =IF(Y$1="","",X103*(1+GR!Y91)) -> 98582.39732 | Z103: =IF(Z$1="","",Y103*(1+GR!Z91)) -> 100100.5662 | AA103: =IF(AA$1="","",Z103*(1+GR!AA91)) -> 101642.115 | AB103: =IF(AB$1="","",AA103*(1+GR!AB91)) -> 103207.4035 | AC103: =IF(AC$1="","",AB103*(1+GR!AC91)) -> 104796.7975 | AD103: =IF(AD$1="","",AC103*(1+GR!AD91)) -> 106410.6682 | AE103: =IF(AE$1="","",AD103*(1+GR!AE91)) -> 108049.3925 | AF103: =IF(AF$1="","",AE103*(1+GR!AF91)) -> 109713.3532 | AG103: =IF(AG$1="","",AF103*(1+GR!AG91)) -> 111402.9388 | AH103: =IF(AH$1="","",AG103*(1+GR!AH91)) -> 113118.5441 | AI103: =IF(AI$1="","",AH103*(1+GR!AI91)) -> 114860.5696 | AJ103: =IF(AJ$1="","",AI103*(1+GR!AJ91)) -> 116629.4224 | AK103: =IF(AK$1="","",AJ103*(1+GR!AK91)) -> 118425.5155 | AL103: =IF(AL$1="","",AK103*(1+GR!AL91)) ->  | AM103: =IF(AM$1="","",AL103*(1+GR!AM91)) ->  | AN103: =IF(AN$1="","",AM103*(1+GR!AN91)) ->  | AO103: =IF(AO$1="","",AN103*(1+GR!AO91)) ->  | AP103: =IF(AP$1="","",AO103*(1+GR!AP91)) ->  | AQ103: =IF(AQ$1="","",AP103*(1+GR!AQ91)) ->  | AR103: =IF(AR$1="","",AQ103*(1+GR!AR91)) ->  | AS103: =IF(AS$1="","",AR103*(1+GR!AS91)) ->  | AT103: =IF(AT$1="","",AS103*(1+GR!AT91)) ->  | AU103: =IF(AU$1="","",AT103*(1+GR!AU91)) ->  | AV103: =IF(AV$1="","",AU103*(1+GR!AV91)) ->  | AW103: =IF(AW$1="","",AV103*(1+GR!AW91)) ->  | AX103: =IF(AX$1="","",AW103*(1+GR!AX91)) ->  | AY103: =IF(AY$1="","",AX103*(1+GR!AY91)) ->  | AZ103: =IF(AZ$1="","",AY103*(1+GR!AZ91)) ->  | BA103: =IF(BA$1="","",AZ103*(1+GR!BA91)) ->  | BB103: =IF(BB$1="","",BA103*(1+GR!BB91)) ->  | BC103: =IF(BC$1="","",BB103*(1+GR!BC91)) ->  | BD103: =IF(BD$1="","",BC103*(1+GR!BD91)) ->  | BE103: =IF(BE$1="","",BD103*(1+GR!BE91)) ->  | BF103: =IF(BF$1="","",BE103*(1+GR!BF91)) ->  | BG103: =IF(BG$1="","",BF103*(1+GR!BG91)) ->  | BH103: =IF(BH$1="","",BG103*(1+GR!BH91)) ->  | BI103: =IF(BI$1="","",BH103*(1+GR!BI91)) ->  | BJ103: =IF(BJ$1="","",BI103*(1+GR!BJ91)) ->  | BK103: =IF(BK$1="","",BJ103*(1+GR!BK91)) ->  | BL103: =IF(BL$1="","",BK103*(1+GR!BL91)) ->  | BM103: =IF(BM$1="","",BL103*(1+GR!BM91)) ->  | BN103: =IF(BN$1="","",BM103*(1+GR!BN91)) ->  | BO103: =IF(BO$1="","",BN103*(1+GR!BO91)) -> 
D104: NIC | E104: £ k | F104: =SUM(H104:BO104) -> 2493712.561 | H104: =D1_NIC_Base -> 66044.0019 | I104: =IF(I$1="","",H104*(1+GR!I92)) -> 67038.88874 | J104: =IF(J$1="","",I104*(1+GR!J92)) -> 68071.28763 | K104: =IF(K$1="","",J104*(1+GR!K92)) -> 69119.58546 | L104: =IF(L$1="","",K104*(1+GR!L92)) -> 70184.02708 | M104: =IF(M$1="","",L104*(1+GR!M92)) -> 71264.86109 | N104: =IF(N$1="","",M104*(1+GR!N92)) -> 72362.33995 | O104: =IF(O$1="","",N104*(1+GR!O92)) -> 73476.71999 | P104: =IF(P$1="","",O104*(1+GR!P92)) -> 74608.26148 | Q104: =IF(Q$1="","",P104*(1+GR!Q92)) -> 75757.2287 | R104: =IF(R$1="","",Q104*(1+GR!R92)) -> 76923.89003 | S104: =IF(S$1="","",R104*(1+GR!S92)) -> 78108.51793 | T104: =IF(T$1="","",S104*(1+GR!T92)) -> 79311.38911 | U104: =IF(U$1="","",T104*(1+GR!U92)) -> 80532.7845 | V104: =IF(V$1="","",U104*(1+GR!V92)) -> 81772.98938 | W104: =IF(W$1="","",V104*(1+GR!W92)) -> 83032.29342 | X104: =IF(X$1="","",W104*(1+GR!X92)) -> 84310.99074 | Y104: =IF(Y$1="","",X104*(1+GR!Y92)) -> 85609.38 | Z104: =IF(Z$1="","",Y104*(1+GR!Z92)) -> 86927.76445 | AA104: =IF(AA$1="","",Z104*(1+GR!AA92)) -> 88266.45202 | AB104: =IF(AB$1="","",AA104*(1+GR!AB92)) -> 89625.75538 | AC104: =IF(AC$1="","",AB104*(1+GR!AC92)) -> 91005.99201 | AD104: =IF(AD$1="","",AC104*(1+GR!AD92)) -> 92407.48429 | AE104: =IF(AE$1="","",AD104*(1+GR!AE92)) -> 93830.55955 | AF104: =IF(AF$1="","",AE104*(1+GR!AF92)) -> 95275.55017 | AG104: =IF(AG$1="","",AF104*(1+GR!AG92)) -> 96742.79364 | AH104: =IF(AH$1="","",AG104*(1+GR!AH92)) -> 98232.63266 | AI104: =IF(AI$1="","",AH104*(1+GR!AI92)) -> 99745.4152 | AJ104: =IF(AJ$1="","",AI104*(1+GR!AJ92)) -> 101281.4946 | AK104: =IF(AK$1="","",AJ104*(1+GR!AK92)) -> 102841.2296 | AL104: =IF(AL$1="","",AK104*(1+GR!AL92)) ->  | AM104: =IF(AM$1="","",AL104*(1+GR!AM92)) ->  | AN104: =IF(AN$1="","",AM104*(1+GR!AN92)) ->  | AO104: =IF(AO$1="","",AN104*(1+GR!AO92)) ->  | AP104: =IF(AP$1="","",AO104*(1+GR!AP92)) ->  | AQ104: =IF(AQ$1="","",AP104*(1+GR!AQ92)) ->  | AR104: =IF(AR$1="","",AQ104*(1+GR!AR92)) ->  | AS104: =IF(AS$1="","",AR104*(1+GR!AS92)) ->  | AT104: =IF(AT$1="","",AS104*(1+GR!AT92)) ->  | AU104: =IF(AU$1="","",AT104*(1+GR!AU92)) ->  | AV104: =IF(AV$1="","",AU104*(1+GR!AV92)) ->  | AW104: =IF(AW$1="","",AV104*(1+GR!AW92)) ->  | AX104: =IF(AX$1="","",AW104*(1+GR!AX92)) ->  | AY104: =IF(AY$1="","",AX104*(1+GR!AY92)) ->  | AZ104: =IF(AZ$1="","",AY104*(1+GR!AZ92)) ->  | BA104: =IF(BA$1="","",AZ104*(1+GR!BA92)) ->  | BB104: =IF(BB$1="","",BA104*(1+GR!BB92)) ->  | BC104: =IF(BC$1="","",BB104*(1+GR!BC92)) ->  | BD104: =IF(BD$1="","",BC104*(1+GR!BD92)) ->  | BE104: =IF(BE$1="","",BD104*(1+GR!BE92)) ->  | BF104: =IF(BF$1="","",BE104*(1+GR!BF92)) ->  | BG104: =IF(BG$1="","",BF104*(1+GR!BG92)) ->  | BH104: =IF(BH$1="","",BG104*(1+GR!BH92)) ->  | BI104: =IF(BI$1="","",BH104*(1+GR!BI92)) ->  | BJ104: =IF(BJ$1="","",BI104*(1+GR!BJ92)) ->  | BK104: =IF(BK$1="","",BJ104*(1+GR!BK92)) ->  | BL104: =IF(BL$1="","",BK104*(1+GR!BL92)) ->  | BM104: =IF(BM$1="","",BL104*(1+GR!BM92)) ->  | BN104: =IF(BN$1="","",BM104*(1+GR!BN92)) ->  | BO104: =IF(BO$1="","",BN104*(1+GR!BO92)) -> 
D105: Total tax receipts | E105: £ k | F105: =IFERROR(SUM(H105:BO105),0) -> 21316487.57 | H105: =SUM(H102:H104) -> 564550.2885 | I105: =IF(I$1="","",SUM(I102:I104)) -> 573054.6741 | J105: =IF(J$1="","",SUM(J102:J104)) -> 581879.716 | K105: 590840.6637 | L105: 599939.6099 | M105: 609178.6799 | N105: 618560.0316 | O105: 628085.856 | P105: 637758.3782 | Q105: 647579.8573 | R105: 657552.5871 | S105: 667678.8969 | T105: 677961.1519 | U105: 688401.7536 | V105: 699003.1407 | W105: 709767.789 | X105: 720698.213 | Y105: 731796.9654 | Z105: 743066.6387 | AA105: 754509.865 | AB105: 766129.3169 | AC105: 777927.7084 | AD105: 789907.7951 | AE105: 802072.3751 | AF105: 814424.2897 | AG105: 826966.4237 | AH105: 839701.7067 | AI105: 852633.113 | AJ105: 865763.6629 | AK105: =IF(AK$1="","",SUM(AK102:AK104)) -> 879096.4233
D106: Employment | E106: No. | H106: =D1_Employ_Base -> 44674.484 | I106: =IF(I$1="","",H106*(1+GR!I94)) -> 45107.1117 | J106: =IF(J$1="","",I106*(1+GR!J94)) -> 45553.67211 | K106: =IF(K$1="","",J106*(1+GR!K94)) -> 46004.65346 | L106: =IF(L$1="","",K106*(1+GR!L94)) -> 46460.09953 | M106: =IF(M$1="","",L106*(1+GR!M94)) -> 46920.05452 | N106: =IF(N$1="","",M106*(1+GR!N94)) -> 47384.56306 | O106: =IF(O$1="","",N106*(1+GR!O94)) -> 47853.67023 | P106: =IF(P$1="","",O106*(1+GR!P94)) -> 48327.42157 | Q106: =IF(Q$1="","",P106*(1+GR!Q94)) -> 48805.86304 | R106: =IF(R$1="","",Q106*(1+GR!R94)) -> 49289.04108 | S106: =IF(S$1="","",R106*(1+GR!S94)) -> 49777.00259 | T106: =IF(T$1="","",S106*(1+GR!T94)) -> 50269.79492 | U106: =IF(U$1="","",T106*(1+GR!U94)) -> 50767.46589 | V106: =IF(V$1="","",U106*(1+GR!V94)) -> 51270.0638 | W106: =IF(W$1="","",V106*(1+GR!W94)) -> 51777.63743 | X106: =IF(X$1="","",W106*(1+GR!X94)) -> 52290.23604 | Y106: =IF(Y$1="","",X106*(1+GR!Y94)) -> 52807.90938 | Z106: =IF(Z$1="","",Y106*(1+GR!Z94)) -> 53330.70768 | AA106: =IF(AA$1="","",Z106*(1+GR!AA94)) -> 53858.68169 | AB106: =IF(AB$1="","",AA106*(1+GR!AB94)) -> 54391.88264 | AC106: =IF(AC$1="","",AB106*(1+GR!AC94)) -> 54930.36227 | AD106: =IF(AD$1="","",AC106*(1+GR!AD94)) -> 55474.17286 | AE106: =IF(AE$1="","",AD106*(1+GR!AE94)) -> 56023.36717 | AF106: =IF(AF$1="","",AE106*(1+GR!AF94)) -> 56577.99851 | AG106: =IF(AG$1="","",AF106*(1+GR!AG94)) -> 57138.12069 | AH106: =IF(AH$1="","",AG106*(1+GR!AH94)) -> 57703.78809 | AI106: =IF(AI$1="","",AH106*(1+GR!AI94)) -> 58275.05559 | AJ106: =IF(AJ$1="","",AI106*(1+GR!AJ94)) -> 58851.97864 | AK106: =IF(AK$1="","",AJ106*(1+GR!AK94)) -> 59434.61323 | AL106: =IF(AL$1="","",AK106*(1+GR!AL94)) ->  | AM106: =IF(AM$1="","",AL106*(1+GR!AM94)) ->  | AN106: =IF(AN$1="","",AM106*(1+GR!AN94)) ->  | AO106: =IF(AO$1="","",AN106*(1+GR!AO94)) ->  | AP106: =IF(AP$1="","",AO106*(1+GR!AP94)) ->  | AQ106: =IF(AQ$1="","",AP106*(1+GR!AQ94)) ->  | AR106: =IF(AR$1="","",AQ106*(1+GR!AR94)) ->  | AS106: =IF(AS$1="","",AR106*(1+GR!AS94)) ->  | AT106: =IF(AT$1="","",AS106*(1+GR!AT94)) ->  | AU106: =IF(AU$1="","",AT106*(1+GR!AU94)) ->  | AV106: =IF(AV$1="","",AU106*(1+GR!AV94)) ->  | AW106: =IF(AW$1="","",AV106*(1+GR!AW94)) ->  | AX106: =IF(AX$1="","",AW106*(1+GR!AX94)) ->  | AY106: =IF(AY$1="","",AX106*(1+GR!AY94)) ->  | AZ106: =IF(AZ$1="","",AY106*(1+GR!AZ94)) ->  | BA106: =IF(BA$1="","",AZ106*(1+GR!BA94)) ->  | BB106: =IF(BB$1="","",BA106*(1+GR!BB94)) ->  | BC106: =IF(BC$1="","",BB106*(1+GR!BC94)) ->  | BD106: =IF(BD$1="","",BC106*(1+GR!BD94)) ->  | BE106: =IF(BE$1="","",BD106*(1+GR!BE94)) ->  | BF106: =IF(BF$1="","",BE106*(1+GR!BF94)) ->  | BG106: =IF(BG$1="","",BF106*(1+GR!BG94)) ->  | BH106: =IF(BH$1="","",BG106*(1+GR!BH94)) ->  | BI106: =IF(BI$1="","",BH106*(1+GR!BI94)) ->  | BJ106: =IF(BJ$1="","",BI106*(1+GR!BJ94)) ->  | BK106: =IF(BK$1="","",BJ106*(1+GR!BK94)) ->  | BL106: =IF(BL$1="","",BK106*(1+GR!BL94)) ->  | BM106: =IF(BM$1="","",BL106*(1+GR!BM94)) ->  | BN106: =IF(BN$1="","",BM106*(1+GR!BN94)) ->  | BO106: =IF(BO$1="","",BN106*(1+GR!BO94)) -> 
D107: Total Economic Impacts | E107: £ k | F107: =SUM(H107:BO107) -> 120224217.7 | H107: =IF(H75="","",SUM(H100,H102:H104)) -> 3184043.175 | I107: =IF(I75="","",SUM(I100,I102:I104)) -> 3232007.602 | J107: 3281780.519 | K107: 3332319.939 | L107: 3383637.666 | M107: 3435745.686 | N107: 3488656.169 | O107: 3542381.474 | P107: 3596934.149 | Q107: 3652326.935 | R107: 3708572.77 | S107: 3765684.79 | T107: 3823676.336 | U107: 3882560.952 | V107: 3942352.39 | W107: 4003064.617 | X107: 4064711.812 | Y107: 4127308.374 | Z107: 4190868.923 | AA107: 4255408.305 | AB107: 4320941.592 | AC107: 4387484.093 | AD107: 4455051.348 | AE107: 4523659.139 | AF107: 4593323.489 | AG107: 4664060.671 | AH107: 4735887.206 | AI107: 4808819.868 | AJ107: 4882875.694 | AK107: 4958071.98
A110: ="Discounted costs for " & D1_Name -> Discounted costs for R1 | F110: Analysis period total | H110: =H75 -> 2020 | I110: 2021 | J110: 2022 | K110: 2023 | L110: 2024 | M110: 2025 | N110: 2026 | O110: 2027 | P110: 2028 | Q110: 2029 | R110: 2030 | S110: 2031 | T110: 2032 | U110: 2033 | V110: 2034 | W110: 2035 | X110: 2036 | Y110: 2037 | Z110: 2038 | AA110: 2039 | AB110: 2040 | AC110: 2041 | AD110: 2042 | AE110: 2043 | AF110: 2044 | AG110: 2045 | AH110: 2046 | AI110: 2047 | AJ110: 2048 | AK110: =AK75 -> 2049
D112: Parameter | E112: Unit
D113: Expenditure by Treatment | E113: £ k | F113: =SUM(H113:BO113) -> 207469.4222 | H113: =H78 -> 15707.23618 | I113: =IF(I$1="","",I78/(1+GR!I$27)^(I$1-1)) -> 15182.29648 | J113: =IF(J$1="","",J78/(1+GR!J$27)^(J$1-1)) -> 14964.43122 | K113: =IF(K$1="","",K78/(1+GR!K$27)^(K$1-1)) -> 7832.649277 | L113: =IF(L$1="","",L78/(1+GR!L$27)^(L$1-1)) -> 8101.331195 | M113: =IF(M$1="","",M78/(1+GR!M$27)^(M$1-1)) -> 8136.831662 | N113: =IF(N$1="","",N78/(1+GR!N$27)^(N$1-1)) -> 8041.461322 | O113: =IF(O$1="","",O78/(1+GR!O$27)^(O$1-1)) -> 7874.15408 | P113: =IF(P$1="","",P78/(1+GR!P$27)^(P$1-1)) -> 7668.863723 | Q113: =IF(Q$1="","",Q78/(1+GR!Q$27)^(Q$1-1)) -> 7445.134399 | R113: =IF(R$1="","",R78/(1+GR!R$27)^(R$1-1)) -> 7214.185225 | S113: =IF(S$1="","",S78/(1+GR!S$27)^(S$1-1)) -> 6982.418946 | T113: =IF(T$1="","",T78/(1+GR!T$27)^(T$1-1)) -> 6753.448696 | U113: =IF(U$1="","",U78/(1+GR!U$27)^(U$1-1)) -> 6529.270736 | V113: =IF(V$1="","",V78/(1+GR!V$27)^(V$1-1)) -> 6310.944139 | W113: =IF(W$1="","",W78/(1+GR!W$27)^(W$1-1)) -> 6098.985324 | X113: =IF(X$1="","",X78/(1+GR!X$27)^(X$1-1)) -> 5893.5974 | Y113: =IF(Y$1="","",Y78/(1+GR!Y$27)^(Y$1-1)) -> 5694.803654 | Z113: =IF(Z$1="","",Z78/(1+GR!Z$27)^(Z$1-1)) -> 5502.525326 | AA113: =IF(AA$1="","",AA78/(1+GR!AA$27)^(AA$1-1)) -> 5316.626944 | AB113: =IF(AB$1="","",AB78/(1+GR!AB$27)^(AB$1-1)) -> 5136.94275 | AC113: =IF(AC$1="","",AC78/(1+GR!AC$27)^(AC$1-1)) -> 4963.292093 | AD113: =IF(AD$1="","",AD78/(1+GR!AD$27)^(AD$1-1)) -> 4795.48836 | AE113: =IF(AE$1="","",AE78/(1+GR!AE$27)^(AE$1-1)) -> 4633.344132 | AF113: =IF(AF$1="","",AF78/(1+GR!AF$27)^(AF$1-1)) -> 4476.674122 | AG113: =IF(AG$1="","",AG78/(1+GR!AG$27)^(AG$1-1)) -> 4325.296831 | AH113: =IF(AH$1="","",AH78/(1+GR!AH$27)^(AH$1-1)) -> 4179.035423 | AI113: =IF(AI$1="","",AI78/(1+GR!AI$27)^(AI$1-1)) -> 4037.718173 | AJ113: =IF(AJ$1="","",AJ78/(1+GR!AJ$27)^(AJ$1-1)) -> 3901.178645 | AK113: =IF(AK$1="","",AK78/(1+GR!AK$27)^(AK$1-1)) -> 3769.255727 | AL113: =IF(AL$1="","",AL78/(1+GR!AL$27)^(AL$1-1)) ->  | AM113: =IF(AM$1="","",AM78/(1+GR!AM$27)^(AM$1-1)) ->  | AN113: =IF(AN$1="","",AN78/(1+GR!AN$27)^(AN$1-1)) ->  | AO113: =IF(AO$1="","",AO78/(1+GR!AO$27)^(AO$1-1)) ->  | AP113: =IF(AP$1="","",AP78/(1+GR!AP$27)^(AP$1-1)) ->  | AQ113: =IF(AQ$1="","",AQ78/(1+GR!AQ$27)^(AQ$1-1)) ->  | AR113: =IF(AR$1="","",AR78/(1+GR!AR$27)^(AR$1-1)) ->  | AS113: =IF(AS$1="","",AS78/(1+GR!AS$27)^(AS$1-1)) ->  | AT113: =IF(AT$1="","",AT78/(1+GR!AT$27)^(AT$1-1)) ->  | AU113: =IF(AU$1="","",AU78/(1+GR!AU$27)^(AU$1-1)) ->  | AV113: =IF(AV$1="","",AV78/(1+GR!AV$27)^(AV$1-1)) ->  | AW113: =IF(AW$1="","",AW78/(1+GR!AW$27)^(AW$1-1)) ->  | AX113: =IF(AX$1="","",AX78/(1+GR!AX$27)^(AX$1-1)) ->  | AY113: =IF(AY$1="","",AY78/(1+GR!AY$27)^(AY$1-1)) ->  | AZ113: =IF(AZ$1="","",AZ78/(1+GR!AZ$27)^(AZ$1-1)) ->  | BA113: =IF(BA$1="","",BA78/(1+GR!BA$27)^(BA$1-1)) ->  | BB113: =IF(BB$1="","",BB78/(1+GR!BB$27)^(BB$1-1)) ->  | BC113: =IF(BC$1="","",BC78/(1+GR!BC$27)^(BC$1-1)) ->  | BD113: =IF(BD$1="","",BD78/(1+GR!BD$27)^(BD$1-1)) ->  | BE113: =IF(BE$1="","",BE78/(1+GR!BE$27)^(BE$1-1)) ->  | BF113: =IF(BF$1="","",BF78/(1+GR!BF$27)^(BF$1-1)) ->  | BG113: =IF(BG$1="","",BG78/(1+GR!BG$27)^(BG$1-1)) ->  | BH113: =IF(BH$1="","",BH78/(1+GR!BH$27)^(BH$1-1)) ->  | BI113: =IF(BI$1="","",BI78/(1+GR!BI$27)^(BI$1-1)) ->  | BJ113: =IF(BJ$1="","",BJ78/(1+GR!BJ$27)^(BJ$1-1)) ->  | BK113: =IF(BK$1="","",BK78/(1+GR!BK$27)^(BK$1-1)) ->  | BL113: =IF(BL$1="","",BL78/(1+GR!BL$27)^(BL$1-1)) ->  | BM113: =IF(BM$1="","",BM78/(1+GR!BM$27)^(BM$1-1)) ->  | BN113: =IF(BN$1="","",BN78/(1+GR!BN$27)^(BN$1-1)) ->  | BO113: =IF(BO$1="","",BO78/(1+GR!BO$27)^(BO$1-1)) -> 
D114: Percentage in poor condition | E114: % | H114: =IF(H79="","",H79) -> 0.1519 | I114: =IF(I79="","",I79) -> 0.0759 | J114: 0 | K114: 0 | L114: 0 | M114: 0 | N114: 0 | O114: 0 | P114: 0 | Q114: 0 | R114: 0 | S114: 0 | T114: 0 | U114: 0 | V114: 0 | W114: 0 | X114: 0 | Y114: 0 | Z114: 0 | AA114: 0 | AB114: 0 | AC114: 0 | AD114: 0 | AE114: 0 | AF114: 0 | AG114: 0 | AH114: 0 | AI114: 0 | AJ114: 0 | AK114: 0
C116: Treatment and Condition Impacts | D116: Vehicle operating costs | E116: £ k | F116: =SUM(H116:BO116) -> 32210571.77 | H116: =H81 -> 850450.2512 | I116: =IF(I$1="","",I81/(1+GR!I$27)^(I$1-1)) -> 842963.4921 | J116: =IF(J$1="","",J81/(1+GR!J$27)^(J$1-1)) -> 838109.9518 | K116: =IF(K$1="","",K81/(1+GR!K$27)^(K$1-1)) -> 845989.3069 | L116: =IF(L$1="","",L81/(1+GR!L$27)^(L$1-1)) -> 858146.4612 | M116: =IF(M$1="","",M81/(1+GR!M$27)^(M$1-1)) -> 880805.0974 | N116: =IF(N$1="","",N81/(1+GR!N$27)^(N$1-1)) -> 909970.8086 | O116: =IF(O$1="","",O81/(1+GR!O$27)^(O$1-1)) -> 939580.6806 | P116: =IF(P$1="","",P81/(1+GR!P$27)^(P$1-1)) -> 963739.0316 | Q116: =IF(Q$1="","",Q81/(1+GR!Q$27)^(Q$1-1)) -> 993714.1006 | R116: =IF(R$1="","",R81/(1+GR!R$27)^(R$1-1)) -> 1033082.565 | S116: =IF(S$1="","",S81/(1+GR!S$27)^(S$1-1)) -> 1061355.91 | T116: =IF(T$1="","",T81/(1+GR!T$27)^(T$1-1)) -> 1088181.948 | U116: =IF(U$1="","",U81/(1+GR!U$27)^(U$1-1)) -> 1111818.59 | V116: =IF(V$1="","",V81/(1+GR!V$27)^(V$1-1)) -> 1132840.43 | W116: =IF(W$1="","",W81/(1+GR!W$27)^(W$1-1)) -> 1150784.19 | X116: =IF(X$1="","",X81/(1+GR!X$27)^(X$1-1)) -> 1165512.249 | Y116: =IF(Y$1="","",Y81/(1+GR!Y$27)^(Y$1-1)) -> 1176370.508 | Z116: =IF(Z$1="","",Z81/(1+GR!Z$27)^(Z$1-1)) -> 1188198.01 | AA116: =IF(AA$1="","",AA81/(1+GR!AA$27)^(AA$1-1)) -> 1196917.713 | AB116: =IF(AB$1="","",AB81/(1+GR!AB$27)^(AB$1-1)) -> 1202932.709 | AC116: =IF(AC$1="","",AC81/(1+GR!AC$27)^(AC$1-1)) -> 1209204.192 | AD116: =IF(AD$1="","",AD81/(1+GR!AD$27)^(AD$1-1)) -> 1211304.377 | AE116: =IF(AE$1="","",AE81/(1+GR!AE$27)^(AE$1-1)) -> 1210809.444 | AF116: =IF(AF$1="","",AF81/(1+GR!AF$27)^(AF$1-1)) -> 1208793.549 | AG116: =IF(AG$1="","",AG81/(1+GR!AG$27)^(AG$1-1)) -> 1203999.726 | AH116: =IF(AH$1="","",AH81/(1+GR!AH$27)^(AH$1-1)) -> 1197486.982 | AI116: =IF(AI$1="","",AI81/(1+GR!AI$27)^(AI$1-1)) -> 1188973.076 | AJ116: =IF(AJ$1="","",AJ81/(1+GR!AJ$27)^(AJ$1-1)) -> 1179646.248 | AK116: =IF(AK$1="","",AK81/(1+GR!AK$27)^(AK$1-1)) -> 1168890.174 | AL116: =IF(AL$1="","",AL81/(1+GR!AL$27)^(AL$1-1)) ->  | AM116: =IF(AM$1="","",AM81/(1+GR!AM$27)^(AM$1-1)) ->  | AN116: =IF(AN$1="","",AN81/(1+GR!AN$27)^(AN$1-1)) ->  | AO116: =IF(AO$1="","",AO81/(1+GR!AO$27)^(AO$1-1)) ->  | AP116: =IF(AP$1="","",AP81/(1+GR!AP$27)^(AP$1-1)) ->  | AQ116: =IF(AQ$1="","",AQ81/(1+GR!AQ$27)^(AQ$1-1)) ->  | AR116: =IF(AR$1="","",AR81/(1+GR!AR$27)^(AR$1-1)) ->  | AS116: =IF(AS$1="","",AS81/(1+GR!AS$27)^(AS$1-1)) ->  | AT116: =IF(AT$1="","",AT81/(1+GR!AT$27)^(AT$1-1)) ->  | AU116: =IF(AU$1="","",AU81/(1+GR!AU$27)^(AU$1-1)) ->  | AV116: =IF(AV$1="","",AV81/(1+GR!AV$27)^(AV$1-1)) ->  | AW116: =IF(AW$1="","",AW81/(1+GR!AW$27)^(AW$1-1)) ->  | AX116: =IF(AX$1="","",AX81/(1+GR!AX$27)^(AX$1-1)) ->  | AY116: =IF(AY$1="","",AY81/(1+GR!AY$27)^(AY$1-1)) ->  | AZ116: =IF(AZ$1="","",AZ81/(1+GR!AZ$27)^(AZ$1-1)) ->  | BA116: =IF(BA$1="","",BA81/(1+GR!BA$27)^(BA$1-1)) ->  | BB116: =IF(BB$1="","",BB81/(1+GR!BB$27)^(BB$1-1)) ->  | BC116: =IF(BC$1="","",BC81/(1+GR!BC$27)^(BC$1-1)) ->  | BD116: =IF(BD$1="","",BD81/(1+GR!BD$27)^(BD$1-1)) ->  | BE116: =IF(BE$1="","",BE81/(1+GR!BE$27)^(BE$1-1)) ->  | BF116: =IF(BF$1="","",BF81/(1+GR!BF$27)^(BF$1-1)) ->  | BG116: =IF(BG$1="","",BG81/(1+GR!BG$27)^(BG$1-1)) ->  | BH116: =IF(BH$1="","",BH81/(1+GR!BH$27)^(BH$1-1)) ->  | BI116: =IF(BI$1="","",BI81/(1+GR!BI$27)^(BI$1-1)) ->  | BJ116: =IF(BJ$1="","",BJ81/(1+GR!BJ$27)^(BJ$1-1)) ->  | BK116: =IF(BK$1="","",BK81/(1+GR!BK$27)^(BK$1-1)) ->  | BL116: =IF(BL$1="","",BL81/(1+GR!BL$27)^(BL$1-1)) ->  | BM116: =IF(BM$1="","",BM81/(1+GR!BM$27)^(BM$1-1)) ->  | BN116: =IF(BN$1="","",BN81/(1+GR!BN$27)^(BN$1-1)) ->  | BO116: =IF(BO$1="","",BO81/(1+GR!BO$27)^(BO$1-1)) -> 
D117: Travel time | E117: £ k | F117: 7654433.139 | H117: 287859.0644 | I117: =IF(I$1="","",I82/(1+GR!I$27)^(I$1-1)) -> 281991.6038 | J117: =IF(J$1="","",J82/(1+GR!J$27)^(J$1-1)) -> 274915.7743 | K117: =IF(K$1="","",K82/(1+GR!K$27)^(K$1-1)) -> 271815.26 | L117: =IF(L$1="","",L82/(1+GR!L$27)^(L$1-1)) -> 269044.4453 | M117: =IF(M$1="","",M82/(1+GR!M$27)^(M$1-1)) -> 266604.9062 | N117: =IF(N$1="","",N82/(1+GR!N$27)^(N$1-1)) -> 264455.8819 | O117: =IF(O$1="","",O82/(1+GR!O$27)^(O$1-1)) -> 262577.0216 | P117: =IF(P$1="","",P82/(1+GR!P$27)^(P$1-1)) -> 260958.0965 | Q117: =IF(Q$1="","",Q82/(1+GR!Q$27)^(Q$1-1)) -> 259447.3056 | R117: =IF(R$1="","",R82/(1+GR!R$27)^(R$1-1)) -> 258181.3778 | S117: =IF(S$1="","",S82/(1+GR!S$27)^(S$1-1)) -> 256884.2174 | T117: =IF(T$1="","",T82/(1+GR!T$27)^(T$1-1)) -> 255997.5147 | U117: =IF(U$1="","",U82/(1+GR!U$27)^(U$1-1)) -> 255043.3486 | V117: =IF(V$1="","",V82/(1+GR!V$27)^(V$1-1)) -> 254095.722 | W117: =IF(W$1="","",W82/(1+GR!W$27)^(W$1-1)) -> 253208.2881 | X117: =IF(X$1="","",X82/(1+GR!X$27)^(X$1-1)) -> 252464.1821 | Y117: =IF(Y$1="","",Y82/(1+GR!Y$27)^(Y$1-1)) -> 251486.8062 | Z117: =IF(Z$1="","",Z82/(1+GR!Z$27)^(Z$1-1)) -> 250500.9133 | AA117: =IF(AA$1="","",AA82/(1+GR!AA$27)^(AA$1-1)) -> 249459.637 | AB117: =IF(AB$1="","",AB82/(1+GR!AB$27)^(AB$1-1)) -> 248342.301 | AC117: =IF(AC$1="","",AC82/(1+GR!AC$27)^(AC$1-1)) -> 247225.9498 | AD117: =IF(AD$1="","",AD82/(1+GR!AD$27)^(AD$1-1)) -> 245803.2923 | AE117: =IF(AE$1="","",AE82/(1+GR!AE$27)^(AE$1-1)) -> 244342.3521 | AF117: =IF(AF$1="","",AF82/(1+GR!AF$27)^(AF$1-1)) -> 242821.4165 | AG117: =IF(AG$1="","",AG82/(1+GR!AG$27)^(AG$1-1)) -> 241271.8303 | AH117: =IF(AH$1="","",AH82/(1+GR!AH$27)^(AH$1-1)) -> 239705.1185 | AI117: =IF(AI$1="","",AI82/(1+GR!AI$27)^(AI$1-1)) -> 237848.4874 | AJ117: =IF(AJ$1="","",AJ82/(1+GR!AJ$27)^(AJ$1-1)) -> 235971.3092 | AK117: =IF(AK$1="","",AK82/(1+GR!AK$27)^(AK$1-1)) -> 234109.7149 | AL117: =IF(AL$1="","",AL82/(1+GR!AL$27)^(AL$1-1)) ->  | AM117: =IF(AM$1="","",AM82/(1+GR!AM$27)^(AM$1-1)) ->  | AN117: =IF(AN$1="","",AN82/(1+GR!AN$27)^(AN$1-1)) ->  | AO117: =IF(AO$1="","",AO82/(1+GR!AO$27)^(AO$1-1)) ->  | AP117: =IF(AP$1="","",AP82/(1+GR!AP$27)^(AP$1-1)) ->  | AQ117: =IF(AQ$1="","",AQ82/(1+GR!AQ$27)^(AQ$1-1)) ->  | AR117: =IF(AR$1="","",AR82/(1+GR!AR$27)^(AR$1-1)) ->  | AS117: =IF(AS$1="","",AS82/(1+GR!AS$27)^(AS$1-1)) ->  | AT117: =IF(AT$1="","",AT82/(1+GR!AT$27)^(AT$1-1)) ->  | AU117: =IF(AU$1="","",AU82/(1+GR!AU$27)^(AU$1-1)) ->  | AV117: =IF(AV$1="","",AV82/(1+GR!AV$27)^(AV$1-1)) ->  | AW117: =IF(AW$1="","",AW82/(1+GR!AW$27)^(AW$1-1)) ->  | AX117: =IF(AX$1="","",AX82/(1+GR!AX$27)^(AX$1-1)) ->  | AY117: =IF(AY$1="","",AY82/(1+GR!AY$27)^(AY$1-1)) ->  | AZ117: =IF(AZ$1="","",AZ82/(1+GR!AZ$27)^(AZ$1-1)) ->  | BA117: =IF(BA$1="","",BA82/(1+GR!BA$27)^(BA$1-1)) ->  | BB117: =IF(BB$1="","",BB82/(1+GR!BB$27)^(BB$1-1)) ->  | BC117: =IF(BC$1="","",BC82/(1+GR!BC$27)^(BC$1-1)) ->  | BD117: =IF(BD$1="","",BD82/(1+GR!BD$27)^(BD$1-1)) ->  | BE117: =IF(BE$1="","",BE82/(1+GR!BE$27)^(BE$1-1)) ->  | BF117: =IF(BF$1="","",BF82/(1+GR!BF$27)^(BF$1-1)) ->  | BG117: =IF(BG$1="","",BG82/(1+GR!BG$27)^(BG$1-1)) ->  | BH117: =IF(BH$1="","",BH82/(1+GR!BH$27)^(BH$1-1)) ->  | BI117: =IF(BI$1="","",BI82/(1+GR!BI$27)^(BI$1-1)) ->  | BJ117: =IF(BJ$1="","",BJ82/(1+GR!BJ$27)^(BJ$1-1)) ->  | BK117: =IF(BK$1="","",BK82/(1+GR!BK$27)^(BK$1-1)) ->  | BL117: =IF(BL$1="","",BL82/(1+GR!BL$27)^(BL$1-1)) ->  | BM117: =IF(BM$1="","",BM82/(1+GR!BM$27)^(BM$1-1)) ->  | BN117: =IF(BN$1="","",BN82/(1+GR!BN$27)^(BN$1-1)) ->  | BO117: =IF(BO$1="","",BO82/(1+GR!BO$27)^(BO$1-1)) -> 
D118: Carbon (vehicle fuel) | E118: £ k | F118: 1103793.082 | H118: 29324.5398 | I118: =IF(I$1="","",I83/(1+GR!I$27)^(I$1-1)) -> 28896.48789 | J118: =IF(J$1="","",J83/(1+GR!J$27)^(J$1-1)) -> 28794.62183 | K118: =IF(K$1="","",K83/(1+GR!K$27)^(K$1-1)) -> 28146.71052 | L118: =IF(L$1="","",L83/(1+GR!L$27)^(L$1-1)) -> 27562.3991 | M118: =IF(M$1="","",M83/(1+GR!M$27)^(M$1-1)) -> 27001.23515 | N118: =IF(N$1="","",N83/(1+GR!N$27)^(N$1-1)) -> 26573.15268 | O118: =IF(O$1="","",O83/(1+GR!O$27)^(O$1-1)) -> 26215.24018 | P118: =IF(P$1="","",P83/(1+GR!P$27)^(P$1-1)) -> 26220.64881 | Q118: =IF(Q$1="","",Q83/(1+GR!Q$27)^(Q$1-1)) -> 25950.32051 | R118: =IF(R$1="","",R83/(1+GR!R$27)^(R$1-1)) -> 25729.64362 | S118: =IF(S$1="","",S83/(1+GR!S$27)^(S$1-1)) -> 27528.33481 | T118: =IF(T$1="","",T83/(1+GR!T$27)^(T$1-1)) -> 29717.9349 | U118: =IF(U$1="","",U83/(1+GR!U$27)^(U$1-1)) -> 31523.02803 | V118: =IF(V$1="","",V83/(1+GR!V$27)^(V$1-1)) -> 33558.79372 | W118: =IF(W$1="","",W83/(1+GR!W$27)^(W$1-1)) -> 35264.8629 | X118: =IF(X$1="","",X83/(1+GR!X$27)^(X$1-1)) -> 37236.14602 | Y118: =IF(Y$1="","",Y83/(1+GR!Y$27)^(Y$1-1)) -> 38732.91581 | Z118: =IF(Z$1="","",Z83/(1+GR!Z$27)^(Z$1-1)) -> 40537.08327 | AA118: =IF(AA$1="","",AA83/(1+GR!AA$27)^(AA$1-1)) -> 41951.00507 | AB118: =IF(AB$1="","",AB83/(1+GR!AB$27)^(AB$1-1)) -> 43534.42282 | AC118: =IF(AC$1="","",AC83/(1+GR!AC$27)^(AC$1-1)) -> 44825.01355 | AD118: =IF(AD$1="","",AD83/(1+GR!AD$27)^(AD$1-1)) -> 46290.12836 | AE118: =IF(AE$1="","",AE83/(1+GR!AE$27)^(AE$1-1)) -> 47310.71397 | AF118: =IF(AF$1="","",AF83/(1+GR!AF$27)^(AF$1-1)) -> 48616.78052 | AG118: =IF(AG$1="","",AG83/(1+GR!AG$27)^(AG$1-1)) -> 49550.14473 | AH118: =IF(AH$1="","",AH83/(1+GR!AH$27)^(AH$1-1)) -> 50621.66413 | AI118: =IF(AI$1="","",AI83/(1+GR!AI$27)^(AI$1-1)) -> 51372.79734 | AJ118: =IF(AJ$1="","",AJ83/(1+GR!AJ$27)^(AJ$1-1)) -> 52327.56113 | AK118: =IF(AK$1="","",AK83/(1+GR!AK$27)^(AK$1-1)) -> 52878.75126 | AL118: =IF(AL$1="","",AL83/(1+GR!AL$27)^(AL$1-1)) ->  | AM118: =IF(AM$1="","",AM83/(1+GR!AM$27)^(AM$1-1)) ->  | AN118: =IF(AN$1="","",AN83/(1+GR!AN$27)^(AN$1-1)) ->  | AO118: =IF(AO$1="","",AO83/(1+GR!AO$27)^(AO$1-1)) ->  | AP118: =IF(AP$1="","",AP83/(1+GR!AP$27)^(AP$1-1)) ->  | AQ118: =IF(AQ$1="","",AQ83/(1+GR!AQ$27)^(AQ$1-1)) ->  | AR118: =IF(AR$1="","",AR83/(1+GR!AR$27)^(AR$1-1)) ->  | AS118: =IF(AS$1="","",AS83/(1+GR!AS$27)^(AS$1-1)) ->  | AT118: =IF(AT$1="","",AT83/(1+GR!AT$27)^(AT$1-1)) ->  | AU118: =IF(AU$1="","",AU83/(1+GR!AU$27)^(AU$1-1)) ->  | AV118: =IF(AV$1="","",AV83/(1+GR!AV$27)^(AV$1-1)) ->  | AW118: =IF(AW$1="","",AW83/(1+GR!AW$27)^(AW$1-1)) ->  | AX118: =IF(AX$1="","",AX83/(1+GR!AX$27)^(AX$1-1)) ->  | AY118: =IF(AY$1="","",AY83/(1+GR!AY$27)^(AY$1-1)) ->  | AZ118: =IF(AZ$1="","",AZ83/(1+GR!AZ$27)^(AZ$1-1)) ->  | BA118: =IF(BA$1="","",BA83/(1+GR!BA$27)^(BA$1-1)) ->  | BB118: =IF(BB$1="","",BB83/(1+GR!BB$27)^(BB$1-1)) ->  | BC118: =IF(BC$1="","",BC83/(1+GR!BC$27)^(BC$1-1)) ->  | BD118: =IF(BD$1="","",BD83/(1+GR!BD$27)^(BD$1-1)) ->  | BE118: =IF(BE$1="","",BE83/(1+GR!BE$27)^(BE$1-1)) ->  | BF118: =IF(BF$1="","",BF83/(1+GR!BF$27)^(BF$1-1)) ->  | BG118: =IF(BG$1="","",BG83/(1+GR!BG$27)^(BG$1-1)) ->  | BH118: =IF(BH$1="","",BH83/(1+GR!BH$27)^(BH$1-1)) ->  | BI118: =IF(BI$1="","",BI83/(1+GR!BI$27)^(BI$1-1)) ->  | BJ118: =IF(BJ$1="","",BJ83/(1+GR!BJ$27)^(BJ$1-1)) ->  | BK118: =IF(BK$1="","",BK83/(1+GR!BK$27)^(BK$1-1)) ->  | BL118: =IF(BL$1="","",BL83/(1+GR!BL$27)^(BL$1-1)) ->  | BM118: =IF(BM$1="","",BM83/(1+GR!BM$27)^(BM$1-1)) ->  | BN118: =IF(BN$1="","",BN83/(1+GR!BN$27)^(BN$1-1)) ->  | BO118: =IF(BO$1="","",BO83/(1+GR!BO$27)^(BO$1-1)) -> 
D119: Roadworks Accidents | E119: £ k | F119: 4053.662877 | H119: 284.1595368 | I119: =IF(I$1="","",I84/(1+GR!I$27)^(I$1-1)) -> 274.3983152 | J119: =IF(J$1="","",J84/(1+GR!J$27)^(J$1-1)) -> 270.4980067 | K119: =IF(K$1="","",K84/(1+GR!K$27)^(K$1-1)) -> 143.0199885 | L119: =IF(L$1="","",L84/(1+GR!L$27)^(L$1-1)) -> 148.0086163 | M119: =IF(M$1="","",M84/(1+GR!M$27)^(M$1-1)) -> 149.352034 | N119: =IF(N$1="","",N84/(1+GR!N$27)^(N$1-1)) -> 148.6001844 | O119: =IF(O$1="","",O84/(1+GR!O$27)^(O$1-1)) -> 146.6167766 | P119: =IF(P$1="","",P84/(1+GR!P$27)^(P$1-1)) -> 143.9773631 | Q119: =IF(Q$1="","",Q84/(1+GR!Q$27)^(Q$1-1)) -> 140.9893366 | R119: =IF(R$1="","",R84/(1+GR!R$27)^(R$1-1)) -> 137.8306499 | S119: =IF(S$1="","",S84/(1+GR!S$27)^(S$1-1)) -> 134.6040555 | T119: =IF(T$1="","",T84/(1+GR!T$27)^(T$1-1)) -> 131.5754423 | U119: =IF(U$1="","",U84/(1+GR!U$27)^(U$1-1)) -> 128.5584092 | V119: =IF(V$1="","",V84/(1+GR!V$27)^(V$1-1)) -> 125.5726019 | W119: =IF(W$1="","",W84/(1+GR!W$27)^(W$1-1)) -> 122.6291989 | X119: =IF(X$1="","",X84/(1+GR!X$27)^(X$1-1)) -> 119.7344473 | Y119: =IF(Y$1="","",Y84/(1+GR!Y$27)^(Y$1-1)) -> 116.7565595 | Z119: =IF(Z$1="","",Z84/(1+GR!Z$27)^(Z$1-1)) -> 113.8412867 | AA119: =IF(AA$1="","",AA84/(1+GR!AA$27)^(AA$1-1)) -> 110.9889025 | AB119: =IF(AB$1="","",AB84/(1+GR!AB$27)^(AB$1-1)) -> 108.1991153 | AC119: =IF(AC$1="","",AC84/(1+GR!AC$27)^(AC$1-1)) -> 105.4713058 | AD119: =IF(AD$1="","",AD84/(1+GR!AD$27)^(AD$1-1)) -> 102.6776081 | AE119: =IF(AE$1="","",AE84/(1+GR!AE$27)^(AE$1-1)) -> 99.95257374 | AF119: =IF(AF$1="","",AF84/(1+GR!AF$27)^(AF$1-1)) -> 97.29480934 | AG119: =IF(AG$1="","",AG84/(1+GR!AG$27)^(AG$1-1)) -> 94.70290613 | AH119: =IF(AH$1="","",AH84/(1+GR!AH$27)^(AH$1-1)) -> 92.17545598 | AI119: =IF(AI$1="","",AI84/(1+GR!AI$27)^(AI$1-1)) -> 89.62253314 | AJ119: =IF(AJ$1="","",AJ84/(1+GR!AJ$27)^(AJ$1-1)) -> 87.13716443 | AK119: =IF(AK$1="","",AK84/(1+GR!AK$27)^(AK$1-1)) -> 84.71769331 | AL119: =IF(AL$1="","",AL84/(1+GR!AL$27)^(AL$1-1)) ->  | AM119: =IF(AM$1="","",AM84/(1+GR!AM$27)^(AM$1-1)) ->  | AN119: =IF(AN$1="","",AN84/(1+GR!AN$27)^(AN$1-1)) ->  | AO119: =IF(AO$1="","",AO84/(1+GR!AO$27)^(AO$1-1)) ->  | AP119: =IF(AP$1="","",AP84/(1+GR!AP$27)^(AP$1-1)) ->  | AQ119: =IF(AQ$1="","",AQ84/(1+GR!AQ$27)^(AQ$1-1)) ->  | AR119: =IF(AR$1="","",AR84/(1+GR!AR$27)^(AR$1-1)) ->  | AS119: =IF(AS$1="","",AS84/(1+GR!AS$27)^(AS$1-1)) ->  | AT119: =IF(AT$1="","",AT84/(1+GR!AT$27)^(AT$1-1)) ->  | AU119: =IF(AU$1="","",AU84/(1+GR!AU$27)^(AU$1-1)) ->  | AV119: =IF(AV$1="","",AV84/(1+GR!AV$27)^(AV$1-1)) ->  | AW119: =IF(AW$1="","",AW84/(1+GR!AW$27)^(AW$1-1)) ->  | AX119: =IF(AX$1="","",AX84/(1+GR!AX$27)^(AX$1-1)) ->  | AY119: =IF(AY$1="","",AY84/(1+GR!AY$27)^(AY$1-1)) ->  | AZ119: =IF(AZ$1="","",AZ84/(1+GR!AZ$27)^(AZ$1-1)) ->  | BA119: =IF(BA$1="","",BA84/(1+GR!BA$27)^(BA$1-1)) ->  | BB119: =IF(BB$1="","",BB84/(1+GR!BB$27)^(BB$1-1)) ->  | BC119: =IF(BC$1="","",BC84/(1+GR!BC$27)^(BC$1-1)) ->  | BD119: =IF(BD$1="","",BD84/(1+GR!BD$27)^(BD$1-1)) ->  | BE119: =IF(BE$1="","",BE84/(1+GR!BE$27)^(BE$1-1)) ->  | BF119: =IF(BF$1="","",BF84/(1+GR!BF$27)^(BF$1-1)) ->  | BG119: =IF(BG$1="","",BG84/(1+GR!BG$27)^(BG$1-1)) ->  | BH119: =IF(BH$1="","",BH84/(1+GR!BH$27)^(BH$1-1)) ->  | BI119: =IF(BI$1="","",BI84/(1+GR!BI$27)^(BI$1-1)) ->  | BJ119: =IF(BJ$1="","",BJ84/(1+GR!BJ$27)^(BJ$1-1)) ->  | BK119: =IF(BK$1="","",BK84/(1+GR!BK$27)^(BK$1-1)) ->  | BL119: =IF(BL$1="","",BL84/(1+GR!BL$27)^(BL$1-1)) ->  | BM119: =IF(BM$1="","",BM84/(1+GR!BM$27)^(BM$1-1)) ->  | BN119: =IF(BN$1="","",BN84/(1+GR!BN$27)^(BN$1-1)) ->  | BO119: =IF(BO$1="","",BO84/(1+GR!BO$27)^(BO$1-1)) -> 
D120: Carbon (vehicles in roadworks) | E120: £ k | F120: 33.94737892 | H120: 2.526326588 | I120: =IF(I$1="","",I85/(1+GR!I$27)^(I$1-1)) -> 2.374326335 | J120: =IF(J$1="","",J85/(1+GR!J$27)^(J$1-1)) -> 2.266028492 | K120: =IF(K$1="","",K85/(1+GR!K$27)^(K$1-1)) -> 1.255850268 | L120: =IF(L$1="","",L85/(1+GR!L$27)^(L$1-1)) -> 1.267776183 | M120: =IF(M$1="","",M85/(1+GR!M$27)^(M$1-1)) -> 1.260482545 | N120: =IF(N$1="","",N85/(1+GR!N$27)^(N$1-1)) -> 1.242843643 | O120: =IF(O$1="","",O85/(1+GR!O$27)^(O$1-1)) -> 1.219417523 | P120: =IF(P$1="","",P85/(1+GR!P$27)^(P$1-1)) -> 1.193307212 | Q120: =IF(Q$1="","",Q85/(1+GR!Q$27)^(Q$1-1)) -> 1.166013492 | R120: =IF(R$1="","",R85/(1+GR!R$27)^(R$1-1)) -> 1.138358388 | S120: =IF(S$1="","",S85/(1+GR!S$27)^(S$1-1)) -> 1.110788258 | T120: =IF(T$1="","",T85/(1+GR!T$27)^(T$1-1)) -> 1.085256221 | U120: =IF(U$1="","",U85/(1+GR!U$27)^(U$1-1)) -> 1.060061047 | V120: =IF(V$1="","",V85/(1+GR!V$27)^(V$1-1)) -> 1.035270781 | W120: =IF(W$1="","",W85/(1+GR!W$27)^(W$1-1)) -> 1.010919619 | X120: =IF(X$1="","",X85/(1+GR!X$27)^(X$1-1)) -> 0.9870233502 | Y120: =IF(Y$1="","",Y85/(1+GR!Y$27)^(Y$1-1)) -> 0.9624703609 | Z120: =IF(Z$1="","",Z85/(1+GR!Z$27)^(Z$1-1)) -> 0.9384522104 | AA120: =IF(AA$1="","",AA85/(1+GR!AA$27)^(AA$1-1)) -> 0.9149628533 | AB120: =IF(AB$1="","",AB85/(1+GR!AB$27)^(AB$1-1)) -> 0.891994835 | AC120: =IF(AC$1="","",AC85/(1+GR!AC$27)^(AC$1-1)) -> 0.8695399973 | AD120: =IF(AD$1="","",AD85/(1+GR!AD$27)^(AD$1-1)) -> 0.8465339304 | AE120: =IF(AE$1="","",AE85/(1+GR!AE$27)^(AE$1-1)) -> 0.8240938228 | AF120: =IF(AF$1="","",AF85/(1+GR!AF$27)^(AF$1-1)) -> 0.8022075431 | AG120: =IF(AG$1="","",AG85/(1+GR!AG$27)^(AG$1-1)) -> 0.7808631173 | AH120: =IF(AH$1="","",AH85/(1+GR!AH$27)^(AH$1-1)) -> 0.7600487495 | AI120: =IF(AI$1="","",AI85/(1+GR!AI$27)^(AI$1-1)) -> 0.7390162679 | AJ120: =IF(AJ$1="","",AJ85/(1+GR!AJ$27)^(AJ$1-1)) -> 0.7185397503 | AK120: =IF(AK$1="","",AK85/(1+GR!AK$27)^(AK$1-1)) -> 0.6986055345 | AL120: =IF(AL$1="","",AL85/(1+GR!AL$27)^(AL$1-1)) ->  | AM120: =IF(AM$1="","",AM85/(1+GR!AM$27)^(AM$1-1)) ->  | AN120: =IF(AN$1="","",AN85/(1+GR!AN$27)^(AN$1-1)) ->  | AO120: =IF(AO$1="","",AO85/(1+GR!AO$27)^(AO$1-1)) ->  | AP120: =IF(AP$1="","",AP85/(1+GR!AP$27)^(AP$1-1)) ->  | AQ120: =IF(AQ$1="","",AQ85/(1+GR!AQ$27)^(AQ$1-1)) ->  | AR120: =IF(AR$1="","",AR85/(1+GR!AR$27)^(AR$1-1)) ->  | AS120: =IF(AS$1="","",AS85/(1+GR!AS$27)^(AS$1-1)) ->  | AT120: =IF(AT$1="","",AT85/(1+GR!AT$27)^(AT$1-1)) ->  | AU120: =IF(AU$1="","",AU85/(1+GR!AU$27)^(AU$1-1)) ->  | AV120: =IF(AV$1="","",AV85/(1+GR!AV$27)^(AV$1-1)) ->  | AW120: =IF(AW$1="","",AW85/(1+GR!AW$27)^(AW$1-1)) ->  | AX120: =IF(AX$1="","",AX85/(1+GR!AX$27)^(AX$1-1)) ->  | AY120: =IF(AY$1="","",AY85/(1+GR!AY$27)^(AY$1-1)) ->  | AZ120: =IF(AZ$1="","",AZ85/(1+GR!AZ$27)^(AZ$1-1)) ->  | BA120: =IF(BA$1="","",BA85/(1+GR!BA$27)^(BA$1-1)) ->  | BB120: =IF(BB$1="","",BB85/(1+GR!BB$27)^(BB$1-1)) ->  | BC120: =IF(BC$1="","",BC85/(1+GR!BC$27)^(BC$1-1)) ->  | BD120: =IF(BD$1="","",BD85/(1+GR!BD$27)^(BD$1-1)) ->  | BE120: =IF(BE$1="","",BE85/(1+GR!BE$27)^(BE$1-1)) ->  | BF120: =IF(BF$1="","",BF85/(1+GR!BF$27)^(BF$1-1)) ->  | BG120: =IF(BG$1="","",BG85/(1+GR!BG$27)^(BG$1-1)) ->  | BH120: =IF(BH$1="","",BH85/(1+GR!BH$27)^(BH$1-1)) ->  | BI120: =IF(BI$1="","",BI85/(1+GR!BI$27)^(BI$1-1)) ->  | BJ120: =IF(BJ$1="","",BJ85/(1+GR!BJ$27)^(BJ$1-1)) ->  | BK120: =IF(BK$1="","",BK85/(1+GR!BK$27)^(BK$1-1)) ->  | BL120: =IF(BL$1="","",BL85/(1+GR!BL$27)^(BL$1-1)) ->  | BM120: =IF(BM$1="","",BM85/(1+GR!BM$27)^(BM$1-1)) ->  | BN120: =IF(BN$1="","",BN85/(1+GR!BN$27)^(BN$1-1)) ->  | BO120: =IF(BO$1="","",BO85/(1+GR!BO$27)^(BO$1-1)) -> 
D121: Roadworks time delays | E121: £ k | F121: 5555.991923 | H121: 370.5065754 | I121: =IF(I$1="","",I86/(1+GR!I$27)^(I$1-1)) -> 370.745663 | J121: =IF(J$1="","",J86/(1+GR!J$27)^(J$1-1)) -> 371.1003473 | K121: =IF(K$1="","",K86/(1+GR!K$27)^(K$1-1)) -> 192.8353448 | L121: =IF(L$1="","",L86/(1+GR!L$27)^(L$1-1)) -> 201.6393533 | M121: =IF(M$1="","",M86/(1+GR!M$27)^(M$1-1)) -> 204.7034395 | N121: =IF(N$1="","",N86/(1+GR!N$27)^(N$1-1)) -> 204.408714 | O121: =IF(O$1="","",O86/(1+GR!O$27)^(O$1-1)) -> 202.1249232 | P121: =IF(P$1="","",P86/(1+GR!P$27)^(P$1-1)) -> 198.7461076 | Q121: =IF(Q$1="","",Q86/(1+GR!Q$27)^(Q$1-1)) -> 194.7677675 | R121: =IF(R$1="","",R86/(1+GR!R$27)^(R$1-1)) -> 190.4807842 | S121: =IF(S$1="","",S86/(1+GR!S$27)^(S$1-1)) -> 186.0554842 | T121: =IF(T$1="","",T86/(1+GR!T$27)^(T$1-1)) -> 181.8782173 | U121: =IF(U$1="","",U86/(1+GR!U$27)^(U$1-1)) -> 177.7012368 | V121: =IF(V$1="","",V86/(1+GR!V$27)^(V$1-1)) -> 173.5584655 | W121: =IF(W$1="","",W86/(1+GR!W$27)^(W$1-1)) -> 169.4695253 | X121: =IF(X$1="","",X86/(1+GR!X$27)^(X$1-1)) -> 165.4456023 | Y121: =IF(Y$1="","",Y86/(1+GR!Y$27)^(Y$1-1)) -> 161.3126186 | Z121: =IF(Z$1="","",Z86/(1+GR!Z$27)^(Z$1-1)) -> 157.2659863 | AA121: =IF(AA$1="","",AA86/(1+GR!AA$27)^(AA$1-1)) -> 153.3066429 | AB121: =IF(AB$1="","",AB86/(1+GR!AB$27)^(AB$1-1)) -> 149.4345055 | AC121: =IF(AC$1="","",AC86/(1+GR!AC$27)^(AC$1-1)) -> 145.6488914 | AD121: =IF(AD$1="","",AD86/(1+GR!AD$27)^(AD$1-1)) -> 141.775724 | AE121: =IF(AE$1="","",AE86/(1+GR!AE$27)^(AE$1-1)) -> 137.9982678 | AF121: =IF(AF$1="","",AF86/(1+GR!AF$27)^(AF$1-1)) -> 134.3146031 | AG121: =IF(AG$1="","",AG86/(1+GR!AG$27)^(AG$1-1)) -> 130.7227697 | AH121: =IF(AH$1="","",AH86/(1+GR!AH$27)^(AH$1-1)) -> 127.220797 | AI121: =IF(AI$1="","",AI86/(1+GR!AI$27)^(AI$1-1)) -> 123.6853672 | AJ121: =IF(AJ$1="","",AJ86/(1+GR!AJ$27)^(AJ$1-1)) -> 120.243956 | AK121: =IF(AK$1="","",AK86/(1+GR!AK$27)^(AK$1-1)) -> 116.8942423 | AL121: =IF(AL$1="","",AL86/(1+GR!AL$27)^(AL$1-1)) ->  | AM121: =IF(AM$1="","",AM86/(1+GR!AM$27)^(AM$1-1)) ->  | AN121: =IF(AN$1="","",AN86/(1+GR!AN$27)^(AN$1-1)) ->  | AO121: =IF(AO$1="","",AO86/(1+GR!AO$27)^(AO$1-1)) ->  | AP121: =IF(AP$1="","",AP86/(1+GR!AP$27)^(AP$1-1)) ->  | AQ121: =IF(AQ$1="","",AQ86/(1+GR!AQ$27)^(AQ$1-1)) ->  | AR121: =IF(AR$1="","",AR86/(1+GR!AR$27)^(AR$1-1)) ->  | AS121: =IF(AS$1="","",AS86/(1+GR!AS$27)^(AS$1-1)) ->  | AT121: =IF(AT$1="","",AT86/(1+GR!AT$27)^(AT$1-1)) ->  | AU121: =IF(AU$1="","",AU86/(1+GR!AU$27)^(AU$1-1)) ->  | AV121: =IF(AV$1="","",AV86/(1+GR!AV$27)^(AV$1-1)) ->  | AW121: =IF(AW$1="","",AW86/(1+GR!AW$27)^(AW$1-1)) ->  | AX121: =IF(AX$1="","",AX86/(1+GR!AX$27)^(AX$1-1)) ->  | AY121: =IF(AY$1="","",AY86/(1+GR!AY$27)^(AY$1-1)) ->  | AZ121: =IF(AZ$1="","",AZ86/(1+GR!AZ$27)^(AZ$1-1)) ->  | BA121: =IF(BA$1="","",BA86/(1+GR!BA$27)^(BA$1-1)) ->  | BB121: =IF(BB$1="","",BB86/(1+GR!BB$27)^(BB$1-1)) ->  | BC121: =IF(BC$1="","",BC86/(1+GR!BC$27)^(BC$1-1)) ->  | BD121: =IF(BD$1="","",BD86/(1+GR!BD$27)^(BD$1-1)) ->  | BE121: =IF(BE$1="","",BE86/(1+GR!BE$27)^(BE$1-1)) ->  | BF121: =IF(BF$1="","",BF86/(1+GR!BF$27)^(BF$1-1)) ->  | BG121: =IF(BG$1="","",BG86/(1+GR!BG$27)^(BG$1-1)) ->  | BH121: =IF(BH$1="","",BH86/(1+GR!BH$27)^(BH$1-1)) ->  | BI121: =IF(BI$1="","",BI86/(1+GR!BI$27)^(BI$1-1)) ->  | BJ121: =IF(BJ$1="","",BJ86/(1+GR!BJ$27)^(BJ$1-1)) ->  | BK121: =IF(BK$1="","",BK86/(1+GR!BK$27)^(BK$1-1)) ->  | BL121: =IF(BL$1="","",BL86/(1+GR!BL$27)^(BL$1-1)) ->  | BM121: =IF(BM$1="","",BM86/(1+GR!BM$27)^(BM$1-1)) ->  | BN121: =IF(BN$1="","",BN86/(1+GR!BN$27)^(BN$1-1)) ->  | BO121: =IF(BO$1="","",BO86/(1+GR!BO$27)^(BO$1-1)) -> 
D122: Accidents | E122: £ k | F122: 1442729.821 | H122: 75790.4749 | I122: =IF(I$1="","",I87/(1+GR!I$27)^(I$1-1)) -> 73227.51198 | J122: =IF(J$1="","",J87/(1+GR!J$27)^(J$1-1)) -> 70751.21931 | K122: =IF(K$1="","",K87/(1+GR!K$27)^(K$1-1)) -> 68358.666 | L122: =IF(L$1="","",L87/(1+GR!L$27)^(L$1-1)) -> 66047.02029 | M122: =IF(M$1="","",M87/(1+GR!M$27)^(M$1-1)) -> 63813.54617 | N122: =IF(N$1="","",N87/(1+GR!N$27)^(N$1-1)) -> 61655.60016 | O122: =IF(O$1="","",O87/(1+GR!O$27)^(O$1-1)) -> 59570.62818 | P122: =IF(P$1="","",P87/(1+GR!P$27)^(P$1-1)) -> 57556.16249 | Q122: =IF(Q$1="","",Q87/(1+GR!Q$27)^(Q$1-1)) -> 55609.81883 | R122: =IF(R$1="","",R87/(1+GR!R$27)^(R$1-1)) -> 53729.29356 | S122: =IF(S$1="","",S87/(1+GR!S$27)^(S$1-1)) -> 51912.36092 | T122: =IF(T$1="","",T87/(1+GR!T$27)^(T$1-1)) -> 50156.87046 | U122: =IF(U$1="","",U87/(1+GR!U$27)^(U$1-1)) -> 48460.7444 | V122: =IF(V$1="","",V87/(1+GR!V$27)^(V$1-1)) -> 46821.97527 | W122: =IF(W$1="","",W87/(1+GR!W$27)^(W$1-1)) -> 45238.62345 | X122: =IF(X$1="","",X87/(1+GR!X$27)^(X$1-1)) -> 43708.81493 | Y122: =IF(Y$1="","",Y87/(1+GR!Y$27)^(Y$1-1)) -> 42230.73906 | Z122: =IF(Z$1="","",Z87/(1+GR!Z$27)^(Z$1-1)) -> 40802.64643 | AA122: =IF(AA$1="","",AA87/(1+GR!AA$27)^(AA$1-1)) -> 39422.8468 | AB122: =IF(AB$1="","",AB87/(1+GR!AB$27)^(AB$1-1)) -> 38089.70705 | AC122: =IF(AC$1="","",AC87/(1+GR!AC$27)^(AC$1-1)) -> 36801.64932 | AD122: =IF(AD$1="","",AD87/(1+GR!AD$27)^(AD$1-1)) -> 35557.1491 | AE122: =IF(AE$1="","",AE87/(1+GR!AE$27)^(AE$1-1)) -> 34354.73343 | AF122: =IF(AF$1="","",AF87/(1+GR!AF$27)^(AF$1-1)) -> 33192.97916 | AG122: =IF(AG$1="","",AG87/(1+GR!AG$27)^(AG$1-1)) -> 32070.51127 | AH122: =IF(AH$1="","",AH87/(1+GR!AH$27)^(AH$1-1)) -> 30986.00123 | AI122: =IF(AI$1="","",AI87/(1+GR!AI$27)^(AI$1-1)) -> 29938.16544 | AJ122: =IF(AJ$1="","",AJ87/(1+GR!AJ$27)^(AJ$1-1)) -> 28925.76371 | AK122: =IF(AK$1="","",AK87/(1+GR!AK$27)^(AK$1-1)) -> 27947.59778 | AL122: =IF(AL$1="","",AL87/(1+GR!AL$27)^(AL$1-1)) ->  | AM122: =IF(AM$1="","",AM87/(1+GR!AM$27)^(AM$1-1)) ->  | AN122: =IF(AN$1="","",AN87/(1+GR!AN$27)^(AN$1-1)) ->  | AO122: =IF(AO$1="","",AO87/(1+GR!AO$27)^(AO$1-1)) ->  | AP122: =IF(AP$1="","",AP87/(1+GR!AP$27)^(AP$1-1)) ->  | AQ122: =IF(AQ$1="","",AQ87/(1+GR!AQ$27)^(AQ$1-1)) ->  | AR122: =IF(AR$1="","",AR87/(1+GR!AR$27)^(AR$1-1)) ->  | AS122: =IF(AS$1="","",AS87/(1+GR!AS$27)^(AS$1-1)) ->  | AT122: =IF(AT$1="","",AT87/(1+GR!AT$27)^(AT$1-1)) ->  | AU122: =IF(AU$1="","",AU87/(1+GR!AU$27)^(AU$1-1)) ->  | AV122: =IF(AV$1="","",AV87/(1+GR!AV$27)^(AV$1-1)) ->  | AW122: =IF(AW$1="","",AW87/(1+GR!AW$27)^(AW$1-1)) ->  | AX122: =IF(AX$1="","",AX87/(1+GR!AX$27)^(AX$1-1)) ->  | AY122: =IF(AY$1="","",AY87/(1+GR!AY$27)^(AY$1-1)) ->  | AZ122: =IF(AZ$1="","",AZ87/(1+GR!AZ$27)^(AZ$1-1)) ->  | BA122: =IF(BA$1="","",BA87/(1+GR!BA$27)^(BA$1-1)) ->  | BB122: =IF(BB$1="","",BB87/(1+GR!BB$27)^(BB$1-1)) ->  | BC122: =IF(BC$1="","",BC87/(1+GR!BC$27)^(BC$1-1)) ->  | BD122: =IF(BD$1="","",BD87/(1+GR!BD$27)^(BD$1-1)) ->  | BE122: =IF(BE$1="","",BE87/(1+GR!BE$27)^(BE$1-1)) ->  | BF122: =IF(BF$1="","",BF87/(1+GR!BF$27)^(BF$1-1)) ->  | BG122: =IF(BG$1="","",BG87/(1+GR!BG$27)^(BG$1-1)) ->  | BH122: =IF(BH$1="","",BH87/(1+GR!BH$27)^(BH$1-1)) ->  | BI122: =IF(BI$1="","",BI87/(1+GR!BI$27)^(BI$1-1)) ->  | BJ122: =IF(BJ$1="","",BJ87/(1+GR!BJ$27)^(BJ$1-1)) ->  | BK122: =IF(BK$1="","",BK87/(1+GR!BK$27)^(BK$1-1)) ->  | BL122: =IF(BL$1="","",BL87/(1+GR!BL$27)^(BL$1-1)) ->  | BM122: =IF(BM$1="","",BM87/(1+GR!BM$27)^(BM$1-1)) ->  | BN122: =IF(BN$1="","",BN87/(1+GR!BN$27)^(BN$1-1)) ->  | BO122: =IF(BO$1="","",BO87/(1+GR!BO$27)^(BO$1-1)) -> 
D123: Carbon (Embodied in materials) | E123: £ k | F123: 4806.957424 | H123: 229.37793 | I123: =IF(I$1="","",I88/(1+GR!I$27)^(I$1-1)) -> 224.9252815 | J123: =IF(J$1="","",J88/(1+GR!J$27)^(J$1-1)) -> 228.0318316 | K123: =IF(K$1="","",K88/(1+GR!K$27)^(K$1-1)) -> 121.0136347 | L123: =IF(L$1="","",L88/(1+GR!L$27)^(L$1-1)) -> 126.8793285 | M123: =IF(M$1="","",M88/(1+GR!M$27)^(M$1-1)) -> 129.1574194 | N123: =IF(N$1="","",N88/(1+GR!N$27)^(N$1-1)) -> 129.3455031 | O123: =IF(O$1="","",O88/(1+GR!O$27)^(O$1-1)) -> 128.3209004 | P123: =IF(P$1="","",P88/(1+GR!P$27)^(P$1-1)) -> 128.2215068 | Q123: =IF(Q$1="","",Q88/(1+GR!Q$27)^(Q$1-1)) -> 126.0565142 | R123: =IF(R$1="","",R88/(1+GR!R$27)^(R$1-1)) -> 123.6730502 | S123: =IF(S$1="","",S88/(1+GR!S$27)^(S$1-1)) -> 130.0443055 | T123: =IF(T$1="","",T88/(1+GR!T$27)^(T$1-1)) -> 137.2143721 | U123: =IF(U$1="","",U88/(1+GR!U$27)^(U$1-1)) -> 142.3326929 | V123: =IF(V$1="","",V88/(1+GR!V$27)^(V$1-1)) -> 148.258663 | W123: =IF(W$1="","",W88/(1+GR!W$27)^(W$1-1)) -> 152.3148896 | X123: =IF(X$1="","",X88/(1+GR!X$27)^(X$1-1)) -> 157.1642538 | Y123: =IF(Y$1="","",Y88/(1+GR!Y$27)^(Y$1-1)) -> 160.2998665 | Z123: =IF(Z$1="","",Z88/(1+GR!Z$27)^(Z$1-1)) -> 164.2040738 | AA123: =IF(AA$1="","",AA88/(1+GR!AA$27)^(AA$1-1)) -> 166.5331389 | AB123: =IF(AB$1="","",AB88/(1+GR!AB$27)^(AB$1-1)) -> 169.6024371 | AC123: =IF(AC$1="","",AC88/(1+GR!AC$27)^(AC$1-1)) -> 171.2222515 | AD123: =IF(AD$1="","",AD88/(1+GR!AD$27)^(AD$1-1)) -> 173.5528365 | AE123: =IF(AE$1="","",AE88/(1+GR!AE$27)^(AE$1-1)) -> 174.5489837 | AF123: =IF(AF$1="","",AF88/(1+GR!AF$27)^(AF$1-1)) -> 176.2264895 | AG123: =IF(AG$1="","",AG88/(1+GR!AG$27)^(AG$1-1)) -> 176.6753623 | AH123: =IF(AH$1="","",AH88/(1+GR!AH$27)^(AH$1-1)) -> 177.7767139 | AI123: =IF(AI$1="","",AI88/(1+GR!AI$27)^(AI$1-1)) -> 177.7469274 | AJ123: =IF(AJ$1="","",AJ88/(1+GR!AJ$27)^(AJ$1-1)) -> 178.3414749 | AK123: =IF(AK$1="","",AK88/(1+GR!AK$27)^(AK$1-1)) -> 177.8947908 | AL123: =IF(AL$1="","",AL88/(1+GR!AL$27)^(AL$1-1)) ->  | AM123: =IF(AM$1="","",AM88/(1+GR!AM$27)^(AM$1-1)) ->  | AN123: =IF(AN$1="","",AN88/(1+GR!AN$27)^(AN$1-1)) ->  | AO123: =IF(AO$1="","",AO88/(1+GR!AO$27)^(AO$1-1)) ->  | AP123: =IF(AP$1="","",AP88/(1+GR!AP$27)^(AP$1-1)) ->  | AQ123: =IF(AQ$1="","",AQ88/(1+GR!AQ$27)^(AQ$1-1)) ->  | AR123: =IF(AR$1="","",AR88/(1+GR!AR$27)^(AR$1-1)) ->  | AS123: =IF(AS$1="","",AS88/(1+GR!AS$27)^(AS$1-1)) ->  | AT123: =IF(AT$1="","",AT88/(1+GR!AT$27)^(AT$1-1)) ->  | AU123: =IF(AU$1="","",AU88/(1+GR!AU$27)^(AU$1-1)) ->  | AV123: =IF(AV$1="","",AV88/(1+GR!AV$27)^(AV$1-1)) ->  | AW123: =IF(AW$1="","",AW88/(1+GR!AW$27)^(AW$1-1)) ->  | AX123: =IF(AX$1="","",AX88/(1+GR!AX$27)^(AX$1-1)) ->  | AY123: =IF(AY$1="","",AY88/(1+GR!AY$27)^(AY$1-1)) ->  | AZ123: =IF(AZ$1="","",AZ88/(1+GR!AZ$27)^(AZ$1-1)) ->  | BA123: =IF(BA$1="","",BA88/(1+GR!BA$27)^(BA$1-1)) ->  | BB123: =IF(BB$1="","",BB88/(1+GR!BB$27)^(BB$1-1)) ->  | BC123: =IF(BC$1="","",BC88/(1+GR!BC$27)^(BC$1-1)) ->  | BD123: =IF(BD$1="","",BD88/(1+GR!BD$27)^(BD$1-1)) ->  | BE123: =IF(BE$1="","",BE88/(1+GR!BE$27)^(BE$1-1)) ->  | BF123: =IF(BF$1="","",BF88/(1+GR!BF$27)^(BF$1-1)) ->  | BG123: =IF(BG$1="","",BG88/(1+GR!BG$27)^(BG$1-1)) ->  | BH123: =IF(BH$1="","",BH88/(1+GR!BH$27)^(BH$1-1)) ->  | BI123: =IF(BI$1="","",BI88/(1+GR!BI$27)^(BI$1-1)) ->  | BJ123: =IF(BJ$1="","",BJ88/(1+GR!BJ$27)^(BJ$1-1)) ->  | BK123: =IF(BK$1="","",BK88/(1+GR!BK$27)^(BK$1-1)) ->  | BL123: =IF(BL$1="","",BL88/(1+GR!BL$27)^(BL$1-1)) ->  | BM123: =IF(BM$1="","",BM88/(1+GR!BM$27)^(BM$1-1)) ->  | BN123: =IF(BN$1="","",BN88/(1+GR!BN$27)^(BN$1-1)) ->  | BO123: =IF(BO$1="","",BO88/(1+GR!BO$27)^(BO$1-1)) -> 
D124: Total HMAT costs | E124: £ k | F124: 42425978.37 | H124: =IF(H110="","",SUM(H116:H123)) -> 1244310.901 | I124: =IF(I110="","",SUM(I116:I123)) -> 1227951.539 | J124: 1213443.463 | K124: 1214768.068 | L124: 1221278.121 | M124: 1238709.258 | N124: 1263139.041 | O124: 1288421.853 | P124: 1308946.078 | Q124: 1335184.525 | R124: 1371176.003 | S124: 1398132.638 | T124: 1424506.021 | U124: 1447295.364 | V124: 1467765.346 | W124: 1484941.389 | X124: 1499364.723 | Y124: 1509260.3 | Z124: 1520474.903 | AA124: 1528182.945 | AB124: 1533327.268 | AC124: 1538480.016 | AD124: 1539373.799 | AE124: 1537230.567 | AF124: 1533833.364 | AG124: 1527295.094 | AH124: 1519197.699 | AI124: 1508524.32 | AJ124: 1497257.324 | AK124: 1484206.443
C126: Network Benefits | D126: Change in accident costs | E126: £ k | F126: =SUM(H126:BO126) -> -710883.2197 | H126: =H91 -> -34257.67568 | I126: =IF(I$1="","",I91/(1+GR!I$27)^(I$1-1)) -> -33210.5987 | J126: =IF(J$1="","",J91/(1+GR!J$27)^(J$1-1)) -> -32358.08809 | K126: =IF(K$1="","",K91/(1+GR!K$27)^(K$1-1)) -> -31524.31114 | L126: =IF(L$1="","",L91/(1+GR!L$27)^(L$1-1)) -> -30708.89041 | M126: =IF(M$1="","",M91/(1+GR!M$27)^(M$1-1)) -> -29911.4556 | N126: =IF(N$1="","",N91/(1+GR!N$27)^(N$1-1)) -> -29131.64336 | O126: =IF(O$1="","",O91/(1+GR!O$27)^(O$1-1)) -> -28377.81478 | P126: =IF(P$1="","",P91/(1+GR!P$27)^(P$1-1)) -> -27640.64192 | Q126: =IF(Q$1="","",Q91/(1+GR!Q$27)^(Q$1-1)) -> -26919.78709 | R126: =IF(R$1="","",R91/(1+GR!R$27)^(R$1-1)) -> -26214.91905 | S126: =IF(S$1="","",S91/(1+GR!S$27)^(S$1-1)) -> -25525.71285 | T126: =IF(T$1="","",T91/(1+GR!T$27)^(T$1-1)) -> -24808.09532 | U126: =IF(U$1="","",U91/(1+GR!U$27)^(U$1-1)) -> -24106.86391 | V126: =IF(V$1="","",V91/(1+GR!V$27)^(V$1-1)) -> -23421.68169 | W126: =IF(W$1="","",W91/(1+GR!W$27)^(W$1-1)) -> -22752.21815 | X126: =IF(X$1="","",X91/(1+GR!X$27)^(X$1-1)) -> -22098.14907 | Y126: =IF(Y$1="","",Y91/(1+GR!Y$27)^(Y$1-1)) -> -21490.24116 | Z126: =IF(Z$1="","",Z91/(1+GR!Z$27)^(Z$1-1)) -> -20896.1279 | AA126: =IF(AA$1="","",AA91/(1+GR!AA$27)^(AA$1-1)) -> -20315.52541 | AB126: =IF(AB$1="","",AB91/(1+GR!AB$27)^(AB$1-1)) -> -19748.15528 | AC126: =IF(AC$1="","",AC91/(1+GR!AC$27)^(AC$1-1)) -> -19193.74445 | AD126: =IF(AD$1="","",AD91/(1+GR!AD$27)^(AD$1-1)) -> -18683.93456 | AE126: =IF(AE$1="","",AE91/(1+GR!AE$27)^(AE$1-1)) -> -18185.55568 | AF126: =IF(AF$1="","",AF91/(1+GR!AF$27)^(AF$1-1)) -> -17698.37301 | AG126: =IF(AG$1="","",AG91/(1+GR!AG$27)^(AG$1-1)) -> -17222.15635 | AH126: =IF(AH$1="","",AH91/(1+GR!AH$27)^(AH$1-1)) -> -16756.67991 | AI126: =IF(AI$1="","",AI91/(1+GR!AI$27)^(AI$1-1)) -> -16326.04542 | AJ126: =IF(AJ$1="","",AJ91/(1+GR!AJ$27)^(AJ$1-1)) -> -15904.9463 | AK126: =IF(AK$1="","",AK91/(1+GR!AK$27)^(AK$1-1)) -> -15493.18746 | AL126: =IF(AL$1="","",AL91/(1+GR!AL$27)^(AL$1-1)) ->  | AM126: =IF(AM$1="","",AM91/(1+GR!AM$27)^(AM$1-1)) ->  | AN126: =IF(AN$1="","",AN91/(1+GR!AN$27)^(AN$1-1)) ->  | AO126: =IF(AO$1="","",AO91/(1+GR!AO$27)^(AO$1-1)) ->  | AP126: =IF(AP$1="","",AP91/(1+GR!AP$27)^(AP$1-1)) ->  | AQ126: =IF(AQ$1="","",AQ91/(1+GR!AQ$27)^(AQ$1-1)) ->  | AR126: =IF(AR$1="","",AR91/(1+GR!AR$27)^(AR$1-1)) ->  | AS126: =IF(AS$1="","",AS91/(1+GR!AS$27)^(AS$1-1)) ->  | AT126: =IF(AT$1="","",AT91/(1+GR!AT$27)^(AT$1-1)) ->  | AU126: =IF(AU$1="","",AU91/(1+GR!AU$27)^(AU$1-1)) ->  | AV126: =IF(AV$1="","",AV91/(1+GR!AV$27)^(AV$1-1)) ->  | AW126: =IF(AW$1="","",AW91/(1+GR!AW$27)^(AW$1-1)) ->  | AX126: =IF(AX$1="","",AX91/(1+GR!AX$27)^(AX$1-1)) ->  | AY126: =IF(AY$1="","",AY91/(1+GR!AY$27)^(AY$1-1)) ->  | AZ126: =IF(AZ$1="","",AZ91/(1+GR!AZ$27)^(AZ$1-1)) ->  | BA126: =IF(BA$1="","",BA91/(1+GR!BA$27)^(BA$1-1)) ->  | BB126: =IF(BB$1="","",BB91/(1+GR!BB$27)^(BB$1-1)) ->  | BC126: =IF(BC$1="","",BC91/(1+GR!BC$27)^(BC$1-1)) ->  | BD126: =IF(BD$1="","",BD91/(1+GR!BD$27)^(BD$1-1)) ->  | BE126: =IF(BE$1="","",BE91/(1+GR!BE$27)^(BE$1-1)) ->  | BF126: =IF(BF$1="","",BF91/(1+GR!BF$27)^(BF$1-1)) ->  | BG126: =IF(BG$1="","",BG91/(1+GR!BG$27)^(BG$1-1)) ->  | BH126: =IF(BH$1="","",BH91/(1+GR!BH$27)^(BH$1-1)) ->  | BI126: =IF(BI$1="","",BI91/(1+GR!BI$27)^(BI$1-1)) ->  | BJ126: =IF(BJ$1="","",BJ91/(1+GR!BJ$27)^(BJ$1-1)) ->  | BK126: =IF(BK$1="","",BK91/(1+GR!BK$27)^(BK$1-1)) ->  | BL126: =IF(BL$1="","",BL91/(1+GR!BL$27)^(BL$1-1)) ->  | BM126: =IF(BM$1="","",BM91/(1+GR!BM$27)^(BM$1-1)) ->  | BN126: =IF(BN$1="","",BN91/(1+GR!BN$27)^(BN$1-1)) ->  | BO126: =IF(BO$1="","",BO91/(1+GR!BO$27)^(BO$1-1)) -> 
D127: Change in travel time costs | E127: £ k | F127: =SUM(H127:BO127) -> 3110091.346 | H127: =H92 -> 117698.9937 | I127: =IF(I$1="","",I92/(1+GR!I$27)^(I$1-1)) -> 116506.4491 | J127: =IF(J$1="","",J92/(1+GR!J$27)^(J$1-1)) -> 114805.0733 | K127: =IF(K$1="","",K92/(1+GR!K$27)^(K$1-1)) -> 113144.9711 | L127: =IF(L$1="","",L92/(1+GR!L$27)^(L$1-1)) -> 111685.6616 | M127: =IF(M$1="","",M92/(1+GR!M$27)^(M$1-1)) -> 110398.7306 | N127: =IF(N$1="","",N92/(1+GR!N$27)^(N$1-1)) -> 109251.3147 | O127: =IF(O$1="","",O92/(1+GR!O$27)^(O$1-1)) -> 108250.249 | P127: =IF(P$1="","",P92/(1+GR!P$27)^(P$1-1)) -> 107359.1063 | Q127: =IF(Q$1="","",Q92/(1+GR!Q$27)^(Q$1-1)) -> 106516.9573 | R127: =IF(R$1="","",R92/(1+GR!R$27)^(R$1-1)) -> 105772.4882 | S127: =IF(S$1="","",S92/(1+GR!S$27)^(S$1-1)) -> 105020.9626 | T127: =IF(T$1="","",T92/(1+GR!T$27)^(T$1-1)) -> 104459.7156 | U127: =IF(U$1="","",U92/(1+GR!U$27)^(U$1-1)) -> 103875.2901 | V127: =IF(V$1="","",V92/(1+GR!V$27)^(V$1-1)) -> 103294.9869 | W127: =IF(W$1="","",W92/(1+GR!W$27)^(W$1-1)) -> 102738.4821 | X127: =IF(X$1="","",X92/(1+GR!X$27)^(X$1-1)) -> 102236.2508 | Y127: =IF(Y$1="","",Y92/(1+GR!Y$27)^(Y$1-1)) -> 101651.4039 | Z127: =IF(Z$1="","",Z92/(1+GR!Z$27)^(Z$1-1)) -> 101064.7742 | AA127: =IF(AA$1="","",AA92/(1+GR!AA$27)^(AA$1-1)) -> 100459.1658 | AB127: =IF(AB$1="","",AB92/(1+GR!AB$27)^(AB$1-1)) -> 99827.11477 | AC127: =IF(AC$1="","",AC92/(1+GR!AC$27)^(AC$1-1)) -> 99196.95758 | AD127: =IF(AD$1="","",AD92/(1+GR!AD$27)^(AD$1-1)) -> 98443.89825 | AE127: =IF(AE$1="","",AE92/(1+GR!AE$27)^(AE$1-1)) -> 97679.19006 | AF127: =IF(AF$1="","",AF92/(1+GR!AF$27)^(AF$1-1)) -> 96895.0168 | AG127: =IF(AG$1="","",AG92/(1+GR!AG$27)^(AG$1-1)) -> 96102.88013 | AH127: =IF(AH$1="","",AH92/(1+GR!AH$27)^(AH$1-1)) -> 95307.01633 | AI127: =IF(AI$1="","",AI92/(1+GR!AI$27)^(AI$1-1)) -> 94395.4722 | AJ127: =IF(AJ$1="","",AJ92/(1+GR!AJ$27)^(AJ$1-1)) -> 93479.77954 | AK127: =IF(AK$1="","",AK92/(1+GR!AK$27)^(AK$1-1)) -> 92572.99303 | AL127: =IF(AL$1="","",AL92/(1+GR!AL$27)^(AL$1-1)) ->  | AM127: =IF(AM$1="","",AM92/(1+GR!AM$27)^(AM$1-1)) ->  | AN127: =IF(AN$1="","",AN92/(1+GR!AN$27)^(AN$1-1)) ->  | AO127: =IF(AO$1="","",AO92/(1+GR!AO$27)^(AO$1-1)) ->  | AP127: =IF(AP$1="","",AP92/(1+GR!AP$27)^(AP$1-1)) ->  | AQ127: =IF(AQ$1="","",AQ92/(1+GR!AQ$27)^(AQ$1-1)) ->  | AR127: =IF(AR$1="","",AR92/(1+GR!AR$27)^(AR$1-1)) ->  | AS127: =IF(AS$1="","",AS92/(1+GR!AS$27)^(AS$1-1)) ->  | AT127: =IF(AT$1="","",AT92/(1+GR!AT$27)^(AT$1-1)) ->  | AU127: =IF(AU$1="","",AU92/(1+GR!AU$27)^(AU$1-1)) ->  | AV127: =IF(AV$1="","",AV92/(1+GR!AV$27)^(AV$1-1)) ->  | AW127: =IF(AW$1="","",AW92/(1+GR!AW$27)^(AW$1-1)) ->  | AX127: =IF(AX$1="","",AX92/(1+GR!AX$27)^(AX$1-1)) ->  | AY127: =IF(AY$1="","",AY92/(1+GR!AY$27)^(AY$1-1)) ->  | AZ127: =IF(AZ$1="","",AZ92/(1+GR!AZ$27)^(AZ$1-1)) ->  | BA127: =IF(BA$1="","",BA92/(1+GR!BA$27)^(BA$1-1)) ->  | BB127: =IF(BB$1="","",BB92/(1+GR!BB$27)^(BB$1-1)) ->  | BC127: =IF(BC$1="","",BC92/(1+GR!BC$27)^(BC$1-1)) ->  | BD127: =IF(BD$1="","",BD92/(1+GR!BD$27)^(BD$1-1)) ->  | BE127: =IF(BE$1="","",BE92/(1+GR!BE$27)^(BE$1-1)) ->  | BF127: =IF(BF$1="","",BF92/(1+GR!BF$27)^(BF$1-1)) ->  | BG127: =IF(BG$1="","",BG92/(1+GR!BG$27)^(BG$1-1)) ->  | BH127: =IF(BH$1="","",BH92/(1+GR!BH$27)^(BH$1-1)) ->  | BI127: =IF(BI$1="","",BI92/(1+GR!BI$27)^(BI$1-1)) ->  | BJ127: =IF(BJ$1="","",BJ92/(1+GR!BJ$27)^(BJ$1-1)) ->  | BK127: =IF(BK$1="","",BK92/(1+GR!BK$27)^(BK$1-1)) ->  | BL127: =IF(BL$1="","",BL92/(1+GR!BL$27)^(BL$1-1)) ->  | BM127: =IF(BM$1="","",BM92/(1+GR!BM$27)^(BM$1-1)) ->  | BN127: =IF(BN$1="","",BN92/(1+GR!BN$27)^(BN$1-1)) ->  | BO127: =IF(BO$1="","",BO92/(1+GR!BO$27)^(BO$1-1)) -> 
D128: Change in cost of CO2 emissions | E128: £ k | F128: =SUM(H128:BO128) -> 774477.9083 | H128: =H93 -> 20584.33148 | I128: =IF(I$1="","",I93/(1+GR!I$27)^(I$1-1)) -> 20282.78466 | J128: =IF(J$1="","",J93/(1+GR!J$27)^(J$1-1)) -> 20210.68608 | K128: =IF(K$1="","",K93/(1+GR!K$27)^(K$1-1)) -> 19755.35023 | L128: =IF(L$1="","",L93/(1+GR!L$27)^(L$1-1)) -> 19344.6892 | M128: =IF(M$1="","",M93/(1+GR!M$27)^(M$1-1)) -> 18950.30742 | N128: =IF(N$1="","",N93/(1+GR!N$27)^(N$1-1)) -> 18649.35562 | O128: =IF(O$1="","",O93/(1+GR!O$27)^(O$1-1)) -> 18397.68099 | P128: =IF(P$1="","",P93/(1+GR!P$27)^(P$1-1)) -> 18400.998 | Q128: =IF(Q$1="","",Q93/(1+GR!Q$27)^(Q$1-1)) -> 18210.82295 | R128: =IF(R$1="","",R93/(1+GR!R$27)^(R$1-1)) -> 18055.50806 | S128: =IF(S$1="","",S93/(1+GR!S$27)^(S$1-1)) -> 19317.24424 | T128: =IF(T$1="","",T93/(1+GR!T$27)^(T$1-1)) -> 20853.2139 | U128: =IF(U$1="","",U93/(1+GR!U$27)^(U$1-1)) -> 22119.31404 | V128: =IF(V$1="","",V93/(1+GR!V$27)^(V$1-1)) -> 23547.21941 | W128: =IF(W$1="","",W93/(1+GR!W$27)^(W$1-1)) -> 24743.73482 | X128: =IF(X$1="","",X93/(1+GR!X$27)^(X$1-1)) -> 26126.28965 | Y128: =IF(Y$1="","",Y93/(1+GR!Y$27)^(Y$1-1)) -> 27175.94337 | Z128: =IF(Z$1="","",Z93/(1+GR!Z$27)^(Z$1-1)) -> 28441.23822 | AA128: =IF(AA$1="","",AA93/(1+GR!AA$27)^(AA$1-1)) -> 29432.69817 | AB128: =IF(AB$1="","",AB93/(1+GR!AB$27)^(AB$1-1)) -> 30543.04528 | AC128: =IF(AC$1="","",AC93/(1+GR!AC$27)^(AC$1-1)) -> 31447.92132 | AD128: =IF(AD$1="","",AD93/(1+GR!AD$27)^(AD$1-1)) -> 32475.33912 | AE128: =IF(AE$1="","",AE93/(1+GR!AE$27)^(AE$1-1)) -> 33190.87421 | AF128: =IF(AF$1="","",AF93/(1+GR!AF$27)^(AF$1-1)) -> 34106.67222 | AG128: =IF(AG$1="","",AG93/(1+GR!AG$27)^(AG$1-1)) -> 34760.98886 | AH128: =IF(AH$1="","",AH93/(1+GR!AH$27)^(AH$1-1)) -> 35512.21295 | AI128: =IF(AI$1="","",AI93/(1+GR!AI$27)^(AI$1-1)) -> 36038.77891 | AJ128: =IF(AJ$1="","",AJ93/(1+GR!AJ$27)^(AJ$1-1)) -> 36708.18676 | AK128: =IF(AK$1="","",AK93/(1+GR!AK$27)^(AK$1-1)) -> 37094.47814 | AL128: =IF(AL$1="","",AL93/(1+GR!AL$27)^(AL$1-1)) ->  | AM128: =IF(AM$1="","",AM93/(1+GR!AM$27)^(AM$1-1)) ->  | AN128: =IF(AN$1="","",AN93/(1+GR!AN$27)^(AN$1-1)) ->  | AO128: =IF(AO$1="","",AO93/(1+GR!AO$27)^(AO$1-1)) ->  | AP128: =IF(AP$1="","",AP93/(1+GR!AP$27)^(AP$1-1)) ->  | AQ128: =IF(AQ$1="","",AQ93/(1+GR!AQ$27)^(AQ$1-1)) ->  | AR128: =IF(AR$1="","",AR93/(1+GR!AR$27)^(AR$1-1)) ->  | AS128: =IF(AS$1="","",AS93/(1+GR!AS$27)^(AS$1-1)) ->  | AT128: =IF(AT$1="","",AT93/(1+GR!AT$27)^(AT$1-1)) ->  | AU128: =IF(AU$1="","",AU93/(1+GR!AU$27)^(AU$1-1)) ->  | AV128: =IF(AV$1="","",AV93/(1+GR!AV$27)^(AV$1-1)) ->  | AW128: =IF(AW$1="","",AW93/(1+GR!AW$27)^(AW$1-1)) ->  | AX128: =IF(AX$1="","",AX93/(1+GR!AX$27)^(AX$1-1)) ->  | AY128: =IF(AY$1="","",AY93/(1+GR!AY$27)^(AY$1-1)) ->  | AZ128: =IF(AZ$1="","",AZ93/(1+GR!AZ$27)^(AZ$1-1)) ->  | BA128: =IF(BA$1="","",BA93/(1+GR!BA$27)^(BA$1-1)) ->  | BB128: =IF(BB$1="","",BB93/(1+GR!BB$27)^(BB$1-1)) ->  | BC128: =IF(BC$1="","",BC93/(1+GR!BC$27)^(BC$1-1)) ->  | BD128: =IF(BD$1="","",BD93/(1+GR!BD$27)^(BD$1-1)) ->  | BE128: =IF(BE$1="","",BE93/(1+GR!BE$27)^(BE$1-1)) ->  | BF128: =IF(BF$1="","",BF93/(1+GR!BF$27)^(BF$1-1)) ->  | BG128: =IF(BG$1="","",BG93/(1+GR!BG$27)^(BG$1-1)) ->  | BH128: =IF(BH$1="","",BH93/(1+GR!BH$27)^(BH$1-1)) ->  | BI128: =IF(BI$1="","",BI93/(1+GR!BI$27)^(BI$1-1)) ->  | BJ128: =IF(BJ$1="","",BJ93/(1+GR!BJ$27)^(BJ$1-1)) ->  | BK128: =IF(BK$1="","",BK93/(1+GR!BK$27)^(BK$1-1)) ->  | BL128: =IF(BL$1="","",BL93/(1+GR!BL$27)^(BL$1-1)) ->  | BM128: =IF(BM$1="","",BM93/(1+GR!BM$27)^(BM$1-1)) ->  | BN128: =IF(BN$1="","",BN93/(1+GR!BN$27)^(BN$1-1)) ->  | BO128: =IF(BO$1="","",BO93/(1+GR!BO$27)^(BO$1-1)) -> 
D129: Total Network Benefits costs | E129: £ k | F129: =SUM(H129:BO129) -> 3173686.034 | H129: =IF(H110="","",SUM(H126:H128)) -> 104025.6495 | I129: =IF(I110="","",SUM(I126:I128)) -> 103578.635 | J129: 102657.6713 | K129: 101376.0102 | L129: 100321.4603 | M129: 99437.5824 | N129: 98769.02699 | O129: 98270.11518 | P129: 98119.46242 | Q129: 97807.99316 | R129: 97613.07723 | S129: 98812.49403 | T129: 100504.8342 | U129: 101887.7402 | V129: 103420.5246 | W129: 104729.9987 | X129: 106264.3914 | Y129: 107337.1061 | Z129: 108609.8845 | AA129: 109576.3386 | AB129: 110622.0048 | AC129: 111451.1344 | AD129: 112235.3028 | AE129: 112684.5086 | AF129: 113303.316 | AG129: 113641.7126 | AH129: 114062.5494 | AI129: 114108.2057 | AJ129: 114283.02 | AK129: 114174.2837
C131: Public Income | D131: Congestion charge | E131: £ k | F131: =SUM(H131:BO131) -> 9056741.072 | H131: =H96 -> 63107.44534 | I131: =IF(I$1="","",I96/(1+GR!I$27)^(I$1-1)) -> 67541.42932 | J131: =IF(J$1="","",J96/(1+GR!J$27)^(J$1-1)) -> 73884.45051 | K131: =IF(K$1="","",K96/(1+GR!K$27)^(K$1-1)) -> 80823.16412 | L131: =IF(L$1="","",L96/(1+GR!L$27)^(L$1-1)) -> 88413.51345 | M131: =IF(M$1="","",M96/(1+GR!M$27)^(M$1-1)) -> 96716.69558 | N131: =IF(N$1="","",N96/(1+GR!N$27)^(N$1-1)) -> 105799.6548 | O131: =IF(O$1="","",O96/(1+GR!O$27)^(O$1-1)) -> 115735.6224 | P131: =IF(P$1="","",P96/(1+GR!P$27)^(P$1-1)) -> 126604.7069 | Q131: =IF(Q$1="","",Q96/(1+GR!Q$27)^(Q$1-1)) -> 138494.5403 | R131: =IF(R$1="","",R96/(1+GR!R$27)^(R$1-1)) -> 151500.9841 | S131: =IF(S$1="","",S96/(1+GR!S$27)^(S$1-1)) -> 165728.9026 | T131: =IF(T$1="","",T96/(1+GR!T$27)^(T$1-1)) -> 181293.0082 | U131: =IF(U$1="","",U96/(1+GR!U$27)^(U$1-1)) -> 198318.7864 | V131: =IF(V$1="","",V96/(1+GR!V$27)^(V$1-1)) -> 216943.5072 | W131: =IF(W$1="","",W96/(1+GR!W$27)^(W$1-1)) -> 237317.3322 | X131: =IF(X$1="","",X96/(1+GR!X$27)^(X$1-1)) -> 259604.5251 | Y131: =IF(Y$1="","",Y96/(1+GR!Y$27)^(Y$1-1)) -> 283984.7762 | Z131: =IF(Z$1="","",Z96/(1+GR!Z$27)^(Z$1-1)) -> 310654.6508 | AA131: =IF(AA$1="","",AA96/(1+GR!AA$27)^(AA$1-1)) -> 339829.1746 | AB131: =IF(AB$1="","",AB96/(1+GR!AB$27)^(AB$1-1)) -> 371743.5666 | AC131: =IF(AC$1="","",AC96/(1+GR!AC$27)^(AC$1-1)) -> 406655.1363 | AD131: =IF(AD$1="","",AD96/(1+GR!AD$27)^(AD$1-1)) -> 444845.3578 | AE131: =IF(AE$1="","",AE96/(1+GR!AE$27)^(AE$1-1)) -> 486622.1393 | AF131: =IF(AF$1="","",AF96/(1+GR!AF$27)^(AF$1-1)) -> 532322.3054 | AG131: =IF(AG$1="","",AG96/(1+GR!AG$27)^(AG$1-1)) -> 582314.3132 | AH131: =IF(AH$1="","",AH96/(1+GR!AH$27)^(AH$1-1)) -> 637001.2226 | AI131: =IF(AI$1="","",AI96/(1+GR!AI$27)^(AI$1-1)) -> 696823.9461 | AJ131: =IF(AJ$1="","",AJ96/(1+GR!AJ$27)^(AJ$1-1)) -> 762264.8037 | AK131: =IF(AK$1="","",AK96/(1+GR!AK$27)^(AK$1-1)) -> 833851.4113 | AL131: =IF(AL$1="","",AL96/(1+GR!AL$27)^(AL$1-1)) ->  | AM131: =IF(AM$1="","",AM96/(1+GR!AM$27)^(AM$1-1)) ->  | AN131: =IF(AN$1="","",AN96/(1+GR!AN$27)^(AN$1-1)) ->  | AO131: =IF(AO$1="","",AO96/(1+GR!AO$27)^(AO$1-1)) ->  | AP131: =IF(AP$1="","",AP96/(1+GR!AP$27)^(AP$1-1)) ->  | AQ131: =IF(AQ$1="","",AQ96/(1+GR!AQ$27)^(AQ$1-1)) ->  | AR131: =IF(AR$1="","",AR96/(1+GR!AR$27)^(AR$1-1)) ->  | AS131: =IF(AS$1="","",AS96/(1+GR!AS$27)^(AS$1-1)) ->  | AT131: =IF(AT$1="","",AT96/(1+GR!AT$27)^(AT$1-1)) ->  | AU131: =IF(AU$1="","",AU96/(1+GR!AU$27)^(AU$1-1)) ->  | AV131: =IF(AV$1="","",AV96/(1+GR!AV$27)^(AV$1-1)) ->  | AW131: =IF(AW$1="","",AW96/(1+GR!AW$27)^(AW$1-1)) ->  | AX131: =IF(AX$1="","",AX96/(1+GR!AX$27)^(AX$1-1)) ->  | AY131: =IF(AY$1="","",AY96/(1+GR!AY$27)^(AY$1-1)) ->  | AZ131: =IF(AZ$1="","",AZ96/(1+GR!AZ$27)^(AZ$1-1)) ->  | BA131: =IF(BA$1="","",BA96/(1+GR!BA$27)^(BA$1-1)) ->  | BB131: =IF(BB$1="","",BB96/(1+GR!BB$27)^(BB$1-1)) ->  | BC131: =IF(BC$1="","",BC96/(1+GR!BC$27)^(BC$1-1)) ->  | BD131: =IF(BD$1="","",BD96/(1+GR!BD$27)^(BD$1-1)) ->  | BE131: =IF(BE$1="","",BE96/(1+GR!BE$27)^(BE$1-1)) ->  | BF131: =IF(BF$1="","",BF96/(1+GR!BF$27)^(BF$1-1)) ->  | BG131: =IF(BG$1="","",BG96/(1+GR!BG$27)^(BG$1-1)) ->  | BH131: =IF(BH$1="","",BH96/(1+GR!BH$27)^(BH$1-1)) ->  | BI131: =IF(BI$1="","",BI96/(1+GR!BI$27)^(BI$1-1)) ->  | BJ131: =IF(BJ$1="","",BJ96/(1+GR!BJ$27)^(BJ$1-1)) ->  | BK131: =IF(BK$1="","",BK96/(1+GR!BK$27)^(BK$1-1)) ->  | BL131: =IF(BL$1="","",BL96/(1+GR!BL$27)^(BL$1-1)) ->  | BM131: =IF(BM$1="","",BM96/(1+GR!BM$27)^(BM$1-1)) ->  | BN131: =IF(BN$1="","",BN96/(1+GR!BN$27)^(BN$1-1)) ->  | BO131: =IF(BO$1="","",BO96/(1+GR!BO$27)^(BO$1-1)) -> 
D132: Tolls | E132: £ k | F132: =SUM(H132:BO132) -> 2239164.554 | H132: =H97 -> 15296.43933 | I132: =IF(I$1="","",I97/(1+GR!I$27)^(I$1-1)) -> 16383.52566 | J132: =IF(J$1="","",J97/(1+GR!J$27)^(J$1-1)) -> 17933.99712 | K132: =IF(K$1="","",K97/(1+GR!K$27)^(K$1-1)) -> 19631.7603 | L132: =IF(L$1="","",L97/(1+GR!L$27)^(L$1-1)) -> 21490.86325 | M132: =IF(M$1="","",M97/(1+GR!M$27)^(M$1-1)) -> 23526.69935 | N132: =IF(N$1="","",N97/(1+GR!N$27)^(N$1-1)) -> 25756.13673 | O132: =IF(O$1="","",O97/(1+GR!O$27)^(O$1-1)) -> 28197.66013 | P132: =IF(P$1="","",P97/(1+GR!P$27)^(P$1-1)) -> 30871.52649 | Q132: =IF(Q$1="","",Q97/(1+GR!Q$27)^(Q$1-1)) -> 33799.93558 | R132: =IF(R$1="","",R97/(1+GR!R$27)^(R$1-1)) -> 37007.21712 | S132: =IF(S$1="","",S97/(1+GR!S$27)^(S$1-1)) -> 40520.03604 | T132: =IF(T$1="","",T97/(1+GR!T$27)^(T$1-1)) -> 44367.61755 | U132: =IF(U$1="","",U97/(1+GR!U$27)^(U$1-1)) -> 48581.99403 | V132: =IF(V$1="","",V97/(1+GR!V$27)^(V$1-1)) -> 53198.27581 | W132: =IF(W$1="","",W97/(1+GR!W$27)^(W$1-1)) -> 58254.94823 | X132: =IF(X$1="","",X97/(1+GR!X$27)^(X$1-1)) -> 63794.19742 | Y132: =IF(Y$1="","",Y97/(1+GR!Y$27)^(Y$1-1)) -> 69862.26775 | Z132: =IF(Z$1="","",Z97/(1+GR!Z$27)^(Z$1-1)) -> 76509.85387 | AA132: =IF(AA$1="","",AA97/(1+GR!AA$27)^(AA$1-1)) -> 83792.53088 | AB132: =IF(AB$1="","",AB97/(1+GR!AB$27)^(AB$1-1)) -> 91771.22616 | AC132: =IF(AC$1="","",AC97/(1+GR!AC$27)^(AC$1-1)) -> 100512.7371 | AD132: =IF(AD$1="","",AD97/(1+GR!AD$27)^(AD$1-1)) -> 110090.2992 | AE132: =IF(AE$1="","",AE97/(1+GR!AE$27)^(AE$1-1)) -> 120584.2089 | AF132: =IF(AF$1="","",AF97/(1+GR!AF$27)^(AF$1-1)) -> 132082.508 | AG132: =IF(AG$1="","",AG97/(1+GR!AG$27)^(AG$1-1)) -> 144681.7334 | AH132: =IF(AH$1="","",AH97/(1+GR!AH$27)^(AH$1-1)) -> 158487.7406 | AI132: =IF(AI$1="","",AI97/(1+GR!AI$27)^(AI$1-1)) -> 173616.6074 | AJ132: =IF(AJ$1="","",AJ97/(1+GR!AJ$27)^(AJ$1-1)) -> 190195.6248 | AK132: =IF(AK$1="","",AK97/(1+GR!AK$27)^(AK$1-1)) -> 208364.3856 | AL132: =IF(AL$1="","",AL97/(1+GR!AL$27)^(AL$1-1)) ->  | AM132: =IF(AM$1="","",AM97/(1+GR!AM$27)^(AM$1-1)) ->  | AN132: =IF(AN$1="","",AN97/(1+GR!AN$27)^(AN$1-1)) ->  | AO132: =IF(AO$1="","",AO97/(1+GR!AO$27)^(AO$1-1)) ->  | AP132: =IF(AP$1="","",AP97/(1+GR!AP$27)^(AP$1-1)) ->  | AQ132: =IF(AQ$1="","",AQ97/(1+GR!AQ$27)^(AQ$1-1)) ->  | AR132: =IF(AR$1="","",AR97/(1+GR!AR$27)^(AR$1-1)) ->  | AS132: =IF(AS$1="","",AS97/(1+GR!AS$27)^(AS$1-1)) ->  | AT132: =IF(AT$1="","",AT97/(1+GR!AT$27)^(AT$1-1)) ->  | AU132: =IF(AU$1="","",AU97/(1+GR!AU$27)^(AU$1-1)) ->  | AV132: =IF(AV$1="","",AV97/(1+GR!AV$27)^(AV$1-1)) ->  | AW132: =IF(AW$1="","",AW97/(1+GR!AW$27)^(AW$1-1)) ->  | AX132: =IF(AX$1="","",AX97/(1+GR!AX$27)^(AX$1-1)) ->  | AY132: =IF(AY$1="","",AY97/(1+GR!AY$27)^(AY$1-1)) ->  | AZ132: =IF(AZ$1="","",AZ97/(1+GR!AZ$27)^(AZ$1-1)) ->  | BA132: =IF(BA$1="","",BA97/(1+GR!BA$27)^(BA$1-1)) ->  | BB132: =IF(BB$1="","",BB97/(1+GR!BB$27)^(BB$1-1)) ->  | BC132: =IF(BC$1="","",BC97/(1+GR!BC$27)^(BC$1-1)) ->  | BD132: =IF(BD$1="","",BD97/(1+GR!BD$27)^(BD$1-1)) ->  | BE132: =IF(BE$1="","",BE97/(1+GR!BE$27)^(BE$1-1)) ->  | BF132: =IF(BF$1="","",BF97/(1+GR!BF$27)^(BF$1-1)) ->  | BG132: =IF(BG$1="","",BG97/(1+GR!BG$27)^(BG$1-1)) ->  | BH132: =IF(BH$1="","",BH97/(1+GR!BH$27)^(BH$1-1)) ->  | BI132: =IF(BI$1="","",BI97/(1+GR!BI$27)^(BI$1-1)) ->  | BJ132: =IF(BJ$1="","",BJ97/(1+GR!BJ$27)^(BJ$1-1)) ->  | BK132: =IF(BK$1="","",BK97/(1+GR!BK$27)^(BK$1-1)) ->  | BL132: =IF(BL$1="","",BL97/(1+GR!BL$27)^(BL$1-1)) ->  | BM132: =IF(BM$1="","",BM97/(1+GR!BM$27)^(BM$1-1)) ->  | BN132: =IF(BN$1="","",BN97/(1+GR!BN$27)^(BN$1-1)) ->  | BO132: =IF(BO$1="","",BO97/(1+GR!BO$27)^(BO$1-1)) -> 
D133: Total Public Income | E133: £ k | F133: =SUM(H133:BO133) -> 11295905.63 | H133: =IF(H110="","",SUM(H131:H132)) -> 78403.88467 | I133: =IF(I110="","",SUM(I131:I132)) -> 83924.95498 | J133: 91818.44763 | K133: 100454.9244 | L133: 109904.3767 | M133: 120243.3949 | N133: 131555.7916 | O133: 143933.2825 | P133: 157476.2334 | Q133: 172294.4759 | R133: 188508.2012 | S133: 206248.9386 | T133: 225660.6258 | U133: 246900.7804 | V133: 270141.783 | W133: 295572.2804 | X133: 323398.7226 | Y133: 353847.0439 | Z133: 387164.5047 | AA133: 423621.7054 | AB133: 463514.7928 | AC133: 507167.8735 | AD133: 554935.657 | AE133: 607206.3482 | AF133: 664404.8134 | AG133: 726996.0466 | AH133: 795488.9633 | AI133: 870440.5535 | AJ133: 952460.4285 | AK133: 1042215.797
C135: Economic Impacts | D135: aGVA | E135: £ k | F135: =SUM(H135:BO135) -> 60358005.65 | H135: =H100 -> 2619492.887 | I135: =IF(I$1="","",I100/(1+GR!I$27)^(I$1-1)) -> 2569036.645 | J135: =IF(J$1="","",J100/(1+GR!J$27)^(J$1-1)) -> 2520386.289 | K135: =IF(K$1="","",K100/(1+GR!K$27)^(K$1-1)) -> 2472657.235 | L135: =IF(L$1="","",L100/(1+GR!L$27)^(L$1-1)) -> 2425832.035 | M135: =IF(M$1="","",M100/(1+GR!M$27)^(M$1-1)) -> 2379893.573 | N135: =IF(N$1="","",N100/(1+GR!N$27)^(N$1-1)) -> 2334825.057 | O135: =IF(O$1="","",O100/(1+GR!O$27)^(O$1-1)) -> 2290610.013 | P135: =IF(P$1="","",P100/(1+GR!P$27)^(P$1-1)) -> 2247232.277 | Q135: =IF(Q$1="","",Q100/(1+GR!Q$27)^(Q$1-1)) -> 2204675.994 | R135: =IF(R$1="","",R100/(1+GR!R$27)^(R$1-1)) -> 2162925.608 | S135: =IF(S$1="","",S100/(1+GR!S$27)^(S$1-1)) -> 2121965.858 | T135: =IF(T$1="","",T100/(1+GR!T$27)^(T$1-1)) -> 2081781.77 | U135: =IF(U$1="","",U100/(1+GR!U$27)^(U$1-1)) -> 2042358.656 | V135: =IF(V$1="","",V100/(1+GR!V$27)^(V$1-1)) -> 2003682.106 | W135: =IF(W$1="","",W100/(1+GR!W$27)^(W$1-1)) -> 1965737.981 | X135: =IF(X$1="","",X100/(1+GR!X$27)^(X$1-1)) -> 1928512.412 | Y135: =IF(Y$1="","",Y100/(1+GR!Y$27)^(Y$1-1)) -> 1891991.79 | Z135: =IF(Z$1="","",Z100/(1+GR!Z$27)^(Z$1-1)) -> 1856162.767 | AA135: =IF(AA$1="","",AA100/(1+GR!AA$27)^(AA$1-1)) -> 1821012.245 | AB135: =IF(AB$1="","",AB100/(1+GR!AB$27)^(AB$1-1)) -> 1786527.375 | AC135: =IF(AC$1="","",AC100/(1+GR!AC$27)^(AC$1-1)) -> 1752695.552 | AD135: =IF(AD$1="","",AD100/(1+GR!AD$27)^(AD$1-1)) -> 1719504.41 | AE135: =IF(AE$1="","",AE100/(1+GR!AE$27)^(AE$1-1)) -> 1686941.814 | AF135: =IF(AF$1="","",AF100/(1+GR!AF$27)^(AF$1-1)) -> 1654995.863 | AG135: =IF(AG$1="","",AG100/(1+GR!AG$27)^(AG$1-1)) -> 1623654.878 | AH135: =IF(AH$1="","",AH100/(1+GR!AH$27)^(AH$1-1)) -> 1592907.404 | AI135: =IF(AI$1="","",AI100/(1+GR!AI$27)^(AI$1-1)) -> 1562742.201 | AJ135: =IF(AJ$1="","",AJ100/(1+GR!AJ$27)^(AJ$1-1)) -> 1533148.243 | AK135: =IF(AK$1="","",AK100/(1+GR!AK$27)^(AK$1-1)) -> 1504114.711 | AL135: =IF(AL$1="","",AL100/(1+GR!AL$27)^(AL$1-1)) ->  | AM135: =IF(AM$1="","",AM100/(1+GR!AM$27)^(AM$1-1)) ->  | AN135: =IF(AN$1="","",AN100/(1+GR!AN$27)^(AN$1-1)) ->  | AO135: =IF(AO$1="","",AO100/(1+GR!AO$27)^(AO$1-1)) ->  | AP135: =IF(AP$1="","",AP100/(1+GR!AP$27)^(AP$1-1)) ->  | AQ135: =IF(AQ$1="","",AQ100/(1+GR!AQ$27)^(AQ$1-1)) ->  | AR135: =IF(AR$1="","",AR100/(1+GR!AR$27)^(AR$1-1)) ->  | AS135: =IF(AS$1="","",AS100/(1+GR!AS$27)^(AS$1-1)) ->  | AT135: =IF(AT$1="","",AT100/(1+GR!AT$27)^(AT$1-1)) ->  | AU135: =IF(AU$1="","",AU100/(1+GR!AU$27)^(AU$1-1)) ->  | AV135: =IF(AV$1="","",AV100/(1+GR!AV$27)^(AV$1-1)) ->  | AW135: =IF(AW$1="","",AW100/(1+GR!AW$27)^(AW$1-1)) ->  | AX135: =IF(AX$1="","",AX100/(1+GR!AX$27)^(AX$1-1)) ->  | AY135: =IF(AY$1="","",AY100/(1+GR!AY$27)^(AY$1-1)) ->  | AZ135: =IF(AZ$1="","",AZ100/(1+GR!AZ$27)^(AZ$1-1)) ->  | BA135: =IF(BA$1="","",BA100/(1+GR!BA$27)^(BA$1-1)) ->  | BB135: =IF(BB$1="","",BB100/(1+GR!BB$27)^(BB$1-1)) ->  | BC135: =IF(BC$1="","",BC100/(1+GR!BC$27)^(BC$1-1)) ->  | BD135: =IF(BD$1="","",BD100/(1+GR!BD$27)^(BD$1-1)) ->  | BE135: =IF(BE$1="","",BE100/(1+GR!BE$27)^(BE$1-1)) ->  | BF135: =IF(BF$1="","",BF100/(1+GR!BF$27)^(BF$1-1)) ->  | BG135: =IF(BG$1="","",BG100/(1+GR!BG$27)^(BG$1-1)) ->  | BH135: =IF(BH$1="","",BH100/(1+GR!BH$27)^(BH$1-1)) ->  | BI135: =IF(BI$1="","",BI100/(1+GR!BI$27)^(BI$1-1)) ->  | BJ135: =IF(BJ$1="","",BJ100/(1+GR!BJ$27)^(BJ$1-1)) ->  | BK135: =IF(BK$1="","",BK100/(1+GR!BK$27)^(BK$1-1)) ->  | BL135: =IF(BL$1="","",BL100/(1+GR!BL$27)^(BL$1-1)) ->  | BM135: =IF(BM$1="","",BM100/(1+GR!BM$27)^(BM$1-1)) ->  | BN135: =IF(BN$1="","",BN100/(1+GR!BN$27)^(BN$1-1)) ->  | BO135: =IF(BO$1="","",BO100/(1+GR!BO$27)^(BO$1-1)) -> 
D136: Per Capita aGVA | E136: £ | H136: =IFERROR((H135*1000)/H141,"") -> 58635.10112 | I136: =IF(I$1="","",IFERROR((I135*1000)/I141,"")) -> 56954.13756 | J136: =IF(J$1="","",IFERROR((J135*1000)/J141,"")) -> 55327.84016 | K136: 53747.98088 | L136: 52213.23371 | M136: 50722.31049 | N136: 49273.95984 | O136: 47866.96614 | P136: 46500.14845 | Q136: 45172.35957 | R136: 43882.48505 | S136: 42629.44226 | T136: 41412.17949 | U136: 40229.67506 | V136: 39080.93647 | W136: 37964.99954 | X136: 36880.92764 | Y136: 35827.81088 | Z136: 34804.76535 | AA136: 33810.93238 | AB136: 32845.47783 | AC136: 31907.59136 | AD136: 30996.48577 | AE136: 30111.39636 | AF136: 29251.58023 | AG136: 28416.31574 | AH136: 27604.90181 | AI136: 26816.65741 | AJ136: 26050.92094 | AK136: 25307.0497
D137: Tax Receipts from income | E137: £ k | F137: =SUM(H137:BO137) -> 9734132.23 | H137: =H102 -> 422454.1527 | I137: =IF(I$1="","",I102/(1+GR!I$27)^(I$1-1)) -> 414316.9102 | J137: =IF(J$1="","",J102/(1+GR!J$27)^(J$1-1)) -> 406470.9088 | K137: =IF(K$1="","",K102/(1+GR!K$27)^(K$1-1)) -> 398773.4887 | L137: =IF(L$1="","",L102/(1+GR!L$27)^(L$1-1)) -> 391221.8361 | M137: =IF(M$1="","",M102/(1+GR!M$27)^(M$1-1)) -> 383813.1907 | N137: =IF(N$1="","",N102/(1+GR!N$27)^(N$1-1)) -> 376544.8443 | O137: =IF(O$1="","",O102/(1+GR!O$27)^(O$1-1)) -> 369414.14 | P137: =IF(P$1="","",P102/(1+GR!P$27)^(P$1-1)) -> 362418.4713 | Q137: =IF(Q$1="","",Q102/(1+GR!Q$27)^(Q$1-1)) -> 355555.2809 | R137: =IF(R$1="","",R102/(1+GR!R$27)^(R$1-1)) -> 348822.0601 | S137: =IF(S$1="","",S102/(1+GR!S$27)^(S$1-1)) -> 342216.3477 | T137: =IF(T$1="","",T102/(1+GR!T$27)^(T$1-1)) -> 335735.7289 | U137: =IF(U$1="","",U102/(1+GR!U$27)^(U$1-1)) -> 329377.8349 | V137: =IF(V$1="","",V102/(1+GR!V$27)^(V$1-1)) -> 323140.3416 | W137: =IF(W$1="","",W102/(1+GR!W$27)^(W$1-1)) -> 317020.969 | X137: =IF(X$1="","",X102/(1+GR!X$27)^(X$1-1)) -> 311017.4801 | Y137: =IF(Y$1="","",Y102/(1+GR!Y$27)^(Y$1-1)) -> 305127.6805 | Z137: =IF(Z$1="","",Z102/(1+GR!Z$27)^(Z$1-1)) -> 299349.4171 | AA137: =IF(AA$1="","",AA102/(1+GR!AA$27)^(AA$1-1)) -> 293680.5779 | AB137: =IF(AB$1="","",AB102/(1+GR!AB$27)^(AB$1-1)) -> 288119.0907 | AC137: =IF(AC$1="","",AC102/(1+GR!AC$27)^(AC$1-1)) -> 282662.9224 | AD137: =IF(AD$1="","",AD102/(1+GR!AD$27)^(AD$1-1)) -> 277310.0786 | AE137: =IF(AE$1="","",AE102/(1+GR!AE$27)^(AE$1-1)) -> 272058.6028 | AF137: =IF(AF$1="","",AF102/(1+GR!AF$27)^(AF$1-1)) -> 266906.5751 | AG137: =IF(AG$1="","",AG102/(1+GR!AG$27)^(AG$1-1)) -> 261852.1124 | AH137: =IF(AH$1="","",AH102/(1+GR!AH$27)^(AH$1-1)) -> 256893.3671 | AI137: =IF(AI$1="","",AI102/(1+GR!AI$27)^(AI$1-1)) -> 252028.5265 | AJ137: =IF(AJ$1="","",AJ102/(1+GR!AJ$27)^(AJ$1-1)) -> 247255.8124 | AK137: =IF(AK$1="","",AK102/(1+GR!AK$27)^(AK$1-1)) -> 242573.4801 | AL137: =IF(AL$1="","",AL102/(1+GR!AL$27)^(AL$1-1)) ->  | AM137: =IF(AM$1="","",AM102/(1+GR!AM$27)^(AM$1-1)) ->  | AN137: =IF(AN$1="","",AN102/(1+GR!AN$27)^(AN$1-1)) ->  | AO137: =IF(AO$1="","",AO102/(1+GR!AO$27)^(AO$1-1)) ->  | AP137: =IF(AP$1="","",AP102/(1+GR!AP$27)^(AP$1-1)) ->  | AQ137: =IF(AQ$1="","",AQ102/(1+GR!AQ$27)^(AQ$1-1)) ->  | AR137: =IF(AR$1="","",AR102/(1+GR!AR$27)^(AR$1-1)) ->  | AS137: =IF(AS$1="","",AS102/(1+GR!AS$27)^(AS$1-1)) ->  | AT137: =IF(AT$1="","",AT102/(1+GR!AT$27)^(AT$1-1)) ->  | AU137: =IF(AU$1="","",AU102/(1+GR!AU$27)^(AU$1-1)) ->  | AV137: =IF(AV$1="","",AV102/(1+GR!AV$27)^(AV$1-1)) ->  | AW137: =IF(AW$1="","",AW102/(1+GR!AW$27)^(AW$1-1)) ->  | AX137: =IF(AX$1="","",AX102/(1+GR!AX$27)^(AX$1-1)) ->  | AY137: =IF(AY$1="","",AY102/(1+GR!AY$27)^(AY$1-1)) ->  | AZ137: =IF(AZ$1="","",AZ102/(1+GR!AZ$27)^(AZ$1-1)) ->  | BA137: =IF(BA$1="","",BA102/(1+GR!BA$27)^(BA$1-1)) ->  | BB137: =IF(BB$1="","",BB102/(1+GR!BB$27)^(BB$1-1)) ->  | BC137: =IF(BC$1="","",BC102/(1+GR!BC$27)^(BC$1-1)) ->  | BD137: =IF(BD$1="","",BD102/(1+GR!BD$27)^(BD$1-1)) ->  | BE137: =IF(BE$1="","",BE102/(1+GR!BE$27)^(BE$1-1)) ->  | BF137: =IF(BF$1="","",BF102/(1+GR!BF$27)^(BF$1-1)) ->  | BG137: =IF(BG$1="","",BG102/(1+GR!BG$27)^(BG$1-1)) ->  | BH137: =IF(BH$1="","",BH102/(1+GR!BH$27)^(BH$1-1)) ->  | BI137: =IF(BI$1="","",BI102/(1+GR!BI$27)^(BI$1-1)) ->  | BJ137: =IF(BJ$1="","",BJ102/(1+GR!BJ$27)^(BJ$1-1)) ->  | BK137: =IF(BK$1="","",BK102/(1+GR!BK$27)^(BK$1-1)) ->  | BL137: =IF(BL$1="","",BL102/(1+GR!BL$27)^(BL$1-1)) ->  | BM137: =IF(BM$1="","",BM102/(1+GR!BM$27)^(BM$1-1)) ->  | BN137: =IF(BN$1="","",BN102/(1+GR!BN$27)^(BN$1-1)) ->  | BO137: =IF(BO$1="","",BO102/(1+GR!BO$27)^(BO$1-1)) -> 
D138: VAT | E138: £ k | F138: =IFERROR(SUM(H138:BO138),0) -> 1752383.125 | H138: =H103 -> 76052.13396 | I138: =IF(I$1="","",I103/(1+GR!I$27)^(I$1-1)) -> 74587.23025 | J138: =IF(J$1="","",J103/(1+GR!J$27)^(J$1-1)) -> 73174.75709 | K138: =IF(K$1="","",K103/(1+GR!K$27)^(K$1-1)) -> 71789.03223 | L138: =IF(L$1="","",L103/(1+GR!L$27)^(L$1-1)) -> 70429.5491 | M138: =IF(M$1="","",M103/(1+GR!M$27)^(M$1-1)) -> 69095.81078 | N138: =IF(N$1="","",N103/(1+GR!N$27)^(N$1-1)) -> 67787.32973 | O138: =IF(O$1="","",O103/(1+GR!O$27)^(O$1-1)) -> 66503.62764 | P138: =IF(P$1="","",P103/(1+GR!P$27)^(P$1-1)) -> 65244.23527 | Q138: =IF(Q$1="","",Q103/(1+GR!Q$27)^(Q$1-1)) -> 64008.69226 | R138: =IF(R$1="","",R103/(1+GR!R$27)^(R$1-1)) -> 62796.54698 | S138: =IF(S$1="","",S103/(1+GR!S$27)^(S$1-1)) -> 61607.35633 | T138: =IF(T$1="","",T103/(1+GR!T$27)^(T$1-1)) -> 60440.68562 | U138: =IF(U$1="","",U103/(1+GR!U$27)^(U$1-1)) -> 59296.10839 | V138: =IF(V$1="","",V103/(1+GR!V$27)^(V$1-1)) -> 58173.20624 | W138: =IF(W$1="","",W103/(1+GR!W$27)^(W$1-1)) -> 57071.56871 | X138: =IF(X$1="","",X103/(1+GR!X$27)^(X$1-1)) -> 55990.79311 | Y138: =IF(Y$1="","",Y103/(1+GR!Y$27)^(Y$1-1)) -> 54930.48437 | Z138: =IF(Z$1="","",Z103/(1+GR!Z$27)^(Z$1-1)) -> 53890.25491 | AA138: =IF(AA$1="","",AA103/(1+GR!AA$27)^(AA$1-1)) -> 52869.72448 | AB138: =IF(AB$1="","",AB103/(1+GR!AB$27)^(AB$1-1)) -> 51868.52003 | AC138: =IF(AC$1="","",AC103/(1+GR!AC$27)^(AC$1-1)) -> 50886.27559 | AD138: =IF(AD$1="","",AD103/(1+GR!AD$27)^(AD$1-1)) -> 49922.63211 | AE138: =IF(AE$1="","",AE103/(1+GR!AE$27)^(AE$1-1)) -> 48977.23734 | AF138: =IF(AF$1="","",AF103/(1+GR!AF$27)^(AF$1-1)) -> 48049.7457 | AG138: =IF(AG$1="","",AG103/(1+GR!AG$27)^(AG$1-1)) -> 47139.81815 | AH138: =IF(AH$1="","",AH103/(1+GR!AH$27)^(AH$1-1)) -> 46247.12207 | AI138: =IF(AI$1="","",AI103/(1+GR!AI$27)^(AI$1-1)) -> 45371.33116 | AJ138: =IF(AJ$1="","",AJ103/(1+GR!AJ$27)^(AJ$1-1)) -> 44512.12528 | AK138: =IF(AK$1="","",AK103/(1+GR!AK$27)^(AK$1-1)) -> 43669.19035 | AL138: =IF(AL$1="","",AL103/(1+GR!AL$27)^(AL$1-1)) ->  | AM138: =IF(AM$1="","",AM103/(1+GR!AM$27)^(AM$1-1)) ->  | AN138: =IF(AN$1="","",AN103/(1+GR!AN$27)^(AN$1-1)) ->  | AO138: =IF(AO$1="","",AO103/(1+GR!AO$27)^(AO$1-1)) ->  | AP138: =IF(AP$1="","",AP103/(1+GR!AP$27)^(AP$1-1)) ->  | AQ138: =IF(AQ$1="","",AQ103/(1+GR!AQ$27)^(AQ$1-1)) ->  | AR138: =IF(AR$1="","",AR103/(1+GR!AR$27)^(AR$1-1)) ->  | AS138: =IF(AS$1="","",AS103/(1+GR!AS$27)^(AS$1-1)) ->  | AT138: =IF(AT$1="","",AT103/(1+GR!AT$27)^(AT$1-1)) ->  | AU138: =IF(AU$1="","",AU103/(1+GR!AU$27)^(AU$1-1)) ->  | AV138: =IF(AV$1="","",AV103/(1+GR!AV$27)^(AV$1-1)) ->  | AW138: =IF(AW$1="","",AW103/(1+GR!AW$27)^(AW$1-1)) ->  | AX138: =IF(AX$1="","",AX103/(1+GR!AX$27)^(AX$1-1)) ->  | AY138: =IF(AY$1="","",AY103/(1+GR!AY$27)^(AY$1-1)) ->  | AZ138: =IF(AZ$1="","",AZ103/(1+GR!AZ$27)^(AZ$1-1)) ->  | BA138: =IF(BA$1="","",BA103/(1+GR!BA$27)^(BA$1-1)) ->  | BB138: =IF(BB$1="","",BB103/(1+GR!BB$27)^(BB$1-1)) ->  | BC138: =IF(BC$1="","",BC103/(1+GR!BC$27)^(BC$1-1)) ->  | BD138: =IF(BD$1="","",BD103/(1+GR!BD$27)^(BD$1-1)) ->  | BE138: =IF(BE$1="","",BE103/(1+GR!BE$27)^(BE$1-1)) ->  | BF138: =IF(BF$1="","",BF103/(1+GR!BF$27)^(BF$1-1)) ->  | BG138: =IF(BG$1="","",BG103/(1+GR!BG$27)^(BG$1-1)) ->  | BH138: =IF(BH$1="","",BH103/(1+GR!BH$27)^(BH$1-1)) ->  | BI138: =IF(BI$1="","",BI103/(1+GR!BI$27)^(BI$1-1)) ->  | BJ138: =IF(BJ$1="","",BJ103/(1+GR!BJ$27)^(BJ$1-1)) ->  | BK138: =IF(BK$1="","",BK103/(1+GR!BK$27)^(BK$1-1)) ->  | BL138: =IF(BL$1="","",BL103/(1+GR!BL$27)^(BL$1-1)) ->  | BM138: =IF(BM$1="","",BM103/(1+GR!BM$27)^(BM$1-1)) ->  | BN138: =IF(BN$1="","",BN103/(1+GR!BN$27)^(BN$1-1)) ->  | BO138: =IF(BO$1="","",BO103/(1+GR!BO$27)^(BO$1-1)) -> 
D139: NIC | E139: £ k | F139: =SUM(H139:BO139) -> 1521777.081 | H139: =H104 -> 66044.0019 | I139: =IF(I$1="","",I104/(1+GR!I$27)^(I$1-1)) -> 64771.87318 | J139: =IF(J$1="","",J104/(1+GR!J$27)^(J$1-1)) -> 63545.27539 | K139: =IF(K$1="","",K104/(1+GR!K$27)^(K$1-1)) -> 62341.90593 | L139: =IF(L$1="","",L104/(1+GR!L$27)^(L$1-1)) -> 61161.3249 | M139: =IF(M$1="","",M104/(1+GR!M$27)^(M$1-1)) -> 60003.10078 | N139: =IF(N$1="","",N104/(1+GR!N$27)^(N$1-1)) -> 58866.81018 | O139: =IF(O$1="","",O104/(1+GR!O$27)^(O$1-1)) -> 57752.03773 | P139: =IF(P$1="","",P104/(1+GR!P$27)^(P$1-1)) -> 56658.37596 | Q139: =IF(Q$1="","",Q104/(1+GR!Q$27)^(Q$1-1)) -> 55585.42507 | R139: =IF(R$1="","",R104/(1+GR!R$27)^(R$1-1)) -> 54532.79286 | S139: =IF(S$1="","",S104/(1+GR!S$27)^(S$1-1)) -> 53500.09456 | T139: =IF(T$1="","",T104/(1+GR!T$27)^(T$1-1)) -> 52486.95268 | U139: =IF(U$1="","",U104/(1+GR!U$27)^(U$1-1)) -> 51492.99686 | V139: =IF(V$1="","",V104/(1+GR!V$27)^(V$1-1)) -> 50517.86378 | W139: =IF(W$1="","",W104/(1+GR!W$27)^(W$1-1)) -> 49561.19699 | X139: =IF(X$1="","",X104/(1+GR!X$27)^(X$1-1)) -> 48622.64678 | Y139: =IF(Y$1="","",Y104/(1+GR!Y$27)^(Y$1-1)) -> 47701.87009 | Z139: =IF(Z$1="","",Z104/(1+GR!Z$27)^(Z$1-1)) -> 46798.53033 | AA139: =IF(AA$1="","",AA104/(1+GR!AA$27)^(AA$1-1)) -> 45912.29729 | AB139: =IF(AB$1="","",AB104/(1+GR!AB$27)^(AB$1-1)) -> 45042.84702 | AC139: =IF(AC$1="","",AC104/(1+GR!AC$27)^(AC$1-1)) -> 44189.86171 | AD139: =IF(AD$1="","",AD104/(1+GR!AD$27)^(AD$1-1)) -> 43353.02954 | AE139: =IF(AE$1="","",AE104/(1+GR!AE$27)^(AE$1-1)) -> 42532.04463 | AF139: =IF(AF$1="","",AF104/(1+GR!AF$27)^(AF$1-1)) -> 41726.60688 | AG139: =IF(AG$1="","",AG104/(1+GR!AG$27)^(AG$1-1)) -> 40936.42186 | AH139: =IF(AH$1="","",AH104/(1+GR!AH$27)^(AH$1-1)) -> 40161.20073 | AI139: =IF(AI$1="","",AI104/(1+GR!AI$27)^(AI$1-1)) -> 39400.66012 | AJ139: =IF(AJ$1="","",AJ104/(1+GR!AJ$27)^(AJ$1-1)) -> 38654.52202 | AK139: =IF(AK$1="","",AK104/(1+GR!AK$27)^(AK$1-1)) -> 37922.51368 | AL139: =IF(AL$1="","",AL104/(1+GR!AL$27)^(AL$1-1)) ->  | AM139: =IF(AM$1="","",AM104/(1+GR!AM$27)^(AM$1-1)) ->  | AN139: =IF(AN$1="","",AN104/(1+GR!AN$27)^(AN$1-1)) ->  | AO139: =IF(AO$1="","",AO104/(1+GR!AO$27)^(AO$1-1)) ->  | AP139: =IF(AP$1="","",AP104/(1+GR!AP$27)^(AP$1-1)) ->  | AQ139: =IF(AQ$1="","",AQ104/(1+GR!AQ$27)^(AQ$1-1)) ->  | AR139: =IF(AR$1="","",AR104/(1+GR!AR$27)^(AR$1-1)) ->  | AS139: =IF(AS$1="","",AS104/(1+GR!AS$27)^(AS$1-1)) ->  | AT139: =IF(AT$1="","",AT104/(1+GR!AT$27)^(AT$1-1)) ->  | AU139: =IF(AU$1="","",AU104/(1+GR!AU$27)^(AU$1-1)) ->  | AV139: =IF(AV$1="","",AV104/(1+GR!AV$27)^(AV$1-1)) ->  | AW139: =IF(AW$1="","",AW104/(1+GR!AW$27)^(AW$1-1)) ->  | AX139: =IF(AX$1="","",AX104/(1+GR!AX$27)^(AX$1-1)) ->  | AY139: =IF(AY$1="","",AY104/(1+GR!AY$27)^(AY$1-1)) ->  | AZ139: =IF(AZ$1="","",AZ104/(1+GR!AZ$27)^(AZ$1-1)) ->  | BA139: =IF(BA$1="","",BA104/(1+GR!BA$27)^(BA$1-1)) ->  | BB139: =IF(BB$1="","",BB104/(1+GR!BB$27)^(BB$1-1)) ->  | BC139: =IF(BC$1="","",BC104/(1+GR!BC$27)^(BC$1-1)) ->  | BD139: =IF(BD$1="","",BD104/(1+GR!BD$27)^(BD$1-1)) ->  | BE139: =IF(BE$1="","",BE104/(1+GR!BE$27)^(BE$1-1)) ->  | BF139: =IF(BF$1="","",BF104/(1+GR!BF$27)^(BF$1-1)) ->  | BG139: =IF(BG$1="","",BG104/(1+GR!BG$27)^(BG$1-1)) ->  | BH139: =IF(BH$1="","",BH104/(1+GR!BH$27)^(BH$1-1)) ->  | BI139: =IF(BI$1="","",BI104/(1+GR!BI$27)^(BI$1-1)) ->  | BJ139: =IF(BJ$1="","",BJ104/(1+GR!BJ$27)^(BJ$1-1)) ->  | BK139: =IF(BK$1="","",BK104/(1+GR!BK$27)^(BK$1-1)) ->  | BL139: =IF(BL$1="","",BL104/(1+GR!BL$27)^(BL$1-1)) ->  | BM139: =IF(BM$1="","",BM104/(1+GR!BM$27)^(BM$1-1)) ->  | BN139: =IF(BN$1="","",BN104/(1+GR!BN$27)^(BN$1-1)) ->  | BO139: =IF(BO$1="","",BO104/(1+GR!BO$27)^(BO$1-1)) -> 
D140: Total tax receipts | E140: £ k | F140: =IFERROR(SUM(H140:BO140),0) -> 13008292.44 | H140: =SUM(H137:H139) -> 564550.2885 | I140: =IF(I$1="","",SUM(I137:I139)) -> 553676.0136 | J140: =IF(J$1="","",SUM(J137:J139)) -> 543190.9413 | K140: 532904.4268 | L140: 522812.7101 | M140: 512912.1023 | N140: 503198.9842 | O140: 493669.8054 | P140: 484321.0825 | Q140: 475149.3982 | R140: 466151.4 | S140: 457323.7986 | T140: 448663.3672 | U140: 440166.9402 | V140: 431831.4116 | W140: 423653.7347 | X140: 415630.92 | Y140: 407760.0349 | Z140: 400038.2024 | AA140: 392462.5997 | AB140: 385030.4577 | AC140: 377739.0597 | AD140: 370585.7403 | AE140: 363567.8847 | AF140: 356682.9277 | AG140: 349928.3524 | AH140: 343301.6899 | AI140: 336800.5178 | AJ140: 330422.4597 | AK140: 324165.1841
D141: Employment | E141: No. | H141: =H106 -> 44674.484 | I141: 45107.1117 | J141: 45553.67211 | K141: 46004.65346 | L141: 46460.09953 | M141: 46920.05452 | N141: 47384.56306 | O141: 47853.67023 | P141: 48327.42157 | Q141: 48805.86304 | R141: 49289.04108 | S141: 49777.00259 | T141: 50269.79492 | U141: 50767.46589 | V141: 51270.0638 | W141: 51777.63743 | X141: 52290.23604 | Y141: 52807.90938 | Z141: 53330.70768 | AA141: 53858.68169 | AB141: 54391.88264 | AC141: 54930.36227 | AD141: 55474.17286 | AE141: 56023.36717 | AF141: 56577.99851 | AG141: 57138.12069 | AH141: 57703.78809 | AI141: 58275.05559 | AJ141: 58851.97864 | AK141: 59434.61323 | AN141: =AN106 -> 
D142: Total Economic Impacts | E142: £ k | F142: =SUM(H142:BO142) -> 73366298.09 | H142: =IF(H110="","",SUM(H135,H137:H139)) -> 3184043.175 | I142: =IF(I110="","",SUM(I135,I137:I139)) -> 3122712.658 | J142: 3063577.23 | K142: 3005561.662 | L142: 2948644.745 | M142: 2892805.676 | N142: 2838024.041 | O142: 2784279.818 | P142: 2731553.36 | Q142: 2679825.393 | R142: 2629077.008 | S142: 2579289.656 | T142: 2530445.137 | U142: 2482525.597 | V142: 2435513.518 | W142: 2389391.716 | X142: 2344143.332 | Y142: 2299751.825 | Z142: 2256200.969 | AA142: 2213474.845 | AB142: 2171557.833 | AC142: 2130434.612 | AD142: 2090090.15 | AE142: 2050509.699 | AF142: 2011678.79 | AG142: 1973583.231 | AH142: 1936209.094 | AI142: 1899542.719 | AJ142: 1863570.702 | AK142: 1828279.895
A146: =IF(D2_Name="","","Undiscounted costs for " & D2_Name) -> Undiscounted costs for R2 | F146: Analysis period total | H146: =H110 -> 2020 | I146: 2021 | J146: 2022 | K146: 2023 | L146: 2024 | M146: 2025 | N146: 2026 | O146: 2027 | P146: 2028 | Q146: 2029 | R146: 2030 | S146: 2031 | T146: 2032 | U146: 2033 | V146: 2034 | W146: 2035 | X146: 2036 | Y146: 2037 | Z146: 2038 | AA146: 2039 | AB146: 2040 | AC146: 2041 | AD146: 2042 | AE146: 2043 | AF146: 2044 | AG146: 2045 | AH146: 2046 | AI146: 2047 | AJ146: 2048 | AK146: 2049 | AN146: =AN110 -> 
D148: Parameter | E148: Unit
D149: Expenditure by Treatment | E149: £ k | F149: =SUM(H149:BO149) -> 221061.4977 | H149: 14001.56506 | I149: 17132.88514 | J149: 13381.03514 | K149: 4694.261394 | L149: 5480.070899 | M149: 5962.410114 | N149: 6258.884476 | O149: 6441.356498 | P149: 6553.805641 | Q149: 6623.187156 | R149: 6666.045678 | S149: 6692.549919 | T149: 6708.958018 | U149: 6719.126282 | V149: 6725.433864 | W149: 6729.350286 | X149: 6731.784228 | Y149: 6733.298173 | Z149: 6734.240656 | AA149: 6734.82786 | AB149: 6735.193994 | AC149: 6735.422459 | AD149: 6735.565122 | AE149: 6735.654269 | AF149: 6735.710012 | AG149: 6735.744892 | AH149: 6735.76673 | AI149: 6735.780411 | AJ149: 6735.788987 | AK149: 6735.794366
D150: Percentage in poor condition | E150: % | H150: 0.2655 | I150: 0.1328 | J150: 0 | K150: 0 | L150: 0 | M150: 0 | N150: 0 | O150: 0 | P150: 0 | Q150: 0 | R150: 0 | S150: 0 | T150: 0 | U150: 0 | V150: 0 | W150: 0 | X150: 0 | Y150: 0 | Z150: 0 | AA150: 0 | AB150: 0 | AC150: 0 | AD150: 0 | AE150: 0 | AF150: 0 | AG150: 0 | AH150: 0 | AI150: 0 | AJ150: 0 | AK150: 0
C152: Treatment and Condition Impacts | D152: Vehicle operating costs | E152: £ k | F152: =SUM(H152:BO152) -> 73805528.86 | H152: 1118332.489 | I152: 1134559.278 | J152: 1158576.455 | K152: 1211259.403 | L152: 1271986.311 | M152: 1351185.27 | N152: 1444672.01 | O152: 1543567.338 | P152: 1638301.482 | Q152: 1748061.896 | R152: 1880408.833 | S152: 1998900.25 | T152: 2120595.492 | U152: 2241949.879 | V152: 2363750.242 | W152: 2484715.996 | X152: 2604105.603 | Y152: 2719908.975 | Z152: 2842973.475 | AA152: 2963646.159 | AB152: 3082367.399 | AC152: 3206476.422 | AD152: 3324093.993 | AE152: 3438644.135 | AF152: 3552693.549 | AG152: 3662068.878 | AH152: 3769339.616 | AI152: 3873178.268 | AJ152: 3976950.057 | AK152: 4078259.712
D153: Travel time | E153: £ k | F153: 16067606.54 | H153: 368908.3171 | I153: 365898.0352 | J153: 362748.6874 | K153: 371680.4018 | L153: 381081.6875 | M153: 391059.5002 | N153: 401639.1777 | O153: 412835.5473 | P153: 424718.4228 | Q153: 437091.4259 | R153: 450225.5019 | S153: 463679.4748 | T153: 478266.4359 | U153: 493172.9967 | V153: 508548.2148 | W153: 524518.888 | X153: 541290.8927 | Y153: 558060.4937 | Z153: 575321.2061 | AA153: 592974.8893 | AB153: 610972.5072 | AC153: 629506.1916 | AD153: 647784.8047 | AE153: 666467.4494 | AF153: 685495.0824 | AG153: 704954.636 | AH153: 724884.9667 | AI153: 744448.7479 | AJ153: 764427.3369 | AK153: 784944.6165
D154: Carbon (vehicle fuel) | E154: £ k | F154: 2823739.339 | H154: 40389.86645 | I154: 41756.39056 | J154: 43511.74844 | K154: 43987.09007 | L154: 44549.71085 | M154: 45137.25018 | N154: 45932.75495 | O154: 46851.37598 | P154: 48450.47781 | Q154: 49567.84562 | R154: 50796.15431 | S154: 56176.01537 | T154: 62682.44912 | U154: 68724.88227 | V154: 75627.43758 | W154: 82145.99029 | X154: 89660.1248 | Y154: 96419.85374 | Z154: 104324.9447 | AA154: 111622.0439 | AB154: 119771.0738 | AC154: 127503.904 | AD154: 136148.673 | AE154: 143894.2391 | AF154: 152905.6356 | AG154: 161161.0415 | AH154: 170278.0386 | AI154: 178716.5334 | AJ154: 188269.1914 | AK154: 196776.6016
D155: Roadworks Accidents | E155: £ k | F155: -11.97604232 | H155: 69.6442895 | I155: 496.326735 | J155: -18.27002622 | K155: -5.789377384 | L155: -8.637312369 | M155: -10.49495639 | N155: -11.70282652 | O155: -12.49653676 | P155: -13.03425039 | Q155: -18.22571667 | R155: -18.07384167 | S155: -18.34716048 | T155: -18.60916375 | U155: -18.84694962 | V155: -19.07010397 | W155: -19.2844457 | X155: -22.99559548 | Y155: -23.21135921 | Z155: -23.42514937 | AA155: -23.66293872 | AB155: -23.87521084 | AC155: -24.08717656 | AD155: -24.2692533 | AE155: -28.18485873 | AF155: -28.39486571 | AG155: -28.60494716 | AH155: -28.81512857 | AI155: -28.99715654 | AJ155: -29.17927361 | AK155: -29.3614851
D156: Carbon (vehicles in roadworks) | E156: £ k | F156: 207.2934271 | H156: 5.924918015 | I156: 20.77585644 | J156: 6.804880783 | K156: 3.114400453 | L156: 3.833539144 | M156: 4.256880892 | N156: 4.511742437 | O156: 4.671245199 | P156: 4.779386484 | Q156: 5.854196712 | R156: 5.799544886 | S156: 5.866292152 | T156: 5.936663626 | U156: 6.004426097 | V156: 6.070852732 | W156: 6.136621453 | X156: 6.708836551 | Y156: 6.771078107 | Z156: 6.833270505 | AA156: 7.756283228 | AB156: 7.826135722 | AC156: 7.896023049 | AD156: 7.959756621 | AE156: 7.71858675 | AF156: 7.776468987 | AG156: 7.834389855 | AH156: 7.892349633 | AI156: 7.94262219 | AJ156: 7.992923879 | AK156: 8.043254533
D157: Roadworks time delays | E157: £ k | F157: 123514.9952 | H157: 5077.801507 | I157: 7440.8335 | J157: 5994.204225 | K157: 2363.914575 | L157: 2892.978179 | M157: 3213.379088 | N157: 3412.287734 | O157: 3540.148575 | P157: 3628.230675 | Q157: 4024.807066 | R157: 4069.433696 | S157: 4118.666888 | T157: 4169.804604 | U157: 4218.470107 | V157: 4265.752158 | W157: 4312.268173 | X157: 3622.183835 | Y157: 3655.897963 | Z157: 3689.51641 | AA157: 3862.499921 | AB157: 3897.286295 | AC157: 3932.0757 | AD157: 3962.424973 | AE157: 4215.888885 | AF157: 4247.497137 | AG157: 4279.123891 | AH157: 4310.77024 | AI157: 4338.183171 | AJ157: 4365.611299 | AK157: 4393.054778
D158: Accidents | E158: £ k | F158: 1841763.831 | H158: 61392.1277 | I158: 61392.1277 | J158: 61392.1277 | K158: 61392.1277 | L158: 61392.1277 | M158: 61392.1277 | N158: 61392.1277 | O158: 61392.1277 | P158: 61392.1277 | Q158: 61392.1277 | R158: 61392.1277 | S158: 61392.1277 | T158: 61392.1277 | U158: 61392.1277 | V158: 61392.1277 | W158: 61392.1277 | X158: 61392.1277 | Y158: 61392.1277 | Z158: 61392.1277 | AA158: 61392.1277 | AB158: 61392.1277 | AC158: 61392.1277 | AD158: 61392.1277 | AE158: 61392.1277 | AF158: 61392.1277 | AG158: 61392.1277 | AH158: 61392.1277 | AI158: 61392.1277 | AJ158: 61392.1277 | AK158: 61392.1277
D159: Carbon (Embodied in materials) | E159: £ k | F159: 5679.700103 | H159: 204.4694543 | I159: 260.8285064 | J159: 203.903637 | K159: 72.52586107 | L159: 85.82635359 | M159: 94.64242789 | N159: 100.6730653 | O159: 104.9713604 | P159: 109.5780111 | Q159: 112.1398004 | R159: 114.2762732 | S159: 124.6456297 | T159: 136.310425 | U159: 146.4713865 | V159: 157.9959846 | W159: 168.0575033 | X159: 179.5161382 | Y159: 189.5318721 | Z159: 200.9604107 | AA159: 210.9555617 | AB159: 222.3706534 | AC159: 232.3567053 | AD159: 243.7658784 | AE159: 253.747957 | AF159: 265.1545539 | AG159: 275.1349134 | AH159: 286.5403984 | AI159: 296.5200195 | AJ159: 307.9250277 | AK159: 317.9043334
D160: Total HMAT costs | E160: £ k | F160: 94668028.58 | H160: =IF(H146="","",SUM(H152:H159)) -> 1594380.641 | I160: =IF(I146="","",SUM(I152:I159)) -> 1611824.596 | J160: 1632415.662 | K160: 1690752.788 | L160: 1761983.837 | M160: 1852075.932 | N160: 1957141.84 | O160: 2068283.683 | P160: 2176592.064 | Q160: 2300237.871 | R160: 2446994.052 | S160: 2584378.699 | T160: 2727229.947 | U160: 2869591.984 | V160: 3013728.771 | W160: 3157240.18 | X160: 3300234.161 | Y160: 3439610.44 | Z160: 3587885.638 | AA160: 3733692.769 | AB160: 3878606.715 | AC160: 4029026.886 | AD160: 4173609.48 | AE160: 4314847.122 | AF160: 4456978.428 | AG160: 4594110.171 | AH160: 4730471.137 | AI160: 4862349.326 | AJ160: 4995691.063 | AK160: 5126062.699
C162: Network Benefits | D162: Change in accident costs | E162: £ k | F162: =SUM(H162:BO162) -> -36979.82361 | H162: ='D2 Traffic'!F131 -> -7725.626135 | I162: ='D2 Traffic'!G131 -> -7203.433473 | J162: ='D2 Traffic'!H131 -> -6909.558481 | K162: ='D2 Traffic'!I131 -> -6602.324139 | L162: ='D2 Traffic'!J131 -> -6281.340932 | M162: ='D2 Traffic'!K131 -> -5946.209576 | N162: ='D2 Traffic'!L131 -> -5596.520791 | O162: ='D2 Traffic'!M131 -> -5246.747845 | P162: ='D2 Traffic'!N131 -> -4882.149355 | Q162: ='D2 Traffic'!O131 -> -4502.300878 | R162: ='D2 Traffic'!P131 -> -4106.767421 | S162: ='D2 Traffic'!Q131 -> -3695.103204 | T162: ='D2 Traffic'!R131 -> -3182.004129 | U162: ='D2 Traffic'!S131 -> -2648.632612 | V162: ='D2 Traffic'!T131 -> -2094.42002 | W162: ='D2 Traffic'!U131 -> -1518.783712 | X162: ='D2 Traffic'!V131 -> -921.1267165 | Y162: ='D2 Traffic'!W131 -> -372.8556698 | Z162: ='D2 Traffic'!X131 -> 195.9585519 | AA162: ='D2 Traffic'!Y131 -> 785.8826482 | AB162: ='D2 Traffic'!Z131 -> 1397.497155 | AC162: ='D2 Traffic'!AA131 -> 2031.39676 | AD162: ='D2 Traffic'!AB131 -> 2601.051082 | AE162: ='D2 Traffic'!AC131 -> 3190.944822 | AF162: ='D2 Traffic'!AD131 -> 3801.626357 | AG162: ='D2 Traffic'!AE131 -> 4433.65732 | AH162: ='D2 Traffic'!AF131 -> 5087.612899 | AI162: ='D2 Traffic'!AG131 -> 5685.343722 | AJ162: ='D2 Traffic'!AH131 -> 6303.248015 | AK162: ='D2 Traffic'!AI131 -> 6941.862146 | AL162: ='D2 Traffic'!AJ131 ->  | AM162: ='D2 Traffic'!AK131 ->  | AN162: ='D2 Traffic'!AL131 ->  | AO162: ='D2 Traffic'!AM131 ->  | AP162: ='D2 Traffic'!AN131 ->  | AQ162: ='D2 Traffic'!AO131 ->  | AR162: ='D2 Traffic'!AP131 ->  | AS162: ='D2 Traffic'!AQ131 ->  | AT162: ='D2 Traffic'!AR131 ->  | AU162: ='D2 Traffic'!AS131 ->  | AV162: ='D2 Traffic'!AT131 ->  | AW162: ='D2 Traffic'!AU131 ->  | AX162: ='D2 Traffic'!AV131 ->  | AY162: ='D2 Traffic'!AW131 ->  | AZ162: ='D2 Traffic'!AX131 ->  | BA162: ='D2 Traffic'!AY131 ->  | BB162: ='D2 Traffic'!AZ131 ->  | BC162: ='D2 Traffic'!BA131 ->  | BD162: ='D2 Traffic'!BB131 ->  | BE162: ='D2 Traffic'!BC131 ->  | BF162: ='D2 Traffic'!BD131 ->  | BG162: ='D2 Traffic'!BE131 ->  | BH162: ='D2 Traffic'!BF131 ->  | BI162: ='D2 Traffic'!BG131 ->  | BJ162: ='D2 Traffic'!BH131 ->  | BK162: ='D2 Traffic'!BI131 ->  | BL162: ='D2 Traffic'!BJ131 ->  | BM162: ='D2 Traffic'!BK131 ->  | BN162: ='D2 Traffic'!BL131 ->  | BO162: ='D2 Traffic'!BM131 -> 
D163: Change in travel time costs | E163: £ k | F163: =SUM(H163:BO163) -> 7357604.848 | H163: ='D2 Traffic'!F276 -> 165289.0387 | I163: ='D2 Traffic'!G276 -> 169359.4149 | J163: ='D2 Traffic'!H276 -> 172645.6233 | K163: ='D2 Traffic'!I276 -> 176022.4736 | L163: ='D2 Traffic'!J276 -> 179751.2161 | M163: ='D2 Traffic'!K276 -> 183815.9348 | N163: ='D2 Traffic'!L276 -> 188188.6596 | O163: ='D2 Traffic'!M276 -> 192949.6324 | P163: ='D2 Traffic'!N276 -> 198017.5601 | Q163: ='D2 Traffic'!O276 -> 203298.7885 | R163: ='D2 Traffic'!P276 -> 208901.4249 | S163: ='D2 Traffic'!Q276 -> 214634.0929 | T163: ='D2 Traffic'!R276 -> 220958.0498 | U163: ='D2 Traffic'!S276 -> 227411.0763 | V163: ='D2 Traffic'!T276 -> 234054.5446 | W163: ='D2 Traffic'!U276 -> 240940.3504 | X163: ='D2 Traffic'!V276 -> 248153.2419 | Y163: ='D2 Traffic'!W276 -> 255395.7593 | Z163: ='D2 Traffic'!X276 -> 262835.902 | AA163: ='D2 Traffic'!Y276 -> 270432.1683 | AB163: ='D2 Traffic'!Z276 -> 278163.7623 | AC163: ='D2 Traffic'!AA276 -> 286109.9709 | AD163: ='D2 Traffic'!AB276 -> 293900.3546 | AE163: ='D2 Traffic'!AC276 -> 301848.8714 | AF163: ='D2 Traffic'!AD276 -> 309930.7663 | AG163: ='D2 Traffic'!AE276 -> 318181.5129 | AH163: ='D2 Traffic'!AF276 -> 326616.6072 | AI163: ='D2 Traffic'!AG276 -> 334826.9421 | AJ163: ='D2 Traffic'!AH276 -> 343196.2969 | AK163: ='D2 Traffic'!AI276 -> 351774.8111 | AL163: ='D2 Traffic'!AJ276 ->  | AM163: ='D2 Traffic'!AK276 ->  | AN163: ='D2 Traffic'!AL276 ->  | AO163: ='D2 Traffic'!AM276 ->  | AP163: ='D2 Traffic'!AN276 ->  | AQ163: ='D2 Traffic'!AO276 ->  | AR163: ='D2 Traffic'!AP276 ->  | AS163: ='D2 Traffic'!AQ276 ->  | AT163: ='D2 Traffic'!AR276 ->  | AU163: ='D2 Traffic'!AS276 ->  | AV163: ='D2 Traffic'!AT276 ->  | AW163: ='D2 Traffic'!AU276 ->  | AX163: ='D2 Traffic'!AV276 ->  | AY163: ='D2 Traffic'!AW276 ->  | AZ163: ='D2 Traffic'!AX276 ->  | BA163: ='D2 Traffic'!AY276 ->  | BB163: ='D2 Traffic'!AZ276 ->  | BC163: ='D2 Traffic'!BA276 ->  | BD163: ='D2 Traffic'!BB276 ->  | BE163: ='D2 Traffic'!BC276 ->  | BF163: ='D2 Traffic'!BD276 ->  | BG163: ='D2 Traffic'!BE276 ->  | BH163: ='D2 Traffic'!BF276 ->  | BI163: ='D2 Traffic'!BG276 ->  | BJ163: ='D2 Traffic'!BH276 ->  | BK163: ='D2 Traffic'!BI276 ->  | BL163: ='D2 Traffic'!BJ276 ->  | BM163: ='D2 Traffic'!BK276 ->  | BN163: ='D2 Traffic'!BL276 ->  | BO163: ='D2 Traffic'!BM276 -> 
D164: Change in cost of CO2 emissions | E164: £ k | F164: =SUM(H164:BO164) -> 2317003.365 | H164: =IF(H1="","",IF(H154=0,0,H154*'D2 Traffic'!F133*CO2RatioNon2Urb+H154*'D2 Traffic'!F134*CO2RatioNon2Rur-H154)) -> 33161.7627 | I164: =IF(I1="","",IF(I154=0,0,I154*'D2 Traffic'!G133*CO2RatioNon2Urb+I154*'D2 Traffic'!G134*CO2RatioNon2Rur-I154)) -> 34281.6463 | J164: =IF(J1="","",IF(J154=0,0,J154*'D2 Traffic'!H133*CO2RatioNon2Urb+J154*'D2 Traffic'!H134*CO2RatioNon2Rur-J154)) -> 35721.26279 | K164: =IF(K1="","",IF(K154=0,0,K154*'D2 Traffic'!I133*CO2RatioNon2Urb+K154*'D2 Traffic'!I134*CO2RatioNon2Rur-K154)) -> 36109.99325 | L164: =IF(L1="","",IF(L154=0,0,L154*'D2 Traffic'!J133*CO2RatioNon2Urb+L154*'D2 Traffic'!J134*CO2RatioNon2Rur-L154)) -> 36570.36688 | M164: =IF(M1="","",IF(M154=0,0,M154*'D2 Traffic'!K133*CO2RatioNon2Urb+M154*'D2 Traffic'!K134*CO2RatioNon2Rur-M154)) -> 37051.18611 | N164: =IF(N1="","",IF(N154=0,0,N154*'D2 Traffic'!L133*CO2RatioNon2Urb+N154*'D2 Traffic'!L134*CO2RatioNon2Rur-N154)) -> 37702.69803 | O164: =IF(O1="","",IF(O154=0,0,O154*'D2 Traffic'!M133*CO2RatioNon2Urb+O154*'D2 Traffic'!M134*CO2RatioNon2Rur-O154)) -> 38455.38227 | P164: =IF(P1="","",IF(P154=0,0,P154*'D2 Traffic'!N133*CO2RatioNon2Urb+P154*'D2 Traffic'!N134*CO2RatioNon2Rur-P154)) -> 39766.55447 | Q164: =IF(Q1="","",IF(Q154=0,0,Q154*'D2 Traffic'!O133*CO2RatioNon2Urb+Q154*'D2 Traffic'!O134*CO2RatioNon2Rur-Q154)) -> 40682.2835 | R164: =IF(R1="","",IF(R154=0,0,R154*'D2 Traffic'!P133*CO2RatioNon2Urb+R154*'D2 Traffic'!P134*CO2RatioNon2Rur-R154)) -> 41689.02587 | S164: =IF(S1="","",IF(S154=0,0,S154*'D2 Traffic'!Q133*CO2RatioNon2Urb+S154*'D2 Traffic'!Q134*CO2RatioNon2Rur-S154)) -> 46102.84521 | T164: =IF(T1="","",IF(T154=0,0,T154*'D2 Traffic'!R133*CO2RatioNon2Urb+T154*'D2 Traffic'!R134*CO2RatioNon2Rur-T154)) -> 51441.02061 | U164: =IF(U1="","",IF(U154=0,0,U154*'D2 Traffic'!S133*CO2RatioNon2Urb+U154*'D2 Traffic'!S134*CO2RatioNon2Rur-U154)) -> 56398.13013 | V164: =IF(V1="","",IF(V154=0,0,V154*'D2 Traffic'!T133*CO2RatioNon2Urb+V154*'D2 Traffic'!T134*CO2RatioNon2Rur-V154)) -> 62060.80704 | W164: =IF(W1="","",IF(W154=0,0,W154*'D2 Traffic'!U133*CO2RatioNon2Urb+W154*'D2 Traffic'!U134*CO2RatioNon2Rur-W154)) -> 67408.08338 | X164: =IF(X1="","",IF(X154=0,0,X154*'D2 Traffic'!V133*CO2RatioNon2Urb+X154*'D2 Traffic'!V134*CO2RatioNon2Rur-X154)) -> 73572.03388 | Y164: =IF(Y1="","",IF(Y154=0,0,Y154*'D2 Traffic'!W133*CO2RatioNon2Urb+Y154*'D2 Traffic'!W134*CO2RatioNon2Rur-Y154)) -> 79117.05899 | Z164: =IF(Z1="","",IF(Z154=0,0,Z154*'D2 Traffic'!X133*CO2RatioNon2Urb+Z154*'D2 Traffic'!X134*CO2RatioNon2Rur-Z154)) -> 85601.66933 | AA164: =IF(AA1="","",IF(AA154=0,0,AA154*'D2 Traffic'!Y133*CO2RatioNon2Urb+AA154*'D2 Traffic'!Y134*CO2RatioNon2Rur-AA154)) -> 91587.16227 | AB164: =IF(AB1="","",IF(AB154=0,0,AB154*'D2 Traffic'!Z133*CO2RatioNon2Urb+AB154*'D2 Traffic'!Z134*CO2RatioNon2Rur-AB154)) -> 98271.43328 | AC164: =IF(AC1="","",IF(AC154=0,0,AC154*'D2 Traffic'!AA133*CO2RatioNon2Urb+AC154*'D2 Traffic'!AA134*CO2RatioNon2Rur-AC154)) -> 104613.9726 | AD164: =IF(AD1="","",IF(AD154=0,0,AD154*'D2 Traffic'!AB133*CO2RatioNon2Urb+AD154*'D2 Traffic'!AB134*CO2RatioNon2Rur-AD154)) -> 111704.9892 | AE164: =IF(AE1="","",IF(AE154=0,0,AE154*'D2 Traffic'!AC133*CO2RatioNon2Urb+AE154*'D2 Traffic'!AC134*CO2RatioNon2Rur-AE154)) -> 118058.0505 | AF164: =IF(AF1="","",IF(AF154=0,0,AF154*'D2 Traffic'!AD133*CO2RatioNon2Urb+AF154*'D2 Traffic'!AD134*CO2RatioNon2Rur-AF154)) -> 125449.4696 | AG164: =IF(AG1="","",IF(AG154=0,0,AG154*'D2 Traffic'!AE133*CO2RatioNon2Urb+AG154*'D2 Traffic'!AE134*CO2RatioNon2Rur-AG154)) -> 132220.4503 | AH164: =IF(AH1="","",IF(AH154=0,0,AH154*'D2 Traffic'!AF133*CO2RatioNon2Urb+AH154*'D2 Traffic'!AF134*CO2RatioNon2Rur-AH154)) -> 139698.1083 | AI164: =IF(AI1="","",IF(AI154=0,0,AI154*'D2 Traffic'!AG133*CO2RatioNon2Urb+AI154*'D2 Traffic'!AG134*CO2RatioNon2Rur-AI154)) -> 146619.3669 | AJ164: =IF(AJ1="","",IF(AJ154=0,0,AJ154*'D2 Traffic'!AH133*CO2RatioNon2Urb+AJ154*'D2 Traffic'!AH134*CO2RatioNon2Rur-AJ154)) -> 154454.5291 | AK164: =IF(AK1="","",IF(AK154=0,0,AK154*'D2 Traffic'!AI133*CO2RatioNon2Urb+AK154*'D2 Traffic'!AI134*CO2RatioNon2Rur-AK154)) -> 161432.0227 | AL164: =IF(AL1="","",IF(AL154=0,0,AL154*'D2 Traffic'!AJ133*CO2RatioNon2Urb+AL154*'D2 Traffic'!AJ134*CO2RatioNon2Rur-AL154)) ->  | AM164: =IF(AM1="","",IF(AM154=0,0,AM154*'D2 Traffic'!AK133*CO2RatioNon2Urb+AM154*'D2 Traffic'!AK134*CO2RatioNon2Rur-AM154)) ->  | AN164: =IF(AN1="","",IF(AN154=0,0,AN154*'D2 Traffic'!AL133*CO2RatioNon2Urb+AN154*'D2 Traffic'!AL134*CO2RatioNon2Rur-AN154)) ->  | AO164: =IF(AO1="","",IF(AO154=0,0,AO154*'D2 Traffic'!AM133*CO2RatioNon2Urb+AO154*'D2 Traffic'!AM134*CO2RatioNon2Rur-AO154)) ->  | AP164: =IF(AP1="","",IF(AP154=0,0,AP154*'D2 Traffic'!AN133*CO2RatioNon2Urb+AP154*'D2 Traffic'!AN134*CO2RatioNon2Rur-AP154)) ->  | AQ164: =IF(AQ1="","",IF(AQ154=0,0,AQ154*'D2 Traffic'!AO133*CO2RatioNon2Urb+AQ154*'D2 Traffic'!AO134*CO2RatioNon2Rur-AQ154)) ->  | AR164: =IF(AR1="","",IF(AR154=0,0,AR154*'D2 Traffic'!AP133*CO2RatioNon2Urb+AR154*'D2 Traffic'!AP134*CO2RatioNon2Rur-AR154)) ->  | AS164: =IF(AS1="","",IF(AS154=0,0,AS154*'D2 Traffic'!AQ133*CO2RatioNon2Urb+AS154*'D2 Traffic'!AQ134*CO2RatioNon2Rur-AS154)) ->  | AT164: =IF(AT1="","",IF(AT154=0,0,AT154*'D2 Traffic'!AR133*CO2RatioNon2Urb+AT154*'D2 Traffic'!AR134*CO2RatioNon2Rur-AT154)) ->  | AU164: =IF(AU1="","",IF(AU154=0,0,AU154*'D2 Traffic'!AS133*CO2RatioNon2Urb+AU154*'D2 Traffic'!AS134*CO2RatioNon2Rur-AU154)) ->  | AV164: =IF(AV1="","",IF(AV154=0,0,AV154*'D2 Traffic'!AT133*CO2RatioNon2Urb+AV154*'D2 Traffic'!AT134*CO2RatioNon2Rur-AV154)) ->  | AW164: =IF(AW1="","",IF(AW154=0,0,AW154*'D2 Traffic'!AU133*CO2RatioNon2Urb+AW154*'D2 Traffic'!AU134*CO2RatioNon2Rur-AW154)) ->  | AX164: =IF(AX1="","",IF(AX154=0,0,AX154*'D2 Traffic'!AV133*CO2RatioNon2Urb+AX154*'D2 Traffic'!AV134*CO2RatioNon2Rur-AX154)) ->  | AY164: =IF(AY1="","",IF(AY154=0,0,AY154*'D2 Traffic'!AW133*CO2RatioNon2Urb+AY154*'D2 Traffic'!AW134*CO2RatioNon2Rur-AY154)) ->  | AZ164: =IF(AZ1="","",IF(AZ154=0,0,AZ154*'D2 Traffic'!AX133*CO2RatioNon2Urb+AZ154*'D2 Traffic'!AX134*CO2RatioNon2Rur-AZ154)) ->  | BA164: =IF(BA1="","",IF(BA154=0,0,BA154*'D2 Traffic'!AY133*CO2RatioNon2Urb+BA154*'D2 Traffic'!AY134*CO2RatioNon2Rur-BA154)) ->  | BB164: =IF(BB1="","",IF(BB154=0,0,BB154*'D2 Traffic'!AZ133*CO2RatioNon2Urb+BB154*'D2 Traffic'!AZ134*CO2RatioNon2Rur-BB154)) ->  | BC164: =IF(BC1="","",IF(BC154=0,0,BC154*'D2 Traffic'!BA133*CO2RatioNon2Urb+BC154*'D2 Traffic'!BA134*CO2RatioNon2Rur-BC154)) ->  | BD164: =IF(BD1="","",IF(BD154=0,0,BD154*'D2 Traffic'!BB133*CO2RatioNon2Urb+BD154*'D2 Traffic'!BB134*CO2RatioNon2Rur-BD154)) ->  | BE164: =IF(BE1="","",IF(BE154=0,0,BE154*'D2 Traffic'!BC133*CO2RatioNon2Urb+BE154*'D2 Traffic'!BC134*CO2RatioNon2Rur-BE154)) ->  | BF164: =IF(BF1="","",IF(BF154=0,0,BF154*'D2 Traffic'!BD133*CO2RatioNon2Urb+BF154*'D2 Traffic'!BD134*CO2RatioNon2Rur-BF154)) ->  | BG164: =IF(BG1="","",IF(BG154=0,0,BG154*'D2 Traffic'!BE133*CO2RatioNon2Urb+BG154*'D2 Traffic'!BE134*CO2RatioNon2Rur-BG154)) ->  | BH164: =IF(BH1="","",IF(BH154=0,0,BH154*'D2 Traffic'!BF133*CO2RatioNon2Urb+BH154*'D2 Traffic'!BF134*CO2RatioNon2Rur-BH154)) ->  | BI164: =IF(BI1="","",IF(BI154=0,0,BI154*'D2 Traffic'!BG133*CO2RatioNon2Urb+BI154*'D2 Traffic'!BG134*CO2RatioNon2Rur-BI154)) ->  | BJ164: =IF(BJ1="","",IF(BJ154=0,0,BJ154*'D2 Traffic'!BH133*CO2RatioNon2Urb+BJ154*'D2 Traffic'!BH134*CO2RatioNon2Rur-BJ154)) ->  | BK164: =IF(BK1="","",IF(BK154=0,0,BK154*'D2 Traffic'!BI133*CO2RatioNon2Urb+BK154*'D2 Traffic'!BI134*CO2RatioNon2Rur-BK154)) ->  | BL164: =IF(BL1="","",IF(BL154=0,0,BL154*'D2 Traffic'!BJ133*CO2RatioNon2Urb+BL154*'D2 Traffic'!BJ134*CO2RatioNon2Rur-BL154)) ->  | BM164: =IF(BM1="","",IF(BM154=0,0,BM154*'D2 Traffic'!BK133*CO2RatioNon2Urb+BM154*'D2 Traffic'!BK134*CO2RatioNon2Rur-BM154)) ->  | BN164: =IF(BN1="","",IF(BN154=0,0,BN154*'D2 Traffic'!BL133*CO2RatioNon2Urb+BN154*'D2 Traffic'!BL134*CO2RatioNon2Rur-BN154)) ->  | BO164: =IF(BO1="","",IF(BO154=0,0,BO154*'D2 Traffic'!BM133*CO2RatioNon2Urb+BO154*'D2 Traffic'!BM134*CO2RatioNon2Rur-BO154)) -> 
D165: Total Network Benefits costs | E165: £ k | F165: =SUM(H165:BO165) -> 9637628.39 | H165: =IF(H146="","",SUM(H162:H164)) -> 190725.1753 | I165: =IF(I146="","",SUM(I162:I164)) -> 196437.6277 | J165: 201457.3276 | K165: 205530.1427 | L165: 210040.2421 | M165: 214920.9114 | N165: 220294.8368 | O165: 226158.2668 | P165: 232901.9652 | Q165: 239478.7712 | R165: 246483.6833 | S165: 257041.8349 | T165: 269217.0663 | U165: 281160.5738 | V165: 294020.9316 | W165: 306829.6501 | X165: 320804.149 | Y165: 334139.9626 | Z165: 348633.5299 | AA165: 362805.2132 | AB165: 377832.6928 | AC165: 392755.3402 | AD165: 408206.3948 | AE165: 423097.8667 | AF165: 439181.8623 | AG165: 454835.6205 | AH165: 471402.3284 | AI165: 487131.6527 | AJ165: 503954.0741 | AK165: 520148.6959
C167: Public Income | D167: Congestion charge | E167: £ k | F167: =SUM(H167:BO167) -> 23059903.33 | H167: =IF(H1="","",'D2 Traffic'!F303) -> 75334.90215 | I167: =IF(I1="","",'D2 Traffic'!G303) -> 85294.17621 | J167: =IF(J1="","",'D2 Traffic'!H303) -> 96570.06631 | K167: =IF(K1="","",'D2 Traffic'!I303) -> 109336.6291 | L167: =IF(L1="","",'D2 Traffic'!J303) -> 123790.9314 | M167: =IF(M1="","",'D2 Traffic'!K303) -> 140156.0926 | N167: =IF(N1="","",'D2 Traffic'!L303) -> 158684.728 | O167: =IF(O1="","",'D2 Traffic'!M303) -> 179662.8491 | P167: =IF(P1="","",'D2 Traffic'!N303) -> 203414.2777 | Q167: =IF(Q1="","",'D2 Traffic'!O303) -> 230305.6452 | R167: =IF(R1="","",'D2 Traffic'!P303) -> 260752.0515 | S167: =IF(S1="","",'D2 Traffic'!Q303) -> 295223.4727 | T167: =IF(T1="","",'D2 Traffic'!R303) -> 334252.0158 | U167: =IF(U1="","",'D2 Traffic'!S303) -> 378440.1323 | V167: =IF(V1="","",'D2 Traffic'!T303) -> 428469.9178 | W167: =IF(W1="","",'D2 Traffic'!U303) -> 485113.6409 | X167: =IF(X1="","",'D2 Traffic'!V303) -> 549245.6643 | Y167: =IF(Y1="","",'D2 Traffic'!W303) -> 621855.9411 | Z167: =IF(Z1="","",'D2 Traffic'!X303) -> 704065.2965 | AA167: =IF(AA1="","",'D2 Traffic'!Y303) -> 797142.7287 | AB167: =IF(AB1="","",'D2 Traffic'!Z303) -> 902524.9974 | AC167: =IF(AC1="","",'D2 Traffic'!AA303) -> 1021838.802 | AD167: =IF(AD1="","",'D2 Traffic'!AB303) -> 1156925.892 | AE167: =IF(AE1="","",'D2 Traffic'!AC303) -> 1309871.495 | AF167: =IF(AF1="","",'D2 Traffic'!AD303) -> 1483036.506 | AG167: =IF(AG1="","",'D2 Traffic'!AE303) -> 1679093.932 | AH167: =IF(AH1="","",'D2 Traffic'!AF303) -> 1901070.15 | AI167: =IF(AI1="","",'D2 Traffic'!AG303) -> 2152391.624 | AJ167: =IF(AJ1="","",'D2 Traffic'!AH303) -> 2436937.797 | AK167: =IF(AK1="","",'D2 Traffic'!AI303) -> 2759100.973 | AL167: =IF(AL1="","",'D2 Traffic'!AJ303) ->  | AM167: =IF(AM1="","",'D2 Traffic'!AK303) ->  | AN167: =IF(AN1="","",'D2 Traffic'!AL303) ->  | AO167: =IF(AO1="","",'D2 Traffic'!AM303) ->  | AP167: =IF(AP1="","",'D2 Traffic'!AN303) ->  | AQ167: =IF(AQ1="","",'D2 Traffic'!AO303) ->  | AR167: =IF(AR1="","",'D2 Traffic'!AP303) ->  | AS167: =IF(AS1="","",'D2 Traffic'!AQ303) ->  | AT167: =IF(AT1="","",'D2 Traffic'!AR303) ->  | AU167: =IF(AU1="","",'D2 Traffic'!AS303) ->  | AV167: =IF(AV1="","",'D2 Traffic'!AT303) ->  | AW167: =IF(AW1="","",'D2 Traffic'!AU303) ->  | AX167: =IF(AX1="","",'D2 Traffic'!AV303) ->  | AY167: =IF(AY1="","",'D2 Traffic'!AW303) ->  | AZ167: =IF(AZ1="","",'D2 Traffic'!AX303) ->  | BA167: =IF(BA1="","",'D2 Traffic'!AY303) ->  | BB167: =IF(BB1="","",'D2 Traffic'!AZ303) ->  | BC167: =IF(BC1="","",'D2 Traffic'!BA303) ->  | BD167: =IF(BD1="","",'D2 Traffic'!BB303) ->  | BE167: =IF(BE1="","",'D2 Traffic'!BC303) ->  | BF167: =IF(BF1="","",'D2 Traffic'!BD303) ->  | BG167: =IF(BG1="","",'D2 Traffic'!BE303) ->  | BH167: =IF(BH1="","",'D2 Traffic'!BF303) ->  | BI167: =IF(BI1="","",'D2 Traffic'!BG303) ->  | BJ167: =IF(BJ1="","",'D2 Traffic'!BH303) ->  | BK167: =IF(BK1="","",'D2 Traffic'!BI303) ->  | BL167: =IF(BL1="","",'D2 Traffic'!BJ303) ->  | BM167: =IF(BM1="","",'D2 Traffic'!BK303) ->  | BN167: =IF(BN1="","",'D2 Traffic'!BL303) ->  | BO167: =IF(BO1="","",'D2 Traffic'!BM303) -> 
D168: Tolls | E168: £ k | F168: =SUM(H168:BO168) -> 4322989.299 | H168: =IF(H1="","",'D2 Traffic'!F331) -> 13941.66065 | I168: =IF(I1="","",'D2 Traffic'!G331) -> 15787.01557 | J168: =IF(J1="","",'D2 Traffic'!H331) -> 17877.27923 | K168: =IF(K1="","",'D2 Traffic'!I331) -> 20245.04527 | L168: =IF(L1="","",'D2 Traffic'!J331) -> 22927.25752 | M168: =IF(M1="","",'D2 Traffic'!K331) -> 25965.79231 | N168: =IF(N1="","",'D2 Traffic'!L331) -> 29408.11894 | O168: =IF(O1="","",'D2 Traffic'!M331) -> 33308.04897 | P168: =IF(P1="","",'D2 Traffic'!N331) -> 37726.58606 | Q168: =IF(Q1="","",'D2 Traffic'!O331) -> 42732.89011 | R168: =IF(R1="","",'D2 Traffic'!P331) -> 48405.37104 | S168: =IF(S1="","",'D2 Traffic'!Q331) -> 54832.92963 | T168: =IF(T1="","",'D2 Traffic'!R331) -> 62116.36547 | U168: =IF(U1="","",'D2 Traffic'!S331) -> 70369.97424 | V168: =IF(V1="","",'D2 Traffic'!T331) -> 79723.36028 | W168: =IF(W1="","",'D2 Traffic'!U331) -> 90323.49316 | X168: =IF(X1="","",'D2 Traffic'!V331) -> 102337.0415 | Y168: =IF(Y1="","",'D2 Traffic'!W331) -> 115953.0215 | Z168: =IF(Z1="","",'D2 Traffic'!X331) -> 131385.8022 | AA168: =IF(AA1="","",'D2 Traffic'!Y331) -> 148878.5169 | AB168: =IF(AB1="","",'D2 Traffic'!Z331) -> 168706.9344 | AC168: =IF(AC1="","",'D2 Traffic'!AA331) -> 191183.853 | AD168: =IF(AD1="","",'D2 Traffic'!AB331) -> 216664.0885 | AE168: =IF(AE1="","",'D2 Traffic'!AC331) -> 245550.1349 | AF168: =IF(AF1="","",'D2 Traffic'!AD331) -> 278298.5919 | AG168: =IF(AG1="","",'D2 Traffic'!AE331) -> 315427.4599 | AH168: =IF(AH1="","",'D2 Traffic'!AF331) -> 357524.4226 | AI168: =IF(AI1="","",'D2 Traffic'!AG331) -> 405256.2504 | AJ168: =IF(AJ1="","",'D2 Traffic'!AH331) -> 459379.476 | AK168: =IF(AK1="","",'D2 Traffic'!AI331) -> 520752.5166 | AL168: =IF(AL1="","",'D2 Traffic'!AJ331) ->  | AM168: =IF(AM1="","",'D2 Traffic'!AK331) ->  | AN168: =IF(AN1="","",'D2 Traffic'!AL331) ->  | AO168: =IF(AO1="","",'D2 Traffic'!AM331) ->  | AP168: =IF(AP1="","",'D2 Traffic'!AN331) ->  | AQ168: =IF(AQ1="","",'D2 Traffic'!AO331) ->  | AR168: =IF(AR1="","",'D2 Traffic'!AP331) ->  | AS168: =IF(AS1="","",'D2 Traffic'!AQ331) ->  | AT168: =IF(AT1="","",'D2 Traffic'!AR331) ->  | AU168: =IF(AU1="","",'D2 Traffic'!AS331) ->  | AV168: =IF(AV1="","",'D2 Traffic'!AT331) ->  | AW168: =IF(AW1="","",'D2 Traffic'!AU331) ->  | AX168: =IF(AX1="","",'D2 Traffic'!AV331) ->  | AY168: =IF(AY1="","",'D2 Traffic'!AW331) ->  | AZ168: =IF(AZ1="","",'D2 Traffic'!AX331) ->  | BA168: =IF(BA1="","",'D2 Traffic'!AY331) ->  | BB168: =IF(BB1="","",'D2 Traffic'!AZ331) ->  | BC168: =IF(BC1="","",'D2 Traffic'!BA331) ->  | BD168: =IF(BD1="","",'D2 Traffic'!BB331) ->  | BE168: =IF(BE1="","",'D2 Traffic'!BC331) ->  | BF168: =IF(BF1="","",'D2 Traffic'!BD331) ->  | BG168: =IF(BG1="","",'D2 Traffic'!BE331) ->  | BH168: =IF(BH1="","",'D2 Traffic'!BF331) ->  | BI168: =IF(BI1="","",'D2 Traffic'!BG331) ->  | BJ168: =IF(BJ1="","",'D2 Traffic'!BH331) ->  | BK168: =IF(BK1="","",'D2 Traffic'!BI331) ->  | BL168: =IF(BL1="","",'D2 Traffic'!BJ331) ->  | BM168: =IF(BM1="","",'D2 Traffic'!BK331) ->  | BN168: =IF(BN1="","",'D2 Traffic'!BL331) ->  | BO168: =IF(BO1="","",'D2 Traffic'!BM331) -> 
D169: Total Public Income | E169: £ k | F169: =SUM(H169:BO169) -> 27382892.63 | H169: =IF(H146="","",SUM(H167:H168)) -> 89276.5628 | I169: =IF(I146="","",SUM(I167:I168)) -> 101081.1918 | J169: 114447.3455 | K169: 129581.6743 | L169: 146718.189 | M169: 166121.8849 | N169: 188092.847 | O169: 212970.898 | P169: 241140.8638 | Q169: 273038.5353 | R169: 309157.4225 | S169: 350056.4024 | T169: 396368.3813 | U169: 448810.1065 | V169: 508193.2781 | W169: 575437.1341 | X169: 651582.7058 | Y169: 737808.9626 | Z169: 835451.0987 | AA169: 946021.2456 | AB169: 1071231.932 | AC169: 1213022.655 | AD169: 1373589.98 | AE169: 1555421.63 | AF169: 1761335.098 | AG169: 1994521.392 | AH169: 2258594.573 | AI169: 2557647.874 | AJ169: 2896317.273 | AK169: 3279853.49
C171: Economic Impacts | D171: aGVA | E171: £ k | F171: =SUM(H171:BO171) -> 116687424.2 | H171: =D2_aGVA_Base*1000 -> 3089378.459 | I171: =IF(I$1="","",H171*(1+GR!I150)) -> 3136954.887 | J171: =IF(J$1="","",I171*(1+GR!J150)) -> 3185263.992 | K171: =IF(K$1="","",J171*(1+GR!K150)) -> 3234317.058 | L171: =IF(L$1="","",K171*(1+GR!L150)) -> 3284125.54 | M171: =IF(M$1="","",L171*(1+GR!M150)) -> 3334701.074 | N171: =IF(N$1="","",M171*(1+GR!N150)) -> 3386055.47 | O171: =IF(O$1="","",N171*(1+GR!O150)) -> 3438200.724 | P171: =IF(P$1="","",O171*(1+GR!P150)) -> 3491149.016 | Q171: =IF(Q$1="","",P171*(1+GR!Q150)) -> 3544912.71 | R171: =IF(R$1="","",Q171*(1+GR!R150)) -> 3599504.366 | S171: =IF(S$1="","",R171*(1+GR!S150)) -> 3654936.733 | T171: =IF(T$1="","",S171*(1+GR!T150)) -> 3711222.759 | U171: =IF(U$1="","",T171*(1+GR!U150)) -> 3768375.59 | V171: =IF(V$1="","",U171*(1+GR!V150)) -> 3826408.574 | W171: =IF(W$1="","",V171*(1+GR!W150)) -> 3885335.266 | X171: =IF(X$1="","",W171*(1+GR!X150)) -> 3945169.429 | Y171: =IF(Y$1="","",X171*(1+GR!Y150)) -> 4005925.038 | Z171: =IF(Z$1="","",Y171*(1+GR!Z150)) -> 4067616.284 | AA171: =IF(AA$1="","",Z171*(1+GR!AA150)) -> 4130257.574 | AB171: =IF(AB$1="","",AA171*(1+GR!AB150)) -> 4193863.541 | AC171: =IF(AC$1="","",AB171*(1+GR!AC150)) -> 4258449.04 | AD171: =IF(AD$1="","",AC171*(1+GR!AD150)) -> 4324029.155 | AE171: =IF(AE$1="","",AD171*(1+GR!AE150)) -> 4390619.204 | AF171: =IF(AF$1="","",AE171*(1+GR!AF150)) -> 4458234.739 | AG171: =IF(AG$1="","",AF171*(1+GR!AG150)) -> 4526891.554 | AH171: =IF(AH$1="","",AG171*(1+GR!AH150)) -> 4596605.684 | AI171: =IF(AI$1="","",AH171*(1+GR!AI150)) -> 4667393.412 | AJ171: =IF(AJ$1="","",AI171*(1+GR!AJ150)) -> 4739271.27 | AK171: =IF(AK$1="","",AJ171*(1+GR!AK150)) -> 4812256.048 | AL171: =IF(AL$1="","",AK171*(1+GR!AL150)) ->  | AM171: =IF(AM$1="","",AL171*(1+GR!AM150)) ->  | AN171: =IF(AN$1="","",AM171*(1+GR!AN150)) ->  | AO171: =IF(AO$1="","",AN171*(1+GR!AO150)) ->  | AP171: =IF(AP$1="","",AO171*(1+GR!AP150)) ->  | AQ171: =IF(AQ$1="","",AP171*(1+GR!AQ150)) ->  | AR171: =IF(AR$1="","",AQ171*(1+GR!AR150)) ->  | AS171: =IF(AS$1="","",AR171*(1+GR!AS150)) ->  | AT171: =IF(AT$1="","",AS171*(1+GR!AT150)) ->  | AU171: =IF(AU$1="","",AT171*(1+GR!AU150)) ->  | AV171: =IF(AV$1="","",AU171*(1+GR!AV150)) ->  | AW171: =IF(AW$1="","",AV171*(1+GR!AW150)) ->  | AX171: =IF(AX$1="","",AW171*(1+GR!AX150)) ->  | AY171: =IF(AY$1="","",AX171*(1+GR!AY150)) ->  | AZ171: =IF(AZ$1="","",AY171*(1+GR!AZ150)) ->  | BA171: =IF(BA$1="","",AZ171*(1+GR!BA150)) ->  | BB171: =IF(BB$1="","",BA171*(1+GR!BB150)) ->  | BC171: =IF(BC$1="","",BB171*(1+GR!BC150)) ->  | BD171: =IF(BD$1="","",BC171*(1+GR!BD150)) ->  | BE171: =IF(BE$1="","",BD171*(1+GR!BE150)) ->  | BF171: =IF(BF$1="","",BE171*(1+GR!BF150)) ->  | BG171: =IF(BG$1="","",BF171*(1+GR!BG150)) ->  | BH171: =IF(BH$1="","",BG171*(1+GR!BH150)) ->  | BI171: =IF(BI$1="","",BH171*(1+GR!BI150)) ->  | BJ171: =IF(BJ$1="","",BI171*(1+GR!BJ150)) ->  | BK171: =IF(BK$1="","",BJ171*(1+GR!BK150)) ->  | BL171: =IF(BL$1="","",BK171*(1+GR!BL150)) ->  | BM171: =IF(BM$1="","",BL171*(1+GR!BM150)) ->  | BN171: =IF(BN$1="","",BM171*(1+GR!BN150)) ->  | BO171: =IF(BO$1="","",BN171*(1+GR!BO150)) -> 
D172: Per Capita aGVA | E172: £ | H172: =IFERROR((H171*1000)/H177,"") -> 60224.6668 | I172: =IF(I$1="","",IFERROR((I171*1000)/I177,"")) -> 60552.65538 | J172: =IF(J$1="","",IFERROR((J171*1000)/J177,"")) -> 60882.43021 | K172: 61214.00103 | L172: 61547.37761 | M172: 61882.56978 | N172: 62219.58744 | O172: 62558.44053 | P172: 62899.13903 | Q172: 63241.69301 | R172: 63586.11257 | S172: 63932.40787 | T172: 64280.58912 | U172: 64630.66659 | V172: 64982.65061 | W172: 65336.55157 | X172: 65692.37991 | Y172: 66050.14611 | Z172: 66409.86074 | AA172: 66771.5344 | AB172: 67135.17777 | AC172: 67500.80157 | AD172: 67868.41659 | AE172: 68238.03368 | AF172: 68609.66372 | AG172: 68983.3177 | AH172: 69359.00663 | AI172: 69736.74159 | AJ172: 70116.53372 | AK172: 70498.39424
D173: Tax Receipts from income | E173: £ k | F173: =SUM(H173:BO173) -> 18668616.21 | H173: =D2_TaxReceip_Base -> 494264.2378 | I173: =IF(I$1="","",H173*(1+GR!I152)) -> 501875.907 | J173: =IF(J$1="","",I173*(1+GR!J152)) -> 509604.796 | K173: =IF(K$1="","",J173*(1+GR!K152)) -> 517452.7099 | L173: =IF(L$1="","",K173*(1+GR!L152)) -> 525421.4816 | M173: =IF(M$1="","",L173*(1+GR!M152)) -> 533512.9724 | N173: =IF(N$1="","",M173*(1+GR!N152)) -> 541729.0722 | O173: =IF(O$1="","",N173*(1+GR!O152)) -> 550071.6999 | P173: =IF(P$1="","",O173*(1+GR!P152)) -> 558542.8041 | Q173: =IF(Q$1="","",P173*(1+GR!Q152)) -> 567144.3633 | R173: =IF(R$1="","",Q173*(1+GR!R152)) -> 575878.3865 | S173: =IF(S$1="","",R173*(1+GR!S152)) -> 584746.9136 | T173: =IF(T$1="","",S173*(1+GR!T152)) -> 593752.0161 | U173: =IF(U$1="","",T173*(1+GR!U152)) -> 602895.7971 | V173: =IF(V$1="","",U173*(1+GR!V152)) -> 612180.3924 | W173: =IF(W$1="","",V173*(1+GR!W152)) -> 621607.9704 | X173: =IF(X$1="","",W173*(1+GR!X152)) -> 631180.7332 | Y173: =IF(Y$1="","",X173*(1+GR!Y152)) -> 640900.9165 | Z173: =IF(Z$1="","",Y173*(1+GR!Z152)) -> 650770.7906 | AA173: =IF(AA$1="","",Z173*(1+GR!AA152)) -> 660792.6608 | AB173: =IF(AB$1="","",AA173*(1+GR!AB152)) -> 670968.8677 | AC173: =IF(AC$1="","",AB173*(1+GR!AC152)) -> 681301.7883 | AD173: =IF(AD$1="","",AC173*(1+GR!AD152)) -> 691793.8358 | AE173: =IF(AE$1="","",AD173*(1+GR!AE152)) -> 702447.4609 | AF173: =IF(AF$1="","",AE173*(1+GR!AF152)) -> 713265.1518 | AG173: =IF(AG$1="","",AF173*(1+GR!AG152)) -> 724249.4352 | AH173: =IF(AH$1="","",AG173*(1+GR!AH152)) -> 735402.8765 | AI173: =IF(AI$1="","",AH173*(1+GR!AI152)) -> 746728.0808 | AJ173: =IF(AJ$1="","",AI173*(1+GR!AJ152)) -> 758227.6932 | AK173: =IF(AK$1="","",AJ173*(1+GR!AK152)) -> 769904.3997 | AL173: =IF(AL$1="","",AK173*(1+GR!AL152)) ->  | AM173: =IF(AM$1="","",AL173*(1+GR!AM152)) ->  | AN173: =IF(AN$1="","",AM173*(1+GR!AN152)) ->  | AO173: =IF(AO$1="","",AN173*(1+GR!AO152)) ->  | AP173: =IF(AP$1="","",AO173*(1+GR!AP152)) ->  | AQ173: =IF(AQ$1="","",AP173*(1+GR!AQ152)) ->  | AR173: =IF(AR$1="","",AQ173*(1+GR!AR152)) ->  | AS173: =IF(AS$1="","",AR173*(1+GR!AS152)) ->  | AT173: =IF(AT$1="","",AS173*(1+GR!AT152)) ->  | AU173: =IF(AU$1="","",AT173*(1+GR!AU152)) ->  | AV173: =IF(AV$1="","",AU173*(1+GR!AV152)) ->  | AW173: =IF(AW$1="","",AV173*(1+GR!AW152)) ->  | AX173: =IF(AX$1="","",AW173*(1+GR!AX152)) ->  | AY173: =IF(AY$1="","",AX173*(1+GR!AY152)) ->  | AZ173: =IF(AZ$1="","",AY173*(1+GR!AZ152)) ->  | BA173: =IF(BA$1="","",AZ173*(1+GR!BA152)) ->  | BB173: =IF(BB$1="","",BA173*(1+GR!BB152)) ->  | BC173: =IF(BC$1="","",BB173*(1+GR!BC152)) ->  | BD173: =IF(BD$1="","",BC173*(1+GR!BD152)) ->  | BE173: =IF(BE$1="","",BD173*(1+GR!BE152)) ->  | BF173: =IF(BF$1="","",BE173*(1+GR!BF152)) ->  | BG173: =IF(BG$1="","",BF173*(1+GR!BG152)) ->  | BH173: =IF(BH$1="","",BG173*(1+GR!BH152)) ->  | BI173: =IF(BI$1="","",BH173*(1+GR!BI152)) ->  | BJ173: =IF(BJ$1="","",BI173*(1+GR!BJ152)) ->  | BK173: =IF(BK$1="","",BJ173*(1+GR!BK152)) ->  | BL173: =IF(BL$1="","",BK173*(1+GR!BL152)) ->  | BM173: =IF(BM$1="","",BL173*(1+GR!BM152)) ->  | BN173: =IF(BN$1="","",BM173*(1+GR!BN152)) ->  | BO173: =IF(BO$1="","",BN173*(1+GR!BO152)) -> 
D174: VAT | E174: £ k | F174: =IFERROR(SUM(H174:BO174),0) -> 3298386.215 | H174: =D2_VAT_Base -> 87327.00539 | I174: =IF(I$1="","",H174*(1+GR!I153)) -> 88671.84127 | J174: =IF(J$1="","",I174*(1+GR!J153)) -> 90037.38763 | K174: =IF(K$1="","",J174*(1+GR!K153)) -> 91423.96339 | L174: =IF(L$1="","",K174*(1+GR!L153)) -> 92831.89243 | M174: =IF(M$1="","",L174*(1+GR!M153)) -> 94261.50357 | N174: =IF(N$1="","",M174*(1+GR!N153)) -> 95713.13073 | O174: =IF(O$1="","",N174*(1+GR!O153)) -> 97187.11294 | P174: =IF(P$1="","",O174*(1+GR!P153)) -> 98683.79448 | Q174: =IF(Q$1="","",P174*(1+GR!Q153)) -> 100203.5249 | R174: =IF(R$1="","",Q174*(1+GR!R153)) -> 101746.6592 | S174: =IF(S$1="","",R174*(1+GR!S153)) -> 103313.5578 | T174: =IF(T$1="","",S174*(1+GR!T153)) -> 104904.5865 | U174: =IF(U$1="","",T174*(1+GR!U153)) -> 106520.1172 | V174: =IF(V$1="","",U174*(1+GR!V153)) -> 108160.527 | W174: =IF(W$1="","",V174*(1+GR!W153)) -> 109826.1991 | X174: =IF(X$1="","",W174*(1+GR!X153)) -> 111517.5226 | Y174: =IF(Y$1="","",X174*(1+GR!Y153)) -> 113234.8924 | Z174: =IF(Z$1="","",Y174*(1+GR!Z153)) -> 114978.7098 | AA174: =IF(AA$1="","",Z174*(1+GR!AA153)) -> 116749.3819 | AB174: =IF(AB$1="","",AA174*(1+GR!AB153)) -> 118547.3224 | AC174: =IF(AC$1="","",AB174*(1+GR!AC153)) -> 120372.9511 | AD174: =IF(AD$1="","",AC174*(1+GR!AD153)) -> 122226.6946 | AE174: =IF(AE$1="","",AD174*(1+GR!AE153)) -> 124108.9857 | AF174: =IF(AF$1="","",AE174*(1+GR!AF153)) -> 126020.264 | AG174: =IF(AG$1="","",AF174*(1+GR!AG153)) -> 127960.9761 | AH174: =IF(AH$1="","",AG174*(1+GR!AH153)) -> 129931.5751 | AI174: =IF(AI$1="","",AH174*(1+GR!AI153)) -> 131932.5214 | AJ174: =IF(AJ$1="","",AI174*(1+GR!AJ153)) -> 133964.2822 | AK174: =IF(AK$1="","",AJ174*(1+GR!AK153)) -> 136027.3322 | AL174: =IF(AL$1="","",AK174*(1+GR!AL153)) ->  | AM174: =IF(AM$1="","",AL174*(1+GR!AM153)) ->  | AN174: =IF(AN$1="","",AM174*(1+GR!AN153)) ->  | AO174: =IF(AO$1="","",AN174*(1+GR!AO153)) ->  | AP174: =IF(AP$1="","",AO174*(1+GR!AP153)) ->  | AQ174: =IF(AQ$1="","",AP174*(1+GR!AQ153)) ->  | AR174: =IF(AR$1="","",AQ174*(1+GR!AR153)) ->  | AS174: =IF(AS$1="","",AR174*(1+GR!AS153)) ->  | AT174: =IF(AT$1="","",AS174*(1+GR!AT153)) ->  | AU174: =IF(AU$1="","",AT174*(1+GR!AU153)) ->  | AV174: =IF(AV$1="","",AU174*(1+GR!AV153)) ->  | AW174: =IF(AW$1="","",AV174*(1+GR!AW153)) ->  | AX174: =IF(AX$1="","",AW174*(1+GR!AX153)) ->  | AY174: =IF(AY$1="","",AX174*(1+GR!AY153)) ->  | AZ174: =IF(AZ$1="","",AY174*(1+GR!AZ153)) ->  | BA174: =IF(BA$1="","",AZ174*(1+GR!BA153)) ->  | BB174: =IF(BB$1="","",BA174*(1+GR!BB153)) ->  | BC174: =IF(BC$1="","",BB174*(1+GR!BC153)) ->  | BD174: =IF(BD$1="","",BC174*(1+GR!BD153)) ->  | BE174: =IF(BE$1="","",BD174*(1+GR!BE153)) ->  | BF174: =IF(BF$1="","",BE174*(1+GR!BF153)) ->  | BG174: =IF(BG$1="","",BF174*(1+GR!BG153)) ->  | BH174: =IF(BH$1="","",BG174*(1+GR!BH153)) ->  | BI174: =IF(BI$1="","",BH174*(1+GR!BI153)) ->  | BJ174: =IF(BJ$1="","",BI174*(1+GR!BJ153)) ->  | BK174: =IF(BK$1="","",BJ174*(1+GR!BK153)) ->  | BL174: =IF(BL$1="","",BK174*(1+GR!BL153)) ->  | BM174: =IF(BM$1="","",BL174*(1+GR!BM153)) ->  | BN174: =IF(BN$1="","",BM174*(1+GR!BN153)) ->  | BO174: =IF(BO$1="","",BN174*(1+GR!BO153)) -> 
D175: NIC | E175: £ k | F175: =SUM(H175:BO175) -> 2864332.848 | H175: =D2_NIC_Base -> 75835.14899 | I175: =IF(I$1="","",H175*(1+GR!I154)) -> 77003.01028 | J175: =IF(J$1="","",I175*(1+GR!J154)) -> 78188.85664 | K175: =IF(K$1="","",J175*(1+GR!K154)) -> 79392.96503 | L175: =IF(L$1="","",K175*(1+GR!L154)) -> 80615.61669 | M175: =IF(M$1="","",L175*(1+GR!M154)) -> 81857.09719 | N175: =IF(N$1="","",M175*(1+GR!N154)) -> 83117.69649 | O175: =IF(O$1="","",N175*(1+GR!O154)) -> 84397.70901 | P175: =IF(P$1="","",O175*(1+GR!P154)) -> 85697.43373 | Q175: =IF(Q$1="","",P175*(1+GR!Q154)) -> 87017.17421 | R175: =IF(R$1="","",Q175*(1+GR!R154)) -> 88357.2387 | S175: =IF(S$1="","",R175*(1+GR!S154)) -> 89717.94017 | T175: =IF(T$1="","",S175*(1+GR!T154)) -> 91099.59645 | U175: =IF(U$1="","",T175*(1+GR!U154)) -> 92502.53024 | V175: =IF(V$1="","",U175*(1+GR!V154)) -> 93927.0692 | W175: =IF(W$1="","",V175*(1+GR!W154)) -> 95373.54607 | X175: =IF(X$1="","",W175*(1+GR!X154)) -> 96842.29868 | Y175: =IF(Y$1="","",X175*(1+GR!Y154)) -> 98333.67008 | Z175: =IF(Z$1="","",Y175*(1+GR!Z154)) -> 99848.0086 | AA175: =IF(AA$1="","",Z175*(1+GR!AA154)) -> 101385.6679 | AB175: =IF(AB$1="","",AA175*(1+GR!AB154)) -> 102947.0072 | AC175: =IF(AC$1="","",AB175*(1+GR!AC154)) -> 104532.3911 | AD175: =IF(AD$1="","",AC175*(1+GR!AD154)) -> 106142.1899 | AE175: =IF(AE$1="","",AD175*(1+GR!AE154)) -> 107776.7797 | AF175: =IF(AF$1="","",AE175*(1+GR!AF154)) -> 109436.5421 | AG175: =IF(AG$1="","",AF175*(1+GR!AG154)) -> 111121.8648 | AH175: =IF(AH$1="","",AG175*(1+GR!AH154)) -> 112833.1415 | AI175: =IF(AI$1="","",AH175*(1+GR!AI154)) -> 114570.7719 | AJ175: =IF(AJ$1="","",AI175*(1+GR!AJ154)) -> 116335.1618 | AK175: =IF(AK$1="","",AJ175*(1+GR!AK154)) -> 118126.7233 | AL175: =IF(AL$1="","",AK175*(1+GR!AL154)) ->  | AM175: =IF(AM$1="","",AL175*(1+GR!AM154)) ->  | AN175: =IF(AN$1="","",AM175*(1+GR!AN154)) ->  | AO175: =IF(AO$1="","",AN175*(1+GR!AO154)) ->  | AP175: =IF(AP$1="","",AO175*(1+GR!AP154)) ->  | AQ175: =IF(AQ$1="","",AP175*(1+GR!AQ154)) ->  | AR175: =IF(AR$1="","",AQ175*(1+GR!AR154)) ->  | AS175: =IF(AS$1="","",AR175*(1+GR!AS154)) ->  | AT175: =IF(AT$1="","",AS175*(1+GR!AT154)) ->  | AU175: =IF(AU$1="","",AT175*(1+GR!AU154)) ->  | AV175: =IF(AV$1="","",AU175*(1+GR!AV154)) ->  | AW175: =IF(AW$1="","",AV175*(1+GR!AW154)) ->  | AX175: =IF(AX$1="","",AW175*(1+GR!AX154)) ->  | AY175: =IF(AY$1="","",AX175*(1+GR!AY154)) ->  | AZ175: =IF(AZ$1="","",AY175*(1+GR!AZ154)) ->  | BA175: =IF(BA$1="","",AZ175*(1+GR!BA154)) ->  | BB175: =IF(BB$1="","",BA175*(1+GR!BB154)) ->  | BC175: =IF(BC$1="","",BB175*(1+GR!BC154)) ->  | BD175: =IF(BD$1="","",BC175*(1+GR!BD154)) ->  | BE175: =IF(BE$1="","",BD175*(1+GR!BE154)) ->  | BF175: =IF(BF$1="","",BE175*(1+GR!BF154)) ->  | BG175: =IF(BG$1="","",BF175*(1+GR!BG154)) ->  | BH175: =IF(BH$1="","",BG175*(1+GR!BH154)) ->  | BI175: =IF(BI$1="","",BH175*(1+GR!BI154)) ->  | BJ175: =IF(BJ$1="","",BI175*(1+GR!BJ154)) ->  | BK175: =IF(BK$1="","",BJ175*(1+GR!BK154)) ->  | BL175: =IF(BL$1="","",BK175*(1+GR!BL154)) ->  | BM175: =IF(BM$1="","",BL175*(1+GR!BM154)) ->  | BN175: =IF(BN$1="","",BM175*(1+GR!BN154)) ->  | BO175: =IF(BO$1="","",BN175*(1+GR!BO154)) -> 
D176: Total tax receipts | E176: £ k | F176: =IFERROR(SUM(H176:BO176),0) -> 24831335.27 | H176: =SUM(H173:H175) -> 657426.3922 | I176: =IF(I$1="","",SUM(I173:I175)) -> 667550.7586 | J176: =IF(J$1="","",SUM(J173:J175)) -> 677831.0403 | K176: =IF(K$1="","",SUM(K173:K175)) -> 688269.6383 | L176: =IF(L$1="","",SUM(L173:L175)) -> 698868.9907 | M176: =IF(M$1="","",SUM(M173:M175)) -> 709631.5732 | N176: =IF(N$1="","",SUM(N173:N175)) -> 720559.8994 | O176: =IF(O$1="","",SUM(O173:O175)) -> 731656.5219 | P176: =IF(P$1="","",SUM(P173:P175)) -> 742924.0323 | Q176: =IF(Q$1="","",SUM(Q173:Q175)) -> 754365.0624 | R176: =IF(R$1="","",SUM(R173:R175)) -> 765982.2844 | S176: =IF(S$1="","",SUM(S173:S175)) -> 777778.4115 | T176: =IF(T$1="","",SUM(T173:T175)) -> 789756.1991 | U176: =IF(U$1="","",SUM(U173:U175)) -> 801918.4445 | V176: =IF(V$1="","",SUM(V173:V175)) -> 814267.9886 | W176: =IF(W$1="","",SUM(W173:W175)) -> 826807.7156 | X176: =IF(X$1="","",SUM(X173:X175)) -> 839540.5544 | Y176: =IF(Y$1="","",SUM(Y173:Y175)) -> 852469.479 | Z176: =IF(Z$1="","",SUM(Z173:Z175)) -> 865597.5089 | AA176: =IF(AA$1="","",SUM(AA173:AA175)) -> 878927.7106 | AB176: =IF(AB$1="","",SUM(AB173:AB175)) -> 892463.1973 | AC176: =IF(AC$1="","",SUM(AC173:AC175)) -> 906207.1306 | AD176: =IF(AD$1="","",SUM(AD173:AD175)) -> 920162.7204 | AE176: =IF(AE$1="","",SUM(AE173:AE175)) -> 934333.2263 | AF176: =IF(AF$1="","",SUM(AF173:AF175)) -> 948721.9579 | AG176: =IF(AG$1="","",SUM(AG173:AG175)) -> 963332.2761 | AH176: =IF(AH$1="","",SUM(AH173:AH175)) -> 978167.5932 | AI176: =IF(AI$1="","",SUM(AI173:AI175)) -> 993231.3741 | AJ176: =IF(AJ$1="","",SUM(AJ173:AJ175)) -> 1008527.137 | AK176: 1024058.455
D177: Employment | E177: No. | H177: =D2_Employ_Base -> 51297.56 | I177: =IF(I$1="","",H177*(1+GR!I156)) -> 51805.40584 | J177: =IF(J$1="","",I177*(1+GR!J156)) -> 52318.27936 | K177: =IF(K$1="","",J177*(1+GR!K156)) -> 52836.23033 | L177: =IF(L$1="","",K177*(1+GR!L156)) -> 53359.30901 | M177: =IF(M$1="","",L177*(1+GR!M156)) -> 53887.56617 | N177: =IF(N$1="","",M177*(1+GR!N156)) -> 54421.05307 | O177: =IF(O$1="","",N177*(1+GR!O156)) -> 54959.8215 | P177: =IF(P$1="","",O177*(1+GR!P156)) -> 55503.92373 | Q177: =IF(Q$1="","",P177*(1+GR!Q156)) -> 56053.41258 | R177: =IF(R$1="","",Q177*(1+GR!R156)) -> 56608.34136 | S177: =IF(S$1="","",R177*(1+GR!S156)) -> 57168.76394 | T177: =IF(T$1="","",S177*(1+GR!T156)) -> 57734.7347 | U177: =IF(U$1="","",T177*(1+GR!U156)) -> 58306.30858 | V177: =IF(V$1="","",U177*(1+GR!V156)) -> 58883.54103 | W177: =IF(W$1="","",V177*(1+GR!W156)) -> 59466.48809 | X177: =IF(X$1="","",W177*(1+GR!X156)) -> 60055.20632 | Y177: =IF(Y$1="","",X177*(1+GR!Y156)) -> 60649.75286 | Z177: =IF(Z$1="","",Y177*(1+GR!Z156)) -> 61250.18541 | AA177: =IF(AA$1="","",Z177*(1+GR!AA156)) -> 61856.56225 | AB177: =IF(AB$1="","",AA177*(1+GR!AB156)) -> 62468.94222 | AC177: =IF(AC$1="","",AB177*(1+GR!AC156)) -> 63087.38474 | AD177: =IF(AD$1="","",AC177*(1+GR!AD156)) -> 63711.94985 | AE177: =IF(AE$1="","",AD177*(1+GR!AE156)) -> 64342.69816 | AF177: =IF(AF$1="","",AE177*(1+GR!AF156)) -> 64979.69087 | AG177: =IF(AG$1="","",AF177*(1+GR!AG156)) -> 65622.98981 | AH177: =IF(AH$1="","",AG177*(1+GR!AH156)) -> 66272.65741 | AI177: =IF(AI$1="","",AH177*(1+GR!AI156)) -> 66928.75672 | AJ177: =IF(AJ$1="","",AI177*(1+GR!AJ156)) -> 67591.35141 | AK177: =IF(AK$1="","",AJ177*(1+GR!AK156)) -> 68260.50579 | AL177: =IF(AL$1="","",AK177*(1+GR!AL156)) ->  | AM177: =IF(AM$1="","",AL177*(1+GR!AM156)) ->  | AN177: =IF(AN$1="","",AM177*(1+GR!AN156)) ->  | AO177: =IF(AO$1="","",AN177*(1+GR!AO156)) ->  | AP177: =IF(AP$1="","",AO177*(1+GR!AP156)) ->  | AQ177: =IF(AQ$1="","",AP177*(1+GR!AQ156)) ->  | AR177: =IF(AR$1="","",AQ177*(1+GR!AR156)) ->  | AS177: =IF(AS$1="","",AR177*(1+GR!AS156)) ->  | AT177: =IF(AT$1="","",AS177*(1+GR!AT156)) ->  | AU177: =IF(AU$1="","",AT177*(1+GR!AU156)) ->  | AV177: =IF(AV$1="","",AU177*(1+GR!AV156)) ->  | AW177: =IF(AW$1="","",AV177*(1+GR!AW156)) ->  | AX177: =IF(AX$1="","",AW177*(1+GR!AX156)) ->  | AY177: =IF(AY$1="","",AX177*(1+GR!AY156)) ->  | AZ177: =IF(AZ$1="","",AY177*(1+GR!AZ156)) ->  | BA177: =IF(BA$1="","",AZ177*(1+GR!BA156)) ->  | BB177: =IF(BB$1="","",BA177*(1+GR!BB156)) ->  | BC177: =IF(BC$1="","",BB177*(1+GR!BC156)) ->  | BD177: =IF(BD$1="","",BC177*(1+GR!BD156)) ->  | BE177: =IF(BE$1="","",BD177*(1+GR!BE156)) ->  | BF177: =IF(BF$1="","",BE177*(1+GR!BF156)) ->  | BG177: =IF(BG$1="","",BF177*(1+GR!BG156)) ->  | BH177: =IF(BH$1="","",BG177*(1+GR!BH156)) ->  | BI177: =IF(BI$1="","",BH177*(1+GR!BI156)) ->  | BJ177: =IF(BJ$1="","",BI177*(1+GR!BJ156)) ->  | BK177: =IF(BK$1="","",BJ177*(1+GR!BK156)) ->  | BL177: =IF(BL$1="","",BK177*(1+GR!BL156)) ->  | BM177: =IF(BM$1="","",BL177*(1+GR!BM156)) ->  | BN177: =IF(BN$1="","",BM177*(1+GR!BN156)) ->  | BO177: =IF(BO$1="","",BN177*(1+GR!BO156)) -> 
D178: Total Economic Impacts | E178: £ k | F178: =SUM(H178:BO178) -> 141518759.5 | H178: =IF(H146="","",SUM(H171,H173:H175)) -> 3746804.851 | I178: =IF(I146="","",SUM(I171,I173:I175)) -> 3804505.645 | J178: 3863095.032 | K178: 3922586.696 | L178: 3982994.531 | M178: 4044332.647 | N178: 4106615.37 | O178: 4169857.246 | P178: 4234073.048 | Q178: 4299277.773 | R178: 4365486.651 | S178: 4432715.145 | T178: 4500978.958 | U178: 4570294.034 | V178: 4640676.562 | W178: 4712142.981 | X178: 4784709.983 | Y178: 4858394.517 | Z178: 4933213.793 | AA178: 5009185.285 | AB178: 5086326.738 | AC178: 5164656.17 | AD178: 5244191.875 | AE178: 5324952.43 | AF178: 5406956.697 | AG178: 5490223.831 | AH178: 5574773.278 | AI178: 5660624.786 | AJ178: 5747798.408 | AK178: 5836314.503
A181: =IF(D2_Name="","","Discounted costs for " & D2_Name) -> Discounted costs for R2 | F181: Analysis period total | H181: =H146 -> 2020 | I181: 2021 | J181: 2022 | K181: 2023 | L181: 2024 | M181: 2025 | N181: 2026 | O181: 2027 | P181: 2028 | Q181: 2029 | R181: 2030 | S181: 2031 | T181: 2032 | U181: 2033 | V181: 2034 | W181: 2035 | X181: 2036 | Y181: 2037 | Z181: 2038 | AA181: 2039 | AB181: 2040 | AC181: 2041 | AD181: 2042 | AE181: 2043 | AF181: 2044 | AG181: 2045 | AH181: 2046 | AI181: 2047 | AJ181: 2048 | AK181: =AK146 -> 2049
D183: Parameter | E183: Unit
D184: Expenditure by Treatment | E184: £ k | F184: =SUM(H184:BO184) -> 147185.1562 | H184: =H149 -> 14001.56506 | I184: =IF(I$1="","",I149/(1+GR!I$27)^(I$1-1)) -> 16553.51221 | J184: =IF(J$1="","",J149/(1+GR!J$27)^(J$1-1)) -> 12491.33949 | K184: =IF(K$1="","",K149/(1+GR!K$27)^(K$1-1)) -> 4233.954823 | L184: =IF(L$1="","",L149/(1+GR!L$27)^(L$1-1)) -> 4775.565192 | M184: =IF(M$1="","",M149/(1+GR!M$27)^(M$1-1)) -> 5020.189326 | N184: =IF(N$1="","",N149/(1+GR!N$27)^(N$1-1)) -> 5091.606554 | O184: =IF(O$1="","",O149/(1+GR!O$27)^(O$1-1)) -> 5062.847982 | P184: =IF(P$1="","",P149/(1+GR!P$27)^(P$1-1)) -> 4977.035741 | Q184: =IF(Q$1="","",Q149/(1+GR!Q$27)^(Q$1-1)) -> 4859.637551 | R184: =IF(R$1="","",R149/(1+GR!R$27)^(R$1-1)) -> 4725.685195 | S184: =IF(S$1="","",S149/(1+GR!S$27)^(S$1-1)) -> 4584.033381 | T184: =IF(T$1="","",T149/(1+GR!T$27)^(T$1-1)) -> 4439.876365 | U184: =IF(U$1="","",U149/(1+GR!U$27)^(U$1-1)) -> 4296.237249 | V184: =IF(V$1="","",V149/(1+GR!V$27)^(V$1-1)) -> 4154.850573 | W184: =IF(W$1="","",W149/(1+GR!W$27)^(W$1-1)) -> 4016.686055 | X184: =IF(X$1="","",X149/(1+GR!X$27)^(X$1-1)) -> 3882.259761 | Y184: =IF(Y$1="","",Y149/(1+GR!Y$27)^(Y$1-1)) -> 3751.81919 | Z184: =IF(Z$1="","",Z149/(1+GR!Z$27)^(Z$1-1)) -> 3625.453474 | AA184: =IF(AA$1="","",AA149/(1+GR!AA$27)^(AA$1-1)) -> 3503.159035 | AB184: =IF(AB$1="","",AB149/(1+GR!AB$27)^(AB$1-1)) -> 3384.878727 | AC184: =IF(AC$1="","",AC149/(1+GR!AC$27)^(AC$1-1)) -> 3270.525164 | AD184: =IF(AD$1="","",AD149/(1+GR!AD$27)^(AD$1-1)) -> 3159.994625 | AE184: =IF(AE$1="","",AE149/(1+GR!AE$27)^(AE$1-1)) -> 3053.175313 | AF184: =IF(AF$1="","",AF149/(1+GR!AF$27)^(AF$1-1)) -> 2949.952252 | AG184: =IF(AG$1="","",AG149/(1+GR!AG$27)^(AG$1-1)) -> 2850.210171 | AH184: =IF(AH$1="","",AH149/(1+GR!AH$27)^(AH$1-1)) -> 2753.835181 | AI184: =IF(AI$1="","",AI149/(1+GR!AI$27)^(AI$1-1)) -> 2660.715724 | AJ184: =IF(AJ$1="","",AJ149/(1+GR!AJ$27)^(AJ$1-1)) -> 2570.743103 | AK184: =IF(AK$1="","",AK149/(1+GR!AK$27)^(AK$1-1)) -> 2483.811745 | AL184: =IF(AL$1="","",AL149/(1+GR!AL$27)^(AL$1-1)) ->  | AM184: =IF(AM$1="","",AM149/(1+GR!AM$27)^(AM$1-1)) ->  | AN184: =IF(AN$1="","",AN149/(1+GR!AN$27)^(AN$1-1)) ->  | AO184: =IF(AO$1="","",AO149/(1+GR!AO$27)^(AO$1-1)) ->  | AP184: =IF(AP$1="","",AP149/(1+GR!AP$27)^(AP$1-1)) ->  | AQ184: =IF(AQ$1="","",AQ149/(1+GR!AQ$27)^(AQ$1-1)) ->  | AR184: =IF(AR$1="","",AR149/(1+GR!AR$27)^(AR$1-1)) ->  | AS184: =IF(AS$1="","",AS149/(1+GR!AS$27)^(AS$1-1)) ->  | AT184: =IF(AT$1="","",AT149/(1+GR!AT$27)^(AT$1-1)) ->  | AU184: =IF(AU$1="","",AU149/(1+GR!AU$27)^(AU$1-1)) ->  | AV184: =IF(AV$1="","",AV149/(1+GR!AV$27)^(AV$1-1)) ->  | AW184: =IF(AW$1="","",AW149/(1+GR!AW$27)^(AW$1-1)) ->  | AX184: =IF(AX$1="","",AX149/(1+GR!AX$27)^(AX$1-1)) ->  | AY184: =IF(AY$1="","",AY149/(1+GR!AY$27)^(AY$1-1)) ->  | AZ184: =IF(AZ$1="","",AZ149/(1+GR!AZ$27)^(AZ$1-1)) ->  | BA184: =IF(BA$1="","",BA149/(1+GR!BA$27)^(BA$1-1)) ->  | BB184: =IF(BB$1="","",BB149/(1+GR!BB$27)^(BB$1-1)) ->  | BC184: =IF(BC$1="","",BC149/(1+GR!BC$27)^(BC$1-1)) ->  | BD184: =IF(BD$1="","",BD149/(1+GR!BD$27)^(BD$1-1)) ->  | BE184: =IF(BE$1="","",BE149/(1+GR!BE$27)^(BE$1-1)) ->  | BF184: =IF(BF$1="","",BF149/(1+GR!BF$27)^(BF$1-1)) ->  | BG184: =IF(BG$1="","",BG149/(1+GR!BG$27)^(BG$1-1)) ->  | BH184: =IF(BH$1="","",BH149/(1+GR!BH$27)^(BH$1-1)) ->  | BI184: =IF(BI$1="","",BI149/(1+GR!BI$27)^(BI$1-1)) ->  | BJ184: =IF(BJ$1="","",BJ149/(1+GR!BJ$27)^(BJ$1-1)) ->  | BK184: =IF(BK$1="","",BK149/(1+GR!BK$27)^(BK$1-1)) ->  | BL184: =IF(BL$1="","",BL149/(1+GR!BL$27)^(BL$1-1)) ->  | BM184: =IF(BM$1="","",BM149/(1+GR!BM$27)^(BM$1-1)) ->  | BN184: =IF(BN$1="","",BN149/(1+GR!BN$27)^(BN$1-1)) ->  | BO184: =IF(BO$1="","",BO149/(1+GR!BO$27)^(BO$1-1)) -> 
D185: Percentage in poor condition | E185: % | H185: =IF(H150="","",H150) -> 0.2655 | I185: =IF(I150="","",I150) -> 0.1328 | J185: 0 | K185: 0 | L185: 0 | M185: 0 | N185: 0 | O185: 0 | P185: 0 | Q185: 0 | R185: 0 | S185: 0 | T185: 0 | U185: 0 | V185: 0 | W185: 0 | X185: 0 | Y185: 0 | Z185: 0 | AA185: 0 | AB185: 0 | AC185: 0 | AD185: 0 | AE185: 0 | AF185: 0 | AG185: 0 | AH185: 0 | AI185: 0 | AJ185: 0 | AK185: 0
C187: Treatment and Condition Impacts | D187: Vehicle operating costs | E187: £ k | F187: =SUM(H187:BO187) -> 41544267.3 | H187: =H152 -> 1118332.489 | I187: =IF(I$1="","",I152/(1+GR!I$27)^(I$1-1)) -> 1096192.539 | J187: =IF(J$1="","",J152/(1+GR!J$27)^(J$1-1)) -> 1081543.518 | K187: =IF(K$1="","",K152/(1+GR!K$27)^(K$1-1)) -> 1092486.583 | L187: =IF(L$1="","",L152/(1+GR!L$27)^(L$1-1)) -> 1108462.584 | M187: =IF(M$1="","",M152/(1+GR!M$27)^(M$1-1)) -> 1137661.741 | N187: =IF(N$1="","",N152/(1+GR!N$27)^(N$1-1)) -> 1175241.611 | O187: =IF(O$1="","",O152/(1+GR!O$27)^(O$1-1)) -> 1213229.975 | P187: =IF(P$1="","",P152/(1+GR!P$27)^(P$1-1)) -> 1244145.078 | Q187: =IF(Q$1="","",Q152/(1+GR!Q$27)^(Q$1-1)) -> 1282607.155 | R187: =IF(R$1="","",R152/(1+GR!R$27)^(R$1-1)) -> 1333057.199 | S187: =IF(S$1="","",S152/(1+GR!S$27)^(S$1-1)) -> 1369138.158 | T187: =IF(T$1="","",T152/(1+GR!T$27)^(T$1-1)) -> 1403374.679 | U187: =IF(U$1="","",U152/(1+GR!U$27)^(U$1-1)) -> 1433512.063 | V187: =IF(V$1="","",V152/(1+GR!V$27)^(V$1-1)) -> 1460281.856 | W187: =IF(W$1="","",W152/(1+GR!W$27)^(W$1-1)) -> 1483103.668 | X187: =IF(X$1="","",X152/(1+GR!X$27)^(X$1-1)) -> 1501803.096 | Y187: =IF(Y$1="","",Y152/(1+GR!Y$27)^(Y$1-1)) -> 1515543.561 | Z187: =IF(Z$1="","",Z152/(1+GR!Z$27)^(Z$1-1)) -> 1530546.44 | AA187: =IF(AA$1="","",AA152/(1+GR!AA$27)^(AA$1-1)) -> 1541557.414 | AB187: =IF(AB$1="","",AB152/(1+GR!AB$27)^(AB$1-1)) -> 1549092.698 | AC187: =IF(AC$1="","",AC152/(1+GR!AC$27)^(AC$1-1)) -> 1556971.651 | AD187: =IF(AD$1="","",AD152/(1+GR!AD$27)^(AD$1-1)) -> 1559500.793 | AE187: =IF(AE$1="","",AE152/(1+GR!AE$27)^(AE$1-1)) -> 1558687.985 | AF187: =IF(AF$1="","",AF152/(1+GR!AF$27)^(AF$1-1)) -> 1555927.484 | AG187: =IF(AG$1="","",AG152/(1+GR!AG$27)^(AG$1-1)) -> 1549593.42 | AH187: =IF(AH$1="","",AH152/(1+GR!AH$27)^(AH$1-1)) -> 1541048.029 | AI187: =IF(AI$1="","",AI152/(1+GR!AI$27)^(AI$1-1)) -> 1529952.833 | AJ187: =IF(AJ$1="","",AJ152/(1+GR!AJ$27)^(AJ$1-1)) -> 1517820.251 | AK187: =IF(AK$1="","",AK152/(1+GR!AK$27)^(AK$1-1)) -> 1503850.744 | AL187: =IF(AL$1="","",AL152/(1+GR!AL$27)^(AL$1-1)) ->  | AM187: =IF(AM$1="","",AM152/(1+GR!AM$27)^(AM$1-1)) ->  | AN187: =IF(AN$1="","",AN152/(1+GR!AN$27)^(AN$1-1)) ->  | AO187: =IF(AO$1="","",AO152/(1+GR!AO$27)^(AO$1-1)) ->  | AP187: =IF(AP$1="","",AP152/(1+GR!AP$27)^(AP$1-1)) ->  | AQ187: =IF(AQ$1="","",AQ152/(1+GR!AQ$27)^(AQ$1-1)) ->  | AR187: =IF(AR$1="","",AR152/(1+GR!AR$27)^(AR$1-1)) ->  | AS187: =IF(AS$1="","",AS152/(1+GR!AS$27)^(AS$1-1)) ->  | AT187: =IF(AT$1="","",AT152/(1+GR!AT$27)^(AT$1-1)) ->  | AU187: =IF(AU$1="","",AU152/(1+GR!AU$27)^(AU$1-1)) ->  | AV187: =IF(AV$1="","",AV152/(1+GR!AV$27)^(AV$1-1)) ->  | AW187: =IF(AW$1="","",AW152/(1+GR!AW$27)^(AW$1-1)) ->  | AX187: =IF(AX$1="","",AX152/(1+GR!AX$27)^(AX$1-1)) ->  | AY187: =IF(AY$1="","",AY152/(1+GR!AY$27)^(AY$1-1)) ->  | AZ187: =IF(AZ$1="","",AZ152/(1+GR!AZ$27)^(AZ$1-1)) ->  | BA187: =IF(BA$1="","",BA152/(1+GR!BA$27)^(BA$1-1)) ->  | BB187: =IF(BB$1="","",BB152/(1+GR!BB$27)^(BB$1-1)) ->  | BC187: =IF(BC$1="","",BC152/(1+GR!BC$27)^(BC$1-1)) ->  | BD187: =IF(BD$1="","",BD152/(1+GR!BD$27)^(BD$1-1)) ->  | BE187: =IF(BE$1="","",BE152/(1+GR!BE$27)^(BE$1-1)) ->  | BF187: =IF(BF$1="","",BF152/(1+GR!BF$27)^(BF$1-1)) ->  | BG187: =IF(BG$1="","",BG152/(1+GR!BG$27)^(BG$1-1)) ->  | BH187: =IF(BH$1="","",BH152/(1+GR!BH$27)^(BH$1-1)) ->  | BI187: =IF(BI$1="","",BI152/(1+GR!BI$27)^(BI$1-1)) ->  | BJ187: =IF(BJ$1="","",BJ152/(1+GR!BJ$27)^(BJ$1-1)) ->  | BK187: =IF(BK$1="","",BK152/(1+GR!BK$27)^(BK$1-1)) ->  | BL187: =IF(BL$1="","",BL152/(1+GR!BL$27)^(BL$1-1)) ->  | BM187: =IF(BM$1="","",BM152/(1+GR!BM$27)^(BM$1-1)) ->  | BN187: =IF(BN$1="","",BN152/(1+GR!BN$27)^(BN$1-1)) ->  | BO187: =IF(BO$1="","",BO152/(1+GR!BO$27)^(BO$1-1)) -> 
D188: Travel time | E188: £ k | F188: 9478137.19 | H188: 368908.3171 | I188: =IF(I$1="","",I153/(1+GR!I$27)^(I$1-1)) -> 353524.6717 | J188: =IF(J$1="","",J153/(1+GR!J$27)^(J$1-1)) -> 338629.7813 | K188: =IF(K$1="","",K153/(1+GR!K$27)^(K$1-1)) -> 335234.4273 | L188: =IF(L$1="","",L153/(1+GR!L$27)^(L$1-1)) -> 332090.6747 | M188: =IF(M$1="","",M153/(1+GR!M$27)^(M$1-1)) -> 329261.6058 | N188: =IF(N$1="","",N153/(1+GR!N$27)^(N$1-1)) -> 326733.7299 | O188: =IF(O$1="","",O153/(1+GR!O$27)^(O$1-1)) -> 324485.0084 | P188: =IF(P$1="","",P153/(1+GR!P$27)^(P$1-1)) -> 322536.0784 | Q188: =IF(Q$1="","",Q153/(1+GR!Q$27)^(Q$1-1)) -> 320707.5168 | R188: =IF(R$1="","",R153/(1+GR!R$27)^(R$1-1)) -> 319173.3287 | S188: =IF(S$1="","",S153/(1+GR!S$27)^(S$1-1)) -> 317595.2688 | T188: =IF(T$1="","",T153/(1+GR!T$27)^(T$1-1)) -> 316508.7394 | U188: =IF(U$1="","",U153/(1+GR!U$27)^(U$1-1)) -> 315336.8622 | V188: =IF(V$1="","",V153/(1+GR!V$27)^(V$1-1)) -> 314171.8266 | W188: =IF(W$1="","",W153/(1+GR!W$27)^(W$1-1)) -> 313080.4035 | X188: =IF(X$1="","",X153/(1+GR!X$27)^(X$1-1)) -> 312165.6578 | Y188: =IF(Y$1="","",Y153/(1+GR!Y$27)^(Y$1-1)) -> 310953.4162 | Z188: =IF(Z$1="","",Z153/(1+GR!Z$27)^(Z$1-1)) -> 309730.5801 | AA188: =IF(AA$1="","",AA153/(1+GR!AA$27)^(AA$1-1)) -> 308439.2629 | AB188: =IF(AB$1="","",AB153/(1+GR!AB$27)^(AB$1-1)) -> 307053.9384 | AC188: =IF(AC$1="","",AC153/(1+GR!AC$27)^(AC$1-1)) -> 305669.8898 | AD188: =IF(AD$1="","",AD153/(1+GR!AD$27)^(AD$1-1)) -> 303908.6497 | AE188: =IF(AE$1="","",AE153/(1+GR!AE$27)^(AE$1-1)) -> 302100.12 | AF188: =IF(AF$1="","",AF153/(1+GR!AF$27)^(AF$1-1)) -> 300217.4616 | AG188: =IF(AG$1="","",AG153/(1+GR!AG$27)^(AG$1-1)) -> 298299.4318 | AH188: =IF(AH$1="","",AH153/(1+GR!AH$27)^(AH$1-1)) -> 296360.2814 | AI188: =IF(AI$1="","",AI153/(1+GR!AI$27)^(AI$1-1)) -> 294066.3692 | AJ188: =IF(AJ$1="","",AJ153/(1+GR!AJ$27)^(AJ$1-1)) -> 291747.011 | AK188: =IF(AK$1="","",AK153/(1+GR!AK$27)^(AK$1-1)) -> 289446.8791 | AL188: =IF(AL$1="","",AL153/(1+GR!AL$27)^(AL$1-1)) ->  | AM188: =IF(AM$1="","",AM153/(1+GR!AM$27)^(AM$1-1)) ->  | AN188: =IF(AN$1="","",AN153/(1+GR!AN$27)^(AN$1-1)) ->  | AO188: =IF(AO$1="","",AO153/(1+GR!AO$27)^(AO$1-1)) ->  | AP188: =IF(AP$1="","",AP153/(1+GR!AP$27)^(AP$1-1)) ->  | AQ188: =IF(AQ$1="","",AQ153/(1+GR!AQ$27)^(AQ$1-1)) ->  | AR188: =IF(AR$1="","",AR153/(1+GR!AR$27)^(AR$1-1)) ->  | AS188: =IF(AS$1="","",AS153/(1+GR!AS$27)^(AS$1-1)) ->  | AT188: =IF(AT$1="","",AT153/(1+GR!AT$27)^(AT$1-1)) ->  | AU188: =IF(AU$1="","",AU153/(1+GR!AU$27)^(AU$1-1)) ->  | AV188: =IF(AV$1="","",AV153/(1+GR!AV$27)^(AV$1-1)) ->  | AW188: =IF(AW$1="","",AW153/(1+GR!AW$27)^(AW$1-1)) ->  | AX188: =IF(AX$1="","",AX153/(1+GR!AX$27)^(AX$1-1)) ->  | AY188: =IF(AY$1="","",AY153/(1+GR!AY$27)^(AY$1-1)) ->  | AZ188: =IF(AZ$1="","",AZ153/(1+GR!AZ$27)^(AZ$1-1)) ->  | BA188: =IF(BA$1="","",BA153/(1+GR!BA$27)^(BA$1-1)) ->  | BB188: =IF(BB$1="","",BB153/(1+GR!BB$27)^(BB$1-1)) ->  | BC188: =IF(BC$1="","",BC153/(1+GR!BC$27)^(BC$1-1)) ->  | BD188: =IF(BD$1="","",BD153/(1+GR!BD$27)^(BD$1-1)) ->  | BE188: =IF(BE$1="","",BE153/(1+GR!BE$27)^(BE$1-1)) ->  | BF188: =IF(BF$1="","",BF153/(1+GR!BF$27)^(BF$1-1)) ->  | BG188: =IF(BG$1="","",BG153/(1+GR!BG$27)^(BG$1-1)) ->  | BH188: =IF(BH$1="","",BH153/(1+GR!BH$27)^(BH$1-1)) ->  | BI188: =IF(BI$1="","",BI153/(1+GR!BI$27)^(BI$1-1)) ->  | BJ188: =IF(BJ$1="","",BJ153/(1+GR!BJ$27)^(BJ$1-1)) ->  | BK188: =IF(BK$1="","",BK153/(1+GR!BK$27)^(BK$1-1)) ->  | BL188: =IF(BL$1="","",BL153/(1+GR!BL$27)^(BL$1-1)) ->  | BM188: =IF(BM$1="","",BM153/(1+GR!BM$27)^(BM$1-1)) ->  | BN188: =IF(BN$1="","",BN153/(1+GR!BN$27)^(BN$1-1)) ->  | BO188: =IF(BO$1="","",BO153/(1+GR!BO$27)^(BO$1-1)) -> 
D189: Carbon (vehicle fuel) | E189: £ k | F189: 1531524.262 | H189: 40389.86645 | I189: =IF(I$1="","",I154/(1+GR!I$27)^(I$1-1)) -> 40344.3387 | J189: =IF(J$1="","",J154/(1+GR!J$27)^(J$1-1)) -> 40618.68276 | K189: =IF(K$1="","",K154/(1+GR!K$27)^(K$1-1)) -> 39673.83503 | L189: =IF(L$1="","",L154/(1+GR!L$27)^(L$1-1)) -> 38822.49926 | M189: =IF(M$1="","",M154/(1+GR!M$27)^(M$1-1)) -> 38004.35348 | N189: =IF(N$1="","",N154/(1+GR!N$27)^(N$1-1)) -> 37366.32575 | O189: =IF(O$1="","",O154/(1+GR!O$27)^(O$1-1)) -> 36824.75802 | P189: =IF(P$1="","",P154/(1+GR!P$27)^(P$1-1)) -> 36793.85275 | Q189: =IF(Q$1="","",Q154/(1+GR!Q$27)^(Q$1-1)) -> 36369.46356 | R189: =IF(R$1="","",R154/(1+GR!R$27)^(R$1-1)) -> 36010.34946 | S189: =IF(S$1="","",S154/(1+GR!S$27)^(S$1-1)) -> 38477.52094 | T189: =IF(T$1="","",T154/(1+GR!T$27)^(T$1-1)) -> 41482.19793 | U189: =IF(U$1="","",U154/(1+GR!U$27)^(U$1-1)) -> 43942.97513 | V189: =IF(V$1="","",V154/(1+GR!V$27)^(V$1-1)) -> 46721.25378 | W189: =IF(W$1="","",W154/(1+GR!W$27)^(W$1-1)) -> 49032.17096 | X189: =IF(X$1="","",X154/(1+GR!X$27)^(X$1-1)) -> 51707.52402 | Y189: =IF(Y$1="","",Y154/(1+GR!Y$27)^(Y$1-1)) -> 53725.50692 | Z189: =IF(Z$1="","",Z154/(1+GR!Z$27)^(Z$1-1)) -> 56164.4961 | AA189: =IF(AA$1="","",AA154/(1+GR!AA$27)^(AA$1-1)) -> 58060.84132 | AB189: =IF(AB$1="","",AB154/(1+GR!AB$27)^(AB$1-1)) -> 60192.85562 | AC189: =IF(AC$1="","",AC154/(1+GR!AC$27)^(AC$1-1)) -> 61912.18579 | AD189: =IF(AD$1="","",AD154/(1+GR!AD$27)^(AD$1-1)) -> 63874.23583 | AE189: =IF(AE$1="","",AE154/(1+GR!AE$27)^(AE$1-1)) -> 65225.19133 | AF189: =IF(AF$1="","",AF154/(1+GR!AF$27)^(AF$1-1)) -> 66966.11392 | AG189: =IF(AG$1="","",AG154/(1+GR!AG$27)^(AG$1-1)) -> 68194.80951 | AH189: =IF(AH$1="","",AH154/(1+GR!AH$27)^(AH$1-1)) -> 69616.07668 | AI189: =IF(AI$1="","",AI154/(1+GR!AI$27)^(AI$1-1)) -> 70595.21858 | AJ189: =IF(AJ$1="","",AJ154/(1+GR!AJ$27)^(AJ$1-1)) -> 71853.75405 | AK189: =IF(AK$1="","",AK154/(1+GR!AK$27)^(AK$1-1)) -> 72561.00877 | AL189: =IF(AL$1="","",AL154/(1+GR!AL$27)^(AL$1-1)) ->  | AM189: =IF(AM$1="","",AM154/(1+GR!AM$27)^(AM$1-1)) ->  | AN189: =IF(AN$1="","",AN154/(1+GR!AN$27)^(AN$1-1)) ->  | AO189: =IF(AO$1="","",AO154/(1+GR!AO$27)^(AO$1-1)) ->  | AP189: =IF(AP$1="","",AP154/(1+GR!AP$27)^(AP$1-1)) ->  | AQ189: =IF(AQ$1="","",AQ154/(1+GR!AQ$27)^(AQ$1-1)) ->  | AR189: =IF(AR$1="","",AR154/(1+GR!AR$27)^(AR$1-1)) ->  | AS189: =IF(AS$1="","",AS154/(1+GR!AS$27)^(AS$1-1)) ->  | AT189: =IF(AT$1="","",AT154/(1+GR!AT$27)^(AT$1-1)) ->  | AU189: =IF(AU$1="","",AU154/(1+GR!AU$27)^(AU$1-1)) ->  | AV189: =IF(AV$1="","",AV154/(1+GR!AV$27)^(AV$1-1)) ->  | AW189: =IF(AW$1="","",AW154/(1+GR!AW$27)^(AW$1-1)) ->  | AX189: =IF(AX$1="","",AX154/(1+GR!AX$27)^(AX$1-1)) ->  | AY189: =IF(AY$1="","",AY154/(1+GR!AY$27)^(AY$1-1)) ->  | AZ189: =IF(AZ$1="","",AZ154/(1+GR!AZ$27)^(AZ$1-1)) ->  | BA189: =IF(BA$1="","",BA154/(1+GR!BA$27)^(BA$1-1)) ->  | BB189: =IF(BB$1="","",BB154/(1+GR!BB$27)^(BB$1-1)) ->  | BC189: =IF(BC$1="","",BC154/(1+GR!BC$27)^(BC$1-1)) ->  | BD189: =IF(BD$1="","",BD154/(1+GR!BD$27)^(BD$1-1)) ->  | BE189: =IF(BE$1="","",BE154/(1+GR!BE$27)^(BE$1-1)) ->  | BF189: =IF(BF$1="","",BF154/(1+GR!BF$27)^(BF$1-1)) ->  | BG189: =IF(BG$1="","",BG154/(1+GR!BG$27)^(BG$1-1)) ->  | BH189: =IF(BH$1="","",BH154/(1+GR!BH$27)^(BH$1-1)) ->  | BI189: =IF(BI$1="","",BI154/(1+GR!BI$27)^(BI$1-1)) ->  | BJ189: =IF(BJ$1="","",BJ154/(1+GR!BJ$27)^(BJ$1-1)) ->  | BK189: =IF(BK$1="","",BK154/(1+GR!BK$27)^(BK$1-1)) ->  | BL189: =IF(BL$1="","",BL154/(1+GR!BL$27)^(BL$1-1)) ->  | BM189: =IF(BM$1="","",BM154/(1+GR!BM$27)^(BM$1-1)) ->  | BN189: =IF(BN$1="","",BN154/(1+GR!BN$27)^(BN$1-1)) ->  | BO189: =IF(BO$1="","",BO154/(1+GR!BO$27)^(BO$1-1)) -> 
D190: Roadworks Accidents | E190: £ k | F190: 226.185973 | H190: 69.6442895 | I190: =IF(I$1="","",I155/(1+GR!I$27)^(I$1-1)) -> 479.5427391 | J190: =IF(J$1="","",J155/(1+GR!J$27)^(J$1-1)) -> -17.05526497 | K190: =IF(K$1="","",K155/(1+GR!K$27)^(K$1-1)) -> -5.221686702 | L190: =IF(L$1="","",L155/(1+GR!L$27)^(L$1-1)) -> -7.526918732 | M190: =IF(M$1="","",M155/(1+GR!M$27)^(M$1-1)) -> -8.836471669 | N190: =IF(N$1="","",N155/(1+GR!N$27)^(N$1-1)) -> -9.520256913 | O190: =IF(O$1="","",O155/(1+GR!O$27)^(O$1-1)) -> -9.822164932 | P190: =IF(P$1="","",P155/(1+GR!P$27)^(P$1-1)) -> -9.898360371 | Q190: =IF(Q$1="","",Q155/(1+GR!Q$27)^(Q$1-1)) -> -13.37277281 | R190: =IF(R$1="","",R155/(1+GR!R$27)^(R$1-1)) -> -12.81288639 | S190: =IF(S$1="","",S155/(1+GR!S$27)^(S$1-1)) -> -12.56680893 | T190: =IF(T$1="","",T155/(1+GR!T$27)^(T$1-1)) -> -12.31523377 | U190: =IF(U$1="","",U155/(1+GR!U$27)^(U$1-1)) -> -12.05081786 | V190: =IF(V$1="","",V155/(1+GR!V$27)^(V$1-1)) -> -11.78116297 | W190: =IF(W$1="","",W155/(1+GR!W$27)^(W$1-1)) -> -11.51070472 | X190: =IF(X$1="","",X155/(1+GR!X$27)^(X$1-1)) -> -13.26169586 | Y190: =IF(Y$1="","",Y155/(1+GR!Y$27)^(Y$1-1)) -> -12.93345708 | Z190: =IF(Z$1="","",Z155/(1+GR!Z$27)^(Z$1-1)) -> -12.61119011 | AA190: =IF(AA$1="","",AA155/(1+GR!AA$27)^(AA$1-1)) -> -12.30841223 | AB190: =IF(AB$1="","",AB155/(1+GR!AB$27)^(AB$1-1)) -> -11.99886645 | AC190: =IF(AC$1="","",AC155/(1+GR!AC$27)^(AC$1-1)) -> -11.69603207 | AD190: =IF(AD$1="","",AD155/(1+GR!AD$27)^(AD$1-1)) -> -11.3859355 | AE190: =IF(AE$1="","",AE155/(1+GR!AE$27)^(AE$1-1)) -> -12.77579155 | AF190: =IF(AF$1="","",AF155/(1+GR!AF$27)^(AF$1-1)) -> -12.435734 | AG190: =IF(AG$1="","",AG155/(1+GR!AG$27)^(AG$1-1)) -> -12.10409727 | AH190: =IF(AH$1="","",AH155/(1+GR!AH$27)^(AH$1-1)) -> -11.78071005 | AI190: =IF(AI$1="","",AI155/(1+GR!AI$27)^(AI$1-1)) -> -11.45423182 | AJ190: =IF(AJ$1="","",AJ155/(1+GR!AJ$27)^(AJ$1-1)) -> -11.13639642 | AK190: =IF(AK$1="","",AK155/(1+GR!AK$27)^(AK$1-1)) -> -10.82699346 | AL190: =IF(AL$1="","",AL155/(1+GR!AL$27)^(AL$1-1)) ->  | AM190: =IF(AM$1="","",AM155/(1+GR!AM$27)^(AM$1-1)) ->  | AN190: =IF(AN$1="","",AN155/(1+GR!AN$27)^(AN$1-1)) ->  | AO190: =IF(AO$1="","",AO155/(1+GR!AO$27)^(AO$1-1)) ->  | AP190: =IF(AP$1="","",AP155/(1+GR!AP$27)^(AP$1-1)) ->  | AQ190: =IF(AQ$1="","",AQ155/(1+GR!AQ$27)^(AQ$1-1)) ->  | AR190: =IF(AR$1="","",AR155/(1+GR!AR$27)^(AR$1-1)) ->  | AS190: =IF(AS$1="","",AS155/(1+GR!AS$27)^(AS$1-1)) ->  | AT190: =IF(AT$1="","",AT155/(1+GR!AT$27)^(AT$1-1)) ->  | AU190: =IF(AU$1="","",AU155/(1+GR!AU$27)^(AU$1-1)) ->  | AV190: =IF(AV$1="","",AV155/(1+GR!AV$27)^(AV$1-1)) ->  | AW190: =IF(AW$1="","",AW155/(1+GR!AW$27)^(AW$1-1)) ->  | AX190: =IF(AX$1="","",AX155/(1+GR!AX$27)^(AX$1-1)) ->  | AY190: =IF(AY$1="","",AY155/(1+GR!AY$27)^(AY$1-1)) ->  | AZ190: =IF(AZ$1="","",AZ155/(1+GR!AZ$27)^(AZ$1-1)) ->  | BA190: =IF(BA$1="","",BA155/(1+GR!BA$27)^(BA$1-1)) ->  | BB190: =IF(BB$1="","",BB155/(1+GR!BB$27)^(BB$1-1)) ->  | BC190: =IF(BC$1="","",BC155/(1+GR!BC$27)^(BC$1-1)) ->  | BD190: =IF(BD$1="","",BD155/(1+GR!BD$27)^(BD$1-1)) ->  | BE190: =IF(BE$1="","",BE155/(1+GR!BE$27)^(BE$1-1)) ->  | BF190: =IF(BF$1="","",BF155/(1+GR!BF$27)^(BF$1-1)) ->  | BG190: =IF(BG$1="","",BG155/(1+GR!BG$27)^(BG$1-1)) ->  | BH190: =IF(BH$1="","",BH155/(1+GR!BH$27)^(BH$1-1)) ->  | BI190: =IF(BI$1="","",BI155/(1+GR!BI$27)^(BI$1-1)) ->  | BJ190: =IF(BJ$1="","",BJ155/(1+GR!BJ$27)^(BJ$1-1)) ->  | BK190: =IF(BK$1="","",BK155/(1+GR!BK$27)^(BK$1-1)) ->  | BL190: =IF(BL$1="","",BL155/(1+GR!BL$27)^(BL$1-1)) ->  | BM190: =IF(BM$1="","",BM155/(1+GR!BM$27)^(BM$1-1)) ->  | BN190: =IF(BN$1="","",BN155/(1+GR!BN$27)^(BN$1-1)) ->  | BO190: =IF(BO$1="","",BO155/(1+GR!BO$27)^(BO$1-1)) -> 
D191: Carbon (vehicles in roadworks) | E191: £ k | F191: 130.1190832 | H191: 5.924918015 | I191: =IF(I$1="","",I156/(1+GR!I$27)^(I$1-1)) -> 20.07329124 | J191: =IF(J$1="","",J156/(1+GR!J$27)^(J$1-1)) -> 6.352429025 | K191: =IF(K$1="","",K156/(1+GR!K$27)^(K$1-1)) -> 2.809010771 | L191: =IF(L$1="","",L156/(1+GR!L$27)^(L$1-1)) -> 3.340707892 | M191: =IF(M$1="","",M156/(1+GR!M$27)^(M$1-1)) -> 3.584179485 | N191: =IF(N$1="","",N156/(1+GR!N$27)^(N$1-1)) -> 3.670305379 | O191: =IF(O$1="","",O156/(1+GR!O$27)^(O$1-1)) -> 3.671556502 | P191: =IF(P$1="","",P156/(1+GR!P$27)^(P$1-1)) -> 3.629521328 | Q191: =IF(Q$1="","",Q156/(1+GR!Q$27)^(Q$1-1)) -> 4.295405445 | R191: =IF(R$1="","",R156/(1+GR!R$27)^(R$1-1)) -> 4.111406481 | S191: =IF(S$1="","",S156/(1+GR!S$27)^(S$1-1)) -> 4.018091665 | T191: =IF(T$1="","",T156/(1+GR!T$27)^(T$1-1)) -> 3.928784835 | U191: =IF(U$1="","",U156/(1+GR!U$27)^(U$1-1)) -> 3.839254982 | V191: =IF(V$1="","",V156/(1+GR!V$27)^(V$1-1)) -> 3.750462269 | W191: =IF(W$1="","",W156/(1+GR!W$27)^(W$1-1)) -> 3.662891775 | X191: =IF(X$1="","",X156/(1+GR!X$27)^(X$1-1)) -> 3.869025699 | Y191: =IF(Y$1="","",Y156/(1+GR!Y$27)^(Y$1-1)) -> 3.772870312 | Z191: =IF(Z$1="","",Z156/(1+GR!Z$27)^(Z$1-1)) -> 3.678767296 | AA191: =IF(AA$1="","",AA156/(1+GR!AA$27)^(AA$1-1)) -> 4.034474858 | AB191: =IF(AB$1="","",AB156/(1+GR!AB$27)^(AB$1-1)) -> 3.933148821 | AC191: =IF(AC$1="","",AC156/(1+GR!AC$27)^(AC$1-1)) -> 3.834079041 | AD191: =IF(AD$1="","",AD156/(1+GR!AD$27)^(AD$1-1)) -> 3.734324839 | AE191: =IF(AE$1="","",AE156/(1+GR!AE$27)^(AE$1-1)) -> 3.498724485 | AF191: =IF(AF$1="","",AF156/(1+GR!AF$27)^(AF$1-1)) -> 3.405760069 | AG191: =IF(AG$1="","",AG156/(1+GR!AG$27)^(AG$1-1)) -> 3.31509848 | AH191: =IF(AH$1="","",AH156/(1+GR!AH$27)^(AH$1-1)) -> 3.226689841 | AI191: =IF(AI$1="","",AI156/(1+GR!AI$27)^(AI$1-1)) -> 3.137433001 | AJ191: =IF(AJ$1="","",AJ156/(1+GR!AJ$27)^(AJ$1-1)) -> 3.050534091 | AK191: =IF(AK$1="","",AK156/(1+GR!AK$27)^(AK$1-1)) -> 2.965935269 | AL191: =IF(AL$1="","",AL156/(1+GR!AL$27)^(AL$1-1)) ->  | AM191: =IF(AM$1="","",AM156/(1+GR!AM$27)^(AM$1-1)) ->  | AN191: =IF(AN$1="","",AN156/(1+GR!AN$27)^(AN$1-1)) ->  | AO191: =IF(AO$1="","",AO156/(1+GR!AO$27)^(AO$1-1)) ->  | AP191: =IF(AP$1="","",AP156/(1+GR!AP$27)^(AP$1-1)) ->  | AQ191: =IF(AQ$1="","",AQ156/(1+GR!AQ$27)^(AQ$1-1)) ->  | AR191: =IF(AR$1="","",AR156/(1+GR!AR$27)^(AR$1-1)) ->  | AS191: =IF(AS$1="","",AS156/(1+GR!AS$27)^(AS$1-1)) ->  | AT191: =IF(AT$1="","",AT156/(1+GR!AT$27)^(AT$1-1)) ->  | AU191: =IF(AU$1="","",AU156/(1+GR!AU$27)^(AU$1-1)) ->  | AV191: =IF(AV$1="","",AV156/(1+GR!AV$27)^(AV$1-1)) ->  | AW191: =IF(AW$1="","",AW156/(1+GR!AW$27)^(AW$1-1)) ->  | AX191: =IF(AX$1="","",AX156/(1+GR!AX$27)^(AX$1-1)) ->  | AY191: =IF(AY$1="","",AY156/(1+GR!AY$27)^(AY$1-1)) ->  | AZ191: =IF(AZ$1="","",AZ156/(1+GR!AZ$27)^(AZ$1-1)) ->  | BA191: =IF(BA$1="","",BA156/(1+GR!BA$27)^(BA$1-1)) ->  | BB191: =IF(BB$1="","",BB156/(1+GR!BB$27)^(BB$1-1)) ->  | BC191: =IF(BC$1="","",BC156/(1+GR!BC$27)^(BC$1-1)) ->  | BD191: =IF(BD$1="","",BD156/(1+GR!BD$27)^(BD$1-1)) ->  | BE191: =IF(BE$1="","",BE156/(1+GR!BE$27)^(BE$1-1)) ->  | BF191: =IF(BF$1="","",BF156/(1+GR!BF$27)^(BF$1-1)) ->  | BG191: =IF(BG$1="","",BG156/(1+GR!BG$27)^(BG$1-1)) ->  | BH191: =IF(BH$1="","",BH156/(1+GR!BH$27)^(BH$1-1)) ->  | BI191: =IF(BI$1="","",BI156/(1+GR!BI$27)^(BI$1-1)) ->  | BJ191: =IF(BJ$1="","",BJ156/(1+GR!BJ$27)^(BJ$1-1)) ->  | BK191: =IF(BK$1="","",BK156/(1+GR!BK$27)^(BK$1-1)) ->  | BL191: =IF(BL$1="","",BL156/(1+GR!BL$27)^(BL$1-1)) ->  | BM191: =IF(BM$1="","",BM156/(1+GR!BM$27)^(BM$1-1)) ->  | BN191: =IF(BN$1="","",BN156/(1+GR!BN$27)^(BN$1-1)) ->  | BO191: =IF(BO$1="","",BO156/(1+GR!BO$27)^(BO$1-1)) -> 
D192: Roadworks time delays | E192: £ k | F192: 79052.70071 | H192: 5077.801507 | I192: =IF(I$1="","",I157/(1+GR!I$27)^(I$1-1)) -> 7189.211111 | J192: =IF(J$1="","",J157/(1+GR!J$27)^(J$1-1)) -> 5595.653785 | K192: =IF(K$1="","",K157/(1+GR!K$27)^(K$1-1)) -> 2132.115508 | L192: =IF(L$1="","",L157/(1+GR!L$27)^(L$1-1)) -> 2521.063349 | M192: =IF(M$1="","",M157/(1+GR!M$27)^(M$1-1)) -> 2705.578967 | N192: =IF(N$1="","",N157/(1+GR!N$27)^(N$1-1)) -> 2775.89827 | O192: =IF(O$1="","",O157/(1+GR!O$27)^(O$1-1)) -> 2782.524779 | P192: =IF(P$1="","",P157/(1+GR!P$27)^(P$1-1)) -> 2755.320304 | Q192: =IF(Q$1="","",Q157/(1+GR!Q$27)^(Q$1-1)) -> 2953.125601 | R192: =IF(R$1="","",R157/(1+GR!R$27)^(R$1-1)) -> 2884.898108 | S192: =IF(S$1="","",S157/(1+GR!S$27)^(S$1-1)) -> 2821.063231 | T192: =IF(T$1="","",T157/(1+GR!T$27)^(T$1-1)) -> 2759.507044 | U192: =IF(U$1="","",U157/(1+GR!U$27)^(U$1-1)) -> 2697.307306 | V192: =IF(V$1="","",V157/(1+GR!V$27)^(V$1-1)) -> 2635.304005 | W192: =IF(W$1="","",W157/(1+GR!W$27)^(W$1-1)) -> 2573.952417 | X192: =IF(X$1="","",X157/(1+GR!X$27)^(X$1-1)) -> 2088.934831 | Y192: =IF(Y$1="","",Y157/(1+GR!Y$27)^(Y$1-1)) -> 2037.080162 | Z192: =IF(Z$1="","",Z157/(1+GR!Z$27)^(Z$1-1)) -> 1986.292259 | AA192: =IF(AA$1="","",AA157/(1+GR!AA$27)^(AA$1-1)) -> 2009.101313 | AB192: =IF(AB$1="","",AB157/(1+GR!AB$27)^(AB$1-1)) -> 1958.643134 | AC192: =IF(AC$1="","",AC157/(1+GR!AC$27)^(AC$1-1)) -> 1909.301548 | AD192: =IF(AD$1="","",AD157/(1+GR!AD$27)^(AD$1-1)) -> 1858.974176 | AE192: =IF(AE$1="","",AE157/(1+GR!AE$27)^(AE$1-1)) -> 1911.001864 | AF192: =IF(AF$1="","",AF157/(1+GR!AF$27)^(AF$1-1)) -> 1860.221673 | AG192: =IF(AG$1="","",AG157/(1+GR!AG$27)^(AG$1-1)) -> 1810.698391 | AH192: =IF(AH$1="","",AH157/(1+GR!AH$27)^(AH$1-1)) -> 1762.405264 | AI192: =IF(AI$1="","",AI157/(1+GR!AI$27)^(AI$1-1)) -> 1713.635462 | AJ192: =IF(AJ$1="","",AJ157/(1+GR!AJ$27)^(AJ$1-1)) -> 1666.154501 | AK192: =IF(AK$1="","",AK157/(1+GR!AK$27)^(AK$1-1)) -> 1619.930844 | AL192: =IF(AL$1="","",AL157/(1+GR!AL$27)^(AL$1-1)) ->  | AM192: =IF(AM$1="","",AM157/(1+GR!AM$27)^(AM$1-1)) ->  | AN192: =IF(AN$1="","",AN157/(1+GR!AN$27)^(AN$1-1)) ->  | AO192: =IF(AO$1="","",AO157/(1+GR!AO$27)^(AO$1-1)) ->  | AP192: =IF(AP$1="","",AP157/(1+GR!AP$27)^(AP$1-1)) ->  | AQ192: =IF(AQ$1="","",AQ157/(1+GR!AQ$27)^(AQ$1-1)) ->  | AR192: =IF(AR$1="","",AR157/(1+GR!AR$27)^(AR$1-1)) ->  | AS192: =IF(AS$1="","",AS157/(1+GR!AS$27)^(AS$1-1)) ->  | AT192: =IF(AT$1="","",AT157/(1+GR!AT$27)^(AT$1-1)) ->  | AU192: =IF(AU$1="","",AU157/(1+GR!AU$27)^(AU$1-1)) ->  | AV192: =IF(AV$1="","",AV157/(1+GR!AV$27)^(AV$1-1)) ->  | AW192: =IF(AW$1="","",AW157/(1+GR!AW$27)^(AW$1-1)) ->  | AX192: =IF(AX$1="","",AX157/(1+GR!AX$27)^(AX$1-1)) ->  | AY192: =IF(AY$1="","",AY157/(1+GR!AY$27)^(AY$1-1)) ->  | AZ192: =IF(AZ$1="","",AZ157/(1+GR!AZ$27)^(AZ$1-1)) ->  | BA192: =IF(BA$1="","",BA157/(1+GR!BA$27)^(BA$1-1)) ->  | BB192: =IF(BB$1="","",BB157/(1+GR!BB$27)^(BB$1-1)) ->  | BC192: =IF(BC$1="","",BC157/(1+GR!BC$27)^(BC$1-1)) ->  | BD192: =IF(BD$1="","",BD157/(1+GR!BD$27)^(BD$1-1)) ->  | BE192: =IF(BE$1="","",BE157/(1+GR!BE$27)^(BE$1-1)) ->  | BF192: =IF(BF$1="","",BF157/(1+GR!BF$27)^(BF$1-1)) ->  | BG192: =IF(BG$1="","",BG157/(1+GR!BG$27)^(BG$1-1)) ->  | BH192: =IF(BH$1="","",BH157/(1+GR!BH$27)^(BH$1-1)) ->  | BI192: =IF(BI$1="","",BI157/(1+GR!BI$27)^(BI$1-1)) ->  | BJ192: =IF(BJ$1="","",BJ157/(1+GR!BJ$27)^(BJ$1-1)) ->  | BK192: =IF(BK$1="","",BK157/(1+GR!BK$27)^(BK$1-1)) ->  | BL192: =IF(BL$1="","",BL157/(1+GR!BL$27)^(BL$1-1)) ->  | BM192: =IF(BM$1="","",BM157/(1+GR!BM$27)^(BM$1-1)) ->  | BN192: =IF(BN$1="","",BN157/(1+GR!BN$27)^(BN$1-1)) ->  | BO192: =IF(BO$1="","",BO157/(1+GR!BO$27)^(BO$1-1)) -> 
D193: Accidents | E193: £ k | F193: 1168646.239 | H193: 61392.1277 | I193: =IF(I$1="","",I158/(1+GR!I$27)^(I$1-1)) -> 59316.06541 | J193: =IF(J$1="","",J158/(1+GR!J$27)^(J$1-1)) -> 57310.20813 | K193: =IF(K$1="","",K158/(1+GR!K$27)^(K$1-1)) -> 55372.18176 | L193: =IF(L$1="","",L158/(1+GR!L$27)^(L$1-1)) -> 53499.69253 | M193: =IF(M$1="","",M158/(1+GR!M$27)^(M$1-1)) -> 51690.52418 | N193: =IF(N$1="","",N158/(1+GR!N$27)^(N$1-1)) -> 49942.53544 | O193: =IF(O$1="","",O158/(1+GR!O$27)^(O$1-1)) -> 48253.65743 | P193: =IF(P$1="","",P158/(1+GR!P$27)^(P$1-1)) -> 46621.89124 | Q193: =IF(Q$1="","",Q158/(1+GR!Q$27)^(Q$1-1)) -> 45045.30554 | R193: =IF(R$1="","",R158/(1+GR!R$27)^(R$1-1)) -> 43522.03434 | S193: =IF(S$1="","",S158/(1+GR!S$27)^(S$1-1)) -> 42050.27472 | T193: =IF(T$1="","",T158/(1+GR!T$27)^(T$1-1)) -> 40628.28476 | U193: =IF(U$1="","",U158/(1+GR!U$27)^(U$1-1)) -> 39254.38141 | V193: =IF(V$1="","",V158/(1+GR!V$27)^(V$1-1)) -> 37926.93856 | W193: =IF(W$1="","",W158/(1+GR!W$27)^(W$1-1)) -> 36644.38508 | X193: =IF(X$1="","",X158/(1+GR!X$27)^(X$1-1)) -> 35405.20298 | Y193: =IF(Y$1="","",Y158/(1+GR!Y$27)^(Y$1-1)) -> 34207.92558 | Z193: =IF(Z$1="","",Z158/(1+GR!Z$27)^(Z$1-1)) -> 33051.13583 | AA193: =IF(AA$1="","",AA158/(1+GR!AA$27)^(AA$1-1)) -> 31933.46457 | AB193: =IF(AB$1="","",AB158/(1+GR!AB$27)^(AB$1-1)) -> 30853.58895 | AC193: =IF(AC$1="","",AC158/(1+GR!AC$27)^(AC$1-1)) -> 29810.23087 | AD193: =IF(AD$1="","",AD158/(1+GR!AD$27)^(AD$1-1)) -> 28802.15543 | AE193: =IF(AE$1="","",AE158/(1+GR!AE$27)^(AE$1-1)) -> 27828.1695 | AF193: =IF(AF$1="","",AF158/(1+GR!AF$27)^(AF$1-1)) -> 26887.12029 | AG193: =IF(AG$1="","",AG158/(1+GR!AG$27)^(AG$1-1)) -> 25977.894 | AH193: =IF(AH$1="","",AH158/(1+GR!AH$27)^(AH$1-1)) -> 25099.41449 | AI193: =IF(AI$1="","",AI158/(1+GR!AI$27)^(AI$1-1)) -> 24250.64202 | AJ193: =IF(AJ$1="","",AJ158/(1+GR!AJ$27)^(AJ$1-1)) -> 23430.572 | AK193: =IF(AK$1="","",AK158/(1+GR!AK$27)^(AK$1-1)) -> 22638.23382 | AL193: =IF(AL$1="","",AL158/(1+GR!AL$27)^(AL$1-1)) ->  | AM193: =IF(AM$1="","",AM158/(1+GR!AM$27)^(AM$1-1)) ->  | AN193: =IF(AN$1="","",AN158/(1+GR!AN$27)^(AN$1-1)) ->  | AO193: =IF(AO$1="","",AO158/(1+GR!AO$27)^(AO$1-1)) ->  | AP193: =IF(AP$1="","",AP158/(1+GR!AP$27)^(AP$1-1)) ->  | AQ193: =IF(AQ$1="","",AQ158/(1+GR!AQ$27)^(AQ$1-1)) ->  | AR193: =IF(AR$1="","",AR158/(1+GR!AR$27)^(AR$1-1)) ->  | AS193: =IF(AS$1="","",AS158/(1+GR!AS$27)^(AS$1-1)) ->  | AT193: =IF(AT$1="","",AT158/(1+GR!AT$27)^(AT$1-1)) ->  | AU193: =IF(AU$1="","",AU158/(1+GR!AU$27)^(AU$1-1)) ->  | AV193: =IF(AV$1="","",AV158/(1+GR!AV$27)^(AV$1-1)) ->  | AW193: =IF(AW$1="","",AW158/(1+GR!AW$27)^(AW$1-1)) ->  | AX193: =IF(AX$1="","",AX158/(1+GR!AX$27)^(AX$1-1)) ->  | AY193: =IF(AY$1="","",AY158/(1+GR!AY$27)^(AY$1-1)) ->  | AZ193: =IF(AZ$1="","",AZ158/(1+GR!AZ$27)^(AZ$1-1)) ->  | BA193: =IF(BA$1="","",BA158/(1+GR!BA$27)^(BA$1-1)) ->  | BB193: =IF(BB$1="","",BB158/(1+GR!BB$27)^(BB$1-1)) ->  | BC193: =IF(BC$1="","",BC158/(1+GR!BC$27)^(BC$1-1)) ->  | BD193: =IF(BD$1="","",BD158/(1+GR!BD$27)^(BD$1-1)) ->  | BE193: =IF(BE$1="","",BE158/(1+GR!BE$27)^(BE$1-1)) ->  | BF193: =IF(BF$1="","",BF158/(1+GR!BF$27)^(BF$1-1)) ->  | BG193: =IF(BG$1="","",BG158/(1+GR!BG$27)^(BG$1-1)) ->  | BH193: =IF(BH$1="","",BH158/(1+GR!BH$27)^(BH$1-1)) ->  | BI193: =IF(BI$1="","",BI158/(1+GR!BI$27)^(BI$1-1)) ->  | BJ193: =IF(BJ$1="","",BJ158/(1+GR!BJ$27)^(BJ$1-1)) ->  | BK193: =IF(BK$1="","",BK158/(1+GR!BK$27)^(BK$1-1)) ->  | BL193: =IF(BL$1="","",BL158/(1+GR!BL$27)^(BL$1-1)) ->  | BM193: =IF(BM$1="","",BM158/(1+GR!BM$27)^(BM$1-1)) ->  | BN193: =IF(BN$1="","",BN158/(1+GR!BN$27)^(BN$1-1)) ->  | BO193: =IF(BO$1="","",BO158/(1+GR!BO$27)^(BO$1-1)) -> 
D194: Carbon (Embodied in materials) | E194: £ k | F194: 3327.379645 | H194: 204.4694543 | I194: =IF(I$1="","",I159/(1+GR!I$27)^(I$1-1)) -> 252.0082187 | J194: =IF(J$1="","",J159/(1+GR!J$27)^(J$1-1)) -> 190.346227 | K194: =IF(K$1="","",K159/(1+GR!K$27)^(K$1-1)) -> 65.41417137 | L194: =IF(L$1="","",L159/(1+GR!L$27)^(L$1-1)) -> 74.79270877 | M194: =IF(M$1="","",M159/(1+GR!M$27)^(M$1-1)) -> 79.68638473 | N194: =IF(N$1="","",N159/(1+GR!N$27)^(N$1-1)) -> 81.89760352 | O194: =IF(O$1="","",O159/(1+GR!O$27)^(O$1-1)) -> 82.50654042 | P194: =IF(P$1="","",P159/(1+GR!P$27)^(P$1-1)) -> 83.21480797 | Q194: =IF(Q$1="","",Q159/(1+GR!Q$27)^(Q$1-1)) -> 82.2804448 | R194: =IF(R$1="","",R159/(1+GR!R$27)^(R$1-1)) -> 81.01260005 | S194: =IF(S$1="","",S159/(1+GR!S$27)^(S$1-1)) -> 85.37548979 | T194: =IF(T$1="","",T159/(1+GR!T$27)^(T$1-1)) -> 90.20796263 | U194: =IF(U$1="","",U159/(1+GR!U$27)^(U$1-1)) -> 93.65441283 | V194: =IF(V$1="","",V159/(1+GR!V$27)^(V$1-1)) -> 97.60704222 | W194: =IF(W$1="","",W159/(1+GR!W$27)^(W$1-1)) -> 100.3119471 | X194: =IF(X$1="","",X159/(1+GR!X$27)^(X$1-1)) -> 103.5280181 | Y194: =IF(Y$1="","",Y159/(1+GR!Y$27)^(Y$1-1)) -> 105.6078755 | Z194: =IF(Z$1="","",Z159/(1+GR!Z$27)^(Z$1-1)) -> 108.1892757 | AA194: =IF(AA$1="","",AA159/(1+GR!AA$27)^(AA$1-1)) -> 109.7297358 | AB194: =IF(AB$1="","",AB159/(1+GR!AB$27)^(AB$1-1)) -> 111.7559041 | AC194: =IF(AC$1="","",AC159/(1+GR!AC$27)^(AC$1-1)) -> 112.8256551 | AD194: =IF(AD$1="","",AD159/(1+GR!AD$27)^(AD$1-1)) -> 114.3629156 | AE194: =IF(AE$1="","",AE159/(1+GR!AE$27)^(AE$1-1)) -> 115.0203034 | AF194: =IF(AF$1="","",AF159/(1+GR!AF$27)^(AF$1-1)) -> 116.1263285 | AG194: =IF(AG$1="","",AG159/(1+GR!AG$27)^(AG$1-1)) -> 116.4225103 | AH194: =IF(AH$1="","",AH159/(1+GR!AH$27)^(AH$1-1)) -> 117.1485091 | AI194: =IF(AI$1="","",AI159/(1+GR!AI$27)^(AI$1-1)) -> 117.1290378 | AJ194: =IF(AJ$1="","",AJ159/(1+GR!AJ$27)^(AJ$1-1)) -> 117.5209233 | AK194: =IF(AK$1="","",AK159/(1+GR!AK$27)^(AK$1-1)) -> 117.2266364 | AL194: =IF(AL$1="","",AL159/(1+GR!AL$27)^(AL$1-1)) ->  | AM194: =IF(AM$1="","",AM159/(1+GR!AM$27)^(AM$1-1)) ->  | AN194: =IF(AN$1="","",AN159/(1+GR!AN$27)^(AN$1-1)) ->  | AO194: =IF(AO$1="","",AO159/(1+GR!AO$27)^(AO$1-1)) ->  | AP194: =IF(AP$1="","",AP159/(1+GR!AP$27)^(AP$1-1)) ->  | AQ194: =IF(AQ$1="","",AQ159/(1+GR!AQ$27)^(AQ$1-1)) ->  | AR194: =IF(AR$1="","",AR159/(1+GR!AR$27)^(AR$1-1)) ->  | AS194: =IF(AS$1="","",AS159/(1+GR!AS$27)^(AS$1-1)) ->  | AT194: =IF(AT$1="","",AT159/(1+GR!AT$27)^(AT$1-1)) ->  | AU194: =IF(AU$1="","",AU159/(1+GR!AU$27)^(AU$1-1)) ->  | AV194: =IF(AV$1="","",AV159/(1+GR!AV$27)^(AV$1-1)) ->  | AW194: =IF(AW$1="","",AW159/(1+GR!AW$27)^(AW$1-1)) ->  | AX194: =IF(AX$1="","",AX159/(1+GR!AX$27)^(AX$1-1)) ->  | AY194: =IF(AY$1="","",AY159/(1+GR!AY$27)^(AY$1-1)) ->  | AZ194: =IF(AZ$1="","",AZ159/(1+GR!AZ$27)^(AZ$1-1)) ->  | BA194: =IF(BA$1="","",BA159/(1+GR!BA$27)^(BA$1-1)) ->  | BB194: =IF(BB$1="","",BB159/(1+GR!BB$27)^(BB$1-1)) ->  | BC194: =IF(BC$1="","",BC159/(1+GR!BC$27)^(BC$1-1)) ->  | BD194: =IF(BD$1="","",BD159/(1+GR!BD$27)^(BD$1-1)) ->  | BE194: =IF(BE$1="","",BE159/(1+GR!BE$27)^(BE$1-1)) ->  | BF194: =IF(BF$1="","",BF159/(1+GR!BF$27)^(BF$1-1)) ->  | BG194: =IF(BG$1="","",BG159/(1+GR!BG$27)^(BG$1-1)) ->  | BH194: =IF(BH$1="","",BH159/(1+GR!BH$27)^(BH$1-1)) ->  | BI194: =IF(BI$1="","",BI159/(1+GR!BI$27)^(BI$1-1)) ->  | BJ194: =IF(BJ$1="","",BJ159/(1+GR!BJ$27)^(BJ$1-1)) ->  | BK194: =IF(BK$1="","",BK159/(1+GR!BK$27)^(BK$1-1)) ->  | BL194: =IF(BL$1="","",BL159/(1+GR!BL$27)^(BL$1-1)) ->  | BM194: =IF(BM$1="","",BM159/(1+GR!BM$27)^(BM$1-1)) ->  | BN194: =IF(BN$1="","",BN159/(1+GR!BN$27)^(BN$1-1)) ->  | BO194: =IF(BO$1="","",BO159/(1+GR!BO$27)^(BO$1-1)) -> 
D195: Total HMAT costs | E195: £ k | F195: 53805311.37 | H195: =IF(H181="","",SUM(H187:H194)) -> 1594380.641 | I195: =IF(I181="","",SUM(I187:I194)) -> 1557318.45 | J195: =IF(J181="","",SUM(J187:J194)) -> 1523877.488 | K195: 1524962.144 | L195: 1535467.12 | M195: 1559398.238 | N195: 1592136.148 | O195: 1625652.279 | P195: 1652929.167 | Q195: 1687755.769 | R195: 1734720.121 | S195: 1770159.113 | T195: 1804835.23 | U195: 1834829.032 | V195: 1861826.755 | W195: 1884527.044 | X195: 1903264.551 | Y195: 1916563.937 | Z195: 1931578.201 | AA195: 1942101.54 | AB195: 1949255.414 | AC195: 1956378.223 | AD195: 1958051.52 | AE195: 1955858.211 | AF195: 1951965.498 | AG195: 1943983.887 | AH195: 1933994.801 | AI195: 1920687.51 | AJ195: 1906627.178 | AK195: 1890226.163
C197: Network Benefits | D197: Change in accident costs | E197: £ k | F197: =SUM(H197:BO197) -> -47737.70374 | H197: =H162 -> -7725.626135 | I197: =IF(I$1="","",I162/(1+GR!I$27)^(I$1-1)) -> -6959.839104 | J197: =IF(J$1="","",J162/(1+GR!J$27)^(J$1-1)) -> -6450.146777 | K197: =IF(K$1="","",K162/(1+GR!K$27)^(K$1-1)) -> -5954.918097 | L197: =IF(L$1="","",L162/(1+GR!L$27)^(L$1-1)) -> -5473.825734 | M197: =IF(M$1="","",M162/(1+GR!M$27)^(M$1-1)) -> -5006.548907 | N197: =IF(N$1="","",N162/(1+GR!N$27)^(N$1-1)) -> -4552.773269 | O197: =IF(O$1="","",O162/(1+GR!O$27)^(O$1-1)) -> -4123.896379 | P197: =IF(P$1="","",P162/(1+GR!P$27)^(P$1-1)) -> -3707.56064 | Q197: =IF(Q$1="","",Q162/(1+GR!Q$27)^(Q$1-1)) -> -3303.4776 | R197: =IF(R$1="","",R162/(1+GR!R$27)^(R$1-1)) -> -2911.364688 | S197: =IF(S$1="","",S162/(1+GR!S$27)^(S$1-1)) -> -2530.945101 | T197: =IF(T$1="","",T162/(1+GR!T$27)^(T$1-1)) -> -2105.797188 | U197: =IF(U$1="","",U162/(1+GR!U$27)^(U$1-1)) -> -1693.546691 | V197: =IF(V$1="","",V162/(1+GR!V$27)^(V$1-1)) -> -1293.894549 | W197: =IF(W$1="","",W162/(1+GR!W$27)^(W$1-1)) -> -906.5477492 | X197: =IF(X$1="","",X162/(1+GR!X$27)^(X$1-1)) -> -531.2192229 | Y197: =IF(Y$1="","",Y162/(1+GR!Y$27)^(Y$1-1)) -> -207.7565884 | Z197: =IF(Z$1="","",Z162/(1+GR!Z$27)^(Z$1-1)) -> 105.4964693 | AA197: =IF(AA$1="","",AA162/(1+GR!AA$27)^(AA$1-1)) -> 408.7813315 | AB197: =IF(AB$1="","",AB162/(1+GR!AB$27)^(AB$1-1)) -> 702.3343938 | AC197: =IF(AC$1="","",AC162/(1+GR!AC$27)^(AC$1-1)) -> 986.3871587 | AD197: =IF(AD$1="","",AD162/(1+GR!AD$27)^(AD$1-1)) -> 1220.284756 | AE197: =IF(AE$1="","",AE162/(1+GR!AE$27)^(AE$1-1)) -> 1446.409445 | AF197: =IF(AF$1="","",AF162/(1+GR!AF$27)^(AF$1-1)) -> 1664.949383 | AG197: =IF(AG$1="","",AG162/(1+GR!AG$27)^(AG$1-1)) -> 1876.088746 | AH197: =IF(AH$1="","",AH162/(1+GR!AH$27)^(AH$1-1)) -> 2080.007808 | AI197: =IF(AI$1="","",AI162/(1+GR!AI$27)^(AI$1-1)) -> 2245.780372 | AJ197: =IF(AJ$1="","",AJ162/(1+GR!AJ$27)^(AJ$1-1)) -> 2405.661964 | AK197: =IF(AK$1="","",AK162/(1+GR!AK$27)^(AK$1-1)) -> 2559.798858 | AL197: =IF(AL$1="","",AL162/(1+GR!AL$27)^(AL$1-1)) ->  | AM197: =IF(AM$1="","",AM162/(1+GR!AM$27)^(AM$1-1)) ->  | AN197: =IF(AN$1="","",AN162/(1+GR!AN$27)^(AN$1-1)) ->  | AO197: =IF(AO$1="","",AO162/(1+GR!AO$27)^(AO$1-1)) ->  | AP197: =IF(AP$1="","",AP162/(1+GR!AP$27)^(AP$1-1)) ->  | AQ197: =IF(AQ$1="","",AQ162/(1+GR!AQ$27)^(AQ$1-1)) ->  | AR197: =IF(AR$1="","",AR162/(1+GR!AR$27)^(AR$1-1)) ->  | AS197: =IF(AS$1="","",AS162/(1+GR!AS$27)^(AS$1-1)) ->  | AT197: =IF(AT$1="","",AT162/(1+GR!AT$27)^(AT$1-1)) ->  | AU197: =IF(AU$1="","",AU162/(1+GR!AU$27)^(AU$1-1)) ->  | AV197: =IF(AV$1="","",AV162/(1+GR!AV$27)^(AV$1-1)) ->  | AW197: =IF(AW$1="","",AW162/(1+GR!AW$27)^(AW$1-1)) ->  | AX197: =IF(AX$1="","",AX162/(1+GR!AX$27)^(AX$1-1)) ->  | AY197: =IF(AY$1="","",AY162/(1+GR!AY$27)^(AY$1-1)) ->  | AZ197: =IF(AZ$1="","",AZ162/(1+GR!AZ$27)^(AZ$1-1)) ->  | BA197: =IF(BA$1="","",BA162/(1+GR!BA$27)^(BA$1-1)) ->  | BB197: =IF(BB$1="","",BB162/(1+GR!BB$27)^(BB$1-1)) ->  | BC197: =IF(BC$1="","",BC162/(1+GR!BC$27)^(BC$1-1)) ->  | BD197: =IF(BD$1="","",BD162/(1+GR!BD$27)^(BD$1-1)) ->  | BE197: =IF(BE$1="","",BE162/(1+GR!BE$27)^(BE$1-1)) ->  | BF197: =IF(BF$1="","",BF162/(1+GR!BF$27)^(BF$1-1)) ->  | BG197: =IF(BG$1="","",BG162/(1+GR!BG$27)^(BG$1-1)) ->  | BH197: =IF(BH$1="","",BH162/(1+GR!BH$27)^(BH$1-1)) ->  | BI197: =IF(BI$1="","",BI162/(1+GR!BI$27)^(BI$1-1)) ->  | BJ197: =IF(BJ$1="","",BJ162/(1+GR!BJ$27)^(BJ$1-1)) ->  | BK197: =IF(BK$1="","",BK162/(1+GR!BK$27)^(BK$1-1)) ->  | BL197: =IF(BL$1="","",BL162/(1+GR!BL$27)^(BL$1-1)) ->  | BM197: =IF(BM$1="","",BM162/(1+GR!BM$27)^(BM$1-1)) ->  | BN197: =IF(BN$1="","",BN162/(1+GR!BN$27)^(BN$1-1)) ->  | BO197: =IF(BO$1="","",BO162/(1+GR!BO$27)^(BO$1-1)) -> 
